Workbook

Sheet Setup
L1: =IF(K6="BWt (Lb)",CONCATENATE("DATA!F14:F28"),CONCATENATE("DATA!E14:E28")) -> DATA!E14:E28 | BB1: Powerlifting (3 lift meet) | BC1: Bench Press Only | BD1: Squat Only | BE1: Deadlift Only | BF1: Push Pull (Bench & Deadlift)
C2: Raw bench& deadlift | K2: 11.11. | O2: Bench Press Only | S2: Team Points
C4: Platform Weight Set | H4: Kg | K4: Weight Classes | O4: Divisions | S4: Place | T4: Points
C6: Pounds | F6: Kilos | K6: BWt (Kg) | O6: Abbrev | P6: Description | Q6: Scoring | S6: 1 | T6: 7
C7: =TRIM(Lifting!B3) -> Bench 3 | D7: =ABS(Lifting!D3) -> 235 | G7: =ABS(Lifting!D3) -> 235 | O7: M-O | P7: Men open | Q7: 3 | T7: 5
C8: How | D8: Pound | E8: LOAD | F8: How | G8: Kilo | H8: LOAD | J8: limit | K8: Men | M8: Women | O8: F-O | P8: Female open | Q8: 3 | T8: 3
C9: Many? | D9: Plates | E9: on Bar | F9: Many? | G9: Plates | H9: on Bar | J9: 10 | K9: 56 | L9: 10 | M9: 56 | O9: F-JR | P9: Female junior | Q9: 3 | T9: 2
C10: 0 | D10: 110 | E10: =IF(OR(D7=0,H4="Kg"),0,MIN(INT((D7-IF(LEFT($C$7,1)="S",$D$22,IF(LEFT($C$7,1)="B",$D$23,$D$24)))/(2*D10)),C10/2)) -> 0 | F10: 0 | G10: 50 | H10: =IF(OR(G7=0,H4="Lb"),0,MIN(INT((G7-IF(LEFT($C$7,1)="S",$G$22,IF(LEFT($C$7,1)="B",$G$23,$G$24)))/(2*G10)),F10/2)) -> 0 | J10: =IF(K9="SHW",1000,IF(K10="",J9+1,IF(ISERROR(VLOOKUP(K9,DATA!$F$32:$G$59,2,FALSE)),K9,VLOOKUP(K9,DATA!$F$32:$G$59,2,FALSE))+0.0001)) -> 56.0001 | K10: 60 | L10: =IF(M9="SHW",1000,IF(M10="",L9+1,IF(ISERROR(VLOOKUP(M9,DATA!$F$32:$G$59,2,FALSE)),M9,VLOOKUP(M9,DATA!$F$32:$G$59,2,FALSE))+0.0001)) -> 56.0001 | M10: 60 | O10: M-JR | P10: Men junior | Q10: 3 | T10: 1
C11: 2 | D11: 100 | E11: =IF(OR(D7=0,H4="Kg"),0,MIN(INT((D7-IF(LEFT($C$7,1)="S",$D$22,IF(LEFT($C$7,1)="B",$D$23,$D$24))-2*E10*D10)/(2*D11)),C11/2)) -> 0 | F11: 0 | G11: 45 | H11: =IF(OR(G7=0,H4="Lb"),0,MIN(INT((G7-IF(LEFT($C$7,1)="S",$G$22,IF(LEFT($C$7,1)="B",$G$23,$G$24))-2*H10*G10)/(2*G11)),F11/2)) -> 0 | J11: =IF(K10="SHW",1000,IF(K11="",J10+1,IF(ISERROR(VLOOKUP(K10,DATA!$F$32:$G$59,2,FALSE)),K10,VLOOKUP(K10,DATA!$F$32:$G$59,2,FALSE))+0.001)) -> 60.001 | K11: 67.5 | L11: =IF(M10="SHW",1000,IF(M11="",L10+1,IF(ISERROR(VLOOKUP(M10,DATA!$F$32:$G$59,2,FALSE)),M10,VLOOKUP(M10,DATA!$F$32:$G$59,2,FALSE))+0.001)) -> 60.001 | M11: 67.5 | O11: M-M1 | P11: Men master 40-44 | Q11: 3 | T11: 0
C12: 0 | D12: 50 | E12: =IF(OR(D7=0,H4="Kg"),0,MIN(INT((D7-IF(LEFT($C$7,1)="S",$D$22,IF(LEFT($C$7,1)="B",$D$23,$D$24))-2*E10*D10-2*E11*D11)/(2*D12)),C12/2)) -> 0 | F12: 4 | G12: 25 | H12: =IF(OR(G7=0,H4="Lb"),0,MIN(INT((G7-IF(LEFT($C$7,1)="S",$G$22,IF(LEFT($C$7,1)="B",$G$23,$G$24))-2*H10*G10-2*H11*G11)/(2*G12)),F12/2)) -> 2 | J12: =IF(K11="SHW",1000,IF(K12="",J11+1,IF(ISERROR(VLOOKUP(K11,DATA!$F$32:$G$59,2,FALSE)),K11,VLOOKUP(K11,DATA!$F$32:$G$59,2,FALSE))+0.001)) -> 67.501 | K12: 75 | L12: =IF(M11="SHW",1000,IF(M12="",L11+1,IF(ISERROR(VLOOKUP(M11,DATA!$F$32:$G$59,2,FALSE)),M11,VLOOKUP(M11,DATA!$F$32:$G$59,2,FALSE))+0.001)) -> 67.501 | M12: 75 | O12: M-M2 | P12: Men master 45-49 | Q12: 3 | T12: 0
C13: 6 | D13: 45 | E13: =IF(OR(D7=0,H4="Kg"),0,MIN(INT((D7-IF(LEFT($C$7,1)="S",$D$22,IF(LEFT($C$7,1)="B",$D$23,$D$24))-2*E10*D10-2*E11*D11-2*E12*D12)/(2*D13)),C13/2)) -> 0 | F13: 6 | G13: 20 | H13: =IF(OR(G7=0,H4="Lb"),0,MIN(INT((G7-IF(LEFT($C$7,1)="S",$G$22,IF(LEFT($C$7,1)="B",$G$23,$G$24))-2*H10*G10-2*H11*G11-2*H12*G12)/(2*G13)),F13/2)) -> 2 | J13: =IF(K12="SHW",1000,IF(K13="",J12+1,IF(ISERROR(VLOOKUP(K12,DATA!$F$32:$G$59,2,FALSE)),K12,VLOOKUP(K12,DATA!$F$32:$G$59,2,FALSE))+0.001)) -> 75.001 | K13: 82.5 | L13: =IF(M12="SHW",1000,IF(M13="",L12+1,IF(ISERROR(VLOOKUP(M12,DATA!$F$32:$G$59,2,FALSE)),M12,VLOOKUP(M12,DATA!$F$32:$G$59,2,FALSE))+0.001)) -> 75.001 | M13: 82.5 | O13: M-M3 | P13: Men master 50-54 | Q13: 3 | T13: 0
C14: 4 | D14: 35 | E14: =IF(OR(D7=0,H4="Kg"),0,MIN(INT((D7-IF(LEFT($C$7,1)="S",$D$22,IF(LEFT($C$7,1)="B",$D$23,$D$24))-2*E10*D10-2*E11*D11-2*E12*D12-2*E13*D13)/(2*D14)),C14/2)) -> 0 | F14: 2 | G14: 15 | H14: =IF(OR(G7=0,H4="Lb"),0,MIN(INT((G7-IF(LEFT($C$7,1)="S",$G$22,IF(LEFT($C$7,1)="B",$G$23,$G$24))-2*H10*G10-2*H11*G11-2*H12*G12-2*H13*G13)/(2*G14)),F14/2)) -> 1 | J14: =IF(K13="SHW",1000,IF(K14="",J13+1,IF(ISERROR(VLOOKUP(K13,DATA!$F$32:$G$59,2,FALSE)),K13,VLOOKUP(K13,DATA!$F$32:$G$59,2,FALSE))+0.001)) -> 82.501 | K14: 90 | L14: =IF(M13="SHW",1000,IF(M14="",L13+1,IF(ISERROR(VLOOKUP(M13,DATA!$F$32:$G$59,2,FALSE)),M13,VLOOKUP(M13,DATA!$F$32:$G$59,2,FALSE))+0.001)) -> 82.501 | M14: 90 | O14: M-M4 | P14: Men master 55-59 | Q14: 3 | T14: 0
C15: 2 | D15: 25 | E15: =IF(OR(D7=0,H4="Kg"),0,MIN(INT((D7-IF(LEFT($C$7,1)="S",$D$22,IF(LEFT($C$7,1)="B",$D$23,$D$24))-2*E10*D10-2*E11*D11-2*E12*D12-2*E13*D13-2*E14*D14)/(2*D15)),C15/2)) -> 0 | F15: 2 | G15: 10 | H15: =IF(OR(G7=0,H4="Lb"),0,MIN(INT((G7-IF(LEFT($C$7,1)="S",$G$22,IF(LEFT($C$7,1)="B",$G$23,$G$24))-2*H10*G10-2*H11*G11-2*H12*G12-2*H13*G13-2*H14*G14)/(2*G15)),F15/2)) -> 0 | J15: =IF(K14="SHW",1000,IF(K15="",J14+1,IF(ISERROR(VLOOKUP(K14,DATA!$F$32:$G$59,2,FALSE)),K14,VLOOKUP(K14,DATA!$F$32:$G$59,2,FALSE))+0.001)) -> 90.001 | K15: 100 | L15: =IF(M14="SHW",1000,IF(M15="",L14+1,IF(ISERROR(VLOOKUP(M14,DATA!$F$32:$G$59,2,FALSE)),M14,VLOOKUP(M14,DATA!$F$32:$G$59,2,FALSE))+0.001)) -> 83.501 | O15: M-M5 | P15: Men master 60-64 | Q15: 3 | T15: 0
C16: 6 | D16: 10 | E16: =IF(OR(D7=0,H4="Kg"),0,MIN(INT((D7-IF(LEFT($C$7,1)="S",$D$22,IF(LEFT($C$7,1)="B",$D$23,$D$24))-2*E10*D10-2*E11*D11-2*E12*D12-2*E13*D13-2*E14*D14-2*E15*D15)/(2*D16)),C16/2)) -> 0 | F16: 2 | G16: 5 | H16: =IF(OR(G7=0,H4="Lb"),0,MIN(INT((G7-IF(LEFT($C$7,1)="S",$G$22,IF(LEFT($C$7,1)="B",$G$23,$G$24))-2*H10*G10-2*H11*G11-2*H12*G12-2*H13*G13-2*H14*G14-2*H15*G15)/(2*G16)),F16/2)) -> 0 | J16: =IF(K15="SHW",1000,IF(K16="",J15+1,IF(ISERROR(VLOOKUP(K15,DATA!$F$32:$G$59,2,FALSE)),K15,VLOOKUP(K15,DATA!$F$32:$G$59,2,FALSE))+0.001)) -> 100.001 | K16: 110 | L16: =IF(M15="SHW",1000,IF(M16="",L15+1,IF(ISERROR(VLOOKUP(M15,DATA!$F$32:$G$59,2,FALSE)),M15,VLOOKUP(M15,DATA!$F$32:$G$59,2,FALSE))+0.001)) -> 84.501 | O16: M-M6 | P16: Men master 65-69 | Q16: 3
C17: 4 | D17: 5 | E17: =IF(OR(D7=0,H4="Kg"),0,MIN(INT((D7-IF(LEFT($C$7,1)="S",$D$22,IF(LEFT($C$7,1)="B",$D$23,$D$24))-2*E10*D10-2*E11*D11-2*E12*D12-2*E13*D13-2*E14*D14-2*E15*D15-2*E16*D16)/(2*D17)),C17/2)) -> 0 | F17: 2 | G17: 2.5 | H17: =IF(OR(G7=0,H4="Lb"),0,MIN(INT((G7-IF(LEFT($C$7,1)="S",$G$22,IF(LEFT($C$7,1)="B",$G$23,$G$24))-2*H10*G10-2*H11*G11-2*H12*G12-2*H13*G13-2*H14*G14-2*H15*G15-2*H16*G16)/(2*G17)),F17/2)) -> 0 | J17: =IF(K16="SHW",1000,IF(K17="",J16+1,IF(ISERROR(VLOOKUP(K16,DATA!$F$32:$G$59,2,FALSE)),K16,VLOOKUP(K16,DATA!$F$32:$G$59,2,FALSE))+0.001)) -> 110.001 | K17: 125 | L17: =IF(M16="SHW",1000,IF(M17="",L16+1,IF(ISERROR(VLOOKUP(M16,DATA!$F$32:$G$59,2,FALSE)),M16,VLOOKUP(M16,DATA!$F$32:$G$59,2,FALSE))+0.001)) -> 85.501 | O17: M-M7 | P17: Men master 70-74 | Q17: 3
C18: 4 | D18: 2.5 | E18: =IF(OR(D7=0,H4="Kg"),0,MIN(INT((D7-IF(LEFT($C$7,1)="S",$D$22,IF(LEFT($C$7,1)="B",$D$23,$D$24))-2*E10*D10-2*E11*D11-2*E12*D12-2*E13*D13-2*E14*D14-2*E15*D15-2*E16*D16-2*E17*D17)/(2*D18)),C18/2)) -> 0 | F18: 2 | G18: 1.25 | H18: =IF(OR(G7=0,H4="Lb"),0,INT((G7-IF(LEFT($C$7,1)="S",$G$22,IF(LEFT($C$7,1)="B",$G$23,$G$24))-2*H10*G10-2*H11*G11-2*H12*G12-2*H13*G13-2*H14*G14-2*H15*G15-2*H16*G16-2*H17*G17)/(2*G18))) -> 0 | J18: =IF(K17="SHW",1000,IF(K18="",J17+1,IF(ISERROR(VLOOKUP(K17,DATA!$F$32:$G$59,2,FALSE)),K17,VLOOKUP(K17,DATA!$F$32:$G$59,2,FALSE))+0.001)) -> 125.001 | K18: 140 | L18: =IF(M17="SHW",1000,IF(M18="",L17+1,IF(ISERROR(VLOOKUP(M17,DATA!$F$32:$G$59,2,FALSE)),M17,VLOOKUP(M17,DATA!$F$32:$G$59,2,FALSE))+0.001)) -> 86.501 | O18: F-M3 | P18: Female master 50-54 | Q18: 3
C19: 0 | D19: 1 | E19: =IF(OR(D7=0,H4="Kg"),0,MIN(INT((D7-IF(LEFT($C$7,1)="S",$D$22,IF(LEFT($C$7,1)="B",$D$23,$D$24))-2*E10*D10-2*E11*D11-2*E12*D12-2*E13*D13-2*E14*D14-2*E15*D15-2*E16*D16-2*E17*D17-2*E18*D18)/(2*D19)),C19/2)) -> 0 | F19: 4 | G19: 0.5 | H19: =IF(OR(G7=0,H4="Lb"),0,INT((G7-IF(LEFT($C$7,1)="S",$G$22,IF(LEFT($C$7,1)="B",$G$23,$G$24))-2*H10*G10-2*H11*G11-2*H12*G12-2*H13*G13-2*H14*G14-2*H15*G15-2*H16*G16-2*H17*G17-2*H18*G18)/(2*G19))) -> 0 | J19: =IF(K18="SHW",1000,IF(K19="",J18+1,IF(ISERROR(VLOOKUP(K18,DATA!$F$32:$G$59,2,FALSE)),K18,VLOOKUP(K18,DATA!$F$32:$G$59,2,FALSE))+0.001)) -> 140.001 | K19: SHW | L19: =IF(M18="SHW",1000,IF(M19="",L18+1,IF(ISERROR(VLOOKUP(M18,DATA!$F$32:$G$59,2,FALSE)),M18,VLOOKUP(M18,DATA!$F$32:$G$59,2,FALSE))+0.001)) -> 87.501
C20: 0 | D20: 0.5 | E20: =IF(OR(D7=0,H4="Kg"),0,MIN(INT((D7-IF(LEFT($C$7,1)="S",$D$22,IF(LEFT($C$7,1)="B",$D$23,$D$24))-2*E10*D10-2*E11*D11-2*E12*D12-2*E13*D13-2*E14*D14-2*E15*D15-2*E16*D16-2*E17*D17-2*E18*D18-2*E19*D19)/(2*D20)),C20/2)) -> 0 | F20: 2 | G20: 0.25 | H20: =IF(OR(G7=0,H4="Lb"),0,INT((G7-IF(LEFT($C$7,1)="S",$G$22,IF(LEFT($C$7,1)="B",$G$23,$G$24))-2*H10*G10-2*H11*G11-2*H12*G12-2*H13*G13-2*H14*G14-2*H15*G15-2*H16*G16-2*H17*G17-2*H18*G18-2*H19*G19)/(2*G20))) -> 0 | J20: =IF(K19="SHW",1000,IF(K20="",J19+1,IF(ISERROR(VLOOKUP(K19,DATA!$F$32:$G$59,2,FALSE)),K19,VLOOKUP(K19,DATA!$F$32:$G$59,2,FALSE))+0.001)) -> 1000 | L20: =IF(M19="SHW",1000,IF(M20="",L19+1,IF(ISERROR(VLOOKUP(M19,DATA!$F$32:$G$59,2,FALSE)),M19,VLOOKUP(M19,DATA!$F$32:$G$59,2,FALSE))+0.001)) -> 88.501
C21: Bar plus Collars | E21: 1 | F21: Bar plus Collars | H21: 1 | J21: =IF(K20="SHW",1000,IF(K21="",J20+1,IF(ISERROR(VLOOKUP(K20,DATA!$F$32:$G$59,2,FALSE)),K20,VLOOKUP(K20,DATA!$F$32:$G$59,2,FALSE))+0.001)) -> 1001 | L21: =IF(M20="SHW",1000,IF(M21="",L20+1,IF(ISERROR(VLOOKUP(M20,DATA!$F$32:$G$59,2,FALSE)),M20,VLOOKUP(M20,DATA!$F$32:$G$59,2,FALSE))+0.001)) -> 89.501
C22: Squat | D22: 85 | E22: Pounds | F22: Squat | G22: 20 | H22: Kilos | J22: =IF(K21="SHW",1000,IF(K22="",J21+1,IF(ISERROR(VLOOKUP(K21,DATA!$F$32:$G$59,2,FALSE)),K21,VLOOKUP(K21,DATA!$F$32:$G$59,2,FALSE))+0.001)) -> 1002 | L22: =IF(M21="SHW",1000,IF(M22="",L21+1,IF(ISERROR(VLOOKUP(M21,DATA!$F$32:$G$59,2,FALSE)),M21,VLOOKUP(M21,DATA!$F$32:$G$59,2,FALSE))+0.001)) -> 90.501
C23: Bench | D23: 50 | F23: Bench | G23: 25 | J23: =IF(K22="SHW",1000,IF(K23="",J22+1,IF(ISERROR(VLOOKUP(K22,DATA!$F$32:$G$59,2,FALSE)),K22,VLOOKUP(K22,DATA!$F$32:$G$59,2,FALSE))+0.001)) -> 1003 | L23: =IF(M22="SHW",1000,IF(M23="",L22+1,IF(ISERROR(VLOOKUP(M22,DATA!$F$32:$G$59,2,FALSE)),M22,VLOOKUP(M22,DATA!$F$32:$G$59,2,FALSE))+0.001)) -> 91.501
C24: Deadlift | D24: 45 | F24: Deadlift | G24: 25
D26: Results - Lbs & Kgs? | G26: no
K28: Best Lifter Coeff
D29: Reset for New Contest
K30: Reshel
C33: Web Upload | F33: Disable
C34: FTP site
C35: User Name
C36: Folder/File Name
E38: Website

Sheet Weigh-in
AY1: =CONCATENATE("Setup!O7:O",COUNTA(Setup!O:O)+4) -> Setup!O7:O19 | BB1: Powerlifting (3 lift meet) | BC1: Bench Press Only | BD1: Squat Only | BE1: Deadlift Only | BF1: Push Pull (Bench & Deadlift) | CC1: 15
B2: Flight | C2: Name | D2: Age | E2: Div | F2: =Setup!K6 -> BWt (Kg) | G2: WtCls (Kg) | H2: Wilks Coeff | I2: Lot # | J2: RH Sq | K2: Squat 1 | L2: Squat 2 | M2: Squat 3 | N2: Squat 4 | O2: Best Squat | P2: RH BP | Q2: Bench 1 | R2: Bench 2 | S2: Bench 3 | T2: Bench 4 | U2: Best Bench | V2: Sub Total | W2: Deadlift 1 | X2: Deadlift 2 | Y2: Deadlift 3 | Z2: Deadlift 4 | AA2: Best Deadlift | AC2: Coeff Score | AD2: Age & Coeff | AE2: Place code | AF2: Pl-Div-WtCl | AG2: Team Pts | AH2: Team | AI2: Events Entered | AJ2: Event check | AK2: sort # | AL2: lbs/kg | AP2: scoring value | AQ2: rank | AR2: -1 | CC2: 2 | CH2: status | CI2: Squat 1 | CJ2: Squat 2 | CK2: Squat 3 | CL2: Squat 4 | CM2: Best Squat | CN2: RH BP | CO2: Bench 1 | CP2: Bench 2 | CQ2: Bench 3 | CR2: Bench 4 | CS2: Best Bench | CT2: Sub Total | CU2: Deadlift 1 | CV2: Deadlift 2 | CW2: Deadlift 3 | CX2: Deadlift 4 | CY2: Best Deadlift
B3: A | C3: Marttila Lauri | D3: 26 | E3: M-O | F3: 98.9 | P3: 7 | Q3: 210
B4: A | C4: Heinonen Timo | D4: 34 | E4: M-O | F4: 97.6 | P4: 6 | Q4: 210
B5: A | C5: Maantila Jan-Erik | D5: 32 | E5: M-O | F5: 109.9 | P5: 8 | Q5: 180
B6: A | C6: Ninni Myöhänen | D6: 19 | E6: F-JR | F6: 67.5 | P6: 6 | Q6: 52.5
B7: A | C7: Vuorio Anni | D7: 23 | E7: F-JR | F7: 73.4 | P7: 4 | Q7: 70
B8: A | C8: Laine Iina | D8: 51 | E8: F-M3 | F8: 54.6 | P8: 4 | Q8: 70
B9: A | C9: Lahtinen Niklas | D9: 21 | E9: M-JR | F9: 105.9 | P9: 7 | Q9: 165
B10: A | C10: Uotila Tuomas | D10: 21 | E10: M-JR | F10: 116.4 | P10: 7 | Q10: 160
B11: A | C11: Hakala Henri | D11: 31 | E11: M-O | F11: 115.1 | P11: 7 | Q11: 220
B12: A | C12: Renfors Klaus | D12: 44 | E12: M-M1 | F12: 101.2 | P12: 7 | Q12: 160
B13: A | C13: Akkanen Atte | D13: 49 | E13: M-M2 | F13: 85.5 | P13: 5 | Q13: 150
B14: A | C14: Holm Jani | D14: 39 | E14: M-O | F14: 108 | P14: 9 | Q14: 160
B15: A | C15: Kärkkäinen Juhani | D15: 58 | E15: M-M4 | F15: 99.8 | P15: 7 | Q15: 135
CF36: Dylan Massingham
CF37: Paul Hayes
CF39: Dan
CF40: David
CF41: Paul

Sheet Lifting
A1: =COUNTIF(INDIRECT(AG1),RIGHT(B8,1)) -> 13 | B1: Sort-on | F1: Div | H1: Wt Cls | J1: =IF(ISERROR(A2),1,0) -> 0 | AG1: =CONCATENATE("$b$9:$b$",$AF$7) -> $b$9:$b$22 | AI1: =CONCATENATE("Setup!O7:O",COUNTA(Setup!O:O)+4) -> Setup!O7:O19 | AZ1: Best Bench | BA1: =VLOOKUP($AZ$1,$AZ$2:$BM$6,2,FALSE) -> $BB$1:$BE$1 | BB1: =VLOOKUP($AZ$1,$AZ$2:$BM$6,3,FALSE) -> Bench 1 | BC1: =VLOOKUP($AZ$1,$AZ$2:$BM$6,4,FALSE) -> Bench 2 | BD1: =VLOOKUP($AZ$1,$AZ$2:$BM$6,5,FALSE) -> Bench 3 | BE1: =VLOOKUP($AZ$1,$AZ$2:$BM$6,6,FALSE) -> Bench 4 | BF1: =VLOOKUP($AZ$1,$AZ$2:$BM$6,7,FALSE) -> 0 | BG1: =VLOOKUP($AZ$1,$AZ$2:$BM$6,8,FALSE) -> 0 | BH1: =VLOOKUP($AZ$1,$AZ$2:$BM$6,9,FALSE) -> 0 | BI1: =VLOOKUP($AZ$1,$AZ$2:$BM$6,10,FALSE) -> 0 | BJ1: =VLOOKUP($AZ$1,$AZ$2:$BM$6,11,FALSE) -> 0 | BK1: =VLOOKUP($AZ$1,$AZ$2:$BM$6,12,FALSE) -> 0 | BL1: =VLOOKUP($AZ$1,$AZ$2:$BM$6,13,FALSE) -> 0 | BM1: =VLOOKUP($AZ$1,$AZ$2:$BM$6,14,FALSE) -> 0 | BP1: A | BQ1: =IF(BP1=RIGHT($B$8,1),0,BQ8+1) -> 0
A2: =CONCATENATE(CHOOSE(MATCH(B3,K8:Z8,0),"K","L","M","N","O","P","Q","R","S","T","U","V","W","X","Y","Z"),MATCH(B2,INDIRECT(A7),0)+9,) -> S22 | B2: Hakala Henri | F2: =INDIRECT(CONCATENATE("E",A4)) -> M-O | H2: =IF(INDIRECT(CONCATENATE("G",A4))="SHW","SHW",ROUND(INDIRECT(CONCATENATE("G",A4)),1)) -> 125 | I2: =IF(H2="SHW","",IF(G8="WtCls (Kg)","Kg","Lb")) -> Kg | AZ2: Best Bench | BA2: $BB$1:$BE$1 | BB2: Bench 1 | BC2: Bench 2 | BD2: Bench 3 | BE2: Bench 4 | BP2: B | BQ2: =IF(BP2=RIGHT($B$8,1),0,BQ1+1) -> 1
A3: =MATCH(B3,K8:Z8,0)+10 -> 19 | B3: Bench 3 | D3: =INDIRECT(A2) -> -235 | G3: =Setup!H4 -> Kg | H3: =ABS(D3) -> 235 | I3: =-1*H3 -> -235 | AZ3: Best Deadlift | BA3: $BB$1:$BE$1 | BB3: Deadlift 1 | BC3: Deadlift 2 | BD3: Deadlift 3 | BE3: Deadlift 4 | BP3: C | BQ3: =IF(BP3=RIGHT($B$8,1),0,BQ2+1) -> 2
A4: =MATCH(B2,INDIRECT(A7),0)+9 -> 22 | B4: =IF(LEFT(B3,1)="D",CONCATENATE("Place - ",INDIRECT(CONCATENATE("AV",A4))),CONCATENATE("Rack - ",IF(LEFT(B3,2)=" S",INDIRECT(CONCATENATE("J",A4)),INDIRECT(CONCATENATE("P",A4))))) -> Rack - 7 | D4: =IF(G4="Lb",2.2046*D3,D3/2.2046) -> -518.081 | G4: =IF(G3="Kg","Lb","Kg") -> Lb | H4: S22 | AZ4: Best Squat | BA4: $BB$1:$BE$1 | BB4: Squat 1 | BC4: Squat 2 | BD4: Squat 3 | BE4: Squat 4 | BP4: D | BQ4: 3
A5: =CONCATENATE(IF(AND($A$3>10,$A$3<15),"O",IF(AND($A$3>16,$A$3<21),"U","AA")),$A$4) -> U22 | F5: automatic | AZ5: PL Total | BA5: $BB$1:$BM$1 | BB5: Squat 1 | BC5: Squat 2 | BD5: Squat 3 | BE5: Squat 4 | BF5: Bench 1 | BG5: Bench 2 | BH5: Bench 3 | BI5: Bench 4 | BJ5: Deadlift 1 | BK5: Deadlift 2 | BL5: Deadlift 3 | BM5: Deadlift 4 | BP5: E | BQ5: 4
A6: =CONCATENATE(IF(AND($A$3>10,$A$3<15),"O",IF(AND($A$3>16,$A$3<21),"U","AA")),1) -> U1 | AF6: =A1+10 -> 23 | AZ6: Push Pull Total | BA6: $BB$1:$BI$1 | BB6: Bench 1 | BC6: Bench 2 | BD6: Bench 3 | BE6: Bench 4 | BF6: Deadlift 1 | BG6: Deadlift 2 | BH6: Deadlift 3 | BI6: Deadlift 4 | BP6: F | BQ6: 5
A7: =CONCATENATE("$C$10:$C$",A1+9) -> $C$10:$C$22 | AF7: 22 | AG7: =CONCATENATE("$AG$9:$AG$",$AF$7) -> $AG$9:$AG$22 | AJ7: =IF($AB$8="PL Total","PL",IF($AB$8="Push Pull Total","PP",IF($AB$8="Best Squat","SQ",IF($AB$8="Best Bench","BP","DL")))) -> BP | AS7: =CONCATENATE("AR10:AR",AF7) -> AR10:AR22 | AU7: =CONCATENATE("AT10:AT",AF7) -> AT10:AT22 | BP7: G | BQ7: 6
A8: Sort data | B8: Flt A | C8: Name | D8: Age | E8: Div | F8: =Setup!K6 -> BWt (Kg) | G8: =IF(F8="BWt (Kg)","WtCls (Kg)","WtCls (Lb)") -> WtCls (Kg) | H8: =Setup!K30 -> Reshel | I8: Lot # | J8: RH Sq | K8: Squat 1 | L8: Squat 2 | M8: Squat 3 | N8: Squat 4 | O8: Best Squat | P8: RH BP | Q8: Bench 1 | R8: Bench 2 | S8: Bench 3 | T8: Bench 4 | U8: Best Bench | V8: Sub Total | W8: Deadlift 1 | X8: Deadlift 2 | Y8: Deadlift 3 | Z8: Deadlift 4 | AA8: Best Deadlift | AB8: Best Bench | AC8: Coeff Score | AD8: Age & Coeff | AE8: Pl code | AF8: Pl-Div-WtCl | AG8: Tm Pts | AH8: Team | AI8: Events | AJ8: Event check | AK8: sort # | AL8: lbs/kg | AM8: PL Total | AN8: Push Pull Total | AO8: M/F | AQ8: valid score? | AR8: scoring value | AS8: rank | AT8: Div wt | AU8: Div rank | AV8: place | AW8: bwt | AX8: bwt rank | AY8: abs score | BP8: H | BQ8: 7 | CJ8: status | CK8: Squat 1 | CL8: Squat 2 | CM8: Squat 3 | CN8: Squat 4 | CO8: Best Squat | CP8: RH BP | CQ8: Bench 1 | CR8: Bench 2 | CS8: Bench 3 | CT8: Bench 4 | CU8: Best Bench | CV8: Sub Total | CW8: Deadlift 1 | CX8: Deadlift 2 | CY8: Deadlift 3 | CZ8: Deadlift 4 | DA8: Best Deadlift
A9: =IF(K9,ABS(K9)+0.0001*I9,"") ->  | G9: =IF(OR(E9="",F9=""),"",IF(LEFT(E9,1)="M",VLOOKUP(F9,Setup!$J$9:$K$23,2,TRUE),VLOOKUP(F9,Setup!$L$9:$M$23,2,TRUE))) ->  | H9: =IF(F9="",0,VLOOKUP(AL9,DATA!$L$2:$N$1911,IF(LEFT(E9,1)="F",3,2))) -> 0 | O9: =IF(MAX(CK9:CM9)>0,MAX(ABS(K9)*CK9,ABS(L9)*CL9,CM9*ABS(M9)),0) -> 0 | U9: =IF(MAX(CQ9:CS9)>0,MAX(ABS(Q9)*CQ9,ABS(R9)*CR9,CS9*ABS(S9)),0) -> 0 | V9: =IF(OR(O9=0,U9=0),0,O9+U9) -> 0 | AA9: =IF(MAX(CW9:CY9)>0,MAX(ABS(W9)*CW9,ABS(X9)*CX9,CY9*ABS(Y9)),0) -> 0 | AB9: =AJ9*IF($AB$8="PL Total",AM9,IF($AB$8="Push Pull Total",AN9,IF($AB$8="Best Squat",O9,IF($AB$8="Best Bench",U9,AA9)))) -> 0 | AC9: =IF(OR(F9="",AB9=0),0,H9*IF(AND($G$3="Lb",$H$8="Wilks"),AB9/2.2046,AB9)) -> 0 | AD9: =IF(OR(AB9=0,D9=""),0,IF(AND(D9<23,D9<=40),1,VLOOKUP($D9,DATA!$A$2:$B$53,2,TRUE))*AC9) -> 0 | AE9: =IF(E9="","",OFFSET(Setup!$Q$1,MATCH(E9,Setup!O:O,0)-1,0)) ->  | AF9: =IF(OR(AB9=0,AR9=0),0,CONCATENATE(AV9,"-",E9,IF(AE9=1,"-",""),IF(AE9=1,IF(G9="SHW",G9,ROUND(G9,1)),""))) -> 0 | AG9: =IF(OR(AB9=0),0,VLOOKUP(AV9,Setup!$S$6:$T$15,2,TRUE)) -> 0 | AI9: BP | AJ9: =IF(ISERROR(FIND($AJ$7,AI9)),0,1) -> 1 | AK9: =IF(B9="","",VLOOKUP(B9,$BP$1:$BQ$8,2,FALSE)) ->  | AL9: =ROUND(IF($F$8="BWt (Kg)",F9,F9/2.2046),1) -> 0 | AM9: =IF(OR(O9=0,U9=0,AA9=0),0,O9+U9+AA9) -> 0 | AN9: =IF(OR(U9=0,AA9=0),0,U9+AA9) -> 0 | AO9: =IF(E9="","",LEFT(E9,1)) ->  | AQ9: =IF(OR(ISERROR(E9),F9="",ISERROR(G9),AB9=0),0,1) -> 0 | AR9: =IF(OR(ISERROR(AY9),ISERROR(AX9)),0,AY9) -> 0 | AS9: =RANK(AR9,INDIRECT($AS$7)) ->  | AT9: =INT(AR9/1000000) -> 0 | AU9: =RANK(AT9,INDIRECT($AU$7)) ->  | AV9: =AS9-AU9+1 ->  | AW9: =F9 -> 0 | AX9: =RANK(AW9,AW:AW) -> 14 | AY9: =IF(OR(E9="",F9="",ISERROR(AE9)),0,(100000000*MATCH(E9,INDIRECT($AI$1),0)+IF(AE9=1,(16-IF(AO9="M",MATCH(G9,Setup!$K$9:$K$23,0),MATCH(G9,Setup!$M$9:$M$23)))*1000000,0)+IF(AB9>0,IF(AE9=1,RANK(AB9,AB:AB,-1)*1000+AX9,IF(AE9=2,AC9,AD9)),0))) -> 0 | CJ9: 0 | CK9: 0 | CL9: 0 | CM9: 0 | CN9: 0 | CO9: 0 | CP9: 0 | CQ9: 0 | CR9: 0 | CS9: 0 | CT9: 0 | CU9: 0 | CV9: 0 | CW9: 0 | CX9: 0 | CY9: 0 | CZ9: 0
A10: =IF(S10,ABS(S10+0.0001*I10),"") -> 60 | B10: A | C10: Ninni Myöhänen | D10: 19 | E10: F-JR | F10: 67.5 | G10: =IF(OR(E10="",F10=""),"",IF(LEFT(E10,1)="M",VLOOKUP(F10,Setup!$J$9:$K$23,2,TRUE),VLOOKUP(F10,Setup!$L$9:$M$23,2,TRUE))) -> 67.5 | H10: =IF(F10="",0,VLOOKUP(AL10,DATA!$L$2:$N$1911,IF(LEFT(E10,1)="F",3,2))) -> 1.639 | O10: =IF(MAX(CK10:CM10)>0,MAX(ABS(K10)*CK10,ABS(L10)*CL10,CM10*ABS(M10)),0) -> 0 | P10: 6 | Q10: 52.5 | R10: 55 | S10: -60 | U10: =IF(MAX(CQ10:CS10)>0,MAX(ABS(Q10)*CQ10,ABS(R10)*CR10,CS10*ABS(S10)),0) -> 55 | V10: =IF(OR(O10=0,U10=0),0,O10+U10) -> 0 | AA10: =IF(MAX(CW10:CY10)>0,MAX(ABS(W10)*CW10,ABS(X10)*CX10,CY10*ABS(Y10)),0) -> 0 | AB10: =AJ10*IF($AB$8="PL Total",AM10,IF($AB$8="Push Pull Total",AN10,IF($AB$8="Best Squat",O10,IF($AB$8="Best Bench",U10,AA10)))) -> 55 | AC10: =IF(OR(F10="",AB10=0),0,H10*IF(AND($G$3="Lb",$H$8="Wilks"),AB10/2.2046,AB10)) -> 90.145 | AD10: =IF(OR(AB10=0,D10=""),0,IF(AND(D10<23,D10<=40),1,VLOOKUP($D10,DATA!$A$2:$B$53,2,TRUE))*AC10) -> 90.145 | AE10: =IF(E10="","",OFFSET(Setup!$Q$1,MATCH(E10,Setup!O:O,0)-1,0)) -> 3 | AF10: =IF(OR(AB10=0,AR10=0),0,CONCATENATE(AV10,"-",E10,IF(AE10=1,"-",""),IF(AE10=1,IF(G10="SHW",G10,ROUND(G10,1)),""))) -> 2-F-JR | AG10: =IF(OR(AB10=0),0,VLOOKUP(AV10,Setup!$S$6:$T$15,2,TRUE)) -> 7 | AI10: BP | AJ10: =IF(ISERROR(FIND($AJ$7,AI10)),0,1) -> 1 | AK10: =IF(B10="","",VLOOKUP(B10,$BP$1:$BQ$8,2,FALSE)) -> 0 | AL10: =ROUND(IF($F$8="BWt (Kg)",F10,F10/2.2046),1) -> 67.5 | AM10: =IF(OR(O10=0,U10=0,AA10=0),0,O10+U10+AA10) -> 0 | AN10: =IF(OR(U10=0,AA10=0),0,U10+AA10) -> 0 | AO10: =IF(E10="","",LEFT(E10,1)) -> F | AQ10: =IF(OR(ISERROR(E10),F10="",ISERROR(G10),AB10=0),0,1) -> 1 | AR10: =IF(OR(ISERROR(AY10),ISERROR(AX10)),0,AY10) -> 300000090.1 | AS10: =RANK(AR10,INDIRECT($AS$7)) -> 8 | AT10: =INT(AR10/1000000) -> 300 | AU10: =RANK(AT10,INDIRECT($AU$7)) -> 7 | AV10: =AS10-AU10+1 -> 2 | AW10: =F10 -> 67.5 | AX10: =RANK(AW10,AW:AW) -> 12 | AY10: =IF(OR(E10="",F10="",ISERROR(AE10)),0,(100000000*MATCH(E10,INDIRECT($AI$1),0)+IF(AE10=1,(16-IF(AO10="M",MATCH(G10,Setup!$K$9:$K$23,0),MATCH(G10,Setup!$M$9:$M$23)))*1000000,0)+IF(AB10>0,IF(AE10=1,RANK(AB10,AB:AB,-1)*1000+AX10,IF(AE10=2,AC10,AD10)),0))) -> 300000090.1 | CJ10: 0 | CK10: 0 | CL10: 0 | CM10: 0 | CN10: 0 | CO10: 0 | CP10: 0 | CQ10: 1 | CR10: 1 | CS10: -1 | CT10: 0 | CU10: 0 | CV10: 0 | CW10: 0 | CX10: 0 | CY10: 0 | CZ10: 0
A11: =IF(S11,ABS(S11+0.0001*I11),"") -> 77.5 | B11: A | C11: Vuorio Anni | D11: 23 | E11: F-JR | F11: 73.4 | G11: =IF(OR(E11="",F11=""),"",IF(LEFT(E11,1)="M",VLOOKUP(F11,Setup!$J$9:$K$23,2,TRUE),VLOOKUP(F11,Setup!$L$9:$M$23,2,TRUE))) -> 75 | H11: =IF(F11="",0,VLOOKUP(AL11,DATA!$L$2:$N$1911,IF(LEFT(E11,1)="F",3,2))) -> 1.5622 | O11: =IF(MAX(CK11:CM11)>0,MAX(ABS(K11)*CK11,ABS(L11)*CL11,CM11*ABS(M11)),0) -> 0 | P11: 4 | Q11: 70 | R11: 75 | S11: -77.5 | U11: =IF(MAX(CQ11:CS11)>0,MAX(ABS(Q11)*CQ11,ABS(R11)*CR11,CS11*ABS(S11)),0) -> 75 | V11: =IF(OR(O11=0,U11=0),0,O11+U11) -> 0 | AA11: =IF(MAX(CW11:CY11)>0,MAX(ABS(W11)*CW11,ABS(X11)*CX11,CY11*ABS(Y11)),0) -> 0 | AB11: =AJ11*IF($AB$8="PL Total",AM11,IF($AB$8="Push Pull Total",AN11,IF($AB$8="Best Squat",O11,IF($AB$8="Best Bench",U11,AA11)))) -> 75 | AC11: =IF(OR(F11="",AB11=0),0,H11*IF(AND($G$3="Lb",$H$8="Wilks"),AB11/2.2046,AB11)) -> 117.165 | AD11: =IF(OR(AB11=0,D11=""),0,IF(AND(D11<23,D11<=40),1,VLOOKUP($D11,DATA!$A$2:$B$53,2,TRUE))*AC11) -> 117.165 | AE11: =IF(E11="","",OFFSET(Setup!$Q$1,MATCH(E11,Setup!O:O,0)-1,0)) -> 3 | AF11: =IF(OR(AB11=0,AR11=0),0,CONCATENATE(AV11,"-",E11,IF(AE11=1,"-",""),IF(AE11=1,IF(G11="SHW",G11,ROUND(G11,1)),""))) -> 1-F-JR | AG11: =IF(OR(AB11=0),0,VLOOKUP(AV11,Setup!$S$6:$T$15,2,TRUE)) -> 7 | AI11: BP | AJ11: =IF(ISERROR(FIND($AJ$7,AI11)),0,1) -> 1 | AK11: =IF(B11="","",VLOOKUP(B11,$BP$1:$BQ$8,2,FALSE)) -> 0 | AL11: =ROUND(IF($F$8="BWt (Kg)",F11,F11/2.2046),1) -> 73.4 | AM11: =IF(OR(O11=0,U11=0,AA11=0),0,O11+U11+AA11) -> 0 | AN11: =IF(OR(U11=0,AA11=0),0,U11+AA11) -> 0 | AO11: =IF(E11="","",LEFT(E11,1)) -> F | AQ11: =IF(OR(ISERROR(E11),F11="",ISERROR(G11),AB11=0),0,1) -> 1 | AR11: =IF(OR(ISERROR(AY11),ISERROR(AX11)),0,AY11) -> 300000117.2 | AS11: =RANK(AR11,INDIRECT($AS$7)) -> 7 | AT11: =INT(AR11/1000000) -> 300 | AU11: =RANK(AT11,INDIRECT($AU$7)) -> 7 | AV11: =AS11-AU11+1 -> 1 | AW11: =F11 -> 73.4 | AX11: =RANK(AW11,AW:AW) -> 11 | AY11: =IF(OR(E11="",F11="",ISERROR(AE11)),0,(100000000*MATCH(E11,INDIRECT($AI$1),0)+IF(AE11=1,(16-IF(AO11="M",MATCH(G11,Setup!$K$9:$K$23,0),MATCH(G11,Setup!$M$9:$M$23)))*1000000,0)+IF(AB11>0,IF(AE11=1,RANK(AB11,AB:AB,-1)*1000+AX11,IF(AE11=2,AC11,AD11)),0))) -> 300000117.2 | CJ11: 0 | CK11: 0 | CL11: 0 | CM11: 0 | CN11: 0 | CO11: 0 | CP11: 0 | CQ11: 1 | CR11: 1 | CS11: -1 | CT11: 0 | CU11: 0 | CV11: 0 | CW11: 0 | CX11: 0 | CY11: 0 | CZ11: 0
A12: =IF(S12,ABS(S12+0.0001*I12),"") -> 82.5 | B12: A | C12: Laine Iina | D12: 51 | E12: F-M3 | F12: 54.6 | G12: =IF(OR(E12="",F12=""),"",IF(LEFT(E12,1)="M",VLOOKUP(F12,Setup!$J$9:$K$23,2,TRUE),VLOOKUP(F12,Setup!$L$9:$M$23,2,TRUE))) -> 56 | H12: =IF(F12="",0,VLOOKUP(AL12,DATA!$L$2:$N$1911,IF(LEFT(E12,1)="F",3,2))) -> 1.9588 | O12: =IF(MAX(CK12:CM12)>0,MAX(ABS(K12)*CK12,ABS(L12)*CL12,CM12*ABS(M12)),0) -> 0 | P12: 4 | Q12: 70 | R12: 75 | S12: 82.5 | U12: =IF(MAX(CQ12:CS12)>0,MAX(ABS(Q12)*CQ12,ABS(R12)*CR12,CS12*ABS(S12)),0) -> 82.5 | V12: =IF(OR(O12=0,U12=0),0,O12+U12) -> 0 | AA12: =IF(MAX(CW12:CY12)>0,MAX(ABS(W12)*CW12,ABS(X12)*CX12,CY12*ABS(Y12)),0) -> 0 | AB12: =AJ12*IF($AB$8="PL Total",AM12,IF($AB$8="Push Pull Total",AN12,IF($AB$8="Best Squat",O12,IF($AB$8="Best Bench",U12,AA12)))) -> 82.5 | AC12: =IF(OR(F12="",AB12=0),0,H12*IF(AND($G$3="Lb",$H$8="Wilks"),AB12/2.2046,AB12)) -> 161.601 | AD12: =IF(OR(AB12=0,D12=""),0,IF(AND(D12<23,D12<=40),1,VLOOKUP($D12,DATA!$A$2:$B$53,2,TRUE))*AC12) -> 185.356347 | AE12: =IF(E12="","",OFFSET(Setup!$Q$1,MATCH(E12,Setup!O:O,0)-1,0)) -> 3 | AF12: =IF(OR(AB12=0,AR12=0),0,CONCATENATE(AV12,"-",E12,IF(AE12=1,"-",""),IF(AE12=1,IF(G12="SHW",G12,ROUND(G12,1)),""))) -> 1-F-M3 | AG12: =IF(OR(AB12=0),0,VLOOKUP(AV12,Setup!$S$6:$T$15,2,TRUE)) -> 7 | AI12: BP | AJ12: =IF(ISERROR(FIND($AJ$7,AI12)),0,1) -> 1 | AK12: =IF(B12="","",VLOOKUP(B12,$BP$1:$BQ$8,2,FALSE)) -> 0 | AL12: =ROUND(IF($F$8="BWt (Kg)",F12,F12/2.2046),1) -> 54.6 | AM12: =IF(OR(O12=0,U12=0,AA12=0),0,O12+U12+AA12) -> 0 | AN12: =IF(OR(U12=0,AA12=0),0,U12+AA12) -> 0 | AO12: =IF(E12="","",LEFT(E12,1)) -> F | AQ12: =IF(OR(ISERROR(E12),F12="",ISERROR(G12),AB12=0),0,1) -> 1 | AR12: =IF(OR(ISERROR(AY12),ISERROR(AX12)),0,AY12) -> 1200000185 | AS12: =RANK(AR12,INDIRECT($AS$7)) -> 1 | AT12: =INT(AR12/1000000) -> 1200 | AU12: =RANK(AT12,INDIRECT($AU$7)) -> 1 | AV12: =AS12-AU12+1 -> 1 | AW12: =F12 -> 54.6 | AX12: =RANK(AW12,AW:AW) -> 13 | AY12: =IF(OR(E12="",F12="",ISERROR(AE12)),0,(100000000*MATCH(E12,INDIRECT($AI$1),0)+IF(AE12=1,(16-IF(AO12="M",MATCH(G12,Setup!$K$9:$K$23,0),MATCH(G12,Setup!$M$9:$M$23)))*1000000,0)+IF(AB12>0,IF(AE12=1,RANK(AB12,AB:AB,-1)*1000+AX12,IF(AE12=2,AC12,AD12)),0))) -> 1200000185 | CJ12: 0 | CK12: 0 | CL12: 0 | CM12: 0 | CN12: 0 | CO12: 0 | CP12: 0 | CQ12: 1 | CR12: 1 | CS12: 1 | CT12: 0 | CU12: 0 | CV12: 0 | CW12: 0 | CX12: 0 | CY12: 0 | CZ12: 0
A13: =IF(S13,ABS(S13+0.0001*I13),"") -> 150 | B13: A | C13: Kärkkäinen Juhani | D13: 58 | E13: M-M4 | F13: 99.8 | G13: =IF(OR(E13="",F13=""),"",IF(LEFT(E13,1)="M",VLOOKUP(F13,Setup!$J$9:$K$23,2,TRUE),VLOOKUP(F13,Setup!$L$9:$M$23,2,TRUE))) -> 100 | H13: =IF(F13="",0,VLOOKUP(AL13,DATA!$L$2:$N$1911,IF(LEFT(E13,1)="F",3,2))) -> 0.9158 | O13: =IF(MAX(CK13:CM13)>0,MAX(ABS(K13)*CK13,ABS(L13)*CL13,CM13*ABS(M13)),0) -> 0 | P13: 7 | Q13: 135 | R13: 145 | S13: 150 | U13: =IF(MAX(CQ13:CS13)>0,MAX(ABS(Q13)*CQ13,ABS(R13)*CR13,CS13*ABS(S13)),0) -> 150 | V13: =IF(OR(O13=0,U13=0),0,O13+U13) -> 0 | AA13: =IF(MAX(CW13:CY13)>0,MAX(ABS(W13)*CW13,ABS(X13)*CX13,CY13*ABS(Y13)),0) -> 0 | AB13: =AJ13*IF($AB$8="PL Total",AM13,IF($AB$8="Push Pull Total",AN13,IF($AB$8="Best Squat",O13,IF($AB$8="Best Bench",U13,AA13)))) -> 150 | AC13: =IF(OR(F13="",AB13=0),0,H13*IF(AND($G$3="Lb",$H$8="Wilks"),AB13/2.2046,AB13)) -> 137.37 | AD13: =IF(OR(AB13=0,D13=""),0,IF(AND(D13<23,D13<=40),1,VLOOKUP($D13,DATA!$A$2:$B$53,2,TRUE))*AC13) -> 177.34467 | AE13: =IF(E13="","",OFFSET(Setup!$Q$1,MATCH(E13,Setup!O:O,0)-1,0)) -> 3 | AF13: =IF(OR(AB13=0,AR13=0),0,CONCATENATE(AV13,"-",E13,IF(AE13=1,"-",""),IF(AE13=1,IF(G13="SHW",G13,ROUND(G13,1)),""))) -> 1-M-M4 | AG13: =IF(OR(AB13=0),0,VLOOKUP(AV13,Setup!$S$6:$T$15,2,TRUE)) -> 7 | AI13: BP | AJ13: =IF(ISERROR(FIND($AJ$7,AI13)),0,1) -> 1 | AK13: =IF(B13="","",VLOOKUP(B13,$BP$1:$BQ$8,2,FALSE)) -> 0 | AL13: =ROUND(IF($F$8="BWt (Kg)",F13,F13/2.2046),1) -> 99.8 | AM13: =IF(OR(O13=0,U13=0,AA13=0),0,O13+U13+AA13) -> 0 | AN13: =IF(OR(U13=0,AA13=0),0,U13+AA13) -> 0 | AO13: =IF(E13="","",LEFT(E13,1)) -> M | AQ13: =IF(OR(ISERROR(E13),F13="",ISERROR(G13),AB13=0),0,1) -> 1 | AR13: =IF(OR(ISERROR(AY13),ISERROR(AX13)),0,AY13) -> 800000177.3 | AS13: =RANK(AR13,INDIRECT($AS$7)) -> 2 | AT13: =INT(AR13/1000000) -> 800 | AU13: =RANK(AT13,INDIRECT($AU$7)) -> 2 | AV13: =AS13-AU13+1 -> 1 | AW13: =F13 -> 99.8 | AX13: =RANK(AW13,AW:AW) -> 7 | AY13: =IF(OR(E13="",F13="",ISERROR(AE13)),0,(100000000*MATCH(E13,INDIRECT($AI$1),0)+IF(AE13=1,(16-IF(AO13="M",MATCH(G13,Setup!$K$9:$K$23,0),MATCH(G13,Setup!$M$9:$M$23)))*1000000,0)+IF(AB13>0,IF(AE13=1,RANK(AB13,AB:AB,-1)*1000+AX13,IF(AE13=2,AC13,AD13)),0))) -> 800000177.3 | CJ13: 0 | CK13: 0 | CL13: 0 | CM13: 0 | CN13: 0 | CO13: 0 | CP13: 0 | CQ13: 1 | CR13: 1 | CS13: 1 | CT13: 0 | CU13: 0 | CV13: 0 | CW13: 0 | CX13: 0 | CY13: 0 | CZ13: 0
A14: =IF(S14,ABS(S14+0.0001*I14),"") -> 155 | B14: A | C14: Akkanen Atte | D14: 49 | E14: M-M2 | F14: 85.5 | G14: =IF(OR(E14="",F14=""),"",IF(LEFT(E14,1)="M",VLOOKUP(F14,Setup!$J$9:$K$23,2,TRUE),VLOOKUP(F14,Setup!$L$9:$M$23,2,TRUE))) -> 90 | H14: =IF(F14="",0,VLOOKUP(AL14,DATA!$L$2:$N$1911,IF(LEFT(E14,1)="F",3,2))) -> 1.002 | O14: =IF(MAX(CK14:CM14)>0,MAX(ABS(K14)*CK14,ABS(L14)*CL14,CM14*ABS(M14)),0) -> 0 | P14: 5 | Q14: 150 | R14: 152.5 | S14: 155 | U14: =IF(MAX(CQ14:CS14)>0,MAX(ABS(Q14)*CQ14,ABS(R14)*CR14,CS14*ABS(S14)),0) -> 155 | V14: =IF(OR(O14=0,U14=0),0,O14+U14) -> 0 | AA14: =IF(MAX(CW14:CY14)>0,MAX(ABS(W14)*CW14,ABS(X14)*CX14,CY14*ABS(Y14)),0) -> 0 | AB14: =AJ14*IF($AB$8="PL Total",AM14,IF($AB$8="Push Pull Total",AN14,IF($AB$8="Best Squat",O14,IF($AB$8="Best Bench",U14,AA14)))) -> 155 | AC14: =IF(OR(F14="",AB14=0),0,H14*IF(AND($G$3="Lb",$H$8="Wilks"),AB14/2.2046,AB14)) -> 155.31 | AD14: =IF(OR(AB14=0,D14=""),0,IF(AND(D14<23,D14<=40),1,VLOOKUP($D14,DATA!$A$2:$B$53,2,TRUE))*AC14) -> 172.86003 | AE14: =IF(E14="","",OFFSET(Setup!$Q$1,MATCH(E14,Setup!O:O,0)-1,0)) -> 3 | AF14: =IF(OR(AB14=0,AR14=0),0,CONCATENATE(AV14,"-",E14,IF(AE14=1,"-",""),IF(AE14=1,IF(G14="SHW",G14,ROUND(G14,1)),""))) -> 1-M-M2 | AG14: =IF(OR(AB14=0),0,VLOOKUP(AV14,Setup!$S$6:$T$15,2,TRUE)) -> 7 | AI14: BP | AJ14: =IF(ISERROR(FIND($AJ$7,AI14)),0,1) -> 1 | AK14: =IF(B14="","",VLOOKUP(B14,$BP$1:$BQ$8,2,FALSE)) -> 0 | AL14: =ROUND(IF($F$8="BWt (Kg)",F14,F14/2.2046),1) -> 85.5 | AM14: =IF(OR(O14=0,U14=0,AA14=0),0,O14+U14+AA14) -> 0 | AN14: =IF(OR(U14=0,AA14=0),0,U14+AA14) -> 0 | AO14: =IF(E14="","",LEFT(E14,1)) -> M | AQ14: =IF(OR(ISERROR(E14),F14="",ISERROR(G14),AB14=0),0,1) -> 1 | AR14: =IF(OR(ISERROR(AY14),ISERROR(AX14)),0,AY14) -> 600000172.9 | AS14: =RANK(AR14,INDIRECT($AS$7)) -> 3 | AT14: =INT(AR14/1000000) -> 600 | AU14: =RANK(AT14,INDIRECT($AU$7)) -> 3 | AV14: =AS14-AU14+1 -> 1 | AW14: =F14 -> 85.5 | AX14: =RANK(AW14,AW:AW) -> 10 | AY14: =IF(OR(E14="",F14="",ISERROR(AE14)),0,(100000000*MATCH(E14,INDIRECT($AI$1),0)+IF(AE14=1,(16-IF(AO14="M",MATCH(G14,Setup!$K$9:$K$23,0),MATCH(G14,Setup!$M$9:$M$23)))*1000000,0)+IF(AB14>0,IF(AE14=1,RANK(AB14,AB:AB,-1)*1000+AX14,IF(AE14=2,AC14,AD14)),0))) -> 600000172.9 | CJ14: 0 | CK14: 0 | CL14: 0 | CM14: 0 | CN14: 0 | CO14: 0 | CP14: 0 | CQ14: 1 | CR14: 1 | CS14: 1 | CT14: 0 | CU14: 0 | CV14: 0 | CW14: 0 | CX14: 0 | CY14: 0 | CZ14: 0
A15: =IF(S15,ABS(S15+0.0001*I15),"") -> 170 | B15: A | C15: Uotila Tuomas | D15: 21 | E15: M-JR | F15: 116.4 | G15: =IF(OR(E15="",F15=""),"",IF(LEFT(E15,1)="M",VLOOKUP(F15,Setup!$J$9:$K$23,2,TRUE),VLOOKUP(F15,Setup!$L$9:$M$23,2,TRUE))) -> 125 | H15: =IF(F15="",0,VLOOKUP(AL15,DATA!$L$2:$N$1911,IF(LEFT(E15,1)="F",3,2))) -> 0.87 | O15: =IF(MAX(CK15:CM15)>0,MAX(ABS(K15)*CK15,ABS(L15)*CL15,CM15*ABS(M15)),0) -> 0 | P15: 7 | Q15: 160 | R15: 167.5 | S15: -170 | U15: =IF(MAX(CQ15:CS15)>0,MAX(ABS(Q15)*CQ15,ABS(R15)*CR15,CS15*ABS(S15)),0) -> 167.5 | V15: =IF(OR(O15=0,U15=0),0,O15+U15) -> 0 | AA15: =IF(MAX(CW15:CY15)>0,MAX(ABS(W15)*CW15,ABS(X15)*CX15,CY15*ABS(Y15)),0) -> 0 | AB15: =AJ15*IF($AB$8="PL Total",AM15,IF($AB$8="Push Pull Total",AN15,IF($AB$8="Best Squat",O15,IF($AB$8="Best Bench",U15,AA15)))) -> 167.5 | AC15: =IF(OR(F15="",AB15=0),0,H15*IF(AND($G$3="Lb",$H$8="Wilks"),AB15/2.2046,AB15)) -> 145.725 | AD15: =IF(OR(AB15=0,D15=""),0,IF(AND(D15<23,D15<=40),1,VLOOKUP($D15,DATA!$A$2:$B$53,2,TRUE))*AC15) -> 145.725 | AE15: =IF(E15="","",OFFSET(Setup!$Q$1,MATCH(E15,Setup!O:O,0)-1,0)) -> 3 | AF15: =IF(OR(AB15=0,AR15=0),0,CONCATENATE(AV15,"-",E15,IF(AE15=1,"-",""),IF(AE15=1,IF(G15="SHW",G15,ROUND(G15,1)),""))) -> 2-M-JR | AG15: =IF(OR(AB15=0),0,VLOOKUP(AV15,Setup!$S$6:$T$15,2,TRUE)) -> 7 | AI15: BP | AJ15: =IF(ISERROR(FIND($AJ$7,AI15)),0,1) -> 1 | AK15: =IF(B15="","",VLOOKUP(B15,$BP$1:$BQ$8,2,FALSE)) -> 0 | AL15: =ROUND(IF($F$8="BWt (Kg)",F15,F15/2.2046),1) -> 116.4 | AM15: =IF(OR(O15=0,U15=0,AA15=0),0,O15+U15+AA15) -> 0 | AN15: =IF(OR(U15=0,AA15=0),0,U15+AA15) -> 0 | AO15: =IF(E15="","",LEFT(E15,1)) -> M | AQ15: =IF(OR(ISERROR(E15),F15="",ISERROR(G15),AB15=0),0,1) -> 1 | AR15: =IF(OR(ISERROR(AY15),ISERROR(AX15)),0,AY15) -> 400000145.7 | AS15: =RANK(AR15,INDIRECT($AS$7)) -> 6 | AT15: =INT(AR15/1000000) -> 400 | AU15: =RANK(AT15,INDIRECT($AU$7)) -> 5 | AV15: =AS15-AU15+1 -> 2 | AW15: =F15 -> 116.4 | AX15: =RANK(AW15,AW:AW) -> 1 | AY15: =IF(OR(E15="",F15="",ISERROR(AE15)),0,(100000000*MATCH(E15,INDIRECT($AI$1),0)+IF(AE15=1,(16-IF(AO15="M",MATCH(G15,Setup!$K$9:$K$23,0),MATCH(G15,Setup!$M$9:$M$23)))*1000000,0)+IF(AB15>0,IF(AE15=1,RANK(AB15,AB:AB,-1)*1000+AX15,IF(AE15=2,AC15,AD15)),0))) -> 400000145.7 | CJ15: 0 | CK15: 0 | CL15: 0 | CM15: 0 | CN15: 0 | CO15: 0 | CP15: 0 | CQ15: 1 | CR15: 1 | CS15: -1 | CT15: 0 | CU15: 0 | CV15: 0 | CW15: 0 | CX15: 0 | CY15: 0 | CZ15: 0
A16: =IF(S16,ABS(S16+0.0001*I16),"") -> 172.5 | B16: A | C16: Holm Jani | D16: 39 | E16: M-O | F16: 108 | G16: =IF(OR(E16="",F16=""),"",IF(LEFT(E16,1)="M",VLOOKUP(F16,Setup!$J$9:$K$23,2,TRUE),VLOOKUP(F16,Setup!$L$9:$M$23,2,TRUE))) -> 110 | H16: =IF(F16="",0,VLOOKUP(AL16,DATA!$L$2:$N$1911,IF(LEFT(E16,1)="F",3,2))) -> 0.89 | O16: =IF(MAX(CK16:CM16)>0,MAX(ABS(K16)*CK16,ABS(L16)*CL16,CM16*ABS(M16)),0) -> 0 | P16: 9 | Q16: 160 | R16: 170 | S16: -172.5 | U16: =IF(MAX(CQ16:CS16)>0,MAX(ABS(Q16)*CQ16,ABS(R16)*CR16,CS16*ABS(S16)),0) -> 170 | V16: =IF(OR(O16=0,U16=0),0,O16+U16) -> 0 | AA16: =IF(MAX(CW16:CY16)>0,MAX(ABS(W16)*CW16,ABS(X16)*CX16,CY16*ABS(Y16)),0) -> 0 | AB16: =AJ16*IF($AB$8="PL Total",AM16,IF($AB$8="Push Pull Total",AN16,IF($AB$8="Best Squat",O16,IF($AB$8="Best Bench",U16,AA16)))) -> 170 | AC16: =IF(OR(F16="",AB16=0),0,H16*IF(AND($G$3="Lb",$H$8="Wilks"),AB16/2.2046,AB16)) -> 151.3 | AD16: =IF(OR(AB16=0,D16=""),0,IF(AND(D16<23,D16<=40),1,VLOOKUP($D16,DATA!$A$2:$B$53,2,TRUE))*AC16) -> 151.3 | AE16: =IF(E16="","",OFFSET(Setup!$Q$1,MATCH(E16,Setup!O:O,0)-1,0)) -> 3 | AF16: =IF(OR(AB16=0,AR16=0),0,CONCATENATE(AV16,"-",E16,IF(AE16=1,"-",""),IF(AE16=1,IF(G16="SHW",G16,ROUND(G16,1)),""))) -> 5-M-O | AG16: =IF(OR(AB16=0),0,VLOOKUP(AV16,Setup!$S$6:$T$15,2,TRUE)) -> 7 | AI16: BP | AJ16: =IF(ISERROR(FIND($AJ$7,AI16)),0,1) -> 1 | AK16: =IF(B16="","",VLOOKUP(B16,$BP$1:$BQ$8,2,FALSE)) -> 0 | AL16: =ROUND(IF($F$8="BWt (Kg)",F16,F16/2.2046),1) -> 108 | AM16: =IF(OR(O16=0,U16=0,AA16=0),0,O16+U16+AA16) -> 0 | AN16: =IF(OR(U16=0,AA16=0),0,U16+AA16) -> 0 | AO16: =IF(E16="","",LEFT(E16,1)) -> M | AQ16: =IF(OR(ISERROR(E16),F16="",ISERROR(G16),AB16=0),0,1) -> 1 | AR16: =IF(OR(ISERROR(AY16),ISERROR(AX16)),0,AY16) -> 100000151.3 | AS16: =RANK(AR16,INDIRECT($AS$7)) -> 13 | AT16: =INT(AR16/1000000) -> 100 | AU16: =RANK(AT16,INDIRECT($AU$7)) -> 9 | AV16: =AS16-AU16+1 -> 5 | AW16: =F16 -> 108 | AX16: =RANK(AW16,AW:AW) -> 4 | AY16: =IF(OR(E16="",F16="",ISERROR(AE16)),0,(100000000*MATCH(E16,INDIRECT($AI$1),0)+IF(AE16=1,(16-IF(AO16="M",MATCH(G16,Setup!$K$9:$K$23,0),MATCH(G16,Setup!$M$9:$M$23)))*1000000,0)+IF(AB16>0,IF(AE16=1,RANK(AB16,AB:AB,-1)*1000+AX16,IF(AE16=2,AC16,AD16)),0))) -> 100000151.3 | CJ16: 0 | CK16: 0 | CL16: 0 | CM16: 0 | CN16: 0 | CO16: 0 | CP16: 0 | CQ16: 1 | CR16: 1 | CS16: -1 | CT16: 0 | CU16: 0 | CV16: 0 | CW16: 0 | CX16: 0 | CY16: 0 | CZ16: 0
A17: =IF(S17,ABS(S17+0.0001*I17),"") -> 175 | B17: A | C17: Renfors Klaus | D17: 44 | E17: M-M1 | F17: 101.2 | G17: =IF(OR(E17="",F17=""),"",IF(LEFT(E17,1)="M",VLOOKUP(F17,Setup!$J$9:$K$23,2,TRUE),VLOOKUP(F17,Setup!$L$9:$M$23,2,TRUE))) -> 110 | H17: =IF(F17="",0,VLOOKUP(AL17,DATA!$L$2:$N$1911,IF(LEFT(E17,1)="F",3,2))) -> 0.9102 | O17: =IF(MAX(CK17:CM17)>0,MAX(ABS(K17)*CK17,ABS(L17)*CL17,CM17*ABS(M17)),0) -> 0 | P17: 7 | Q17: 160 | R17: 170 | S17: -175 | U17: =IF(MAX(CQ17:CS17)>0,MAX(ABS(Q17)*CQ17,ABS(R17)*CR17,CS17*ABS(S17)),0) -> 170 | V17: =IF(OR(O17=0,U17=0),0,O17+U17) -> 0 | AA17: =IF(MAX(CW17:CY17)>0,MAX(ABS(W17)*CW17,ABS(X17)*CX17,CY17*ABS(Y17)),0) -> 0 | AB17: =AJ17*IF($AB$8="PL Total",AM17,IF($AB$8="Push Pull Total",AN17,IF($AB$8="Best Squat",O17,IF($AB$8="Best Bench",U17,AA17)))) -> 170 | AC17: =IF(OR(F17="",AB17=0),0,H17*IF(AND($G$3="Lb",$H$8="Wilks"),AB17/2.2046,AB17)) -> 154.734 | AD17: =IF(OR(AB17=0,D17=""),0,IF(AND(D17<23,D17<=40),1,VLOOKUP($D17,DATA!$A$2:$B$53,2,TRUE))*AC17) -> 161.387562 | AE17: =IF(E17="","",OFFSET(Setup!$Q$1,MATCH(E17,Setup!O:O,0)-1,0)) -> 3 | AF17: =IF(OR(AB17=0,AR17=0),0,CONCATENATE(AV17,"-",E17,IF(AE17=1,"-",""),IF(AE17=1,IF(G17="SHW",G17,ROUND(G17,1)),""))) -> 1-M-M1 | AG17: =IF(OR(AB17=0),0,VLOOKUP(AV17,Setup!$S$6:$T$15,2,TRUE)) -> 7 | AI17: BP | AJ17: =IF(ISERROR(FIND($AJ$7,AI17)),0,1) -> 1 | AK17: =IF(B17="","",VLOOKUP(B17,$BP$1:$BQ$8,2,FALSE)) -> 0 | AL17: =ROUND(IF($F$8="BWt (Kg)",F17,F17/2.2046),1) -> 101.2 | AM17: =IF(OR(O17=0,U17=0,AA17=0),0,O17+U17+AA17) -> 0 | AN17: =IF(OR(U17=0,AA17=0),0,U17+AA17) -> 0 | AO17: =IF(E17="","",LEFT(E17,1)) -> M | AQ17: =IF(OR(ISERROR(E17),F17="",ISERROR(G17),AB17=0),0,1) -> 1 | AR17: =IF(OR(ISERROR(AY17),ISERROR(AX17)),0,AY17) -> 500000161.4 | AS17: =RANK(AR17,INDIRECT($AS$7)) -> 4 | AT17: =INT(AR17/1000000) -> 500 | AU17: =RANK(AT17,INDIRECT($AU$7)) -> 4 | AV17: =AS17-AU17+1 -> 1 | AW17: =F17 -> 101.2 | AX17: =RANK(AW17,AW:AW) -> 6 | AY17: =IF(OR(E17="",F17="",ISERROR(AE17)),0,(100000000*MATCH(E17,INDIRECT($AI$1),0)+IF(AE17=1,(16-IF(AO17="M",MATCH(G17,Setup!$K$9:$K$23,0),MATCH(G17,Setup!$M$9:$M$23)))*1000000,0)+IF(AB17>0,IF(AE17=1,RANK(AB17,AB:AB,-1)*1000+AX17,IF(AE17=2,AC17,AD17)),0))) -> 500000161.4 | CJ17: 0 | CK17: 0 | CL17: 0 | CM17: 0 | CN17: 0 | CO17: 0 | CP17: 0 | CQ17: 1 | CR17: 1 | CS17: -1 | CT17: 0 | CU17: 0 | CV17: 0 | CW17: 0 | CX17: 0 | CY17: 0 | CZ17: 0
A18: =IF(S18,ABS(S18+0.0001*I18),"") -> 175 | B18: A | C18: Lahtinen Niklas | D18: 21 | E18: M-JR | F18: 105.9 | G18: =IF(OR(E18="",F18=""),"",IF(LEFT(E18,1)="M",VLOOKUP(F18,Setup!$J$9:$K$23,2,TRUE),VLOOKUP(F18,Setup!$L$9:$M$23,2,TRUE))) -> 110 | H18: =IF(F18="",0,VLOOKUP(AL18,DATA!$L$2:$N$1911,IF(LEFT(E18,1)="F",3,2))) -> 0.8954 | O18: =IF(MAX(CK18:CM18)>0,MAX(ABS(K18)*CK18,ABS(L18)*CL18,CM18*ABS(M18)),0) -> 0 | P18: 7 | Q18: 165 | R18: -175 | S18: -175 | U18: =IF(MAX(CQ18:CS18)>0,MAX(ABS(Q18)*CQ18,ABS(R18)*CR18,CS18*ABS(S18)),0) -> 165 | V18: =IF(OR(O18=0,U18=0),0,O18+U18) -> 0 | AA18: =IF(MAX(CW18:CY18)>0,MAX(ABS(W18)*CW18,ABS(X18)*CX18,CY18*ABS(Y18)),0) -> 0 | AB18: =AJ18*IF($AB$8="PL Total",AM18,IF($AB$8="Push Pull Total",AN18,IF($AB$8="Best Squat",O18,IF($AB$8="Best Bench",U18,AA18)))) -> 165 | AC18: =IF(OR(F18="",AB18=0),0,H18*IF(AND($G$3="Lb",$H$8="Wilks"),AB18/2.2046,AB18)) -> 147.741 | AD18: =IF(OR(AB18=0,D18=""),0,IF(AND(D18<23,D18<=40),1,VLOOKUP($D18,DATA!$A$2:$B$53,2,TRUE))*AC18) -> 147.741 | AE18: =IF(E18="","",OFFSET(Setup!$Q$1,MATCH(E18,Setup!O:O,0)-1,0)) -> 3 | AF18: =IF(OR(AB18=0,AR18=0),0,CONCATENATE(AV18,"-",E18,IF(AE18=1,"-",""),IF(AE18=1,IF(G18="SHW",G18,ROUND(G18,1)),""))) -> 1-M-JR | AG18: =IF(OR(AB18=0),0,VLOOKUP(AV18,Setup!$S$6:$T$15,2,TRUE)) -> 7 | AI18: BP | AJ18: =IF(ISERROR(FIND($AJ$7,AI18)),0,1) -> 1 | AK18: =IF(B18="","",VLOOKUP(B18,$BP$1:$BQ$8,2,FALSE)) -> 0 | AL18: =ROUND(IF($F$8="BWt (Kg)",F18,F18/2.2046),1) -> 105.9 | AM18: =IF(OR(O18=0,U18=0,AA18=0),0,O18+U18+AA18) -> 0 | AN18: =IF(OR(U18=0,AA18=0),0,U18+AA18) -> 0 | AO18: =IF(E18="","",LEFT(E18,1)) -> M | AQ18: =IF(OR(ISERROR(E18),F18="",ISERROR(G18),AB18=0),0,1) -> 1 | AR18: =IF(OR(ISERROR(AY18),ISERROR(AX18)),0,AY18) -> 400000147.7 | AS18: =RANK(AR18,INDIRECT($AS$7)) -> 5 | AT18: =INT(AR18/1000000) -> 400 | AU18: =RANK(AT18,INDIRECT($AU$7)) -> 5 | AV18: =AS18-AU18+1 -> 1 | AW18: =F18 -> 105.9 | AX18: =RANK(AW18,AW:AW) -> 5 | AY18: =IF(OR(E18="",F18="",ISERROR(AE18)),0,(100000000*MATCH(E18,INDIRECT($AI$1),0)+IF(AE18=1,(16-IF(AO18="M",MATCH(G18,Setup!$K$9:$K$23,0),MATCH(G18,Setup!$M$9:$M$23)))*1000000,0)+IF(AB18>0,IF(AE18=1,RANK(AB18,AB:AB,-1)*1000+AX18,IF(AE18=2,AC18,AD18)),0))) -> 400000147.7 | CJ18: 0 | CK18: 0 | CL18: 0 | CM18: 0 | CN18: 0 | CO18: 0 | CP18: 0 | CQ18: 1 | CR18: -1 | CS18: -1 | CT18: 0 | CU18: 0 | CV18: 0 | CW18: 0 | CX18: 0 | CY18: 0 | CZ18: 0
A19: =IF(S19,ABS(S19+0.0001*I19),"") -> 192.5 | B19: A | C19: Maantila Jan-Erik | D19: 32 | E19: M-O | F19: 109.9 | G19: =IF(OR(E19="",F19=""),"",IF(LEFT(E19,1)="M",VLOOKUP(F19,Setup!$J$9:$K$23,2,TRUE),VLOOKUP(F19,Setup!$L$9:$M$23,2,TRUE))) -> 110 | H19: =IF(F19="",0,VLOOKUP(AL19,DATA!$L$2:$N$1911,IF(LEFT(E19,1)="F",3,2))) -> 0.885 | O19: =IF(MAX(CK19:CM19)>0,MAX(ABS(K19)*CK19,ABS(L19)*CL19,CM19*ABS(M19)),0) -> 0 | P19: 8 | Q19: 180 | R19: 190 | S19: -192.5 | U19: =IF(MAX(CQ19:CS19)>0,MAX(ABS(Q19)*CQ19,ABS(R19)*CR19,CS19*ABS(S19)),0) -> 190 | V19: =IF(OR(O19=0,U19=0),0,O19+U19) -> 0 | AA19: =IF(MAX(CW19:CY19)>0,MAX(ABS(W19)*CW19,ABS(X19)*CX19,CY19*ABS(Y19)),0) -> 0 | AB19: =AJ19*IF($AB$8="PL Total",AM19,IF($AB$8="Push Pull Total",AN19,IF($AB$8="Best Squat",O19,IF($AB$8="Best Bench",U19,AA19)))) -> 190 | AC19: =IF(OR(F19="",AB19=0),0,H19*IF(AND($G$3="Lb",$H$8="Wilks"),AB19/2.2046,AB19)) -> 168.15 | AD19: =IF(OR(AB19=0,D19=""),0,IF(AND(D19<23,D19<=40),1,VLOOKUP($D19,DATA!$A$2:$B$53,2,TRUE))*AC19) -> 168.15 | AE19: =IF(E19="","",OFFSET(Setup!$Q$1,MATCH(E19,Setup!O:O,0)-1,0)) -> 3 | AF19: =IF(OR(AB19=0,AR19=0),0,CONCATENATE(AV19,"-",E19,IF(AE19=1,"-",""),IF(AE19=1,IF(G19="SHW",G19,ROUND(G19,1)),""))) -> 4-M-O | AG19: =IF(OR(AB19=0),0,VLOOKUP(AV19,Setup!$S$6:$T$15,2,TRUE)) -> 7 | AI19: BP | AJ19: =IF(ISERROR(FIND($AJ$7,AI19)),0,1) -> 1 | AK19: =IF(B19="","",VLOOKUP(B19,$BP$1:$BQ$8,2,FALSE)) -> 0 | AL19: =ROUND(IF($F$8="BWt (Kg)",F19,F19/2.2046),1) -> 109.9 | AM19: =IF(OR(O19=0,U19=0,AA19=0),0,O19+U19+AA19) -> 0 | AN19: =IF(OR(U19=0,AA19=0),0,U19+AA19) -> 0 | AO19: =IF(E19="","",LEFT(E19,1)) -> M | AQ19: =IF(OR(ISERROR(E19),F19="",ISERROR(G19),AB19=0),0,1) -> 1 | AR19: =IF(OR(ISERROR(AY19),ISERROR(AX19)),0,AY19) -> 100000168.2 | AS19: =RANK(AR19,INDIRECT($AS$7)) -> 12 | AT19: =INT(AR19/1000000) -> 100 | AU19: =RANK(AT19,INDIRECT($AU$7)) -> 9 | AV19: =AS19-AU19+1 -> 4 | AW19: =F19 -> 109.9 | AX19: =RANK(AW19,AW:AW) -> 3 | AY19: =IF(OR(E19="",F19="",ISERROR(AE19)),0,(100000000*MATCH(E19,INDIRECT($AI$1),0)+IF(AE19=1,(16-IF(AO19="M",MATCH(G19,Setup!$K$9:$K$23,0),MATCH(G19,Setup!$M$9:$M$23)))*1000000,0)+IF(AB19>0,IF(AE19=1,RANK(AB19,AB:AB,-1)*1000+AX19,IF(AE19=2,AC19,AD19)),0))) -> 100000168.2 | CJ19: 0 | CK19: 0 | CL19: 0 | CM19: 0 | CN19: 0 | CO19: 0 | CP19: 0 | CQ19: 1 | CR19: 1 | CS19: -1 | CT19: 0 | CU19: 0 | CV19: 0 | CW19: 0 | CX19: 0 | CY19: 0 | CZ19: 0
A20: =IF(S20,ABS(S20+0.0001*I20),"") -> 225 | B20: A | C20: Marttila Lauri | D20: 26 | E20: M-O | F20: 98.9 | G20: =IF(OR(E20="",F20=""),"",IF(LEFT(E20,1)="M",VLOOKUP(F20,Setup!$J$9:$K$23,2,TRUE),VLOOKUP(F20,Setup!$L$9:$M$23,2,TRUE))) -> 100 | H20: =IF(F20="",0,VLOOKUP(AL20,DATA!$L$2:$N$1911,IF(LEFT(E20,1)="F",3,2))) -> 0.9194 | O20: =IF(MAX(CK20:CM20)>0,MAX(ABS(K20)*CK20,ABS(L20)*CL20,CM20*ABS(M20)),0) -> 0 | P20: 7 | Q20: 210 | R20: 220 | S20: 225 | U20: =IF(MAX(CQ20:CS20)>0,MAX(ABS(Q20)*CQ20,ABS(R20)*CR20,CS20*ABS(S20)),0) -> 225 | V20: =IF(OR(O20=0,U20=0),0,O20+U20) -> 0 | AA20: =IF(MAX(CW20:CY20)>0,MAX(ABS(W20)*CW20,ABS(X20)*CX20,CY20*ABS(Y20)),0) -> 0 | AB20: =AJ20*IF($AB$8="PL Total",AM20,IF($AB$8="Push Pull Total",AN20,IF($AB$8="Best Squat",O20,IF($AB$8="Best Bench",U20,AA20)))) -> 225 | AC20: =IF(OR(F20="",AB20=0),0,H20*IF(AND($G$3="Lb",$H$8="Wilks"),AB20/2.2046,AB20)) -> 206.865 | AD20: =IF(OR(AB20=0,D20=""),0,IF(AND(D20<23,D20<=40),1,VLOOKUP($D20,DATA!$A$2:$B$53,2,TRUE))*AC20) -> 206.865 | AE20: =IF(E20="","",OFFSET(Setup!$Q$1,MATCH(E20,Setup!O:O,0)-1,0)) -> 3 | AF20: =IF(OR(AB20=0,AR20=0),0,CONCATENATE(AV20,"-",E20,IF(AE20=1,"-",""),IF(AE20=1,IF(G20="SHW",G20,ROUND(G20,1)),""))) -> 1-M-O | AG20: =IF(OR(AB20=0),0,VLOOKUP(AV20,Setup!$S$6:$T$15,2,TRUE)) -> 7 | AI20: BP | AJ20: =IF(ISERROR(FIND($AJ$7,AI20)),0,1) -> 1 | AK20: =IF(B20="","",VLOOKUP(B20,$BP$1:$BQ$8,2,FALSE)) -> 0 | AL20: =ROUND(IF($F$8="BWt (Kg)",F20,F20/2.2046),1) -> 98.9 | AM20: =IF(OR(O20=0,U20=0,AA20=0),0,O20+U20+AA20) -> 0 | AN20: =IF(OR(U20=0,AA20=0),0,U20+AA20) -> 0 | AO20: =IF(E20="","",LEFT(E20,1)) -> M | AQ20: =IF(OR(ISERROR(E20),F20="",ISERROR(G20),AB20=0),0,1) -> 1 | AR20: =IF(OR(ISERROR(AY20),ISERROR(AX20)),0,AY20) -> 100000206.9 | AS20: =RANK(AR20,INDIRECT($AS$7)) -> 9 | AT20: =INT(AR20/1000000) -> 100 | AU20: =RANK(AT20,INDIRECT($AU$7)) -> 9 | AV20: =AS20-AU20+1 -> 1 | AW20: =F20 -> 98.9 | AX20: =RANK(AW20,AW:AW) -> 8 | AY20: =IF(OR(E20="",F20="",ISERROR(AE20)),0,(100000000*MATCH(E20,INDIRECT($AI$1),0)+IF(AE20=1,(16-IF(AO20="M",MATCH(G20,Setup!$K$9:$K$23,0),MATCH(G20,Setup!$M$9:$M$23)))*1000000,0)+IF(AB20>0,IF(AE20=1,RANK(AB20,AB:AB,-1)*1000+AX20,IF(AE20=2,AC20,AD20)),0))) -> 100000206.9 | CJ20: 0 | CK20: 0 | CL20: 0 | CM20: 0 | CN20: 0 | CO20: 0 | CP20: 0 | CQ20: 1 | CR20: 1 | CS20: 1 | CT20: 0 | CU20: 0 | CV20: 0 | CW20: 0 | CX20: 0 | CY20: 0 | CZ20: 0
A21: =IF(S21,ABS(S21+0.0001*I21),"") -> 230 | B21: A | C21: Heinonen Timo | D21: 34 | E21: M-O | F21: 97.6 | G21: =IF(OR(E21="",F21=""),"",IF(LEFT(E21,1)="M",VLOOKUP(F21,Setup!$J$9:$K$23,2,TRUE),VLOOKUP(F21,Setup!$L$9:$M$23,2,TRUE))) -> 100 | H21: =IF(F21="",0,VLOOKUP(AL21,DATA!$L$2:$N$1911,IF(LEFT(E21,1)="F",3,2))) -> 0.9246 | O21: =IF(MAX(CK21:CM21)>0,MAX(ABS(K21)*CK21,ABS(L21)*CL21,CM21*ABS(M21)),0) -> 0 | P21: 6 | Q21: 210 | R21: 220 | S21: -230 | U21: =IF(MAX(CQ21:CS21)>0,MAX(ABS(Q21)*CQ21,ABS(R21)*CR21,CS21*ABS(S21)),0) -> 220 | V21: =IF(OR(O21=0,U21=0),0,O21+U21) -> 0 | AA21: =IF(MAX(CW21:CY21)>0,MAX(ABS(W21)*CW21,ABS(X21)*CX21,CY21*ABS(Y21)),0) -> 0 | AB21: =AJ21*IF($AB$8="PL Total",AM21,IF($AB$8="Push Pull Total",AN21,IF($AB$8="Best Squat",O21,IF($AB$8="Best Bench",U21,AA21)))) -> 220 | AC21: =IF(OR(F21="",AB21=0),0,H21*IF(AND($G$3="Lb",$H$8="Wilks"),AB21/2.2046,AB21)) -> 203.412 | AD21: =IF(OR(AB21=0,D21=""),0,IF(AND(D21<23,D21<=40),1,VLOOKUP($D21,DATA!$A$2:$B$53,2,TRUE))*AC21) -> 203.412 | AE21: =IF(E21="","",OFFSET(Setup!$Q$1,MATCH(E21,Setup!O:O,0)-1,0)) -> 3 | AF21: =IF(OR(AB21=0,AR21=0),0,CONCATENATE(AV21,"-",E21,IF(AE21=1,"-",""),IF(AE21=1,IF(G21="SHW",G21,ROUND(G21,1)),""))) -> 2-M-O | AG21: =IF(OR(AB21=0),0,VLOOKUP(AV21,Setup!$S$6:$T$15,2,TRUE)) -> 7 | AI21: BP | AJ21: =IF(ISERROR(FIND($AJ$7,AI21)),0,1) -> 1 | AK21: =IF(B21="","",VLOOKUP(B21,$BP$1:$BQ$8,2,FALSE)) -> 0 | AL21: =ROUND(IF($F$8="BWt (Kg)",F21,F21/2.2046),1) -> 97.6 | AM21: =IF(OR(O21=0,U21=0,AA21=0),0,O21+U21+AA21) -> 0 | AN21: =IF(OR(U21=0,AA21=0),0,U21+AA21) -> 0 | AO21: =IF(E21="","",LEFT(E21,1)) -> M | AQ21: =IF(OR(ISERROR(E21),F21="",ISERROR(G21),AB21=0),0,1) -> 1 | AR21: =IF(OR(ISERROR(AY21),ISERROR(AX21)),0,AY21) -> 100000203.4 | AS21: =RANK(AR21,INDIRECT($AS$7)) -> 10 | AT21: =INT(AR21/1000000) -> 100 | AU21: =RANK(AT21,INDIRECT($AU$7)) -> 9 | AV21: =AS21-AU21+1 -> 2 | AW21: =F21 -> 97.6 | AX21: =RANK(AW21,AW:AW) -> 9 | AY21: =IF(OR(E21="",F21="",ISERROR(AE21)),0,(100000000*MATCH(E21,INDIRECT($AI$1),0)+IF(AE21=1,(16-IF(AO21="M",MATCH(G21,Setup!$K$9:$K$23,0),MATCH(G21,Setup!$M$9:$M$23)))*1000000,0)+IF(AB21>0,IF(AE21=1,RANK(AB21,AB:AB,-1)*1000+AX21,IF(AE21=2,AC21,AD21)),0))) -> 100000203.4 | CJ21: 0 | CK21: 0 | CL21: 0 | CM21: 0 | CN21: 0 | CO21: 0 | CP21: 0 | CQ21: 1 | CR21: 1 | CS21: -1 | CT21: 0 | CU21: 0 | CV21: 0 | CW21: 0 | CX21: 0 | CY21: 0 | CZ21: 0
A22: =IF(S22,ABS(S22+0.0001*I22),"") -> 235 | B22: A | C22: Hakala Henri | D22: 31 | E22: M-O | F22: 115.1 | G22: =IF(OR(E22="",F22=""),"",IF(LEFT(E22,1)="M",VLOOKUP(F22,Setup!$J$9:$K$23,2,TRUE),VLOOKUP(F22,Setup!$L$9:$M$23,2,TRUE))) -> 125 | H22: =IF(F22="",0,VLOOKUP(AL22,DATA!$L$2:$N$1911,IF(LEFT(E22,1)="F",3,2))) -> 0.8726 | O22: =IF(MAX(CK22:CM22)>0,MAX(ABS(K22)*CK22,ABS(L22)*CL22,CM22*ABS(M22)),0) -> 0 | P22: 7 | Q22: 220 | R22: 230 | S22: -235 | U22: =IF(MAX(CQ22:CS22)>0,MAX(ABS(Q22)*CQ22,ABS(R22)*CR22,CS22*ABS(S22)),0) -> 230 | V22: =IF(OR(O22=0,U22=0),0,O22+U22) -> 0 | AA22: =IF(MAX(CW22:CY22)>0,MAX(ABS(W22)*CW22,ABS(X22)*CX22,CY22*ABS(Y22)),0) -> 0 | AB22: =AJ22*IF($AB$8="PL Total",AM22,IF($AB$8="Push Pull Total",AN22,IF($AB$8="Best Squat",O22,IF($AB$8="Best Bench",U22,AA22)))) -> 230 | AC22: =IF(OR(F22="",AB22=0),0,H22*IF(AND($G$3="Lb",$H$8="Wilks"),AB22/2.2046,AB22)) -> 200.698 | AD22: =IF(OR(AB22=0,D22=""),0,IF(AND(D22<23,D22<=40),1,VLOOKUP($D22,DATA!$A$2:$B$53,2,TRUE))*AC22) -> 200.698 | AE22: =IF(E22="","",OFFSET(Setup!$Q$1,MATCH(E22,Setup!O:O,0)-1,0)) -> 3 | AF22: =IF(OR(AB22=0,AR22=0),0,CONCATENATE(AV22,"-",E22,IF(AE22=1,"-",""),IF(AE22=1,IF(G22="SHW",G22,ROUND(G22,1)),""))) -> 3-M-O | AG22: =IF(OR(AB22=0),0,VLOOKUP(AV22,Setup!$S$6:$T$15,2,TRUE)) -> 7 | AI22: BP | AJ22: =IF(ISERROR(FIND($AJ$7,AI22)),0,1) -> 1 | AK22: =IF(B22="","",VLOOKUP(B22,$BP$1:$BQ$8,2,FALSE)) -> 0 | AL22: =ROUND(IF($F$8="BWt (Kg)",F22,F22/2.2046),1) -> 115.1 | AM22: =IF(OR(O22=0,U22=0,AA22=0),0,O22+U22+AA22) -> 0 | AN22: =IF(OR(U22=0,AA22=0),0,U22+AA22) -> 0 | AO22: =IF(E22="","",LEFT(E22,1)) -> M | AQ22: =IF(OR(ISERROR(E22),F22="",ISERROR(G22),AB22=0),0,1) -> 1 | AR22: =IF(OR(ISERROR(AY22),ISERROR(AX22)),0,AY22) -> 100000200.7 | AS22: =RANK(AR22,INDIRECT($AS$7)) -> 11 | AT22: =INT(AR22/1000000) -> 100 | AU22: =RANK(AT22,INDIRECT($AU$7)) -> 9 | AV22: =AS22-AU22+1 -> 3 | AW22: =F22 -> 115.1 | AX22: =RANK(AW22,AW:AW) -> 2 | AY22: =IF(OR(E22="",F22="",ISERROR(AE22)),0,(100000000*MATCH(E22,INDIRECT($AI$1),0)+IF(AE22=1,(16-IF(AO22="M",MATCH(G22,Setup!$K$9:$K$23,0),MATCH(G22,Setup!$M$9:$M$23)))*1000000,0)+IF(AB22>0,IF(AE22=1,RANK(AB22,AB:AB,-1)*1000+AX22,IF(AE22=2,AC22,AD22)),0))) -> 100000200.7 | CJ22: 0 | CK22: 0 | CL22: 0 | CM22: 0 | CN22: 0 | CO22: 0 | CP22: 0 | CQ22: 1 | CR22: 1 | CS22: -1 | CT22: 0 | CU22: 0 | CV22: 0 | CW22: 0 | CX22: 0 | CY22: 0 | CZ22: 0

Sheet 3-Lift
A1: 11.11. | B1: Raw bench& deadlift-Kg Results
A2: Name | B2: Age | C2: Div | D2: BWt (Kg) | E2: WtCls (Kg) | F2: Reshel | G2: Squat 1 | H2: Squat 2 | I2: Squat 3 | J2: Squat 4 | K2: Best Squat | L2: Bench 1 | M2: Bench 2 | N2: Bench 3 | O2: Bench 4 | P2: Best Bench | Q2: Sub Total | R2: Deadlift 1 | S2: Deadlift 2 | T2: Deadlift 3 | U2: Deadlift 4 | V2: Best Deadlift | W2: PL Total | X2: Coeff Score | Y2: Age & Coeff | Z2: Pl code | AA2: Pl-Div-WtCl | AB2: Tm Pts | AC2: Team

Sheet Squat
A1: 11.11. | B1: Raw bench& deadlift-Kg Results
A2: Name | B2: Age | C2: Div | D2: BWt (Kg) | E2: WtCls (Kg) | F2: Reshel | G2: Squat 1 | H2: Squat 2 | I2: Squat 3 | J2: Squat 4 | K2: Best Squat | L2: Coeff Score | M2: Age & Coeff | N2: Pl code | O2: Pl-Div-WtCl | P2: Tm Pts | Q2: Team

Sheet Bench
A1: 11.11. | B1: Raw bench& deadlift-Kg Results
A2: Name | B2: Age | C2: Div | D2: BWt (Kg) | E2: WtCls (Kg) | F2: Reshel | G2: Bench 1 | H2: Bench 2 | I2: Bench 3 | J2: Bench 4 | K2: Best Bench | L2: Coeff Score | M2: Age & Coeff | N2: Pl code | O2: Pl-Div-WtCl | P2: Tm Pts | Q2: Team
A3: Laine Iina | B3: 51 | C3: F-M3 | D3: 54.6 | E3: 56 | F3: 1.9588 | G3: 70 | H3: 75 | I3: 82.5 | K3: 82.5 | L3: 161.601 | M3: 185.356347 | N3: 3 | O3: 1-F-M3 | P3: 7
A4: Vuorio Anni | B4: 23 | C4: F-JR | D4: 73.4 | E4: 75 | F4: 1.5622 | G4: 70 | H4: 75 | I4: -77.5 | K4: 75 | L4: 117.165 | M4: 117.165 | N4: 3 | O4: 1-F-JR | P4: 7
A5: Ninni Myöhänen | B5: 19 | C5: F-JR | D5: 67.5 | E5: 67.5 | F5: 1.639 | G5: 52.5 | H5: 55 | I5: -60 | K5: 55 | L5: 90.145 | M5: 90.145 | N5: 3 | O5: 2-F-JR | P5: 7
A6: Kärkkäinen Juhani | B6: 58 | C6: M-M4 | D6: 99.8 | E6: 100 | F6: 0.9158 | G6: 135 | H6: 145 | I6: 150 | K6: 150 | L6: 137.37 | M6: 177.34467 | N6: 3 | O6: 1-M-M4 | P6: 7
A7: Akkanen Atte | B7: 49 | C7: M-M2 | D7: 85.5 | E7: 90 | F7: 1.002 | G7: 150 | H7: 152.5 | I7: 155 | K7: 155 | L7: 155.31 | M7: 172.86003 | N7: 3 | O7: 1-M-M2 | P7: 7
A8: Renfors Klaus | B8: 44 | C8: M-M1 | D8: 101.2 | E8: 110 | F8: 0.9102 | G8: 160 | H8: 170 | I8: -175 | K8: 170 | L8: 154.734 | M8: 161.387562 | N8: 3 | O8: 1-M-M1 | P8: 7
A9: Lahtinen Niklas | B9: 21 | C9: M-JR | D9: 105.9 | E9: 110 | F9: 0.8954 | G9: 165 | H9: -175 | I9: -175 | K9: 165 | L9: 147.741 | M9: 147.741 | N9: 3 | O9: 1-M-JR | P9: 7
A10: Uotila Tuomas | B10: 21 | C10: M-JR | D10: 116.4 | E10: 125 | F10: 0.87 | G10: 160 | H10: 167.5 | I10: -170 | K10: 167.5 | L10: 145.725 | M10: 145.725 | N10: 3 | O10: 2-M-JR | P10: 7
A11: Marttila Lauri | B11: 26 | C11: M-O | D11: 98.9 | E11: 100 | F11: 0.9194 | G11: 210 | H11: 220 | I11: 225 | K11: 225 | L11: 206.865 | M11: 206.865 | N11: 3 | O11: 1-M-O | P11: 7
A12: Heinonen Timo | B12: 34 | C12: M-O | D12: 97.6 | E12: 100 | F12: 0.9246 | G12: 210 | H12: 220 | I12: -230 | K12: 220 | L12: 203.412 | M12: 203.412 | N12: 3 | O12: 2-M-O | P12: 7
A13: Hakala Henri | B13: 31 | C13: M-O | D13: 115.1 | E13: 125 | F13: 0.8726 | G13: 220 | H13: 230 | I13: -235 | K13: 230 | L13: 200.698 | M13: 200.698 | N13: 3 | O13: 3-M-O | P13: 7
A14: Maantila Jan-Erik | B14: 32 | C14: M-O | D14: 109.9 | E14: 110 | F14: 0.885 | G14: 180 | H14: 190 | I14: -192.5 | K14: 190 | L14: 168.15 | M14: 168.15 | N14: 3 | O14: 4-M-O | P14: 7
A15: Holm Jani | B15: 39 | C15: M-O | D15: 108 | E15: 110 | F15: 0.89 | G15: 160 | H15: 170 | I15: -172.5 | K15: 170 | L15: 151.3 | M15: 151.3 | N15: 3 | O15: 5-M-O | P15: 7

Sheet Deadlift
A1: 11.11. | B1: Raw bench& deadlift-Kg Results
A2: Name | B2: Age | C2: Div | D2: BWt (Kg) | E2: WtCls (Kg) | F2: Reshel | G2: Deadlift 1 | H2: Deadlift 2 | I2: Deadlift 3 | J2: Deadlift 4 | K2: Best Deadlift | L2: Coeff Score | M2: Age & Coeff | N2: Pl code | O2: Pl-Div-WtCl | P2: Tm Pts | Q2: Team

Sheet Push-Pull
A1: 11.11. | B1: Raw bench& deadlift-Kg Results
A2: Name | B2: Age | C2: Div | D2: BWt (Kg) | E2: WtCls (Kg) | F2: Reshel | G2: Bench 1 | H2: Bench 2 | I2: Bench 3 | J2: Bench 4 | K2: Best Bench | L2: Deadlift 1 | M2: Deadlift 2 | N2: Deadlift 3 | O2: Deadlift 4 | P2: Best Deadlift | Q2: Push Pull Total | R2: Coeff Score | S2: Age & Coeff | T2: Pl code | U2: Pl-Div-WtCl | V2: Tm Pts | W2: Team

Sheet DATA (hidden)
A1: Age | B1: Coeff | E1: Copyright - Joe Marksteiner - 2005 | L1: KG | M1: Men's Coeff | N1: Women's Coeff | O1: Men Schwartz | P1: Women Malone | Q1: Men-Wilks | R1: Women Wilks | S1: Men G'brenner | T1: Women G'Brenner | U1: Men Reshel | V1: Women Reshel
A2: 13 | B2: 1.28 | C2: Foster Age Multiples | L2: 40 | N2: 3.145 | O2: 1.3133 | P2: 1.1938 | Q2: 1.3354 | R2: 1.4936 | S2: 1.32435 | T2: 1.3437 | V2: 3.145
A3: 14 | B3: 1.23 | L3: 40.1 | N3: 3.129 | O3: 1.3092 | P3: 1.1915 | Q3: 1.3311 | R3: 1.4915 | S3: 1.32015 | T3: 1.3415 | V3: 3.129
A4: 15 | B4: 1.18 | L4: 40.2 | N4: 3.113 | O4: 1.3052 | P4: 1.1892 | Q4: 1.3268 | R4: 1.4894 | S4: 1.316 | T4: 1.3393 | V4: 3.113
A5: 16 | B5: 1.13 | L5: 40.3 | N5: 3.097 | O5: 1.3011 | P5: 1.1869 | Q5: 1.3225 | R5: 1.4872 | S5: 1.3118 | T5: 1.337 | V5: 3.097
A6: 17 | B6: 1.08 | L6: 40.4 | N6: 3.081 | O6: 1.2971 | P6: 1.1846 | Q6: 1.3182 | R6: 1.4851 | S6: 1.30765 | T6: 1.3348 | V6: 3.081
A7: 18 | B7: 1.06 | L7: 40.5 | N7: 3.065 | O7: 1.2931 | P7: 1.1823 | Q7: 1.314 | R7: 1.483 | S7: 1.30355 | T7: 1.3326 | V7: 3.065
A8: 19 | B8: 1.04 | L8: 40.6 | N8: 3.049 | O8: 1.2891 | P8: 1.181 | Q8: 1.3098 | R8: 1.4809 | S8: 1.29945 | T8: 1.3305 | V8: 3.049
A9: 20 | B9: 1.03 | L9: 40.7 | N9: 3.033 | O9: 1.2851 | P9: 1.1778 | Q9: 1.3057 | R9: 1.4788 | S9: 1.2954 | T9: 1.3283 | V9: 3.033
A10: 21 | B10: 1.02 | L10: 40.8 | N10: 3.017 | O10: 1.2812 | P10: 1.1756 | Q10: 1.3016 | R10: 1.4766 | S10: 1.2914 | T10: 1.3261 | V10: 3.017
A11: 22 | B11: 1.01 | L11: 40.9 | N11: 3.001 | O11: =ROUND((O10+O12)/2,4) -> 1.2773 | P11: 1.1744 | Q11: 1.2975 | R11: 1.4745 | S11: 1.2874 | T11: 1.3239 | V11: 3.001
A12: 23 | B12: 1 | E12: Weight Classes (Kg) | L12: 41 | N12: 2.985 | O12: 1.2734 | P12: 1.1732 | Q12: 1.2934 | R12: 1.4724 | S12: 1.2834 | T12: 1.3217 | V12: 2.985
A13: 40 | B13: 1 | C13: McCulloch Numbers | E13: KG | F13: LB | G13: Upper limit (lbs) | L13: 41.1 | N13: 2.827 | O13: 1.2695 | P13: 1.1711 | Q13: 1.2894 | R13: 1.4702 | S13: 1.27945 | T13: 1.3195 | V13: 2.827
A14: 41 | B14: 1.01 | E14: 44 | F14: 97 | G14: 97.0024 | L14: 41.2 | N14: 2.669 | O14: 1.2656 | P14: 1.1689 | Q14: 1.2854 | R14: 1.4681 | S14: 1.2755 | T14: 1.3174 | V14: 2.669
A15: 42 | B15: 1.02 | E15: 48 | F15: 105 | G15: 105.8208 | L15: 41.3 | N15: 2.511 | O15: 1.2618 | P15: 1.1667 | Q15: 1.2814 | R15: 1.466 | S15: 1.2716 | T15: 1.3152 | V15: 2.511
A16: 43 | B16: 1.031 | E16: 52 | F16: 114 | G16: 114.6392 | L16: 41.4 | N16: 2.353 | O16: 1.258 | P16: 1.1645 | Q16: 1.2775 | R16: 1.4638 | S16: 1.26775 | T16: 1.313 | V16: 2.353
A17: 44 | B17: 1.043 | E17: 56 | F17: 123 | G17: 123.4576 | L17: 41.5 | N17: 2.195 | O17: 1.2542 | P17: 1.1623 | Q17: 1.2736 | R17: 1.4617 | S17: 1.2639 | T17: 1.3109 | V17: 2.195
A18: 45 | B18: 1.055 | E18: 60 | F18: 132 | G18: 132.276 | L18: 41.6 | N18: 2.3258 | O18: 1.2504 | P18: 1.1601 | Q18: 1.2697 | R18: 1.4595 | S18: 1.26005 | T18: 1.3087 | V18: 2.3258
A19: 46 | B19: 1.068 | E19: 67.5 | F19: 148 | G19: 148.8105 | L19: 41.7 | N19: 2.4566 | O19: 1.2467 | P19: 1.1579 | Q19: 1.2658 | R19: 1.4574 | S19: 1.25625 | T19: 1.3065 | V19: 2.4566
A20: 47 | B20: 1.082 | E20: 75 | F20: 165 | G20: 165.345 | L20: 41.8 | N20: 2.5874 | O20: 1.2429 | P20: 1.1557 | Q20: 1.262 | R20: 1.4552 | S20: 1.25245 | T20: 1.3043 | V20: 2.5874
A21: 48 | B21: 1.097 | E21: 82.5 | F21: 181 | G21: 181.8795 | L21: 41.9 | N21: 2.7182 | O21: 1.2773 | P21: 1.1535 | Q21: 1.2582 | R21: 1.4531 | S21: 1.26775 | T21: 1.3022 | V21: 2.7182
A22: 49 | B22: 1.113 | E22: 90 | F22: 198 | G22: 198.414 | L22: 42 | N22: 2.849 | O22: 1.2355 | P22: 1.1514 | Q22: 1.2545 | R22: 1.451 | S22: 1.245 | T22: 1.3001 | V22: 2.849
A23: 50 | B23: 1.13 | E23: 100 | F23: 220 | G23: 220.46 | L23: 42.1 | N23: 2.8364 | O23: 1.2318 | P23: 1.1492 | Q23: 1.2507 | R23: 1.4488 | S23: 1.24125 | T23: 1.2979 | V23: 2.8364
A24: 51 | B24: 1.147 | E24: 110 | F24: 242 | G24: 242.506 | L24: 42.2 | N24: 2.8238 | O24: 1.2282 | P24: 1.1471 | Q24: 1.247 | R24: 1.4467 | S24: 1.2376 | T24: 1.2958 | V24: 2.8238
A25: 52 | B25: 1.165 | E25: 125 | F25: 275 | G25: 275.575 | L25: 42.3 | N25: 2.8112 | O25: 1.2245 | P25: 1.145 | Q25: 1.2433 | R25: 1.4445 | S25: 1.2339 | T25: 1.2936 | V25: 2.8112
A26: 53 | B26: 1.184 | E26: 140 | F26: 308 | G26: 308.644 | L26: 42.4 | N26: 2.7986 | O26: 1.2209 | P26: 1.1428 | Q26: 1.2397 | R26: 1.4424 | S26: 1.2303 | T26: 1.2915 | V26: 2.7986
A27: 54 | B27: 1.204 | E27: 145 | F27: 319 | G27: 319.667 | L27: 42.5 | N27: 2.786 | O27: 1.2173 | P27: 1.1407 | Q27: 1.236 | R27: 1.4402 | S27: 1.22665 | T27: 1.2894 | V27: 2.786
A28: 55 | B28: 1.225 | E28: SHW | F28: SHW | G28: ------ | L28: 42.6 | N28: 2.7752 | O28: 1.2138 | P28: 1.1386 | Q28: 1.2324 | R28: 1.4381 | S28: 1.2231 | T28: 1.2873 | V28: 2.7752
A29: 56 | B29: 1.246 | L29: 42.7 | N29: 2.7644 | O29: 1.2102 | P29: 1.1365 | Q29: 1.2289 | R29: 1.4359 | S29: 1.21955 | T29: 1.2851 | V29: 2.7644
A30: 57 | B30: 1.268 | L30: 42.8 | N30: 2.7536 | O30: 1.2067 | P30: 1.1344 | Q30: 1.2253 | R30: 1.4338 | S30: 1.216 | T30: 1.283 | V30: 2.7536
A31: 58 | B31: 1.291 | L31: 42.9 | N31: 2.7428 | O31: 1.2392 | P31: 1.1323 | Q31: 1.2218 | R31: 1.4316 | S31: 1.2305 | T31: 1.2809 | V31: 2.7428
A32: 59 | B32: 1.315 | F32: 44 | G32: 44 | L32: 43 | N32: 2.732 | O32: 1.1997 | P32: 1.1303 | Q32: 1.2183 | R32: 1.4295 | S32: 1.209 | T32: 1.2788 | V32: 2.732
A33: 60 | B33: 1.34 | F33: 48 | G33: 48 | L33: 43.1 | N33: 2.7218 | O33: 1.1962 | P33: 1.1282 | Q33: 1.2148 | R33: 1.4273 | S33: 1.2055 | T33: 1.2767 | V33: 2.7218
A34: 61 | B34: 1.366 | F34: 52 | G34: 52 | L34: 43.2 | N34: 2.7116 | O34: 1.1927 | P34: 1.1261 | Q34: 1.2113 | R34: 1.4252 | S34: 1.202 | T34: 1.2746 | V34: 2.7116
A35: 62 | B35: 1.393 | F35: 56 | G35: 56 | L35: 43.3 | N35: 2.7014 | O35: 1.1893 | P35: 1.1241 | Q35: 1.2079 | R35: 1.4231 | S35: 1.1986 | T35: 1.2725 | V35: 2.7014
A36: 63 | B36: 1.421 | F36: 60 | G36: 60 | L36: 43.4 | N36: 2.6912 | O36: 1.1858 | P36: 1.122 | Q36: 1.2045 | R36: 1.4209 | S36: 1.19515 | T36: 1.2704 | V36: 2.6912
A37: 64 | B37: 1.45 | F37: 67.5 | G37: 67.5 | L37: 43.5 | N37: 2.681 | O37: 1.1824 | P37: 1.12 | Q37: 1.2011 | R37: 1.4188 | S37: 1.19175 | T37: 1.2684 | V37: 2.681
A38: 65 | B38: 1.48 | F38: 75 | G38: 75 | L38: 43.6 | N38: 2.6712 | O38: 1.1791 | P38: 1.118 | Q38: 1.1978 | R38: 1.4166 | S38: 1.18845 | T38: 1.2662 | V38: 2.6712
A39: 66 | B39: 1.511 | F39: 82.5 | G39: 82.5 | L39: 43.7 | N39: 2.6614 | O39: 1.1757 | P39: 1.1159 | Q39: 1.1944 | R39: 1.4145 | S39: 1.18505 | T39: 1.2642 | V39: 2.6614
A40: 67 | B40: 1.543 | F40: 90 | G40: 90 | L40: 43.8 | N40: 2.6516 | O40: 1.1723 | P40: 1.1139 | Q40: 1.1911 | R40: 1.4123 | S40: 1.1817 | T40: 1.2621 | V40: 2.6516
A41: 68 | B41: 1.576 | F41: 97 | G41: 97.0024 | L41: 43.9 | N41: 2.6418 | O41: 1.2032 | P41: 1.1119 | Q41: 1.1878 | R41: 1.4102 | S41: 1.1955 | T41: 1.26 | V41: 2.6418
A42: 69 | B42: 1.61 | F42: 100 | G42: 100 | L42: 44 | N42: 2.632 | O42: 1.1657 | P42: 1.1099 | Q42: 1.1846 | R42: 1.4081 | S42: 1.17515 | T42: 1.258 | V42: 2.632
A43: 70 | B43: 1.645 | F43: 105 | G43: 105.8208 | L43: 44.1 | N43: 2.6234 | O43: 1.1624 | P43: 1.1079 | Q43: 1.1813 | R43: 1.4059 | S43: 1.17185 | T43: 1.2559 | V43: 2.6234
A44: 71 | B44: 1.681 | F44: 110 | G44: 110 | L44: 44.2 | N44: 2.6148 | O44: 1.1591 | P44: 1.1059 | Q44: 1.1781 | R44: 1.4038 | S44: 1.1686 | T44: 1.2538 | V44: 2.6148
A45: 72 | B45: 1.718 | F45: 114 | G45: 114.6392 | L45: 44.3 | N45: 2.6062 | O45: 1.1558 | P45: 1.1039 | Q45: 1.1749 | R45: 1.4017 | S45: 1.16535 | T45: 1.2518 | V45: 2.6062
A46: 73 | B46: 1.756 | F46: 123 | G46: 123.4576 | L46: 44.4 | N46: 2.5976 | O46: 1.1526 | P46: 1.102 | Q46: 1.1717 | R46: 1.3995 | S46: 1.16215 | T46: 1.2497 | V46: 2.5976
A47: 74 | B47: 1.795 | F47: 125 | G47: 125 | L47: 44.5 | N47: 2.589 | O47: 1.1494 | P47: 1.1 | Q47: 1.1686 | R47: 1.3974 | S47: 1.159 | T47: 1.2477 | V47: 2.589
A48: 75 | B48: 1.835 | F48: 132 | G48: 132.276 | L48: 44.6 | N48: 2.5802 | O48: 1.1462 | P48: 1.098 | Q48: 1.1654 | R48: 1.3953 | S48: 1.1558 | T48: 1.2457 | V48: 2.5802
A49: 76 | B49: 1.876 | F49: 140 | G49: 140 | L49: 44.7 | N49: 2.5714 | O49: 1.143 | P49: 1.0961 | Q49: 1.1623 | R49: 1.3932 | S49: 1.15265 | T49: 1.2436 | V49: 2.5714
A50: 77 | B50: 1.918 | F50: 145 | G50: 145 | L50: 44.8 | N50: 2.5626 | O50: 1.1398 | P50: 1.0941 | Q50: 1.1592 | R50: 1.391 | S50: 1.1495 | T50: 1.2416 | V50: 2.5626
A51: 78 | B51: 1.961 | F51: 148 | G51: 148.8105 | L51: 44.9 | N51: 2.5538 | O51: 1.169 | P51: 1.0922 | Q51: 1.1562 | R51: 1.3889 | S51: 1.1626 | T51: 1.2396 | V51: 2.5538
A52: 79 | B52: 2.005 | F52: 165 | G52: 165.345 | L52: 45 | N52: 2.545 | O52: 1.1355 | P52: 1.0903 | Q52: 1.1531 | R52: 1.3868 | S52: 1.1443 | T52: 1.2373 | V52: 2.545
A53: 80 | B53: 2.05 | F53: 181 | G53: 181.8795 | L53: 45.1 | N53: 2.5366 | O53: 1.1304 | P53: 1.0883 | Q53: 1.1501 | R53: 1.3847 | S53: 1.14025 | T53: 1.2355 | V53: 2.5366
F54: 198 | G54: 198.414 | L54: 45.2 | N54: 2.5282 | O54: 1.1273 | P54: 1.0864 | Q54: 1.1471 | R54: 1.3825 | S54: 1.1372 | T54: 1.2335 | V54: 2.5282
F55: 220 | G55: 220.46 | L55: 45.3 | N55: 2.5198 | O55: 1.1242 | P55: 1.0845 | Q55: 1.1441 | R55: 1.3804 | S55: 1.13415 | T55: 1.2315 | V55: 2.5198
F56: 242 | G56: 242.506 | L56: 45.4 | N56: 2.5114 | O56: 1.1211 | P56: 1.0826 | Q56: 1.1411 | R56: 1.3783 | S56: 1.1311 | T56: 1.2295 | V56: 2.5114
F57: 275 | G57: 275.575 | L57: 45.5 | N57: 2.503 | O57: 1.1181 | P57: 1.0807 | Q57: 1.1382 | R57: 1.3762 | S57: 1.12815 | T57: 1.2275 | V57: 2.503
F58: 308 | G58: 308.644 | L58: 45.6 | N58: 2.495 | O58: 1.115 | P58: 1.0788 | Q58: 1.1352 | R58: 1.3741 | S58: 1.1251 | T58: 1.2255 | V58: 2.495
F59: 319 | G59: 319.667 | L59: 45.7 | N59: 2.487 | O59: 1.112 | P59: 1.0769 | Q59: 1.1323 | R59: 1.372 | S59: 1.12215 | T59: 1.2235 | V59: 2.487
L60: 45.8 | N60: 2.479 | O60: 1.109 | P60: 1.075 | Q60: 1.1294 | R60: 1.3699 | S60: 1.1192 | T60: 1.2215 | V60: 2.479
L61: 45.9 | N61: 2.471 | O61: 1.1367 | P61: 1.0732 | Q61: 1.1266 | R61: 1.3678 | S61: 1.13165 | T61: 1.2195 | V61: 2.471
L62: 46 | N62: 2.463 | O62: 1.1031 | P62: 1.0713 | Q62: 1.1237 | R62: 1.3657 | S62: 1.1134 | T62: 1.2175 | V62: 2.463
L63: 46.1 | N63: 2.4552 | O63: 1.1001 | P63: 1.0694 | Q63: 1.1209 | R63: 1.3636 | S63: 1.1105 | T63: 1.2156 | V63: 2.4552
L64: 46.2 | N64: 2.4474 | O64: 1.0972 | P64: 1.0676 | Q64: 1.1181 | R64: 1.3615 | S64: 1.10765 | T64: 1.2136 | V64: 2.4474
L65: 46.3 | N65: 2.4396 | O65: 1.0942 | P65: 1.0657 | Q65: 1.1153 | R65: 1.3594 | S65: 1.10475 | T65: 1.2116 | V65: 2.4396
L66: 46.4 | N66: 2.4318 | O66: 1.0913 | P66: 1.0639 | Q66: 1.1125 | R66: 1.3573 | S66: 1.1019 | T66: 1.2097 | V66: 2.4318
L67: 46.5 | N67: 2.424 | O67: 1.0884 | P67: 1.0621 | Q67: 1.1097 | R67: 1.3553 | S67: 1.09905 | T67: 1.2077 | V67: 2.424
L68: 46.6 | N68: 2.4166 | O68: 1.0856 | P68: 1.0602 | Q68: 1.107 | R68: 1.3532 | S68: 1.0963 | T68: 1.2058 | V68: 2.4166
L69: 46.7 | N69: 2.4092 | O69: 1.0827 | P69: 1.0584 | Q69: 1.1042 | R69: 1.3511 | S69: 1.09345 | T69: 1.2038 | V69: 2.4092
L70: 46.8 | N70: 2.4018 | O70: 1.0799 | P70: 1.0566 | Q70: 1.1015 | R70: 1.349 | S70: 1.0907 | T70: 1.2019 | V70: 2.4018
L71: 46.9 | N71: 2.3944 | O71: 1.106 | P71: 1.0548 | Q71: 1.0988 | R71: 1.347 | S71: 1.1024 | T71: 1.2 | V71: 2.3944
L72: 47 | N72: 2.387 | O72: 1.0742 | P72: 1.053 | Q72: 1.0962 | R72: 1.3449 | S72: 1.0852 | T72: 1.198 | V72: 2.387
L73: 47.1 | N73: 2.3798 | O73: 1.0714 | P73: 1.0512 | Q73: 1.0935 | R73: 1.3428 | S73: 1.08245 | T73: 1.1961 | V73: 2.3798
L74: 47.2 | N74: 2.3726 | O74: 1.0686 | P74: 1.0494 | Q74: 1.0909 | R74: 1.3408 | S74: 1.07975 | T74: 1.1942 | V74: 2.3726
L75: 47.3 | N75: 2.3654 | O75: 1.0659 | P75: 1.0476 | Q75: 1.0882 | R75: 1.3387 | S75: 1.07705 | T75: 1.1922 | V75: 2.3654
L76: 47.4 | N76: 2.3582 | O76: 1.0631 | P76: 1.0458 | Q76: 1.0856 | R76: 1.3367 | S76: 1.07435 | T76: 1.1904 | V76: 2.3582
L77: 47.5 | N77: 2.351 | O77: 1.0604 | P77: 1.0441 | Q77: 1.083 | R77: 1.3346 | S77: 1.0717 | T77: 1.1884 | V77: 2.351
L78: 47.6 | N78: 2.3438 | O78: 1.0577 | P78: 1.0423 | Q78: 1.0805 | R78: 1.3326 | S78: 1.0691 | T78: 1.1865 | V78: 2.3438
L79: 47.7 | N79: 2.3366 | O79: 1.055 | P79: 1.0405 | Q79: 1.0779 | R79: 1.3305 | S79: 1.06645 | T79: 1.1846 | V79: 2.3366
L80: 47.8 | N80: 2.3294 | O80: 1.0523 | P80: 1.0388 | Q80: 1.0754 | R80: 1.3285 | S80: 1.06385 | T80: 1.1827 | V80: 2.3294
L81: 47.9 | N81: 2.3222 | O81: 1.077 | P81: 1.037 | Q81: 1.0728 | R81: 1.3265 | S81: 1.0749 | T81: 1.1809 | V81: 2.3222
L82: 48 | N82: 2.315 | O82: 1.0469 | P82: 1.0353 | Q82: 1.0703 | R82: 1.3244 | S82: 1.0586 | T82: 1.179 | V82: 2.315
L83: 48.1 | N83: 2.308 | O83: 1.0443 | P83: 1.0336 | Q83: 1.0678 | R83: 1.3224 | S83: 1.05605 | T83: 1.1771 | V83: 2.308
L84: 48.2 | N84: 2.301 | O84: 1.0416 | P84: 1.0318 | Q84: 1.0653 | R84: 1.3204 | S84: 1.05345 | T84: 1.1752 | V84: 2.301
L85: 48.3 | N85: 2.294 | O85: 1.039 | P85: 1.0301 | Q85: 1.0629 | R85: 1.3183 | S85: 1.05095 | T85: 1.1733 | V85: 2.294
L86: 48.4 | N86: 2.287 | O86: 1.0364 | P86: 1.0284 | Q86: 1.0604 | R86: 1.3163 | S86: 1.0484 | T86: 1.1715 | V86: 2.287
L87: 48.5 | N87: 2.28 | O87: 1.0338 | P87: 1.0267 | Q87: 1.058 | R87: 1.3143 | S87: 1.0459 | T87: 1.1696 | V87: 2.28
L88: 48.6 | N88: 2.2734 | O88: 1.0312 | P88: 1.025 | Q88: 1.0556 | R88: 1.3123 | S88: 1.0434 | T88: 1.1678 | V88: 2.2734
L89: 48.7 | N89: 2.2668 | O89: 1.0287 | P89: 1.0233 | Q89: 1.0532 | R89: 1.3103 | S89: 1.04095 | T89: 1.1659 | V89: 2.2668
L90: 48.8 | N90: 2.2602 | O90: 1.0261 | P90: 1.0216 | Q90: 1.0508 | R90: 1.3083 | S90: 1.03845 | T90: 1.1641 | V90: 2.2602
L91: 48.9 | N91: 2.2536 | O91: 1.0496 | P91: 1.0199 | Q91: 1.0484 | R91: 1.3063 | S91: 1.049 | T91: 1.1622 | V91: 2.2536
L92: 49 | N92: 2.247 | O92: 1.0211 | P92: 1.0182 | Q92: 1.046 | R92: 1.3043 | S92: 1.03355 | T92: 1.1604 | V92: 2.247
L93: 49.1 | N93: 2.2408 | O93: 1.0186 | P93: 1.0165 | Q93: 1.0437 | R93: 1.3023 | S93: 1.03115 | T93: 1.1585 | V93: 2.2408
L94: 49.2 | N94: 2.2346 | O94: 1.0161 | P94: 1.0148 | Q94: 1.0413 | R94: 1.3004 | S94: 1.0287 | T94: 1.1568 | V94: 2.2346
L95: 49.3 | N95: 2.2284 | O95: 1.1036 | P95: 1.0132 | Q95: 1.039 | R95: 1.2984 | S95: 1.0713 | T95: 1.1549 | V95: 2.2284
L96: 49.4 | N96: 2.2222 | O96: 1.0111 | P96: 1.0115 | Q96: 1.0367 | R96: 1.2964 | S96: 1.0239 | T96: 1.1531 | V96: 2.2222
L97: 49.5 | N97: 2.216 | O97: 1.0087 | P97: 1.0098 | Q97: 1.0344 | R97: 1.2944 | S97: 1.02155 | T97: 1.1513 | V97: 2.216
L98: 49.6 | N98: 2.2104 | O98: 1.0062 | P98: 1.0082 | Q98: 1.0321 | R98: 1.2925 | S98: 1.01915 | T98: 1.1495 | V98: 2.2104
L99: 49.7 | N99: 2.2048 | O99: 1.0038 | P99: 1.0065 | Q99: 1.0299 | R99: 1.2905 | S99: 1.01685 | T99: 1.1477 | V99: 2.2048
L100: 49.8 | N100: 2.1992 | O100: 1.0014 | P100: 1.0049 | Q100: 1.0276 | R100: 1.2885 | S100: 1.0145 | T100: 1.1459 | V100: 2.1992
L101: 49.9 | N101: 2.1936 | O101: 1.0236 | P101: 1.0033 | Q101: 1.0254 | R101: 1.2866 | S101: 1.0245 | T101: 1.1441 | V101: 2.1936
L102: 50 | M102: 1.955 | N102: 2.188 | O102: 0.9966 | P102: 1.0016 | Q102: 1.0232 | R102: 1.2846 | S102: 1.0099 | T102: 1.1423 | U102: 1.955 | V102: 2.188
L103: 50.1 | M103: 1.9478 | N103: 2.1824 | O103: 0.9942 | P103: 1 | Q103: 1.021 | R103: 1.2827 | S103: 1.0076 | T103: 1.1405 | U103: 1.9478 | V103: 2.1824
L104: 50.2 | M104: 1.9406 | N104: 2.1768 | O104: 0.9919 | P104: 0.9984 | Q104: 1.0188 | R104: 1.2808 | S104: 1.00535 | T104: 1.1388 | U104: 1.9406 | V104: 2.1768
L105: 50.3 | M105: 1.9406 | N105: 2.1712 | O105: 0.9895 | P105: 0.9968 | Q105: 1.0166 | R105: 1.2788 | S105: 1.00305 | T105: 1.137 | U105: 1.9406 | V105: 2.1712
L106: 50.4 | M106: 1.9336 | N106: 2.1656 | O106: 0.9872 | P106: 0.9952 | Q106: 1.0144 | R106: 1.2769 | S106: 1.0008 | T106: 1.1352 | U106: 1.9336 | V106: 2.1656
L107: 50.5 | M107: 1.92 | N107: 2.16 | O107: 0.9849 | P107: 0.9935 | Q107: 1.0122 | R107: 1.275 | S107: 0.99855 | T107: 1.1334 | U107: 1.92 | V107: 2.16
L108: 50.6 | M108: 1.9128 | N108: 2.1544 | O108: 0.9826 | P108: 0.9919 | Q108: 1.0101 | R108: 1.273 | S108: 0.99635 | T108: 1.1317 | U108: 1.9128 | V108: 2.1544
L109: 50.7 | M109: 1.9056 | N109: 2.1488 | O109: 0.9803 | P109: 0.9904 | Q109: 1.0079 | R109: 1.2711 | S109: 0.9941 | T109: 1.1299 | U109: 1.9056 | V109: 2.1488
L110: 50.8 | M110: 1.9056 | N110: 2.1432 | O110: 0.978 | P110: 0.9888 | Q110: 1.0058 | R110: 1.2692 | S110: 0.9919 | T110: 1.1282 | U110: 1.9056 | V110: 2.1432
L111: 50.9 | M111: 1.8986 | N111: 2.1376 | O111: 0.999 | P111: 0.9872 | Q111: 1.0037 | R111: 1.2673 | S111: 1.00135 | T111: 1.1264 | U111: 1.8986 | V111: 2.1376
L112: 51 | M112: 1.885 | N112: 2.132 | O112: 0.9734 | P112: 0.9856 | Q112: 1.0016 | R112: 1.2654 | S112: 0.9875 | T112: 1.1247 | U112: 1.885 | V112: 2.132
L113: 51.1 | M113: 1.8778 | N113: 2.1266 | O113: 0.9712 | P113: 0.984 | Q113: 0.9995 | R113: 1.2635 | S113: 0.98535 | T113: 1.123 | U113: 1.8778 | V113: 2.1266
L114: 51.2 | M114: 1.8706 | N114: 2.1212 | O114: 0.969 | P114: 0.9825 | Q114: 0.9975 | R114: 1.2616 | S114: 0.98325 | T114: 1.1212 | U114: 1.8706 | V114: 2.1212
L115: 51.3 | M115: 1.8706 | N115: 2.1158 | O115: 0.9667 | P115: 0.9809 | Q115: 0.9954 | R115: 1.2597 | S115: 0.98105 | T115: 1.1195 | U115: 1.8706 | V115: 2.1158
L116: 51.4 | M116: 1.8638 | N116: 2.1104 | O116: 0.9645 | P116: 0.9793 | Q116: 0.9933 | R116: 1.2578 | S116: 0.9789 | T116: 1.1178 | U116: 1.8638 | V116: 2.1104
L117: 51.5 | M117: 1.851 | N117: 2.105 | O117: 0.9623 | P117: 0.9778 | Q117: 0.9913 | R117: 1.256 | S117: 0.9768 | T117: 1.1161 | U117: 1.851 | V117: 2.105
L118: 51.6 | M118: 1.8446 | N118: 2.0998 | O118: 0.9601 | P118: 0.9762 | Q118: 0.9893 | R118: 1.2541 | S118: 0.9747 | T118: 1.1144 | U118: 1.8446 | V118: 2.0998
L119: 51.7 | M119: 1.8382 | N119: 2.0946 | O119: 0.958 | P119: 0.9747 | Q119: 0.9873 | R119: 1.2522 | S119: 0.97265 | T119: 1.1126 | U119: 1.8382 | V119: 2.0946
L120: 51.8 | M120: 1.8382 | N120: 2.0894 | O120: 0.9558 | P120: 0.9731 | Q120: 0.9853 | R120: 1.2504 | S120: 0.97055 | T120: 1.111 | U120: 1.8382 | V120: 2.0894
L121: 51.9 | M121: 1.8316 | N121: 2.0842 | O121: 0.9757 | P121: 0.9716 | Q121: 0.9833 | R121: 1.2485 | S121: 0.9795 | T121: 1.1093 | U121: 1.8316 | V121: 2.0842
L122: 52 | M122: 1.818 | N122: 2.079 | O122: 0.9515 | P122: 0.9701 | Q122: 0.9813 | R122: 1.2466 | S122: 0.9664 | T122: 1.1076 | U122: 1.818 | V122: 2.079
L123: 52.1 | M123: 1.812 | N123: 2.0738 | O123: 0.9494 | P123: 0.9686 | Q123: 0.9793 | R123: 1.2448 | S123: 0.96435 | T123: 1.1059 | U123: 1.812 | V123: 2.0738
L124: 52.2 | M124: 1.806 | N124: 2.0686 | O124: 0.9473 | P124: 0.967 | Q124: 0.9773 | R124: 1.2429 | S124: 0.9623 | T124: 1.1042 | U124: 1.806 | V124: 2.0686
L125: 52.3 | M125: 1.806 | N125: 2.0634 | O125: 0.9452 | P125: 0.9655 | Q125: 0.9754 | R125: 1.2411 | S125: 0.9603 | T125: 1.1025 | U125: 1.806 | V125: 2.0634
L126: 52.4 | M126: 1.8 | N126: 2.0582 | O126: 0.9432 | P126: 0.964 | Q126: 0.9735 | R126: 1.2393 | S126: 0.95835 | T126: 1.1009 | U126: 1.8 | V126: 2.0582
L127: 52.5 | M127: 1.788 | N127: 2.053 | O127: 0.941 | P127: 0.9625 | Q127: 0.9715 | R127: 1.2374 | S127: 0.95625 | T127: 1.0992 | U127: 1.788 | V127: 2.053
L128: 52.6 | M128: 1.782 | N128: 2.048 | O128: 0.9389 | P128: 0.961 | Q128: 0.9696 | R128: 1.2356 | S128: 0.95425 | T128: 1.0975 | U128: 1.782 | V128: 2.048
L129: 52.7 | M129: 1.776 | N129: 2.043 | O129: 0.9368 | P129: 0.9595 | Q129: 0.9677 | R129: 1.2338 | S129: 0.95225 | T129: 1.0959 | U129: 1.776 | V129: 2.043
L130: 52.8 | M130: 1.776 | N130: 2.038 | O130: 0.9348 | P130: 0.958 | Q130: 0.9658 | R130: 1.232 | S130: 0.9503 | T130: 1.0942 | U130: 1.776 | V130: 2.038
L131: 52.9 | M131: 1.77 | N131: 2.033 | O131: 0.9536 | P131: 0.9565 | Q131: 0.9639 | R131: 1.2302 | S131: 0.95875 | T131: 1.0926 | U131: 1.77 | V131: 2.033
L132: 53 | M132: 1.758 | N132: 2.028 | O132: 0.9307 | P132: 0.955 | Q132: 0.9621 | R132: 1.2284 | S132: 0.9464 | T132: 1.091 | U132: 1.758 | V132: 2.028
L133: 53.1 | M133: 1.752 | N133: 2.0232 | O133: 0.9287 | P133: 0.9536 | Q133: 0.9602 | R133: 1.2266 | S133: 0.94445 | T133: 1.0893 | U133: 1.752 | V133: 2.0232
L134: 53.2 | M134: 1.746 | N134: 2.0184 | O134: 0.9267 | P134: 0.9521 | Q134: 0.9583 | R134: 1.2248 | S134: 0.9425 | T134: 1.0877 | U134: 1.746 | V134: 2.0184
L135: 53.3 | M135: 1.746 | N135: 2.0136 | O135: 0.9247 | P135: 0.9506 | Q135: 0.9565 | R135: 1.223 | S135: 0.9406 | T135: 1.0861 | U135: 1.746 | V135: 2.0136
L136: 53.4 | M136: 1.7398 | N136: 2.0088 | O136: 0.9227 | P136: 0.9492 | Q136: 0.9547 | R136: 1.2212 | S136: 0.9387 | T136: 1.0844 | U136: 1.7398 | V136: 2.0088
L137: 53.5 | M137: 1.727 | N137: 2.004 | O137: 0.9218 | P137: 0.9477 | Q137: 0.9528 | R137: 1.2194 | S137: 0.9373 | T137: 1.0828 | U137: 1.727 | V137: 2.004
L138: 53.6 | M138: 1.721 | N138: 2 | O138: 0.9188 | P138: 0.9462 | Q138: 0.951 | R138: 1.2176 | S138: 0.9349 | T138: 1.0812 | U138: 1.721 | V138: 2
L139: 53.7 | M139: 1.715 | N139: 1.996 | O139: 0.9169 | P139: 0.9448 | Q139: 0.9492 | R139: 1.2159 | S139: 0.93305 | T139: 1.0796 | U139: 1.715 | V139: 1.996
L140: 53.8 | M140: 1.715 | N140: 1.992 | O140: 0.9149 | P140: 0.9433 | Q140: 0.9474 | R140: 1.2141 | S140: 0.93115 | T140: 1.078 | U140: 1.715 | V140: 1.992
L141: 53.9 | M141: 1.7024 | N141: 1.988 | O141: 0.9328 | P141: 0.9419 | Q141: 0.9457 | R141: 1.2123 | S141: 0.93925 | T141: 1.0764 | U141: 1.7024 | V141: 1.988
L142: 54 | M142: 1.696 | N142: 1.984 | O142: 0.9111 | P142: 0.9405 | Q142: 0.9439 | R142: 1.2106 | S142: 0.9275 | T142: 1.0748 | U142: 1.696 | V142: 1.984
L143: 54.1 | M143: 1.6904 | N143: 1.9798 | O143: 0.9092 | P143: 0.939 | Q143: 0.9421 | R143: 1.2088 | S143: 0.92565 | T143: 1.0732 | U143: 1.6904 | V143: 1.9798
L144: 54.2 | M144: 1.6848 | N144: 1.9756 | O144: 0.9073 | P144: 0.9376 | Q144: 0.9404 | R144: 1.2071 | S144: 0.92385 | T144: 1.0716 | U144: 1.6848 | V144: 1.9756
L145: 54.3 | M145: 1.679 | N145: 1.9714 | O145: 0.9054 | P145: 0.9362 | Q145: 0.9386 | R145: 1.2054 | S145: 0.922 | T145: 1.0701 | U145: 1.679 | V145: 1.9714
L146: 54.4 | M146: 1.673 | N146: 1.9672 | O146: 0.9035 | P146: 0.9348 | Q146: 0.9369 | R146: 1.2036 | S146: 0.9202 | T146: 1.0684 | U146: 1.673 | V146: 1.9672
L147: 54.5 | M147: 1.667 | N147: 1.963 | O147: 0.9016 | P147: 0.9333 | Q147: 0.9352 | R147: 1.2019 | S147: 0.9184 | T147: 1.0669 | U147: 1.667 | V147: 1.963
L148: 54.6 | M148: 1.6622 | N148: 1.9588 | O148: 0.8998 | P148: 0.9319 | Q148: 0.9334 | R148: 1.2002 | S148: 0.9166 | T148: 1.0653 | U148: 1.6622 | V148: 1.9588
L149: 54.7 | M149: 1.6574 | N149: 1.9546 | O149: 0.8979 | P149: 0.9305 | Q149: 0.9317 | R149: 1.1985 | S149: 0.9148 | T149: 1.0638 | U149: 1.6574 | V149: 1.9546
L150: 54.8 | M150: 1.6524 | N150: 1.9504 | O150: 0.8961 | P150: 0.9291 | Q150: 0.93 | R150: 1.1967 | S150: 0.91305 | T150: 1.0622 | U150: 1.6524 | V150: 1.9504
L151: 54.9 | M151: 1.6472 | N151: 1.9462 | O151: 0.913 | P151: 0.9277 | Q151: 0.9283 | R151: 1.195 | S151: 0.92065 | T151: 1.0606 | U151: 1.6472 | V151: 1.9462
L152: 55 | M152: 1.642 | N152: 1.942 | O152: 0.8924 | P152: 0.9263 | Q152: 0.9267 | R152: 1.1933 | S152: 0.90955 | T152: 1.0591 | U152: 1.642 | V152: 1.942
L153: 55.1 | M153: 1.6372 | N153: 1.9382 | O153: 0.8906 | P153: 0.9249 | Q153: 0.925 | R153: 1.1916 | S153: 0.9078 | T153: 1.0575 | U153: 1.6372 | V153: 1.9382
L154: 55.2 | M154: 1.6324 | N154: 1.9344 | O154: 0.8888 | P154: 0.9235 | Q154: 0.9233 | R154: 1.19 | S154: 0.90605 | T154: 1.0561 | U154: 1.6324 | V154: 1.9344
L155: 55.3 | M155: 1.6274 | N155: 1.9306 | O155: 0.887 | P155: 0.9222 | Q155: 0.9217 | R155: 1.1883 | S155: 0.90435 | T155: 1.0545 | U155: 1.6274 | V155: 1.9306
L156: 55.4 | M156: 1.6222 | N156: 1.9268 | O156: 0.8853 | P156: 0.9208 | Q156: 0.92 | R156: 1.1866 | S156: 0.90265 | T156: 1.053 | U156: 1.6222 | V156: 1.9268
L157: 55.5 | M157: 1.617 | N157: 1.923 | O157: 0.8835 | P157: 0.9194 | Q157: 0.9184 | R157: 1.1849 | S157: 0.90095 | T157: 1.0514 | U157: 1.617 | V157: 1.923
L158: 55.6 | M158: 1.6122 | N158: 1.9194 | O158: 0.8817 | P158: 0.918 | Q158: 0.9168 | R158: 1.1832 | S158: 0.89925 | T158: 1.05 | U158: 1.6122 | V158: 1.9194
L159: 55.7 | M159: 1.6074 | N159: 1.9158 | O159: 0.88 | P159: 0.9167 | Q159: 0.9152 | R159: 1.1816 | S159: 0.8976 | T159: 1.0484 | U159: 1.6074 | V159: 1.9158
L160: 55.8 | M160: 1.6026 | N160: 1.9122 | O160: 0.8782 | P160: 0.9153 | Q160: 0.9135 | R160: 1.1799 | S160: 0.89585 | T160: 1.0469 | U160: 1.6026 | V160: 1.9122
L161: 55.9 | M161: 1.5978 | N161: 1.9086 | O161: 0.8943 | P161: 0.914 | Q161: 0.9119 | R161: 1.1783 | S161: 0.9031 | T161: 1.0454 | U161: 1.5978 | V161: 1.9086
L162: 56 | M162: 1.593 | N162: 1.905 | O162: 0.8748 | P162: 0.9126 | Q162: 0.9103 | R162: 1.1766 | S162: 0.89255 | T162: 1.0439 | U162: 1.593 | V162: 1.905
L163: 56.1 | M163: 1.5878 | N163: 1.9014 | O163: 0.8731 | P163: 0.9112 | Q163: 0.9088 | R163: 1.175 | S163: 0.89095 | T163: 1.0424 | U163: 1.5878 | V163: 1.9014
L164: 56.2 | M164: 1.5826 | N164: 1.8978 | O164: 0.8714 | P164: 0.9099 | Q164: 0.9072 | R164: 1.1733 | S164: 0.8893 | T164: 1.041 | U164: 1.5826 | V164: 1.8978
L165: 56.3 | M165: 1.5776 | N165: 1.8942 | O165: 0.8697 | P165: 0.9086 | Q165: 0.9056 | R165: 1.1717 | S165: 0.88765 | T165: 1.0394 | U165: 1.5776 | V165: 1.8942
L166: 56.4 | M166: 1.5728 | N166: 1.8906 | O166: 0.868 | P166: 0.9072 | Q166: 0.9041 | R166: 1.1701 | S166: 0.88605 | T166: 1.038 | U166: 1.5728 | V166: 1.8906
L167: 56.5 | M167: 1.568 | N167: 1.887 | O167: 0.8663 | P167: 0.9059 | Q167: 0.9025 | R167: 1.1684 | S167: 0.8844 | T167: 1.0365 | U167: 1.568 | V167: 1.887
L168: 56.6 | M168: 1.5628 | N168: 1.8834 | O168: 0.8646 | P168: 0.9046 | Q168: 0.901 | R168: 1.1668 | S168: 0.8828 | T168: 1.035 | U168: 1.5628 | V168: 1.8834
L169: 56.7 | M169: 1.5576 | N169: 1.8798 | O169: 0.863 | P169: 0.9032 | Q169: 0.8994 | R169: 1.1652 | S169: 0.8812 | T169: 1.0335 | U169: 1.5576 | V169: 1.8798
L170: 56.8 | M170: 1.5526 | N170: 1.8762 | O170: 0.8613 | P170: 0.9019 | Q170: 0.8979 | R170: 1.1636 | S170: 0.8796 | T170: 1.0321 | U170: 1.5526 | V170: 1.8762
L171: 56.9 | M171: 1.5478 | N171: 1.8726 | O171: 0.8765 | P171: 0.9006 | Q171: 0.8964 | R171: 1.162 | S171: 0.88645 | T171: 1.0306 | U171: 1.5478 | V171: 1.8726
L172: 57 | M172: 1.543 | N172: 1.869 | O172: 0.858 | P172: 0.8993 | Q172: 0.8949 | R172: 1.1604 | S172: 0.87645 | T172: 1.0292 | U172: 1.543 | V172: 1.869
L173: 57.1 | M173: 1.5382 | N173: 1.8656 | O173: 0.8564 | P173: 0.898 | Q173: 0.8934 | R173: 1.1588 | S173: 0.8749 | T173: 1.0277 | U173: 1.5382 | V173: 1.8656
L174: 57.2 | M174: 1.5334 | N174: 1.8622 | O174: 0.8548 | P174: 0.8967 | Q174: 0.8919 | R174: 1.1572 | S174: 0.87335 | T174: 1.0263 | U174: 1.5334 | V174: 1.8622
L175: 57.3 | M175: 1.5284 | N175: 1.8588 | O175: 0.8532 | P175: 0.8954 | Q175: 0.8904 | R175: 1.1556 | S175: 0.8718 | T175: 1.0248 | U175: 1.5284 | V175: 1.8588
L176: 57.4 | M176: 1.5232 | N176: 1.8554 | O176: 0.8516 | P176: 0.8941 | Q176: 0.8889 | R176: 1.1541 | S176: 0.87025 | T176: 1.0234 | U176: 1.5232 | V176: 1.8554
L177: 57.5 | M177: 1.518 | N177: 1.852 | O177: 0.85 | P177: 0.8928 | Q177: 0.8874 | R177: 1.1525 | S177: 0.8687 | T177: 1.022 | U177: 1.518 | V177: 1.852
L178: 57.6 | M178: 1.5132 | N178: 1.8492 | O178: 0.8484 | P178: 0.8915 | Q178: 0.8859 | R178: 1.1509 | S178: 0.86715 | T178: 1.0205 | U178: 1.5132 | V178: 1.8492
L179: 57.7 | M179: 1.5084 | N179: 1.8464 | O179: 0.8468 | P179: 0.8902 | Q179: 0.8845 | R179: 1.1494 | S179: 0.86565 | T179: 1.0191 | U179: 1.5084 | V179: 1.8464
L180: 57.8 | M180: 1.5042 | N180: 1.8436 | O180: 0.8453 | P180: 0.8889 | Q180: 0.883 | R180: 1.1478 | S180: 0.86415 | T180: 1.0177 | U180: 1.5042 | V180: 1.8436
L181: 57.9 | M181: 1.5006 | N181: 1.8408 | O181: 0.8597 | P181: 0.8876 | Q181: 0.8816 | R181: 1.1463 | S181: 0.87065 | T181: 1.0163 | U181: 1.5006 | V181: 1.8408
L182: 58 | M182: 1.497 | N182: 1.838 | O182: 0.8422 | P182: 0.8863 | Q182: 0.8802 | R182: 1.1447 | S182: 0.8612 | T182: 1.0149 | U182: 1.497 | V182: 1.838
L183: 58.1 | M183: 1.4934 | N183: 1.8348 | O183: 0.8406 | P183: 0.8851 | Q183: 0.8787 | R183: 1.1432 | S183: 0.85965 | T183: 1.0135 | U183: 1.4934 | V183: 1.8348
L184: 58.2 | M184: 1.4898 | N184: 1.8316 | O184: 0.8391 | P184: 0.8838 | Q184: 0.8773 | R184: 1.1416 | S184: 0.8582 | T184: 1.012 | U184: 1.4898 | V184: 1.8316
L185: 58.3 | M185: 1.486 | N185: 1.8284 | O185: 0.8376 | P185: 0.8825 | Q185: 0.8759 | R185: 1.1401 | S185: 0.85675 | T185: 1.0107 | U185: 1.486 | V185: 1.8284
L186: 58.4 | M186: 1.482 | N186: 1.8252 | O186: 0.8361 | P186: 0.8813 | Q186: 0.8745 | R186: 1.1386 | S186: 0.8553 | T186: 1.0093 | U186: 1.482 | V186: 1.8252
L187: 58.5 | M187: 1.478 | N187: 1.822 | O187: 0.8345 | P187: 0.88 | Q187: 0.8731 | R187: 1.1371 | S187: 0.8538 | T187: 1.0079 | U187: 1.478 | V187: 1.822
L188: 58.6 | M188: 1.4744 | N188: 1.8192 | O188: 0.833 | P188: 0.8788 | Q188: 0.8717 | R188: 1.1355 | S188: 0.85235 | T188: 1.0065 | U188: 1.4744 | V188: 1.8192
L189: 58.7 | M189: 1.4708 | N189: 1.8164 | O189: 0.8316 | P189: 0.8775 | Q189: 0.8703 | R189: 1.134 | S189: 0.85095 | T189: 1.0051 | U189: 1.4708 | V189: 1.8164
L190: 58.8 | M190: 1.4672 | N190: 1.8136 | O190: 0.8301 | P190: 0.8763 | Q190: 0.8689 | R190: 1.1325 | S190: 0.8495 | T190: 1.0037 | U190: 1.4672 | V190: 1.8136
L191: 58.9 | M191: 1.4636 | N191: 1.8108 | O191: 0.8437 | P191: 0.875 | Q191: 0.8675 | R191: 1.131 | S191: 0.8556 | T191: 1.0024 | U191: 1.4636 | V191: 1.8108
L192: 59 | M192: 1.46 | N192: 1.808 | O192: 0.8271 | P192: 0.8738 | Q192: 0.8662 | R192: 1.1295 | S192: 0.84665 | T192: 1.001 | U192: 1.46 | V192: 1.808
L193: 59.1 | M193: 1.4564 | N193: 1.8054 | O193: 0.8257 | P193: 0.8725 | Q193: 0.8648 | R193: 1.1281 | S193: 0.84525 | T193: 0.9997 | U193: 1.4564 | V193: 1.8054
L194: 59.2 | M194: 1.4528 | N194: 1.8028 | O194: 0.8242 | P194: 0.8713 | Q194: 0.8635 | R194: 1.1266 | S194: 0.84385 | T194: 0.99835 | U194: 1.4528 | V194: 1.8028
L195: 59.3 | M195: 1.4492 | N195: 1.8002 | O195: 0.8228 | P195: 0.8701 | Q195: 0.8621 | R195: 1.1251 | S195: 0.84245 | T195: 0.99695 | U195: 1.4492 | V195: 1.8002
L196: 59.4 | M196: 1.4456 | N196: 1.7976 | O196: 0.8213 | P196: 0.8688 | Q196: 0.8608 | R196: 1.1236 | S196: 0.84105 | T196: 0.9956 | U196: 1.4456 | V196: 1.7976
L197: 59.5 | M197: 1.442 | N197: 1.795 | O197: 0.8199 | P197: 0.8676 | Q197: 0.8594 | R197: 1.1221 | S197: 0.83965 | T197: 0.99425 | U197: 1.442 | V197: 1.795
L198: 59.6 | M198: 1.438 | N198: 1.7926 | O198: 0.8185 | P198: 0.8664 | Q198: 0.8581 | R198: 1.1207 | S198: 0.8383 | T198: 0.99295 | U198: 1.438 | V198: 1.7926
L199: 59.7 | M199: 1.434 | N199: 1.7902 | O199: 0.817 | P199: 0.8653 | Q199: 0.8568 | R199: 1.1192 | S199: 0.8369 | T199: 0.9916 | U199: 1.434 | V199: 1.7902
L200: 59.8 | M200: 1.4302 | N200: 1.7878 | O200: 0.8156 | P200: 0.864 | Q200: 0.8555 | R200: 1.1178 | S200: 0.83555 | T200: 0.9903 | U200: 1.4302 | V200: 1.7878
... 1711 more rows

Sheet Awards
J2: =Setup!C2 -> Raw bench& deadlift
L3: contest logo here
A5: Abbrev | B5: Division
A6: =OFFSET(Setup!O6,MATCH(J6,INDIRECT(B6),0),0) ->  | B6: =CONCATENATE("Setup!P7:P",COUNTA(Setup!O:O)+4) -> Setup!P7:P19 | J6: Female Open Raw
A7: WtCls | B7: =IF(LEFT(A6,1)="M","Setup!K9:K23","Setup!M9:M23") ->  | J7: 181 | K7: =IF(J7="SHW","Class",IF(Setup!K6="BWt (Kg)","Kilo Class","Pound Class")) -> Kilo Class | L7: Best Bench
B9: =OFFSET(Setup!Q6,MATCH(J6,INDIRECT(B6),0),0) ->  | J9: Place | K9: Name | L9: Best Squat | M9: Best Bench | N9: Best Deadlift | O9: PL Total | P9: =IF(B9=1,"","Coeff-Score") -> 
B10: =CONCATENATE(J10,"-",$A$6,IF($B$9=1,CONCATENATE("-",IF($J$7="SHW",$J$7,ROUND($J$7,1))),"")) ->  | J10: 1 | K10: =IF(ISERROR(INDIRECT(CONCATENATE("Lifting!C",MATCH(B10,Lifting!$AF:$AF,0)))),"",INDIRECT(CONCATENATE("Lifting!C",MATCH(B10,Lifting!$AF:$AF,0)))) ->  | L10: =IF(OR($L$7="Best Bench",$L$7="Best Deadlift",$L$7="Push Pull Total"),"",IF(K10="","",INDIRECT(CONCATENATE("Lifting!O",MATCH(B10,Lifting!$AF:$AF,0))))) ->  | M10: =IF(OR($L$7="Best Squat",$L$7="Best Deadlift"),"",IF(K10="","",INDIRECT(CONCATENATE("Lifting!U",MATCH(B10,Lifting!$AF:$AF,0))))) ->  | N10: =IF(OR($L$7="Best Bench",$L$7="Best Squat"),"",IF(K10="","",INDIRECT(CONCATENATE("Lifting!AA",MATCH(B10,Lifting!$AF:$AF,0))))) ->  | O10: =IF(OR($L$7="Best Bench",$L$7="Best Deadlift",$L$7="Best Deadlift"),"",IF(K10="","",INDIRECT(CONCATENATE("Lifting!AB",MATCH(B10,Lifting!$AF:$AF,0))))) ->  | P10: =IF(OR($B$9=1,K10=""),"",INDIRECT(CONCATENATE(CONCATENATE("Lifting!",IF($B$9=2,"AC","AD"),MATCH(B10,Lifting!$AF:$AF,0))))) -> 
B11: =CONCATENATE(J11,"-",$A$6,IF($B$9=1,CONCATENATE("-",IF($J$7="SHW",$J$7,ROUND($J$7,1))),"")) ->  | J11: 2 | K11: =IF(ISERROR(INDIRECT(CONCATENATE("Lifting!C",MATCH(B11,Lifting!$AF:$AF,0)))),"",INDIRECT(CONCATENATE("Lifting!C",MATCH(B11,Lifting!$AF:$AF,0)))) ->  | L11: =IF(OR($L$7="Best Bench",$L$7="Best Deadlift",$L$7="Push Pull Total"),"",IF(K11="","",INDIRECT(CONCATENATE("Lifting!O",MATCH(B11,Lifting!$AF:$AF,0))))) ->  | M11: =IF(OR($L$7="Best Squat",$L$7="Best Deadlift"),"",IF(K11="","",INDIRECT(CONCATENATE("Lifting!U",MATCH(B11,Lifting!$AF:$AF,0))))) ->  | N11: =IF(OR($L$7="Best Bench",$L$7="Best Squat"),"",IF(K11="","",INDIRECT(CONCATENATE("Lifting!AA",MATCH(B11,Lifting!$AF:$AF,0))))) ->  | O11: =IF(OR($L$7="Best Bench",$L$7="Best Deadlift",$L$7="Best Deadlift"),"",IF(K11="","",INDIRECT(CONCATENATE("Lifting!AB",MATCH(B11,Lifting!$AF:$AF,0))))) ->  | P11: =IF(OR($B$9=1,K11=""),"",INDIRECT(CONCATENATE(CONCATENATE("Lifting!",IF($B$9=2,"AC","AD"),MATCH(B11,Lifting!$AF:$AF,0))))) -> 
B12: =CONCATENATE(J12,"-",$A$6,IF($B$9=1,CONCATENATE("-",IF($J$7="SHW",$J$7,ROUND($J$7,1))),"")) ->  | J12: 3 | K12: =IF(ISERROR(INDIRECT(CONCATENATE("Lifting!C",MATCH(B12,Lifting!$AF:$AF,0)))),"",INDIRECT(CONCATENATE("Lifting!C",MATCH(B12,Lifting!$AF:$AF,0)))) ->  | L12: =IF(OR($L$7="Best Bench",$L$7="Best Deadlift",$L$7="Push Pull Total"),"",IF(K12="","",INDIRECT(CONCATENATE("Lifting!O",MATCH(B12,Lifting!$AF:$AF,0))))) ->  | M12: =IF(OR($L$7="Best Squat",$L$7="Best Deadlift"),"",IF(K12="","",INDIRECT(CONCATENATE("Lifting!U",MATCH(B12,Lifting!$AF:$AF,0))))) ->  | N12: =IF(OR($L$7="Best Bench",$L$7="Best Squat"),"",IF(K12="","",INDIRECT(CONCATENATE("Lifting!AA",MATCH(B12,Lifting!$AF:$AF,0))))) ->  | O12: =IF(OR($L$7="Best Bench",$L$7="Best Deadlift",$L$7="Best Deadlift"),"",IF(K12="","",INDIRECT(CONCATENATE("Lifting!AB",MATCH(B12,Lifting!$AF:$AF,0))))) ->  | P12: =IF(OR($B$9=1,K12=""),"",INDIRECT(CONCATENATE(CONCATENATE("Lifting!",IF($B$9=2,"AC","AD"),MATCH(B12,Lifting!$AF:$AF,0))))) -> 
B13: =CONCATENATE(J13,"-",$A$6,IF($B$9=1,CONCATENATE("-",IF($J$7="SHW",$J$7,ROUND($J$7,1))),"")) ->  | J13: 4 | K13: =IF(ISERROR(INDIRECT(CONCATENATE("Lifting!C",MATCH(B13,Lifting!$AF:$AF,0)))),"",INDIRECT(CONCATENATE("Lifting!C",MATCH(B13,Lifting!$AF:$AF,0)))) ->  | L13: =IF(OR($L$7="Best Bench",$L$7="Best Deadlift",$L$7="Push Pull Total"),"",IF(K13="","",INDIRECT(CONCATENATE("Lifting!O",MATCH(B13,Lifting!$AF:$AF,0))))) ->  | M13: =IF(OR($L$7="Best Squat",$L$7="Best Deadlift"),"",IF(K13="","",INDIRECT(CONCATENATE("Lifting!U",MATCH(B13,Lifting!$AF:$AF,0))))) ->  | N13: =IF(OR($L$7="Best Bench",$L$7="Best Squat"),"",IF(K13="","",INDIRECT(CONCATENATE("Lifting!AA",MATCH(B13,Lifting!$AF:$AF,0))))) ->  | O13: =IF(OR($L$7="Best Bench",$L$7="Best Deadlift",$L$7="Best Deadlift"),"",IF(K13="","",INDIRECT(CONCATENATE("Lifting!AB",MATCH(B13,Lifting!$AF:$AF,0))))) ->  | P13: =IF(OR($B$9=1,K13=""),"",INDIRECT(CONCATENATE(CONCATENATE("Lifting!",IF($B$9=2,"AC","AD"),MATCH(B13,Lifting!$AF:$AF,0))))) -> 
B14: =CONCATENATE(J14,"-",$A$6,IF($B$9=1,CONCATENATE("-",IF($J$7="SHW",$J$7,ROUND($J$7,1))),"")) ->  | J14: 5 | K14: =IF(ISERROR(INDIRECT(CONCATENATE("Lifting!C",MATCH(B14,Lifting!$AF:$AF,0)))),"",INDIRECT(CONCATENATE("Lifting!C",MATCH(B14,Lifting!$AF:$AF,0)))) ->  | L14: =IF(OR($L$7="Best Bench",$L$7="Best Deadlift",$L$7="Push Pull Total"),"",IF(K14="","",INDIRECT(CONCATENATE("Lifting!O",MATCH(B14,Lifting!$AF:$AF,0))))) ->  | M14: =IF(OR($L$7="Best Squat",$L$7="Best Deadlift"),"",IF(K14="","",INDIRECT(CONCATENATE("Lifting!U",MATCH(B14,Lifting!$AF:$AF,0))))) ->  | N14: =IF(OR($L$7="Best Bench",$L$7="Best Squat"),"",IF(K14="","",INDIRECT(CONCATENATE("Lifting!AA",MATCH(B14,Lifting!$AF:$AF,0))))) ->  | O14: =IF(OR($L$7="Best Bench",$L$7="Best Deadlift",$L$7="Best Deadlift"),"",IF(K14="","",INDIRECT(CONCATENATE("Lifting!AB",MATCH(B14,Lifting!$AF:$AF,0))))) ->  | P14: =IF(OR($B$9=1,K14=""),"",INDIRECT(CONCATENATE(CONCATENATE("Lifting!",IF($B$9=2,"AC","AD"),MATCH(B14,Lifting!$AF:$AF,0))))) -> 

Sheet PrintSheet
C1: =Setup!K2 -> 11.11. | D1: =Setup!C2 -> Raw bench& deadlift
A2: Sort data | B2: Flt B | C2: Name | D2: Age | E2: Div | F2: =Lifting!F8 -> BWt (Kg) | G2: =Lifting!G8 -> WtCls (Kg) | H2: =Lifting!H8 -> Reshel | I2: Lot # | J2: RH Sq | K2: Squat 1 | L2: Squat 2 | M2: Squat 3 | N2: Squat 4 | O2: Best Squat | P2: RH BP | Q2: Bench 1 | R2: Bench 2 | S2: Bench 3 | T2: Bench 4 | U2: Best Bench | V2: Sub Total | W2: Deadlift 1 | X2: Deadlift 2 | Y2: Deadlift 3 | Z2: Deadlift 4 | AA2: Best Deadlift | AB2: =Lifting!AB8 -> Best Bench | AC2: Coeff Score | AD2: Age & Coeff | AE2: Place code | AF2: Pl-Div-WtCl | AG2: Team Pts | AH2: Team | AI2: Events

Sheet Please read (hidden)
B2: This program is free.
B3: Anybody may use, copy or share it and it may be freely distributed.
B4: It is copyrighted because I wouldn't want sombody else to sell it.
B6: All I ask, is if you use the program and you like it that you consider a contribution in my daughter's name to the Little Star Foundation.
B7: You can find them on the web at http://www.littlestar.org/
B9: In January 2002 we lost our 16 year old daughter - Liz Marksteiner - after a 16-month fight with cancer.
B10: She grew up around powerlifting and though Liz never had any desire to lift, she was so proud of my wife and me when we were competing.
B11: When she was old enough she almost always found a way to help out - if she were here she'd be running this program.
B12: The summer before her death she spent a magical week at the foundation's Silver Lining Ranch in the Colorado mountains she loved.
B13: The ranch is a retreat for kids with cancer and it meant so much to her and us.
B15: Best of luck with the program.
B17: Sincerely
B18: Joe Marksteiner
B20: e-mail
B21: home | C21: steinmark@aol.com
B22: work | C22: joe.marksteiner@ae.ge.com
B24: phone
B25: home | C25: 513-755-6878
B26: work | C26: 513-552-2122
B27: cell | C27: 513-477-0775

Sheet Black & White load sheet (hidden)
A1: Available | B1: 4 | C1: 0 | D1: 0 | E1: 16 | F1: 2 | G1: 2 | H1: 4 | I1: 2 | J1: 2 | K1: Bar & Collars | L1: =K2+B2*B1+C2*C1+D2*D1+E2*E1+F2*F1+G2*G1+H2*H1+I2*I1+J2*J1 -> 630
A2: Kilos | B2: =IF($A$2="Kilos",50,110) -> 50 | C2: =IF($A$2="Kilos",45,100) -> 45 | D2: =IF($A$2="Kilos",25,55) -> 25 | E2: =IF($A$2="Kilos",20,45) -> 20 | F2: =IF($A$2="Kilos",15,35) -> 15 | G2: =IF($A$2="Kilos",10,25) -> 10 | H2: =IF($A$2="Kilos",5,10) -> 5 | I2: =IF($A$2="Kilos",2.5,5) -> 2.5 | J2: =IF($A$2="Kilos",1.25,2.5) -> 1.25 | K2: 32.5 | L2: Index | O2: =IF($A$2="Pounds",P2,Q2) -> 20 | P2: 45 | Q2: 20
A3: Weight | M3: Wt w/o bar | O3: =IF($A$2="Pounds",P3,Q3) -> 22.5 | P3: 50 | Q3: 22.5
A4: =IF(M4+$K$2>$L$1,0,M4+$K$2) -> 32.5 | B4: =IF(A4=0,0,MIN($B$1/2,INT(M4/(2*$B$2)))) -> 0 | C4: =IF(A4=0,0,MIN($C$1/2,INT(($M4-2*$B4*$B$2)/(2*$C$2)))) -> 0 | D4: =IF(A4=0,0,MIN($D$1/2,INT(($M4-2*$B4*$B$2-2*$C4*$C$2)/(2*$D$2)))) -> 0 | E4: =IF(A4=0,0,MIN($E$1/2,INT(($M4-2*$B4*$B$2-2*$C4*$C$2-2*$D4*$D$2)/(2*$E$2)))) -> 0 | F4: =IF(A4=0,0,MIN($F$1/2,INT(($M4-2*$B4*$B$2-2*$C4*$C$2-2*$D4*$D$2-2*$E4*$E$2)/(2*$F$2)))) -> 0 | G4: =IF(A4=0,0,MIN($G$1/2,INT(($M4-2*$B4*$B$2-2*$C4*$C$2-2*$D4*$D$2-2*$E4*$E$2-2*$F4*$F$2)/(2*$G$2)))) -> 0 | H4: =IF(A4=0,0,MIN($H$1/2,INT(($M4-2*$B4*$B$2-2*$C4*$C$2-2*$D4*$D$2-2*$E4*$E$2-2*$F4*$F$2-2*$G4*$G$2)/(2*$H$2)))) -> 0 | I4: =IF(A4=0,0,MIN($I$1/2,INT(($M4-2*$B4*$B$2-2*$C4*$C$2-2*$D4*$D$2-2*$E4*$E$2-2*$F4*$F$2-2*$G4*$G$2-2*$H4*$H$2)/(2*$I$2)))) -> 0 | J4: =IF(A4=0,0,MIN($J$1/2,INT(($M4-2*$B4*$B$2-2*$C4*$C$2-2*$D4*$D$2-2*$E4*$E$2-2*$F4*$F$2-2*$G4*$G$2-2*$H4*$H$2-2*$I4*$I$2)/(2*$J$2)))) -> 0 | L4: 0 | M4: 0 | N4: =IF($K$2+2*(B4*$B$2+C4*$C$2+D4*$D$2+E4*$E$2+F4*$F$2+G4*$G$2+H4*$H$2+I4*$I$2+J4*$J$2)=A4,"","Not enough weight for this load") ->  | O4: =IF($A$2="Pounds",P4,Q4) -> 25 | P4: 55 | Q4: 25
A5: =IF(M5+$K$2>$L$1,0,M5+$K$2) -> 35 | B5: =IF(A5=0,0,MIN($B$1/2,INT(M5/(2*$B$2)))) -> 0 | C5: =IF(A5=0,0,MIN($C$1/2,INT(($M5-2*$B5*$B$2)/(2*$C$2)))) -> 0 | D5: =IF(A5=0,0,MIN($D$1/2,INT(($M5-2*$B5*$B$2-2*$C5*$C$2)/(2*$D$2)))) -> 0 | E5: =IF(A5=0,0,MIN($E$1/2,INT(($M5-2*$B5*$B$2-2*$C5*$C$2-2*$D5*$D$2)/(2*$E$2)))) -> 0 | F5: =IF(A5=0,0,MIN($F$1/2,INT(($M5-2*$B5*$B$2-2*$C5*$C$2-2*$D5*$D$2-2*$E5*$E$2)/(2*$F$2)))) -> 0 | G5: =IF(A5=0,0,MIN($G$1/2,INT(($M5-2*$B5*$B$2-2*$C5*$C$2-2*$D5*$D$2-2*$E5*$E$2-2*$F5*$F$2)/(2*$G$2)))) -> 0 | H5: =IF(A5=0,0,MIN($H$1/2,INT(($M5-2*$B5*$B$2-2*$C5*$C$2-2*$D5*$D$2-2*$E5*$E$2-2*$F5*$F$2-2*$G5*$G$2)/(2*$H$2)))) -> 0 | I5: =IF(A5=0,0,MIN($I$1/2,INT(($M5-2*$B5*$B$2-2*$C5*$C$2-2*$D5*$D$2-2*$E5*$E$2-2*$F5*$F$2-2*$G5*$G$2-2*$H5*$H$2)/(2*$I$2)))) -> 0 | J5: =IF(A5=0,0,MIN($J$1/2,INT(($M5-2*$B5*$B$2-2*$C5*$C$2-2*$D5*$D$2-2*$E5*$E$2-2*$F5*$F$2-2*$G5*$G$2-2*$H5*$H$2-2*$I5*$I$2)/(2*$J$2)))) -> 1 | L5: 1 | M5: =IF($A$2="Pounds",5*L5,2.5*L5) -> 2.5 | O5: =IF($A$2="Pounds",P5,Q5) -> 30 | P5: 65 | Q5: 30
A6: 37.5 | B6: 0 | C6: 0 | D6: 0 | E6: 0 | F6: 0 | G6: 0 | H6: 0 | I6: 1 | J6: 0 | L6: 2 | M6: 5 | O6: =IF($A$2="Pounds",P6,Q6) -> 32.5 | P6: 70 | Q6: 32.5
A7: 40 | B7: 0 | C7: 0 | D7: 0 | E7: 0 | F7: 0 | G7: 0 | H7: 0 | I7: 1 | J7: 1 | L7: 3 | M7: 7.5
A8: 42.5 | B8: 0 | C8: 0 | D8: 0 | E8: 0 | F8: 0 | G8: 0 | H8: 1 | I8: 0 | J8: 0 | L8: 4 | M8: 10
A9: 45 | B9: 0 | C9: 0 | D9: 0 | E9: 0 | F9: 0 | G9: 0 | H9: 1 | I9: 0 | J9: 1 | L9: 5 | M9: 12.5
A10: 47.5 | B10: 0 | C10: 0 | D10: 0 | E10: 0 | F10: 0 | G10: 0 | H10: 1 | I10: 1 | J10: 0 | L10: 6 | M10: 15
A11: 50 | B11: 0 | C11: 0 | D11: 0 | E11: 0 | F11: 0 | G11: 0 | H11: 1 | I11: 1 | J11: 1 | L11: 7 | M11: 17.5
A12: 52.5 | B12: 0 | C12: 0 | D12: 0 | E12: 0 | F12: 0 | G12: 1 | H12: 0 | I12: 0 | J12: 0 | L12: 8 | M12: 20
A13: 55 | B13: 0 | C13: 0 | D13: 0 | E13: 0 | F13: 0 | G13: 1 | H13: 0 | I13: 0 | J13: 1 | L13: =L12+1 -> 9 | M13: 22.5
A14: 57.5 | B14: 0 | C14: 0 | D14: 0 | E14: 0 | F14: 0 | G14: 1 | H14: 0 | I14: 1 | J14: 0 | L14: 10 | M14: 25
A15: 60 | B15: 0 | C15: 0 | D15: 0 | E15: 0 | F15: 0 | G15: 1 | H15: 0 | I15: 1 | J15: 1 | L15: 11 | M15: 27.5
A16: 62.5 | B16: 0 | C16: 0 | D16: 0 | E16: 0 | F16: 1 | G16: 0 | H16: 0 | I16: 0 | J16: 0 | L16: 12 | M16: 30
A17: 65 | B17: 0 | C17: 0 | D17: 0 | E17: 0 | F17: 1 | G17: 0 | H17: 0 | I17: 0 | J17: 1 | L17: 13 | M17: 32.5
A18: 67.5 | B18: 0 | C18: 0 | D18: 0 | E18: 0 | F18: 1 | G18: 0 | H18: 0 | I18: 1 | J18: 0 | L18: 14 | M18: 35
A19: 70 | B19: 0 | C19: 0 | D19: 0 | E19: 0 | F19: 1 | G19: 0 | H19: 0 | I19: 1 | J19: 1 | L19: 15 | M19: 37.5
A20: 72.5 | B20: 0 | C20: 0 | D20: 0 | E20: 1 | F20: 0 | G20: 0 | H20: 0 | I20: 0 | J20: 0 | L20: 16 | M20: 40
A21: 75 | B21: 0 | C21: 0 | D21: 0 | E21: 1 | F21: 0 | G21: 0 | H21: 0 | I21: 0 | J21: 1 | L21: 17 | M21: 42.5
A22: 77.5 | B22: 0 | C22: 0 | D22: 0 | E22: 1 | F22: 0 | G22: 0 | H22: 0 | I22: 1 | J22: 0 | L22: 18 | M22: 45
A23: 80 | B23: 0 | C23: 0 | D23: 0 | E23: 1 | F23: 0 | G23: 0 | H23: 0 | I23: 1 | J23: 1 | L23: 19 | M23: 47.5
A24: 82.5 | B24: 0 | C24: 0 | D24: 0 | E24: 1 | F24: 0 | G24: 0 | H24: 1 | I24: 0 | J24: 0 | L24: 20 | M24: 50
A25: 85 | B25: 0 | C25: 0 | D25: 0 | E25: 1 | F25: 0 | G25: 0 | H25: 1 | I25: 0 | J25: 1 | L25: 21 | M25: 52.5
A26: 87.5 | B26: 0 | C26: 0 | D26: 0 | E26: 1 | F26: 0 | G26: 0 | H26: 1 | I26: 1 | J26: 0 | L26: 22 | M26: 55
A27: 90 | B27: 0 | C27: 0 | D27: 0 | E27: 1 | F27: 0 | G27: 0 | H27: 1 | I27: 1 | J27: 1 | L27: 23 | M27: 57.5
A28: 92.5 | B28: 0 | C28: 0 | D28: 0 | E28: 1 | F28: 0 | G28: 1 | H28: 0 | I28: 0 | J28: 0 | L28: 24 | M28: 60
A29: 95 | B29: 0 | C29: 0 | D29: 0 | E29: 1 | F29: 0 | G29: 1 | H29: 0 | I29: 0 | J29: 1 | L29: 25 | M29: 62.5
A30: 97.5 | B30: 0 | C30: 0 | D30: 0 | E30: 1 | F30: 0 | G30: 1 | H30: 0 | I30: 1 | J30: 0 | L30: 26 | M30: 65
A31: 100 | B31: 0 | C31: 0 | D31: 0 | E31: 1 | F31: 0 | G31: 1 | H31: 0 | I31: 1 | J31: 1 | L31: 27 | M31: 67.5
A32: 102.5 | B32: 0 | C32: 0 | D32: 0 | E32: 1 | F32: 1 | G32: 0 | H32: 0 | I32: 0 | J32: 0 | L32: 28 | M32: 70
A33: 105 | B33: 0 | C33: 0 | D33: 0 | E33: 1 | F33: 1 | G33: 0 | H33: 0 | I33: 0 | J33: 1 | L33: 29 | M33: 72.5
A34: 107.5 | B34: 0 | C34: 0 | D34: 0 | E34: 1 | F34: 1 | G34: 0 | H34: 0 | I34: 1 | J34: 0 | L34: 30 | M34: 75
A35: 110 | B35: 0 | C35: 0 | D35: 0 | E35: 1 | F35: 1 | G35: 0 | H35: 0 | I35: 1 | J35: 1 | L35: 31 | M35: 77.5
A36: 112.5 | B36: 0 | C36: 0 | D36: 0 | E36: 2 | F36: 0 | G36: 0 | H36: 0 | I36: 0 | J36: 0 | L36: 32 | M36: 80
A37: 115 | B37: 0 | C37: 0 | D37: 0 | E37: 2 | F37: 0 | G37: 0 | H37: 0 | I37: 0 | J37: 1 | L37: 33 | M37: 82.5
A38: 117.5 | B38: 0 | C38: 0 | D38: 0 | E38: 2 | F38: 0 | G38: 0 | H38: 0 | I38: 1 | J38: 0 | L38: 34 | M38: 85
A39: 120 | B39: 0 | C39: 0 | D39: 0 | E39: 2 | F39: 0 | G39: 0 | H39: 0 | I39: 1 | J39: 1 | L39: 35 | M39: 87.5
A40: 122.5 | B40: 0 | C40: 0 | D40: 0 | E40: 2 | F40: 0 | G40: 0 | H40: 1 | I40: 0 | J40: 0 | L40: 36 | M40: 90
A41: 125 | B41: 0 | C41: 0 | D41: 0 | E41: 2 | F41: 0 | G41: 0 | H41: 1 | I41: 0 | J41: 1 | L41: 37 | M41: 92.5
A42: 127.5 | B42: 0 | C42: 0 | D42: 0 | E42: 2 | F42: 0 | G42: 0 | H42: 1 | I42: 1 | J42: 0 | L42: 38 | M42: 95
A43: 130 | B43: 0 | C43: 0 | D43: 0 | E43: 2 | F43: 0 | G43: 0 | H43: 1 | I43: 1 | J43: 1 | L43: 39 | M43: 97.5
A44: 132.5 | B44: 1 | C44: 0 | D44: 0 | E44: 0 | F44: 0 | G44: 0 | H44: 0 | I44: 0 | J44: 0 | L44: 40 | M44: 100
A45: 135 | B45: 1 | C45: 0 | D45: 0 | E45: 0 | F45: 0 | G45: 0 | H45: 0 | I45: 0 | J45: 1 | L45: 41 | M45: 102.5
A46: 137.5 | B46: 1 | C46: 0 | D46: 0 | E46: 0 | F46: 0 | G46: 0 | H46: 0 | I46: 1 | J46: 0 | L46: 42 | M46: 105
A47: 140 | B47: 1 | C47: 0 | D47: 0 | E47: 0 | F47: 0 | G47: 0 | H47: 0 | I47: 1 | J47: 1 | L47: 43 | M47: 107.5
A48: 142.5 | B48: 1 | C48: 0 | D48: 0 | E48: 0 | F48: 0 | G48: 0 | H48: 1 | I48: 0 | J48: 0 | L48: 44 | M48: 110
A49: 145 | B49: 1 | C49: 0 | D49: 0 | E49: 0 | F49: 0 | G49: 0 | H49: 1 | I49: 0 | J49: 1 | L49: 45 | M49: 112.5
A50: 147.5 | B50: 1 | C50: 0 | D50: 0 | E50: 0 | F50: 0 | G50: 0 | H50: 1 | I50: 1 | J50: 0 | L50: 46 | M50: 115
A51: 150 | B51: 1 | C51: 0 | D51: 0 | E51: 0 | F51: 0 | G51: 0 | H51: 1 | I51: 1 | J51: 1 | L51: 47 | M51: 117.5
A52: 152.5 | B52: 1 | C52: 0 | D52: 0 | E52: 0 | F52: 0 | G52: 1 | H52: 0 | I52: 0 | J52: 0 | L52: 48 | M52: 120
A53: 155 | B53: 1 | C53: 0 | D53: 0 | E53: 0 | F53: 0 | G53: 1 | H53: 0 | I53: 0 | J53: 1 | L53: 49 | M53: 122.5
A54: 157.5 | B54: 1 | C54: 0 | D54: 0 | E54: 0 | F54: 0 | G54: 1 | H54: 0 | I54: 1 | J54: 0 | L54: 50 | M54: 125
A55: 160 | B55: 1 | C55: 0 | D55: 0 | E55: 0 | F55: 0 | G55: 1 | H55: 0 | I55: 1 | J55: 1 | L55: 51 | M55: 127.5
A56: 162.5 | B56: 1 | C56: 0 | D56: 0 | E56: 0 | F56: 1 | G56: 0 | H56: 0 | I56: 0 | J56: 0 | L56: 52 | M56: 130
A57: 165 | B57: 1 | C57: 0 | D57: 0 | E57: 0 | F57: 1 | G57: 0 | H57: 0 | I57: 0 | J57: 1 | L57: 53 | M57: 132.5
A58: 167.5 | B58: 1 | C58: 0 | D58: 0 | E58: 0 | F58: 1 | G58: 0 | H58: 0 | I58: 1 | J58: 0 | L58: 54 | M58: 135
A59: 170 | B59: 1 | C59: 0 | D59: 0 | E59: 0 | F59: 1 | G59: 0 | H59: 0 | I59: 1 | J59: 1 | L59: 55 | M59: 137.5
A60: 172.5 | B60: 1 | C60: 0 | D60: 0 | E60: 1 | F60: 0 | G60: 0 | H60: 0 | I60: 0 | J60: 0 | L60: 56 | M60: 140
A61: 175 | B61: 1 | C61: 0 | D61: 0 | E61: 1 | F61: 0 | G61: 0 | H61: 0 | I61: 0 | J61: 1 | L61: 57 | M61: 142.5
A62: 177.5 | B62: 1 | C62: 0 | D62: 0 | E62: 1 | F62: 0 | G62: 0 | H62: 0 | I62: 1 | J62: 0 | L62: 58 | M62: 145
A63: 180 | B63: 1 | C63: 0 | D63: 0 | E63: 1 | F63: 0 | G63: 0 | H63: 0 | I63: 1 | J63: 1 | L63: 59 | M63: 147.5
A64: 182.5 | B64: 1 | C64: 0 | D64: 0 | E64: 1 | F64: 0 | G64: 0 | H64: 1 | I64: 0 | J64: 0 | L64: 60 | M64: 150
A65: 185 | B65: 1 | C65: 0 | D65: 0 | E65: 1 | F65: 0 | G65: 0 | H65: 1 | I65: 0 | J65: 1 | L65: 61 | M65: 152.5
A66: 187.5 | B66: 1 | C66: 0 | D66: 0 | E66: 1 | F66: 0 | G66: 0 | H66: 1 | I66: 1 | J66: 0 | L66: 62 | M66: 155
A67: 190 | B67: 1 | C67: 0 | D67: 0 | E67: 1 | F67: 0 | G67: 0 | H67: 1 | I67: 1 | J67: 1 | L67: 63 | M67: 157.5
A68: 192.5 | B68: 1 | C68: 0 | D68: 0 | E68: 1 | F68: 0 | G68: 1 | H68: 0 | I68: 0 | J68: 0 | L68: 64 | M68: 160
A69: =IF(M69+$K$2>$L$1,0,M69+$K$2) -> 195 | B69: =IF(A69=0,0,MIN($B$1/2,INT(M69/(2*$B$2)))) -> 1 | C69: =IF(A69=0,0,MIN($C$1/2,INT(($M69-2*$B69*$B$2)/(2*$C$2)))) -> 0 | D69: =IF(A69=0,0,MIN($D$1/2,INT(($M69-2*$B69*$B$2-2*$C69*$C$2)/(2*$D$2)))) -> 0 | E69: =IF(A69=0,0,MIN($E$1/2,INT(($M69-2*$B69*$B$2-2*$C69*$C$2-2*$D69*$D$2)/(2*$E$2)))) -> 1 | F69: =IF(A69=0,0,MIN($F$1/2,INT(($M69-2*$B69*$B$2-2*$C69*$C$2-2*$D69*$D$2-2*$E69*$E$2)/(2*$F$2)))) -> 0 | G69: =IF(A69=0,0,MIN($G$1/2,INT(($M69-2*$B69*$B$2-2*$C69*$C$2-2*$D69*$D$2-2*$E69*$E$2-2*$F69*$F$2)/(2*$G$2)))) -> 1 | H69: =IF(A69=0,0,MIN($H$1/2,INT(($M69-2*$B69*$B$2-2*$C69*$C$2-2*$D69*$D$2-2*$E69*$E$2-2*$F69*$F$2-2*$G69*$G$2)/(2*$H$2)))) -> 0 | I69: =IF(A69=0,0,MIN($I$1/2,INT(($M69-2*$B69*$B$2-2*$C69*$C$2-2*$D69*$D$2-2*$E69*$E$2-2*$F69*$F$2-2*$G69*$G$2-2*$H69*$H$2)/(2*$I$2)))) -> 0 | J69: =IF(A69=0,0,MIN($J$1/2,INT(($M69-2*$B69*$B$2-2*$C69*$C$2-2*$D69*$D$2-2*$E69*$E$2-2*$F69*$F$2-2*$G69*$G$2-2*$H69*$H$2-2*$I69*$I$2)/(2*$J$2)))) -> 1 | L69: 65 | M69: =IF($A$2="Pounds",5*L69,2.5*L69) -> 162.5
A70: 197.5 | B70: 1 | C70: 0 | D70: 0 | E70: 1 | F70: 0 | G70: 1 | H70: 0 | I70: 1 | J70: 0 | L70: 66 | M70: 165
A71: 200 | B71: 1 | C71: 0 | D71: 0 | E71: 1 | F71: 0 | G71: 1 | H71: 0 | I71: 1 | J71: 1 | L71: 67 | M71: 167.5
A72: 202.5 | B72: 1 | C72: 0 | D72: 0 | E72: 1 | F72: 1 | G72: 0 | H72: 0 | I72: 0 | J72: 0 | L72: 68 | M72: 170
A73: 205 | B73: 1 | C73: 0 | D73: 0 | E73: 1 | F73: 1 | G73: 0 | H73: 0 | I73: 0 | J73: 1 | L73: 69 | M73: 172.5
A74: 207.5 | B74: 1 | C74: 0 | D74: 0 | E74: 1 | F74: 1 | G74: 0 | H74: 0 | I74: 1 | J74: 0 | L74: 70 | M74: 175
A75: 210 | B75: 1 | C75: 0 | D75: 0 | E75: 1 | F75: 1 | G75: 0 | H75: 0 | I75: 1 | J75: 1 | L75: 71 | M75: 177.5
A76: 212.5 | B76: 1 | C76: 0 | D76: 0 | E76: 2 | F76: 0 | G76: 0 | H76: 0 | I76: 0 | J76: 0 | L76: 72 | M76: 180
A77: 215 | B77: 1 | C77: 0 | D77: 0 | E77: 2 | F77: 0 | G77: 0 | H77: 0 | I77: 0 | J77: 1 | L77: =L76+1 -> 73 | M77: 182.5
A78: 217.5 | B78: 1 | C78: 0 | D78: 0 | E78: 2 | F78: 0 | G78: 0 | H78: 0 | I78: 1 | J78: 0 | L78: 74 | M78: 185
A79: 220 | B79: 1 | C79: 0 | D79: 0 | E79: 2 | F79: 0 | G79: 0 | H79: 0 | I79: 1 | J79: 1 | L79: 75 | M79: 187.5
A80: 222.5 | B80: 1 | C80: 0 | D80: 0 | E80: 2 | F80: 0 | G80: 0 | H80: 1 | I80: 0 | J80: 0 | L80: 76 | M80: 190
A81: 225 | B81: 1 | C81: 0 | D81: 0 | E81: 2 | F81: 0 | G81: 0 | H81: 1 | I81: 0 | J81: 1 | L81: 77 | M81: 192.5
A82: 227.5 | B82: 1 | C82: 0 | D82: 0 | E82: 2 | F82: 0 | G82: 0 | H82: 1 | I82: 1 | J82: 0 | L82: 78 | M82: 195
A83: 230 | B83: 1 | C83: 0 | D83: 0 | E83: 2 | F83: 0 | G83: 0 | H83: 1 | I83: 1 | J83: 1 | L83: 79 | M83: 197.5
A84: 232.5 | B84: 2 | C84: 0 | D84: 0 | E84: 0 | F84: 0 | G84: 0 | H84: 0 | I84: 0 | J84: 0 | L84: 80 | M84: 200
A85: 235 | B85: 2 | C85: 0 | D85: 0 | E85: 0 | F85: 0 | G85: 0 | H85: 0 | I85: 0 | J85: 1 | L85: 81 | M85: 202.5
A86: 237.5 | B86: 2 | C86: 0 | D86: 0 | E86: 0 | F86: 0 | G86: 0 | H86: 0 | I86: 1 | J86: 0 | L86: 82 | M86: 205
A87: 240 | B87: 2 | C87: 0 | D87: 0 | E87: 0 | F87: 0 | G87: 0 | H87: 0 | I87: 1 | J87: 1 | L87: 83 | M87: 207.5
A88: 242.5 | B88: 2 | C88: 0 | D88: 0 | E88: 0 | F88: 0 | G88: 0 | H88: 1 | I88: 0 | J88: 0 | L88: 84 | M88: 210
A89: 245 | B89: 2 | C89: 0 | D89: 0 | E89: 0 | F89: 0 | G89: 0 | H89: 1 | I89: 0 | J89: 1 | L89: 85 | M89: 212.5
A90: 247.5 | B90: 2 | C90: 0 | D90: 0 | E90: 0 | F90: 0 | G90: 0 | H90: 1 | I90: 1 | J90: 0 | L90: 86 | M90: 215
A91: 250 | B91: 2 | C91: 0 | D91: 0 | E91: 0 | F91: 0 | G91: 0 | H91: 1 | I91: 1 | J91: 1 | L91: 87 | M91: 217.5
A92: 252.5 | B92: 2 | C92: 0 | D92: 0 | E92: 0 | F92: 0 | G92: 1 | H92: 0 | I92: 0 | J92: 0 | L92: 88 | M92: 220
A93: 255 | B93: 2 | C93: 0 | D93: 0 | E93: 0 | F93: 0 | G93: 1 | H93: 0 | I93: 0 | J93: 1 | L93: 89 | M93: 222.5
A94: 257.5 | B94: 2 | C94: 0 | D94: 0 | E94: 0 | F94: 0 | G94: 1 | H94: 0 | I94: 1 | J94: 0 | L94: 90 | M94: 225
A95: 260 | B95: 2 | C95: 0 | D95: 0 | E95: 0 | F95: 0 | G95: 1 | H95: 0 | I95: 1 | J95: 1 | L95: 91 | M95: 227.5
A96: 262.5 | B96: 2 | C96: 0 | D96: 0 | E96: 0 | F96: 1 | G96: 0 | H96: 0 | I96: 0 | J96: 0 | L96: 92 | M96: 230
A97: 265 | B97: 2 | C97: 0 | D97: 0 | E97: 0 | F97: 1 | G97: 0 | H97: 0 | I97: 0 | J97: 1 | L97: 93 | M97: 232.5
A98: 267.5 | B98: 2 | C98: 0 | D98: 0 | E98: 0 | F98: 1 | G98: 0 | H98: 0 | I98: 1 | J98: 0 | L98: 94 | M98: 235
A99: 270 | B99: 2 | C99: 0 | D99: 0 | E99: 0 | F99: 1 | G99: 0 | H99: 0 | I99: 1 | J99: 1 | L99: 95 | M99: 237.5
A100: 272.5 | B100: 2 | C100: 0 | D100: 0 | E100: 1 | F100: 0 | G100: 0 | H100: 0 | I100: 0 | J100: 0 | L100: 96 | M100: 240
A101: 275 | B101: 2 | C101: 0 | D101: 0 | E101: 1 | F101: 0 | G101: 0 | H101: 0 | I101: 0 | J101: 1 | L101: 97 | M101: 242.5
A102: 277.5 | B102: 2 | C102: 0 | D102: 0 | E102: 1 | F102: 0 | G102: 0 | H102: 0 | I102: 1 | J102: 0 | L102: 98 | M102: 245
A103: 280 | B103: 2 | C103: 0 | D103: 0 | E103: 1 | F103: 0 | G103: 0 | H103: 0 | I103: 1 | J103: 1 | L103: 99 | M103: 247.5
A104: 282.5 | B104: 2 | C104: 0 | D104: 0 | E104: 1 | F104: 0 | G104: 0 | H104: 1 | I104: 0 | J104: 0 | L104: 100 | M104: 250
A105: 285 | B105: 2 | C105: 0 | D105: 0 | E105: 1 | F105: 0 | G105: 0 | H105: 1 | I105: 0 | J105: 1 | L105: 101 | M105: 252.5
A106: 287.5 | B106: 2 | C106: 0 | D106: 0 | E106: 1 | F106: 0 | G106: 0 | H106: 1 | I106: 1 | J106: 0 | L106: 102 | M106: 255
A107: 290 | B107: 2 | C107: 0 | D107: 0 | E107: 1 | F107: 0 | G107: 0 | H107: 1 | I107: 1 | J107: 1 | L107: 103 | M107: 257.5
A108: 292.5 | B108: 2 | C108: 0 | D108: 0 | E108: 1 | F108: 0 | G108: 1 | H108: 0 | I108: 0 | J108: 0 | L108: 104 | M108: 260
A109: 295 | B109: 2 | C109: 0 | D109: 0 | E109: 1 | F109: 0 | G109: 1 | H109: 0 | I109: 0 | J109: 1 | L109: 105 | M109: 262.5
A110: 297.5 | B110: 2 | C110: 0 | D110: 0 | E110: 1 | F110: 0 | G110: 1 | H110: 0 | I110: 1 | J110: 0 | L110: 106 | M110: 265
A111: 300 | B111: 2 | C111: 0 | D111: 0 | E111: 1 | F111: 0 | G111: 1 | H111: 0 | I111: 1 | J111: 1 | L111: 107 | M111: 267.5
A112: 302.5 | B112: 2 | C112: 0 | D112: 0 | E112: 1 | F112: 1 | G112: 0 | H112: 0 | I112: 0 | J112: 0 | L112: 108 | M112: 270
A113: 305 | B113: 2 | C113: 0 | D113: 0 | E113: 1 | F113: 1 | G113: 0 | H113: 0 | I113: 0 | J113: 1 | L113: 109 | M113: 272.5
A114: 307.5 | B114: 2 | C114: 0 | D114: 0 | E114: 1 | F114: 1 | G114: 0 | H114: 0 | I114: 1 | J114: 0 | L114: 110 | M114: 275
A115: 310 | B115: 2 | C115: 0 | D115: 0 | E115: 1 | F115: 1 | G115: 0 | H115: 0 | I115: 1 | J115: 1 | L115: 111 | M115: 277.5
A116: 312.5 | B116: 2 | C116: 0 | D116: 0 | E116: 2 | F116: 0 | G116: 0 | H116: 0 | I116: 0 | J116: 0 | L116: 112 | M116: 280
A117: 315 | B117: 2 | C117: 0 | D117: 0 | E117: 2 | F117: 0 | G117: 0 | H117: 0 | I117: 0 | J117: 1 | L117: 113 | M117: 282.5
A118: 317.5 | B118: 2 | C118: 0 | D118: 0 | E118: 2 | F118: 0 | G118: 0 | H118: 0 | I118: 1 | J118: 0 | L118: 114 | M118: 285
A119: 320 | B119: 2 | C119: 0 | D119: 0 | E119: 2 | F119: 0 | G119: 0 | H119: 0 | I119: 1 | J119: 1 | L119: 115 | M119: 287.5
A120: 322.5 | B120: 2 | C120: 0 | D120: 0 | E120: 2 | F120: 0 | G120: 0 | H120: 1 | I120: 0 | J120: 0 | L120: 116 | M120: 290
A121: 325 | B121: 2 | C121: 0 | D121: 0 | E121: 2 | F121: 0 | G121: 0 | H121: 1 | I121: 0 | J121: 1 | L121: 117 | M121: 292.5
A122: 327.5 | B122: 2 | C122: 0 | D122: 0 | E122: 2 | F122: 0 | G122: 0 | H122: 1 | I122: 1 | J122: 0 | L122: 118 | M122: 295
A123: 330 | B123: 2 | C123: 0 | D123: 0 | E123: 2 | F123: 0 | G123: 0 | H123: 1 | I123: 1 | J123: 1 | L123: 119 | M123: 297.5
A124: 332.5 | B124: 2 | C124: 0 | D124: 0 | E124: 2 | F124: 0 | G124: 1 | H124: 0 | I124: 0 | J124: 0 | L124: 120 | M124: 300
A125: 335 | B125: 2 | C125: 0 | D125: 0 | E125: 2 | F125: 0 | G125: 1 | H125: 0 | I125: 0 | J125: 1 | L125: 121 | M125: 302.5
A126: 337.5 | B126: 2 | C126: 0 | D126: 0 | E126: 2 | F126: 0 | G126: 1 | H126: 0 | I126: 1 | J126: 0 | L126: 122 | M126: 305
A127: 340 | B127: 2 | C127: 0 | D127: 0 | E127: 2 | F127: 0 | G127: 1 | H127: 0 | I127: 1 | J127: 1 | L127: 123 | M127: 307.5
A128: 342.5 | B128: 2 | C128: 0 | D128: 0 | E128: 2 | F128: 1 | G128: 0 | H128: 0 | I128: 0 | J128: 0 | L128: 124 | M128: 310
A129: 345 | B129: 2 | C129: 0 | D129: 0 | E129: 2 | F129: 1 | G129: 0 | H129: 0 | I129: 0 | J129: 1 | L129: 125 | M129: 312.5
A130: 347.5 | B130: 2 | C130: 0 | D130: 0 | E130: 2 | F130: 1 | G130: 0 | H130: 0 | I130: 1 | J130: 0 | L130: 126 | M130: 315
A131: 350 | B131: 2 | C131: 0 | D131: 0 | E131: 2 | F131: 1 | G131: 0 | H131: 0 | I131: 1 | J131: 1 | L131: 127 | M131: 317.5
A132: 352.5 | B132: 2 | C132: 0 | D132: 0 | E132: 3 | F132: 0 | G132: 0 | H132: 0 | I132: 0 | J132: 0 | L132: 128 | M132: 320
A133: =IF(M133+$K$2>$L$1,0,M133+$K$2) -> 355 | B133: =IF(A133=0,0,MIN($B$1/2,INT(M133/(2*$B$2)))) -> 2 | C133: =IF(A133=0,0,MIN($C$1/2,INT(($M133-2*$B133*$B$2)/(2*$C$2)))) -> 0 | D133: =IF(A133=0,0,MIN($D$1/2,INT(($M133-2*$B133*$B$2-2*$C133*$C$2)/(2*$D$2)))) -> 0 | E133: =IF(A133=0,0,MIN($E$1/2,INT(($M133-2*$B133*$B$2-2*$C133*$C$2-2*$D133*$D$2)/(2*$E$2)))) -> 3 | F133: =IF(A133=0,0,MIN($F$1/2,INT(($M133-2*$B133*$B$2-2*$C133*$C$2-2*$D133*$D$2-2*$E133*$E$2)/(2*$F$2)))) -> 0 | G133: =IF(A133=0,0,MIN($G$1/2,INT(($M133-2*$B133*$B$2-2*$C133*$C$2-2*$D133*$D$2-2*$E133*$E$2-2*$F133*$F$2)/(2*$G$2)))) -> 0 | H133: =IF(A133=0,0,MIN($H$1/2,INT(($M133-2*$B133*$B$2-2*$C133*$C$2-2*$D133*$D$2-2*$E133*$E$2-2*$F133*$F$2-2*$G133*$G$2)/(2*$H$2)))) -> 0 | I133: =IF(A133=0,0,MIN($I$1/2,INT(($M133-2*$B133*$B$2-2*$C133*$C$2-2*$D133*$D$2-2*$E133*$E$2-2*$F133*$F$2-2*$G133*$G$2-2*$H133*$H$2)/(2*$I$2)))) -> 0 | J133: =IF(A133=0,0,MIN($J$1/2,INT(($M133-2*$B133*$B$2-2*$C133*$C$2-2*$D133*$D$2-2*$E133*$E$2-2*$F133*$F$2-2*$G133*$G$2-2*$H133*$H$2-2*$I133*$I$2)/(2*$J$2)))) -> 1 | L133: 129 | M133: =IF($A$2="Pounds",5*L133,2.5*L133) -> 322.5
A134: 357.5 | B134: 2 | C134: 0 | D134: 0 | E134: 3 | F134: 0 | G134: 0 | H134: 0 | I134: 1 | J134: 0 | L134: 130 | M134: 325
A135: 360 | B135: 2 | C135: 0 | D135: 0 | E135: 3 | F135: 0 | G135: 0 | H135: 0 | I135: 1 | J135: 1 | L135: 131 | M135: 327.5
A136: 362.5 | B136: 2 | C136: 0 | D136: 0 | E136: 3 | F136: 0 | G136: 0 | H136: 1 | I136: 0 | J136: 0 | L136: 132 | M136: 330
A137: 365 | B137: 2 | C137: 0 | D137: 0 | E137: 3 | F137: 0 | G137: 0 | H137: 1 | I137: 0 | J137: 1 | L137: 133 | M137: 332.5
A138: 367.5 | B138: 2 | C138: 0 | D138: 0 | E138: 3 | F138: 0 | G138: 0 | H138: 1 | I138: 1 | J138: 0 | L138: 134 | M138: 335
A139: 370 | B139: 2 | C139: 0 | D139: 0 | E139: 3 | F139: 0 | G139: 0 | H139: 1 | I139: 1 | J139: 1 | L139: 135 | M139: 337.5
A140: 372.5 | B140: 2 | C140: 0 | D140: 0 | E140: 3 | F140: 0 | G140: 1 | H140: 0 | I140: 0 | J140: 0 | L140: 136 | M140: 340
A141: 375 | B141: 2 | C141: 0 | D141: 0 | E141: 3 | F141: 0 | G141: 1 | H141: 0 | I141: 0 | J141: 1 | L141: =L140+1 -> 137 | M141: 342.5
A142: 377.5 | B142: 2 | C142: 0 | D142: 0 | E142: 3 | F142: 0 | G142: 1 | H142: 0 | I142: 1 | J142: 0 | L142: 138 | M142: 345
A143: 380 | B143: 2 | C143: 0 | D143: 0 | E143: 3 | F143: 0 | G143: 1 | H143: 0 | I143: 1 | J143: 1 | L143: 139 | M143: 347.5
A144: 382.5 | B144: 2 | C144: 0 | D144: 0 | E144: 3 | F144: 1 | G144: 0 | H144: 0 | I144: 0 | J144: 0 | L144: 140 | M144: 350
A145: 385 | B145: 2 | C145: 0 | D145: 0 | E145: 3 | F145: 1 | G145: 0 | H145: 0 | I145: 0 | J145: 1 | L145: 141 | M145: 352.5
A146: 387.5 | B146: 2 | C146: 0 | D146: 0 | E146: 3 | F146: 1 | G146: 0 | H146: 0 | I146: 1 | J146: 0 | L146: 142 | M146: 355
A147: 390 | B147: 2 | C147: 0 | D147: 0 | E147: 3 | F147: 1 | G147: 0 | H147: 0 | I147: 1 | J147: 1 | L147: 143 | M147: 357.5
A148: 392.5 | B148: 2 | C148: 0 | D148: 0 | E148: 4 | F148: 0 | G148: 0 | H148: 0 | I148: 0 | J148: 0 | L148: 144 | M148: 360
A149: 395 | B149: 2 | C149: 0 | D149: 0 | E149: 4 | F149: 0 | G149: 0 | H149: 0 | I149: 0 | J149: 1 | L149: 145 | M149: 362.5
A150: 397.5 | B150: 2 | C150: 0 | D150: 0 | E150: 4 | F150: 0 | G150: 0 | H150: 0 | I150: 1 | J150: 0 | L150: 146 | M150: 365
A151: 400 | B151: 2 | C151: 0 | D151: 0 | E151: 4 | F151: 0 | G151: 0 | H151: 0 | I151: 1 | J151: 1 | L151: 147 | M151: 367.5
A152: 402.5 | B152: 2 | C152: 0 | D152: 0 | E152: 4 | F152: 0 | G152: 0 | H152: 1 | I152: 0 | J152: 0 | L152: 148 | M152: 370
A153: 405 | B153: 2 | C153: 0 | D153: 0 | E153: 4 | F153: 0 | G153: 0 | H153: 1 | I153: 0 | J153: 1 | L153: 149 | M153: 372.5
A154: 407.5 | B154: 2 | C154: 0 | D154: 0 | E154: 4 | F154: 0 | G154: 0 | H154: 1 | I154: 1 | J154: 0 | L154: 150 | M154: 375
A155: 410 | B155: 2 | C155: 0 | D155: 0 | E155: 4 | F155: 0 | G155: 0 | H155: 1 | I155: 1 | J155: 1 | L155: 151 | M155: 377.5
A156: 412.5 | B156: 2 | C156: 0 | D156: 0 | E156: 4 | F156: 0 | G156: 1 | H156: 0 | I156: 0 | J156: 0 | L156: 152 | M156: 380
A157: 415 | B157: 2 | C157: 0 | D157: 0 | E157: 4 | F157: 0 | G157: 1 | H157: 0 | I157: 0 | J157: 1 | L157: 153 | M157: 382.5
A158: 417.5 | B158: 2 | C158: 0 | D158: 0 | E158: 4 | F158: 0 | G158: 1 | H158: 0 | I158: 1 | J158: 0 | L158: 154 | M158: 385
A159: 420 | B159: 2 | C159: 0 | D159: 0 | E159: 4 | F159: 0 | G159: 1 | H159: 0 | I159: 1 | J159: 1 | L159: 155 | M159: 387.5
A160: 422.5 | B160: 2 | C160: 0 | D160: 0 | E160: 4 | F160: 1 | G160: 0 | H160: 0 | I160: 0 | J160: 0 | L160: 156 | M160: 390
A161: 425 | B161: 2 | C161: 0 | D161: 0 | E161: 4 | F161: 1 | G161: 0 | H161: 0 | I161: 0 | J161: 1 | L161: 157 | M161: 392.5
A162: 427.5 | B162: 2 | C162: 0 | D162: 0 | E162: 4 | F162: 1 | G162: 0 | H162: 0 | I162: 1 | J162: 0 | L162: 158 | M162: 395
A163: 430 | B163: 2 | C163: 0 | D163: 0 | E163: 4 | F163: 1 | G163: 0 | H163: 0 | I163: 1 | J163: 1 | L163: 159 | M163: 397.5
A164: 432.5 | B164: 2 | C164: 0 | D164: 0 | E164: 5 | F164: 0 | G164: 0 | H164: 0 | I164: 0 | J164: 0 | L164: 160 | M164: 400
A165: 435 | B165: 2 | C165: 0 | D165: 0 | E165: 5 | F165: 0 | G165: 0 | H165: 0 | I165: 0 | J165: 1 | L165: 161 | M165: 402.5
A166: 437.5 | B166: 2 | C166: 0 | D166: 0 | E166: 5 | F166: 0 | G166: 0 | H166: 0 | I166: 1 | J166: 0 | L166: 162 | M166: 405
A167: 440 | B167: 2 | C167: 0 | D167: 0 | E167: 5 | F167: 0 | G167: 0 | H167: 0 | I167: 1 | J167: 1 | L167: 163 | M167: 407.5
A168: 442.5 | B168: 2 | C168: 0 | D168: 0 | E168: 5 | F168: 0 | G168: 0 | H168: 1 | I168: 0 | J168: 0 | L168: 164 | M168: 410
A169: 445 | B169: 2 | C169: 0 | D169: 0 | E169: 5 | F169: 0 | G169: 0 | H169: 1 | I169: 0 | J169: 1 | L169: 165 | M169: 412.5
A170: 447.5 | B170: 2 | C170: 0 | D170: 0 | E170: 5 | F170: 0 | G170: 0 | H170: 1 | I170: 1 | J170: 0 | L170: 166 | M170: 415
A171: 450 | B171: 2 | C171: 0 | D171: 0 | E171: 5 | F171: 0 | G171: 0 | H171: 1 | I171: 1 | J171: 1 | L171: 167 | M171: 417.5
A172: 452.5 | B172: 2 | C172: 0 | D172: 0 | E172: 5 | F172: 0 | G172: 1 | H172: 0 | I172: 0 | J172: 0 | L172: 168 | M172: 420
A173: 455 | B173: 2 | C173: 0 | D173: 0 | E173: 5 | F173: 0 | G173: 1 | H173: 0 | I173: 0 | J173: 1 | L173: 169 | M173: 422.5
A174: 457.5 | B174: 2 | C174: 0 | D174: 0 | E174: 5 | F174: 0 | G174: 1 | H174: 0 | I174: 1 | J174: 0 | L174: 170 | M174: 425
A175: 460 | B175: 2 | C175: 0 | D175: 0 | E175: 5 | F175: 0 | G175: 1 | H175: 0 | I175: 1 | J175: 1 | L175: 171 | M175: 427.5
A176: 462.5 | B176: 2 | C176: 0 | D176: 0 | E176: 5 | F176: 1 | G176: 0 | H176: 0 | I176: 0 | J176: 0 | L176: 172 | M176: 430
A177: 465 | B177: 2 | C177: 0 | D177: 0 | E177: 5 | F177: 1 | G177: 0 | H177: 0 | I177: 0 | J177: 1 | L177: 173 | M177: 432.5
A178: 467.5 | B178: 2 | C178: 0 | D178: 0 | E178: 5 | F178: 1 | G178: 0 | H178: 0 | I178: 1 | J178: 0 | L178: 174 | M178: 435
A179: 470 | B179: 2 | C179: 0 | D179: 0 | E179: 5 | F179: 1 | G179: 0 | H179: 0 | I179: 1 | J179: 1 | L179: 175 | M179: 437.5
A180: 472.5 | B180: 2 | C180: 0 | D180: 0 | E180: 6 | F180: 0 | G180: 0 | H180: 0 | I180: 0 | J180: 0 | L180: 176 | M180: 440
A181: 475 | B181: 2 | C181: 0 | D181: 0 | E181: 6 | F181: 0 | G181: 0 | H181: 0 | I181: 0 | J181: 1 | L181: 177 | M181: 442.5
A182: 477.5 | B182: 2 | C182: 0 | D182: 0 | E182: 6 | F182: 0 | G182: 0 | H182: 0 | I182: 1 | J182: 0 | L182: 178 | M182: 445
A183: 480 | B183: 2 | C183: 0 | D183: 0 | E183: 6 | F183: 0 | G183: 0 | H183: 0 | I183: 1 | J183: 1 | L183: 179 | M183: 447.5
A184: 482.5 | B184: 2 | C184: 0 | D184: 0 | E184: 6 | F184: 0 | G184: 0 | H184: 1 | I184: 0 | J184: 0 | L184: 180 | M184: 450
A185: 485 | B185: 2 | C185: 0 | D185: 0 | E185: 6 | F185: 0 | G185: 0 | H185: 1 | I185: 0 | J185: 1 | L185: 181 | M185: 452.5
A186: 487.5 | B186: 2 | C186: 0 | D186: 0 | E186: 6 | F186: 0 | G186: 0 | H186: 1 | I186: 1 | J186: 0 | L186: 182 | M186: 455
A187: 490 | B187: 2 | C187: 0 | D187: 0 | E187: 6 | F187: 0 | G187: 0 | H187: 1 | I187: 1 | J187: 1 | L187: 183 | M187: 457.5
A188: 492.5 | B188: 2 | C188: 0 | D188: 0 | E188: 6 | F188: 0 | G188: 1 | H188: 0 | I188: 0 | J188: 0 | L188: 184 | M188: 460
A189: 495 | B189: 2 | C189: 0 | D189: 0 | E189: 6 | F189: 0 | G189: 1 | H189: 0 | I189: 0 | J189: 1 | L189: 185 | M189: 462.5
A190: 497.5 | B190: 2 | C190: 0 | D190: 0 | E190: 6 | F190: 0 | G190: 1 | H190: 0 | I190: 1 | J190: 0 | L190: 186 | M190: 465
A191: 500 | B191: 2 | C191: 0 | D191: 0 | E191: 6 | F191: 0 | G191: 1 | H191: 0 | I191: 1 | J191: 1 | L191: 187 | M191: 467.5
A192: 502.5 | B192: 2 | C192: 0 | D192: 0 | E192: 6 | F192: 1 | G192: 0 | H192: 0 | I192: 0 | J192: 0 | L192: 188 | M192: 470
A193: 505 | B193: 2 | C193: 0 | D193: 0 | E193: 6 | F193: 1 | G193: 0 | H193: 0 | I193: 0 | J193: 1 | L193: 189 | M193: 472.5
A194: 507.5 | B194: 2 | C194: 0 | D194: 0 | E194: 6 | F194: 1 | G194: 0 | H194: 0 | I194: 1 | J194: 0 | L194: 190 | M194: 475
A195: 510 | B195: 2 | C195: 0 | D195: 0 | E195: 6 | F195: 1 | G195: 0 | H195: 0 | I195: 1 | J195: 1 | L195: 191 | M195: 477.5
A196: 512.5 | B196: 2 | C196: 0 | D196: 0 | E196: 7 | F196: 0 | G196: 0 | H196: 0 | I196: 0 | J196: 0 | L196: 192 | M196: 480
A197: =IF(M197+$K$2>$L$1,0,M197+$K$2) -> 515 | B197: =IF(A197=0,0,MIN($B$1/2,INT(M197/(2*$B$2)))) -> 2 | C197: =IF(A197=0,0,MIN($C$1/2,INT(($M197-2*$B197*$B$2)/(2*$C$2)))) -> 0 | D197: =IF(A197=0,0,MIN($D$1/2,INT(($M197-2*$B197*$B$2-2*$C197*$C$2)/(2*$D$2)))) -> 0 | E197: =IF(A197=0,0,MIN($E$1/2,INT(($M197-2*$B197*$B$2-2*$C197*$C$2-2*$D197*$D$2)/(2*$E$2)))) -> 7 | F197: =IF(A197=0,0,MIN($F$1/2,INT(($M197-2*$B197*$B$2-2*$C197*$C$2-2*$D197*$D$2-2*$E197*$E$2)/(2*$F$2)))) -> 0 | G197: =IF(A197=0,0,MIN($G$1/2,INT(($M197-2*$B197*$B$2-2*$C197*$C$2-2*$D197*$D$2-2*$E197*$E$2-2*$F197*$F$2)/(2*$G$2)))) -> 0 | H197: =IF(A197=0,0,MIN($H$1/2,INT(($M197-2*$B197*$B$2-2*$C197*$C$2-2*$D197*$D$2-2*$E197*$E$2-2*$F197*$F$2-2*$G197*$G$2)/(2*$H$2)))) -> 0 | I197: =IF(A197=0,0,MIN($I$1/2,INT(($M197-2*$B197*$B$2-2*$C197*$C$2-2*$D197*$D$2-2*$E197*$E$2-2*$F197*$F$2-2*$G197*$G$2-2*$H197*$H$2)/(2*$I$2)))) -> 0 | J197: =IF(A197=0,0,MIN($J$1/2,INT(($M197-2*$B197*$B$2-2*$C197*$C$2-2*$D197*$D$2-2*$E197*$E$2-2*$F197*$F$2-2*$G197*$G$2-2*$H197*$H$2-2*$I197*$I$2)/(2*$J$2)))) -> 1 | L197: 193 | M197: =IF($A$2="Pounds",5*L197,2.5*L197) -> 482.5
A198: 517.5 | B198: 2 | C198: 0 | D198: 0 | E198: 7 | F198: 0 | G198: 0 | H198: 0 | I198: 1 | J198: 0 | L198: 194 | M198: 485
A199: 520 | B199: 2 | C199: 0 | D199: 0 | E199: 7 | F199: 0 | G199: 0 | H199: 0 | I199: 1 | J199: 1 | L199: 195 | M199: 487.5
A200: 522.5 | B200: 2 | C200: 0 | D200: 0 | E200: 7 | F200: 0 | G200: 0 | H200: 1 | I200: 0 | J200: 0 | L200: 196 | M200: 490
... 60 more rows

Sheet DV-IDENTITY-0 (hidden)
A1: =IF(Setup!1:1,"AAAAAG9X8gA=",0) -> 0 | B1: =AND(Setup!A1,"AAAAAG9X8gE=") ->  | C1: =AND(Setup!B1,"AAAAAG9X8gI=") ->  | D1: =AND(Setup!C1,"AAAAAG9X8gM=") ->  | E1: =AND(Setup!D1,"AAAAAG9X8gQ=") ->  | F1: =AND(Setup!E1,"AAAAAG9X8gU=") ->  | G1: =AND(Setup!F1,"AAAAAG9X8gY=") ->  | H1: =AND(Setup!G1,"AAAAAG9X8gc=") ->  | I1: =AND(Setup!H1,"AAAAAG9X8gg=") ->  | J1: =AND(Setup!I1,"AAAAAG9X8gk=") ->  | K1: =AND(Setup!J1,"AAAAAG9X8go=") ->  | L1: =AND(Setup!K1,"AAAAAG9X8gs=") ->  | M1: =AND(Setup!L1,"AAAAAG9X8gw=") ->  | N1: =AND(Setup!M1,"AAAAAG9X8g0=") ->  | O1: =AND(Setup!N1,"AAAAAG9X8g4=") ->  | P1: =AND(Setup!O1,"AAAAAG9X8g8=") ->  | Q1: =AND(Setup!P1,"AAAAAG9X8hA=") ->  | R1: =AND(Setup!Q1,"AAAAAG9X8hE=") ->  | S1: =AND(Setup!R1,"AAAAAG9X8hI=") ->  | T1: =AND(Setup!S1,"AAAAAG9X8hM=") ->  | U1: =AND(Setup!T1,"AAAAAG9X8hQ=") ->  | V1: =AND(Setup!U1,"AAAAAG9X8hU=") ->  | W1: =AND(Setup!V1,"AAAAAG9X8hY=") ->  | X1: =AND(Setup!W1,"AAAAAG9X8hc=") ->  | Y1: =AND(Setup!X1,"AAAAAG9X8hg=") ->  | Z1: =AND(Setup!Y1,"AAAAAG9X8hk=") ->  | AA1: =AND(Setup!Z1,"AAAAAG9X8ho=") ->  | AB1: =AND(Setup!AA1,"AAAAAG9X8hs=") ->  | AC1: =AND(Setup!AB1,"AAAAAG9X8hw=") ->  | AD1: =AND(Setup!AC1,"AAAAAG9X8h0=") ->  | AE1: =AND(Setup!AD1,"AAAAAG9X8h4=") ->  | AF1: =AND(Setup!AE1,"AAAAAG9X8h8=") ->  | AG1: =AND(Setup!AF1,"AAAAAG9X8iA=") ->  | AH1: =AND(Setup!AG1,"AAAAAG9X8iE=") ->  | AI1: =AND(Setup!AH1,"AAAAAG9X8iI=") ->  | AJ1: =AND(Setup!AI1,"AAAAAG9X8iM=") ->  | AK1: =AND(Setup!AJ1,"AAAAAG9X8iQ=") ->  | AL1: =AND(Setup!AK1,"AAAAAG9X8iU=") ->  | AM1: =AND(Setup!AL1,"AAAAAG9X8iY=") ->  | AN1: =AND(Setup!AM1,"AAAAAG9X8ic=") ->  | AO1: =AND(Setup!AN1,"AAAAAG9X8ig=") ->  | AP1: =AND(Setup!AO1,"AAAAAG9X8ik=") ->  | AQ1: =AND(Setup!AP1,"AAAAAG9X8io=") ->  | AR1: =AND(Setup!AQ1,"AAAAAG9X8is=") ->  | AS1: =AND(Setup!AR1,"AAAAAG9X8iw=") ->  | AT1: =AND(Setup!AS1,"AAAAAG9X8i0=") ->  | AU1: =AND(Setup!AT1,"AAAAAG9X8i4=") ->  | AV1: =AND(Setup!AU1,"AAAAAG9X8i8=") ->  | AW1: =AND(Setup!AV1,"AAAAAG9X8jA=") ->  | AX1: =AND(Setup!AW1,"AAAAAG9X8jE=") ->  | AY1: =AND(Setup!AX1,"AAAAAG9X8jI=") ->  | AZ1: =AND(Setup!AY1,"AAAAAG9X8jM=") ->  | BA1: =AND(Setup!AZ1,"AAAAAG9X8jQ=") ->  | BB1: =AND(Setup!BA1,"AAAAAG9X8jU=") ->  | BC1: =AND(Setup!BB1,"AAAAAG9X8jY=") ->  | BD1: =AND(Setup!BC1,"AAAAAG9X8jc=") ->  | BE1: =AND(Setup!BD1,"AAAAAG9X8jg=") ->  | BF1: =AND(Setup!BE1,"AAAAAG9X8jk=") ->  | BG1: =AND(Setup!BF1,"AAAAAG9X8jo=") ->  | BH1: =IF(Setup!2:2,"AAAAAG9X8js=",0) -> 0 | BI1: =AND(Setup!A2,"AAAAAG9X8jw=") ->  | BJ1: =AND(Setup!B2,"AAAAAG9X8j0=") ->  | BK1: =AND(Setup!C2,"AAAAAG9X8j4=") ->  | BL1: =AND(Setup!D2,"AAAAAG9X8j8=") ->  | BM1: =AND(Setup!E2,"AAAAAG9X8kA=") ->  | BN1: =AND(Setup!F2,"AAAAAG9X8kE=") ->  | BO1: =AND(Setup!G2,"AAAAAG9X8kI=") ->  | BP1: =AND(Setup!H2,"AAAAAG9X8kM=") ->  | BQ1: =AND(Setup!I2,"AAAAAG9X8kQ=") ->  | BR1: =AND(Setup!J2,"AAAAAG9X8kU=") ->  | BS1: =AND(Setup!K2,"AAAAAG9X8kY=") ->  | BT1: =AND(Setup!L2,"AAAAAG9X8kc=") ->  | BU1: =AND(Setup!M2,"AAAAAG9X8kg=") ->  | BV1: =AND(Setup!N2,"AAAAAG9X8kk=") ->  | BW1: =AND(Setup!O2,"AAAAAG9X8ko=") ->  | BX1: =AND(Setup!P2,"AAAAAG9X8ks=") ->  | BY1: =AND(Setup!Q2,"AAAAAG9X8kw=") ->  | BZ1: =AND(Setup!R2,"AAAAAG9X8k0=") ->  | CA1: =AND(Setup!S2,"AAAAAG9X8k4=") ->  | CB1: =AND(Setup!T2,"AAAAAG9X8k8=") ->  | CC1: =AND(Setup!U2,"AAAAAG9X8lA=") ->  | CD1: =AND(Setup!V2,"AAAAAG9X8lE=") ->  | CE1: =AND(Setup!W2,"AAAAAG9X8lI=") ->  | CF1: =AND(Setup!X2,"AAAAAG9X8lM=") ->  | CG1: =AND(Setup!Y2,"AAAAAG9X8lQ=") ->  | CH1: =AND(Setup!Z2,"AAAAAG9X8lU=") ->  | CI1: =AND(Setup!AA2,"AAAAAG9X8lY=") ->  | CJ1: =AND(Setup!AB2,"AAAAAG9X8lc=") ->  | CK1: =AND(Setup!AC2,"AAAAAG9X8lg=") ->  | CL1: =AND(Setup!AD2,"AAAAAG9X8lk=") ->  | CM1: =AND(Setup!AE2,"AAAAAG9X8lo=") ->  | CN1: =AND(Setup!AF2,"AAAAAG9X8ls=") ->  | CO1: =AND(Setup!AG2,"AAAAAG9X8lw=") ->  | CP1: =AND(Setup!AH2,"AAAAAG9X8l0=") ->  | CQ1: =AND(Setup!AI2,"AAAAAG9X8l4=") ->  | CR1: =AND(Setup!AJ2,"AAAAAG9X8l8=") ->  | CS1: =AND(Setup!AK2,"AAAAAG9X8mA=") ->  | CT1: =AND(Setup!AL2,"AAAAAG9X8mE=") ->  | CU1: =AND(Setup!AM2,"AAAAAG9X8mI=") ->  | CV1: =AND(Setup!AN2,"AAAAAG9X8mM=") ->  | CW1: =AND(Setup!AO2,"AAAAAG9X8mQ=") ->  | CX1: =AND(Setup!AP2,"AAAAAG9X8mU=") ->  | CY1: =AND(Setup!AQ2,"AAAAAG9X8mY=") ->  | CZ1: =AND(Setup!AR2,"AAAAAG9X8mc=") ->  | DA1: =AND(Setup!AS2,"AAAAAG9X8mg=") ->  | DB1: =AND(Setup!AT2,"AAAAAG9X8mk=") ->  | DC1: =AND(Setup!AU2,"AAAAAG9X8mo=") ->  | DD1: =AND(Setup!AV2,"AAAAAG9X8ms=") ->  | DE1: =AND(Setup!AW2,"AAAAAG9X8mw=") ->  | DF1: =AND(Setup!AX2,"AAAAAG9X8m0=") ->  | DG1: =AND(Setup!AY2,"AAAAAG9X8m4=") ->  | DH1: =AND(Setup!AZ2,"AAAAAG9X8m8=") ->  | DI1: =AND(Setup!BA2,"AAAAAG9X8nA=") ->  | DJ1: =AND(Setup!BB2,"AAAAAG9X8nE=") ->  | DK1: =AND(Setup!BC2,"AAAAAG9X8nI=") ->  | DL1: =AND(Setup!BD2,"AAAAAG9X8nM=") ->  | DM1: =AND(Setup!BE2,"AAAAAG9X8nQ=") ->  | DN1: =AND(Setup!BF2,"AAAAAG9X8nU=") ->  | DO1: =IF(Setup!3:3,"AAAAAG9X8nY=",0) -> 0 | DP1: =AND(Setup!A3,"AAAAAG9X8nc=") ->  | DQ1: =AND(Setup!B3,"AAAAAG9X8ng=") ->  | DR1: =AND(Setup!C3,"AAAAAG9X8nk=") ->  | DS1: =AND(Setup!D3,"AAAAAG9X8no=") ->  | DT1: =AND(Setup!E3,"AAAAAG9X8ns=") ->  | DU1: =AND(Setup!F3,"AAAAAG9X8nw=") ->  | DV1: =AND(Setup!G3,"AAAAAG9X8n0=") ->  | DW1: =AND(Setup!H3,"AAAAAG9X8n4=") ->  | DX1: =AND(Setup!I3,"AAAAAG9X8n8=") ->  | DY1: =AND(Setup!J3,"AAAAAG9X8oA=") ->  | DZ1: =AND(Setup!K3,"AAAAAG9X8oE=") ->  | EA1: =AND(Setup!L3,"AAAAAG9X8oI=") ->  | EB1: =AND(Setup!M3,"AAAAAG9X8oM=") ->  | EC1: =AND(Setup!N3,"AAAAAG9X8oQ=") ->  | ED1: =AND(Setup!O3,"AAAAAG9X8oU=") ->  | EE1: =AND(Setup!P3,"AAAAAG9X8oY=") ->  | EF1: =AND(Setup!Q3,"AAAAAG9X8oc=") ->  | EG1: =AND(Setup!R3,"AAAAAG9X8og=") ->  | EH1: =AND(Setup!S3,"AAAAAG9X8ok=") ->  | EI1: =AND(Setup!T3,"AAAAAG9X8oo=") ->  | EJ1: =AND(Setup!U3,"AAAAAG9X8os=") ->  | EK1: =AND(Setup!V3,"AAAAAG9X8ow=") ->  | EL1: =AND(Setup!W3,"AAAAAG9X8o0=") ->  | EM1: =AND(Setup!X3,"AAAAAG9X8o4=") ->  | EN1: =AND(Setup!Y3,"AAAAAG9X8o8=") ->  | EO1: =AND(Setup!Z3,"AAAAAG9X8pA=") ->  | EP1: =AND(Setup!AA3,"AAAAAG9X8pE=") ->  | EQ1: =AND(Setup!AB3,"AAAAAG9X8pI=") ->  | ER1: =AND(Setup!AC3,"AAAAAG9X8pM=") ->  | ES1: =AND(Setup!AD3,"AAAAAG9X8pQ=") ->  | ET1: =AND(Setup!AE3,"AAAAAG9X8pU=") ->  | EU1: =AND(Setup!AF3,"AAAAAG9X8pY=") ->  | EV1: =AND(Setup!AG3,"AAAAAG9X8pc=") ->  | EW1: =AND(Setup!AH3,"AAAAAG9X8pg=") ->  | EX1: =AND(Setup!AI3,"AAAAAG9X8pk=") ->  | EY1: =AND(Setup!AJ3,"AAAAAG9X8po=") ->  | EZ1: =AND(Setup!AK3,"AAAAAG9X8ps=") ->  | FA1: =AND(Setup!AL3,"AAAAAG9X8pw=") ->  | FB1: =AND(Setup!AM3,"AAAAAG9X8p0=") ->  | FC1: =AND(Setup!AN3,"AAAAAG9X8p4=") ->  | FD1: =AND(Setup!AO3,"AAAAAG9X8p8=") ->  | FE1: =AND(Setup!AP3,"AAAAAG9X8qA=") ->  | FF1: =AND(Setup!AQ3,"AAAAAG9X8qE=") ->  | FG1: =AND(Setup!AR3,"AAAAAG9X8qI=") ->  | FH1: =AND(Setup!AS3,"AAAAAG9X8qM=") ->  | FI1: =AND(Setup!AT3,"AAAAAG9X8qQ=") ->  | FJ1: =AND(Setup!AU3,"AAAAAG9X8qU=") ->  | FK1: =AND(Setup!AV3,"AAAAAG9X8qY=") ->  | FL1: =AND(Setup!AW3,"AAAAAG9X8qc=") ->  | FM1: =AND(Setup!AX3,"AAAAAG9X8qg=") ->  | FN1: =AND(Setup!AY3,"AAAAAG9X8qk=") ->  | FO1: =AND(Setup!AZ3,"AAAAAG9X8qo=") ->  | FP1: =AND(Setup!BA3,"AAAAAG9X8qs=") ->  | FQ1: =AND(Setup!BB3,"AAAAAG9X8qw=") ->  | FR1: =AND(Setup!BC3,"AAAAAG9X8q0=") ->  | FS1: =AND(Setup!BD3,"AAAAAG9X8q4=") ->  | FT1: =AND(Setup!BE3,"AAAAAG9X8q8=") ->  | FU1: =AND(Setup!BF3,"AAAAAG9X8rA=") ->  | FV1: =IF(Setup!4:4,"AAAAAG9X8rE=",0) -> 0 | FW1: =AND(Setup!A4,"AAAAAG9X8rI=") ->  | FX1: =AND(Setup!B4,"AAAAAG9X8rM=") ->  | FY1: =AND(Setup!C4,"AAAAAG9X8rQ=") ->  | FZ1: =AND(Setup!D4,"AAAAAG9X8rU=") ->  | GA1: =AND(Setup!E4,"AAAAAG9X8rY=") ->  | GB1: =AND(Setup!F4,"AAAAAG9X8rc=") ->  | GC1: =AND(Setup!G4,"AAAAAG9X8rg=") ->  | GD1: =AND(Setup!H4,"AAAAAG9X8rk=") ->  | GE1: =AND(Setup!I4,"AAAAAG9X8ro=") ->  | GF1: =AND(Setup!J4,"AAAAAG9X8rs=") ->  | GG1: =AND(Setup!K4,"AAAAAG9X8rw=") ->  | GH1: =AND(Setup!L4,"AAAAAG9X8r0=") ->  | GI1: =AND(Setup!M4,"AAAAAG9X8r4=") ->  | GJ1: =AND(Setup!N4,"AAAAAG9X8r8=") ->  | GK1: =AND(Setup!O4,"AAAAAG9X8sA=") ->  | GL1: =AND(Setup!P4,"AAAAAG9X8sE=") ->  | GM1: =AND(Setup!Q4,"AAAAAG9X8sI=") ->  | GN1: =AND(Setup!R4,"AAAAAG9X8sM=") ->  | GO1: =AND(Setup!S4,"AAAAAG9X8sQ=") ->  | GP1: =AND(Setup!T4,"AAAAAG9X8sU=") ->  | GQ1: =AND(Setup!U4,"AAAAAG9X8sY=") ->  | GR1: =AND(Setup!V4,"AAAAAG9X8sc=") ->  | GS1: =AND(Setup!W4,"AAAAAG9X8sg=") ->  | GT1: =AND(Setup!X4,"AAAAAG9X8sk=") ->  | GU1: =AND(Setup!Y4,"AAAAAG9X8so=") ->  | GV1: =AND(Setup!Z4,"AAAAAG9X8ss=") ->  | GW1: =AND(Setup!AA4,"AAAAAG9X8sw=") ->  | GX1: =AND(Setup!AB4,"AAAAAG9X8s0=") ->  | GY1: =AND(Setup!AC4,"AAAAAG9X8s4=") ->  | GZ1: =AND(Setup!AD4,"AAAAAG9X8s8=") ->  | HA1: =AND(Setup!AE4,"AAAAAG9X8tA=") ->  | HB1: =AND(Setup!AF4,"AAAAAG9X8tE=") ->  | HC1: =AND(Setup!AG4,"AAAAAG9X8tI=") ->  | HD1: =AND(Setup!AH4,"AAAAAG9X8tM=") ->  | HE1: =AND(Setup!AI4,"AAAAAG9X8tQ=") ->  | HF1: =AND(Setup!AJ4,"AAAAAG9X8tU=") ->  | HG1: =AND(Setup!AK4,"AAAAAG9X8tY=") ->  | HH1: =AND(Setup!AL4,"AAAAAG9X8tc=") ->  | HI1: =AND(Setup!AM4,"AAAAAG9X8tg=") ->  | HJ1: =AND(Setup!AN4,"AAAAAG9X8tk=") ->  | HK1: =AND(Setup!AO4,"AAAAAG9X8to=") ->  | HL1: =AND(Setup!AP4,"AAAAAG9X8ts=") ->  | HM1: =AND(Setup!AQ4,"AAAAAG9X8tw=") ->  | HN1: =AND(Setup!AR4,"AAAAAG9X8t0=") ->  | HO1: =AND(Setup!AS4,"AAAAAG9X8t4=") ->  | HP1: =AND(Setup!AT4,"AAAAAG9X8t8=") ->  | HQ1: =AND(Setup!AU4,"AAAAAG9X8uA=") ->  | HR1: =AND(Setup!AV4,"AAAAAG9X8uE=") ->  | HS1: =AND(Setup!AW4,"AAAAAG9X8uI=") ->  | HT1: =AND(Setup!AX4,"AAAAAG9X8uM=") ->  | HU1: =AND(Setup!AY4,"AAAAAG9X8uQ=") ->  | HV1: =AND(Setup!AZ4,"AAAAAG9X8uU=") ->  | HW1: =AND(Setup!BA4,"AAAAAG9X8uY=") ->  | HX1: =AND(Setup!BB4,"AAAAAG9X8uc=") ->  | HY1: =AND(Setup!BC4,"AAAAAG9X8ug=") ->  | HZ1: =AND(Setup!BD4,"AAAAAG9X8uk=") ->  | IA1: =AND(Setup!BE4,"AAAAAG9X8uo=") ->  | IB1: =AND(Setup!BF4,"AAAAAG9X8us=") ->  | IC1: =IF(Setup!5:5,"AAAAAG9X8uw=",0) -> 0 | ID1: =AND(Setup!A5,"AAAAAG9X8u0=") ->  | IE1: =AND(Setup!B5,"AAAAAG9X8u4=") ->  | IF1: =AND(Setup!C5,"AAAAAG9X8u8=") ->  | IG1: =AND(Setup!D5,"AAAAAG9X8vA=") ->  | IH1: =AND(Setup!E5,"AAAAAG9X8vE=") ->  | II1: =AND(Setup!F5,"AAAAAG9X8vI=") ->  | IJ1: =AND(Setup!G5,"AAAAAG9X8vM=") ->  | IK1: =AND(Setup!H5,"AAAAAG9X8vQ=") ->  | IL1: =AND(Setup!I5,"AAAAAG9X8vU=") ->  | IM1: =AND(Setup!J5,"AAAAAG9X8vY=") ->  | IN1: =AND(Setup!K5,"AAAAAG9X8vc=") ->  | IO1: =AND(Setup!L5,"AAAAAG9X8vg=") ->  | IP1: =AND(Setup!M5,"AAAAAG9X8vk=") ->  | IQ1: =AND(Setup!N5,"AAAAAG9X8vo=") ->  | IR1: =AND(Setup!O5,"AAAAAG9X8vs=") ->  | IS1: =AND(Setup!P5,"AAAAAG9X8vw=") ->  | IT1: =AND(Setup!Q5,"AAAAAG9X8v0=") ->  | IU1: =AND(Setup!R5,"AAAAAG9X8v4=") ->  | IV1: =AND(Setup!S5,"AAAAAG9X8v8=") -> 
A2: =AND(Setup!T5,"AAAAAFn+vgA=") ->  | B2: =AND(Setup!U5,"AAAAAFn+vgE=") ->  | C2: =AND(Setup!V5,"AAAAAFn+vgI=") ->  | D2: =AND(Setup!W5,"AAAAAFn+vgM=") ->  | E2: =AND(Setup!X5,"AAAAAFn+vgQ=") ->  | F2: =AND(Setup!Y5,"AAAAAFn+vgU=") ->  | G2: =AND(Setup!Z5,"AAAAAFn+vgY=") ->  | H2: =AND(Setup!AA5,"AAAAAFn+vgc=") ->  | I2: =AND(Setup!AB5,"AAAAAFn+vgg=") ->  | J2: =AND(Setup!AC5,"AAAAAFn+vgk=") ->  | K2: =AND(Setup!AD5,"AAAAAFn+vgo=") ->  | L2: =AND(Setup!AE5,"AAAAAFn+vgs=") ->  | M2: =AND(Setup!AF5,"AAAAAFn+vgw=") ->  | N2: =AND(Setup!AG5,"AAAAAFn+vg0=") ->  | O2: =AND(Setup!AH5,"AAAAAFn+vg4=") ->  | P2: =AND(Setup!AI5,"AAAAAFn+vg8=") ->  | Q2: =AND(Setup!AJ5,"AAAAAFn+vhA=") ->  | R2: =AND(Setup!AK5,"AAAAAFn+vhE=") ->  | S2: =AND(Setup!AL5,"AAAAAFn+vhI=") ->  | T2: =AND(Setup!AM5,"AAAAAFn+vhM=") ->  | U2: =AND(Setup!AN5,"AAAAAFn+vhQ=") ->  | V2: =AND(Setup!AO5,"AAAAAFn+vhU=") ->  | W2: =AND(Setup!AP5,"AAAAAFn+vhY=") ->  | X2: =AND(Setup!AQ5,"AAAAAFn+vhc=") ->  | Y2: =AND(Setup!AR5,"AAAAAFn+vhg=") ->  | Z2: =AND(Setup!AS5,"AAAAAFn+vhk=") ->  | AA2: =AND(Setup!AT5,"AAAAAFn+vho=") ->  | AB2: =AND(Setup!AU5,"AAAAAFn+vhs=") ->  | AC2: =AND(Setup!AV5,"AAAAAFn+vhw=") ->  | AD2: =AND(Setup!AW5,"AAAAAFn+vh0=") ->  | AE2: =AND(Setup!AX5,"AAAAAFn+vh4=") ->  | AF2: =AND(Setup!AY5,"AAAAAFn+vh8=") ->  | AG2: =AND(Setup!AZ5,"AAAAAFn+viA=") ->  | AH2: =AND(Setup!BA5,"AAAAAFn+viE=") ->  | AI2: =AND(Setup!BB5,"AAAAAFn+viI=") ->  | AJ2: =AND(Setup!BC5,"AAAAAFn+viM=") ->  | AK2: =AND(Setup!BD5,"AAAAAFn+viQ=") ->  | AL2: =AND(Setup!BE5,"AAAAAFn+viU=") ->  | AM2: =AND(Setup!BF5,"AAAAAFn+viY=") ->  | AN2: =IF(Setup!6:6,"AAAAAFn+vic=",0) -> 0 | AO2: =AND(Setup!A6,"AAAAAFn+vig=") ->  | AP2: =AND(Setup!B6,"AAAAAFn+vik=") ->  | AQ2: =AND(Setup!C6,"AAAAAFn+vio=") ->  | AR2: =AND(Setup!D6,"AAAAAFn+vis=") ->  | AS2: =AND(Setup!E6,"AAAAAFn+viw=") ->  | AT2: =AND(Setup!F6,"AAAAAFn+vi0=") ->  | AU2: =AND(Setup!G6,"AAAAAFn+vi4=") ->  | AV2: =AND(Setup!H6,"AAAAAFn+vi8=") ->  | AW2: =AND(Setup!I6,"AAAAAFn+vjA=") ->  | AX2: =AND(Setup!J6,"AAAAAFn+vjE=") ->  | AY2: =AND(Setup!K6,"AAAAAFn+vjI=") ->  | AZ2: =AND(Setup!L6,"AAAAAFn+vjM=") ->  | BA2: =AND(Setup!M6,"AAAAAFn+vjQ=") ->  | BB2: =AND(Setup!N6,"AAAAAFn+vjU=") ->  | BC2: =AND(Setup!O6,"AAAAAFn+vjY=") ->  | BD2: =AND(Setup!P6,"AAAAAFn+vjc=") ->  | BE2: =AND(Setup!Q6,"AAAAAFn+vjg=") ->  | BF2: =AND(Setup!R6,"AAAAAFn+vjk=") ->  | BG2: =AND(Setup!S6,"AAAAAFn+vjo=") ->  | BH2: =AND(Setup!T6,"AAAAAFn+vjs=") ->  | BI2: =AND(Setup!U6,"AAAAAFn+vjw=") ->  | BJ2: =AND(Setup!V6,"AAAAAFn+vj0=") ->  | BK2: =AND(Setup!W6,"AAAAAFn+vj4=") ->  | BL2: =AND(Setup!X6,"AAAAAFn+vj8=") ->  | BM2: =AND(Setup!Y6,"AAAAAFn+vkA=") ->  | BN2: =AND(Setup!Z6,"AAAAAFn+vkE=") ->  | BO2: =AND(Setup!AA6,"AAAAAFn+vkI=") ->  | BP2: =AND(Setup!AB6,"AAAAAFn+vkM=") ->  | BQ2: =AND(Setup!AC6,"AAAAAFn+vkQ=") ->  | BR2: =AND(Setup!AD6,"AAAAAFn+vkU=") ->  | BS2: =AND(Setup!AE6,"AAAAAFn+vkY=") ->  | BT2: =AND(Setup!AF6,"AAAAAFn+vkc=") ->  | BU2: =AND(Setup!AG6,"AAAAAFn+vkg=") ->  | BV2: =AND(Setup!AH6,"AAAAAFn+vkk=") ->  | BW2: =AND(Setup!AI6,"AAAAAFn+vko=") ->  | BX2: =AND(Setup!AJ6,"AAAAAFn+vks=") ->  | BY2: =AND(Setup!AK6,"AAAAAFn+vkw=") ->  | BZ2: =AND(Setup!AL6,"AAAAAFn+vk0=") ->  | CA2: =AND(Setup!AM6,"AAAAAFn+vk4=") ->  | CB2: =AND(Setup!AN6,"AAAAAFn+vk8=") ->  | CC2: =AND(Setup!AO6,"AAAAAFn+vlA=") ->  | CD2: =AND(Setup!AP6,"AAAAAFn+vlE=") ->  | CE2: =AND(Setup!AQ6,"AAAAAFn+vlI=") ->  | CF2: =AND(Setup!AR6,"AAAAAFn+vlM=") ->  | CG2: =AND(Setup!AS6,"AAAAAFn+vlQ=") ->  | CH2: =AND(Setup!AT6,"AAAAAFn+vlU=") ->  | CI2: =AND(Setup!AU6,"AAAAAFn+vlY=") ->  | CJ2: =AND(Setup!AV6,"AAAAAFn+vlc=") ->  | CK2: =AND(Setup!AW6,"AAAAAFn+vlg=") ->  | CL2: =AND(Setup!AX6,"AAAAAFn+vlk=") ->  | CM2: =AND(Setup!AY6,"AAAAAFn+vlo=") ->  | CN2: =AND(Setup!AZ6,"AAAAAFn+vls=") ->  | CO2: =AND(Setup!BA6,"AAAAAFn+vlw=") ->  | CP2: =AND(Setup!BB6,"AAAAAFn+vl0=") ->  | CQ2: =AND(Setup!BC6,"AAAAAFn+vl4=") ->  | CR2: =AND(Setup!BD6,"AAAAAFn+vl8=") ->  | CS2: =AND(Setup!BE6,"AAAAAFn+vmA=") ->  | CT2: =AND(Setup!BF6,"AAAAAFn+vmE=") ->  | CU2: =IF(Setup!7:7,"AAAAAFn+vmI=",0) -> 0 | CV2: =AND(Setup!A7,"AAAAAFn+vmM=") ->  | CW2: =AND(Setup!B7,"AAAAAFn+vmQ=") ->  | CX2: =AND(Setup!C7,"AAAAAFn+vmU=") ->  | CY2: =AND(Setup!D7,"AAAAAFn+vmY=") ->  | CZ2: =AND(Setup!E7,"AAAAAFn+vmc=") ->  | DA2: =AND(Setup!F7,"AAAAAFn+vmg=") ->  | DB2: =AND(Setup!G7,"AAAAAFn+vmk=") ->  | DC2: =AND(Setup!H7,"AAAAAFn+vmo=") ->  | DD2: =AND(Setup!I7,"AAAAAFn+vms=") ->  | DE2: =AND(Setup!J7,"AAAAAFn+vmw=") ->  | DF2: =AND(Setup!K7,"AAAAAFn+vm0=") ->  | DG2: =AND(Setup!L7,"AAAAAFn+vm4=") ->  | DH2: =AND(Setup!M7,"AAAAAFn+vm8=") ->  | DI2: =AND(Setup!N7,"AAAAAFn+vnA=") ->  | DJ2: =AND(Setup!O7,"AAAAAFn+vnE=") ->  | DK2: =AND(Setup!P7,"AAAAAFn+vnI=") ->  | DL2: =AND(Setup!Q7,"AAAAAFn+vnM=") ->  | DM2: =AND(Setup!R7,"AAAAAFn+vnQ=") ->  | DN2: =AND(Setup!S7,"AAAAAFn+vnU=") ->  | DO2: =AND(Setup!T7,"AAAAAFn+vnY=") ->  | DP2: =AND(Setup!U7,"AAAAAFn+vnc=") ->  | DQ2: =AND(Setup!V7,"AAAAAFn+vng=") ->  | DR2: =AND(Setup!W7,"AAAAAFn+vnk=") ->  | DS2: =AND(Setup!X7,"AAAAAFn+vno=") ->  | DT2: =AND(Setup!Y7,"AAAAAFn+vns=") ->  | DU2: =AND(Setup!Z7,"AAAAAFn+vnw=") ->  | DV2: =AND(Setup!AA7,"AAAAAFn+vn0=") ->  | DW2: =AND(Setup!AB7,"AAAAAFn+vn4=") ->  | DX2: =AND(Setup!AC7,"AAAAAFn+vn8=") ->  | DY2: =AND(Setup!AD7,"AAAAAFn+voA=") ->  | DZ2: =AND(Setup!AE7,"AAAAAFn+voE=") ->  | EA2: =AND(Setup!AF7,"AAAAAFn+voI=") ->  | EB2: =AND(Setup!AG7,"AAAAAFn+voM=") ->  | EC2: =AND(Setup!AH7,"AAAAAFn+voQ=") ->  | ED2: =AND(Setup!AI7,"AAAAAFn+voU=") ->  | EE2: =AND(Setup!AJ7,"AAAAAFn+voY=") ->  | EF2: =AND(Setup!AK7,"AAAAAFn+voc=") ->  | EG2: =AND(Setup!AL7,"AAAAAFn+vog=") ->  | EH2: =AND(Setup!AM7,"AAAAAFn+vok=") ->  | EI2: =AND(Setup!AN7,"AAAAAFn+voo=") ->  | EJ2: =AND(Setup!AO7,"AAAAAFn+vos=") ->  | EK2: =AND(Setup!AP7,"AAAAAFn+vow=") ->  | EL2: =AND(Setup!AQ7,"AAAAAFn+vo0=") ->  | EM2: =AND(Setup!AR7,"AAAAAFn+vo4=") ->  | EN2: =AND(Setup!AS7,"AAAAAFn+vo8=") ->  | EO2: =AND(Setup!AT7,"AAAAAFn+vpA=") ->  | EP2: =AND(Setup!AU7,"AAAAAFn+vpE=") ->  | EQ2: =AND(Setup!AV7,"AAAAAFn+vpI=") ->  | ER2: =AND(Setup!AW7,"AAAAAFn+vpM=") ->  | ES2: =AND(Setup!AX7,"AAAAAFn+vpQ=") ->  | ET2: =AND(Setup!AY7,"AAAAAFn+vpU=") ->  | EU2: =AND(Setup!AZ7,"AAAAAFn+vpY=") ->  | EV2: =AND(Setup!BA7,"AAAAAFn+vpc=") ->  | EW2: =AND(Setup!BB7,"AAAAAFn+vpg=") ->  | EX2: =AND(Setup!BC7,"AAAAAFn+vpk=") ->  | EY2: =AND(Setup!BD7,"AAAAAFn+vpo=") ->  | EZ2: =AND(Setup!BE7,"AAAAAFn+vps=") ->  | FA2: =AND(Setup!BF7,"AAAAAFn+vpw=") ->  | FB2: =IF(Setup!8:8,"AAAAAFn+vp0=",0) -> 0 | FC2: =AND(Setup!A8,"AAAAAFn+vp4=") ->  | FD2: =AND(Setup!B8,"AAAAAFn+vp8=") ->  | FE2: =AND(Setup!C8,"AAAAAFn+vqA=") ->  | FF2: =AND(Setup!D8,"AAAAAFn+vqE=") ->  | FG2: =AND(Setup!E8,"AAAAAFn+vqI=") ->  | FH2: =AND(Setup!F8,"AAAAAFn+vqM=") ->  | FI2: =AND(Setup!G8,"AAAAAFn+vqQ=") ->  | FJ2: =AND(Setup!H8,"AAAAAFn+vqU=") ->  | FK2: =AND(Setup!I8,"AAAAAFn+vqY=") ->  | FL2: =AND(Setup!J8,"AAAAAFn+vqc=") ->  | FM2: =AND(Setup!K8,"AAAAAFn+vqg=") ->  | FN2: =AND(Setup!L8,"AAAAAFn+vqk=") ->  | FO2: =AND(Setup!M8,"AAAAAFn+vqo=") ->  | FP2: =AND(Setup!N8,"AAAAAFn+vqs=") ->  | FQ2: =AND(Setup!O8,"AAAAAFn+vqw=") ->  | FR2: =AND(Setup!P8,"AAAAAFn+vq0=") ->  | FS2: =AND(Setup!Q8,"AAAAAFn+vq4=") ->  | FT2: =AND(Setup!R8,"AAAAAFn+vq8=") ->  | FU2: =AND(Setup!S8,"AAAAAFn+vrA=") ->  | FV2: =AND(Setup!T8,"AAAAAFn+vrE=") ->  | FW2: =AND(Setup!U8,"AAAAAFn+vrI=") ->  | FX2: =AND(Setup!V8,"AAAAAFn+vrM=") ->  | FY2: =AND(Setup!W8,"AAAAAFn+vrQ=") ->  | FZ2: =AND(Setup!X8,"AAAAAFn+vrU=") ->  | GA2: =AND(Setup!Y8,"AAAAAFn+vrY=") ->  | GB2: =AND(Setup!Z8,"AAAAAFn+vrc=") ->  | GC2: =AND(Setup!AA8,"AAAAAFn+vrg=") ->  | GD2: =AND(Setup!AB8,"AAAAAFn+vrk=") ->  | GE2: =AND(Setup!AC8,"AAAAAFn+vro=") ->  | GF2: =AND(Setup!AD8,"AAAAAFn+vrs=") ->  | GG2: =AND(Setup!AE8,"AAAAAFn+vrw=") ->  | GH2: =AND(Setup!AF8,"AAAAAFn+vr0=") ->  | GI2: =AND(Setup!AG8,"AAAAAFn+vr4=") ->  | GJ2: =AND(Setup!AH8,"AAAAAFn+vr8=") ->  | GK2: =AND(Setup!AI8,"AAAAAFn+vsA=") ->  | GL2: =AND(Setup!AJ8,"AAAAAFn+vsE=") ->  | GM2: =AND(Setup!AK8,"AAAAAFn+vsI=") ->  | GN2: =AND(Setup!AL8,"AAAAAFn+vsM=") ->  | GO2: =AND(Setup!AM8,"AAAAAFn+vsQ=") ->  | GP2: =AND(Setup!AN8,"AAAAAFn+vsU=") ->  | GQ2: =AND(Setup!AO8,"AAAAAFn+vsY=") ->  | GR2: =AND(Setup!AP8,"AAAAAFn+vsc=") ->  | GS2: =AND(Setup!AQ8,"AAAAAFn+vsg=") ->  | GT2: =AND(Setup!AR8,"AAAAAFn+vsk=") ->  | GU2: =AND(Setup!AS8,"AAAAAFn+vso=") ->  | GV2: =AND(Setup!AT8,"AAAAAFn+vss=") ->  | GW2: =AND(Setup!AU8,"AAAAAFn+vsw=") ->  | GX2: =AND(Setup!AV8,"AAAAAFn+vs0=") ->  | GY2: =AND(Setup!AW8,"AAAAAFn+vs4=") ->  | GZ2: =AND(Setup!AX8,"AAAAAFn+vs8=") ->  | HA2: =AND(Setup!AY8,"AAAAAFn+vtA=") ->  | HB2: =AND(Setup!AZ8,"AAAAAFn+vtE=") ->  | HC2: =AND(Setup!BA8,"AAAAAFn+vtI=") ->  | HD2: =AND(Setup!BB8,"AAAAAFn+vtM=") ->  | HE2: =AND(Setup!BC8,"AAAAAFn+vtQ=") ->  | HF2: =AND(Setup!BD8,"AAAAAFn+vtU=") ->  | HG2: =AND(Setup!BE8,"AAAAAFn+vtY=") ->  | HH2: =AND(Setup!BF8,"AAAAAFn+vtc=") ->  | HI2: =IF(Setup!9:9,"AAAAAFn+vtg=",0) -> 0 | HJ2: =AND(Setup!A9,"AAAAAFn+vtk=") ->  | HK2: =AND(Setup!B9,"AAAAAFn+vto=") ->  | HL2: =AND(Setup!C9,"AAAAAFn+vts=") ->  | HM2: =AND(Setup!D9,"AAAAAFn+vtw=") ->  | HN2: =AND(Setup!E9,"AAAAAFn+vt0=") ->  | HO2: =AND(Setup!F9,"AAAAAFn+vt4=") ->  | HP2: =AND(Setup!G9,"AAAAAFn+vt8=") ->  | HQ2: =AND(Setup!H9,"AAAAAFn+vuA=") ->  | HR2: =AND(Setup!I9,"AAAAAFn+vuE=") ->  | HS2: =AND(Setup!J9,"AAAAAFn+vuI=") ->  | HT2: =AND(Setup!K9,"AAAAAFn+vuM=") ->  | HU2: =AND(Setup!L9,"AAAAAFn+vuQ=") ->  | HV2: =AND(Setup!M9,"AAAAAFn+vuU=") ->  | HW2: =AND(Setup!N9,"AAAAAFn+vuY=") ->  | HX2: =AND(Setup!O9,"AAAAAFn+vuc=") ->  | HY2: =AND(Setup!P9,"AAAAAFn+vug=") ->  | HZ2: =AND(Setup!Q9,"AAAAAFn+vuk=") ->  | IA2: =AND(Setup!R9,"AAAAAFn+vuo=") ->  | IB2: =AND(Setup!S9,"AAAAAFn+vus=") ->  | IC2: =AND(Setup!T9,"AAAAAFn+vuw=") ->  | ID2: =AND(Setup!U9,"AAAAAFn+vu0=") ->  | IE2: =AND(Setup!V9,"AAAAAFn+vu4=") ->  | IF2: =AND(Setup!W9,"AAAAAFn+vu8=") ->  | IG2: =AND(Setup!X9,"AAAAAFn+vvA=") ->  | IH2: =AND(Setup!Y9,"AAAAAFn+vvE=") ->  | II2: =AND(Setup!Z9,"AAAAAFn+vvI=") ->  | IJ2: =AND(Setup!AA9,"AAAAAFn+vvM=") ->  | IK2: =AND(Setup!AB9,"AAAAAFn+vvQ=") ->  | IL2: =AND(Setup!AC9,"AAAAAFn+vvU=") ->  | IM2: =AND(Setup!AD9,"AAAAAFn+vvY=") ->  | IN2: =AND(Setup!AE9,"AAAAAFn+vvc=") ->  | IO2: =AND(Setup!AF9,"AAAAAFn+vvg=") ->  | IP2: =AND(Setup!AG9,"AAAAAFn+vvk=") ->  | IQ2: =AND(Setup!AH9,"AAAAAFn+vvo=") ->  | IR2: =AND(Setup!AI9,"AAAAAFn+vvs=") ->  | IS2: =AND(Setup!AJ9,"AAAAAFn+vvw=") ->  | IT2: =AND(Setup!AK9,"AAAAAFn+vv0=") ->  | IU2: =AND(Setup!AL9,"AAAAAFn+vv4=") ->  | IV2: =AND(Setup!AM9,"AAAAAFn+vv8=") -> 
A3: =AND(Setup!AN9,"AAAAAH/v6wA=") ->  | B3: =AND(Setup!AO9,"AAAAAH/v6wE=") ->  | C3: =AND(Setup!AP9,"AAAAAH/v6wI=") ->  | D3: =AND(Setup!AQ9,"AAAAAH/v6wM=") ->  | E3: =AND(Setup!AR9,"AAAAAH/v6wQ=") ->  | F3: =AND(Setup!AS9,"AAAAAH/v6wU=") ->  | G3: =AND(Setup!AT9,"AAAAAH/v6wY=") ->  | H3: =AND(Setup!AU9,"AAAAAH/v6wc=") ->  | I3: =AND(Setup!AV9,"AAAAAH/v6wg=") ->  | J3: =AND(Setup!AW9,"AAAAAH/v6wk=") ->  | K3: =AND(Setup!AX9,"AAAAAH/v6wo=") ->  | L3: =AND(Setup!AY9,"AAAAAH/v6ws=") ->  | M3: =AND(Setup!AZ9,"AAAAAH/v6ww=") ->  | N3: =AND(Setup!BA9,"AAAAAH/v6w0=") ->  | O3: =AND(Setup!BB9,"AAAAAH/v6w4=") ->  | P3: =AND(Setup!BC9,"AAAAAH/v6w8=") ->  | Q3: =AND(Setup!BD9,"AAAAAH/v6xA=") ->  | R3: =AND(Setup!BE9,"AAAAAH/v6xE=") ->  | S3: =AND(Setup!BF9,"AAAAAH/v6xI=") ->  | T3: =IF(Setup!10:10,"AAAAAH/v6xM=",0) -> AAAAAH/v6xM= | U3: =AND(Setup!A10,"AAAAAH/v6xQ=") ->  | V3: =AND(Setup!B10,"AAAAAH/v6xU=") ->  | W3: =AND(Setup!C10,"AAAAAH/v6xY=") ->  | X3: =AND(Setup!D10,"AAAAAH/v6xc=") ->  | Y3: =AND(Setup!E10,"AAAAAH/v6xg=") ->  | Z3: =AND(Setup!F10,"AAAAAH/v6xk=") ->  | AA3: =AND(Setup!G10,"AAAAAH/v6xo=") ->  | AB3: =AND(Setup!H10,"AAAAAH/v6xs=") ->  | AC3: =AND(Setup!I10,"AAAAAH/v6xw=") ->  | AD3: =AND(Setup!J10,"AAAAAH/v6x0=") ->  | AE3: =AND(Setup!K10,"AAAAAH/v6x4=") ->  | AF3: =AND(Setup!L10,"AAAAAH/v6x8=") ->  | AG3: =AND(Setup!M10,"AAAAAH/v6yA=") ->  | AH3: =AND(Setup!N10,"AAAAAH/v6yE=") ->  | AI3: =AND(Setup!O10,"AAAAAH/v6yI=") ->  | AJ3: =AND(Setup!P10,"AAAAAH/v6yM=") ->  | AK3: =AND(Setup!Q10,"AAAAAH/v6yQ=") ->  | AL3: =AND(Setup!R10,"AAAAAH/v6yU=") ->  | AM3: =AND(Setup!S10,"AAAAAH/v6yY=") ->  | AN3: =AND(Setup!T10,"AAAAAH/v6yc=") ->  | AO3: =AND(Setup!U10,"AAAAAH/v6yg=") ->  | AP3: =AND(Setup!V10,"AAAAAH/v6yk=") ->  | AQ3: =AND(Setup!W10,"AAAAAH/v6yo=") ->  | AR3: =AND(Setup!X10,"AAAAAH/v6ys=") ->  | AS3: =AND(Setup!Y10,"AAAAAH/v6yw=") ->  | AT3: =AND(Setup!Z10,"AAAAAH/v6y0=") ->  | AU3: =AND(Setup!AA10,"AAAAAH/v6y4=") ->  | AV3: =AND(Setup!AB10,"AAAAAH/v6y8=") ->  | AW3: =AND(Setup!AC10,"AAAAAH/v6zA=") ->  | AX3: =AND(Setup!AD10,"AAAAAH/v6zE=") ->  | AY3: =AND(Setup!AE10,"AAAAAH/v6zI=") ->  | AZ3: =AND(Setup!AF10,"AAAAAH/v6zM=") ->  | BA3: =AND(Setup!AG10,"AAAAAH/v6zQ=") ->  | BB3: =AND(Setup!AH10,"AAAAAH/v6zU=") ->  | BC3: =AND(Setup!AI10,"AAAAAH/v6zY=") ->  | BD3: =AND(Setup!AJ10,"AAAAAH/v6zc=") ->  | BE3: =AND(Setup!AK10,"AAAAAH/v6zg=") ->  | BF3: =AND(Setup!AL10,"AAAAAH/v6zk=") ->  | BG3: =AND(Setup!AM10,"AAAAAH/v6zo=") ->  | BH3: =AND(Setup!AN10,"AAAAAH/v6zs=") ->  | BI3: =AND(Setup!AO10,"AAAAAH/v6zw=") ->  | BJ3: =AND(Setup!AP10,"AAAAAH/v6z0=") ->  | BK3: =AND(Setup!AQ10,"AAAAAH/v6z4=") ->  | BL3: =AND(Setup!AR10,"AAAAAH/v6z8=") ->  | BM3: =AND(Setup!AS10,"AAAAAH/v60A=") ->  | BN3: =AND(Setup!AT10,"AAAAAH/v60E=") ->  | BO3: =AND(Setup!AU10,"AAAAAH/v60I=") ->  | BP3: =AND(Setup!AV10,"AAAAAH/v60M=") ->  | BQ3: =AND(Setup!AW10,"AAAAAH/v60Q=") ->  | BR3: =AND(Setup!AX10,"AAAAAH/v60U=") ->  | BS3: =AND(Setup!AY10,"AAAAAH/v60Y=") ->  | BT3: =AND(Setup!AZ10,"AAAAAH/v60c=") ->  | BU3: =AND(Setup!BA10,"AAAAAH/v60g=") ->  | BV3: =AND(Setup!BB10,"AAAAAH/v60k=") ->  | BW3: =AND(Setup!BC10,"AAAAAH/v60o=") ->  | BX3: =AND(Setup!BD10,"AAAAAH/v60s=") ->  | BY3: =AND(Setup!BE10,"AAAAAH/v60w=") ->  | BZ3: =AND(Setup!BF10,"AAAAAH/v600=") ->  | CA3: =IF(Setup!11:11,"AAAAAH/v604=",0) -> 0 | CB3: =AND(Setup!A11,"AAAAAH/v608=") ->  | CC3: =AND(Setup!B11,"AAAAAH/v61A=") ->  | CD3: =AND(Setup!C11,"AAAAAH/v61E=") ->  | CE3: =AND(Setup!D11,"AAAAAH/v61I=") ->  | CF3: =AND(Setup!E11,"AAAAAH/v61M=") ->  | CG3: =AND(Setup!F11,"AAAAAH/v61Q=") ->  | CH3: =AND(Setup!G11,"AAAAAH/v61U=") ->  | CI3: =AND(Setup!H11,"AAAAAH/v61Y=") ->  | CJ3: =AND(Setup!I11,"AAAAAH/v61c=") ->  | CK3: =AND(Setup!J11,"AAAAAH/v61g=") ->  | CL3: =AND(Setup!K11,"AAAAAH/v61k=") ->  | CM3: =AND(Setup!L11,"AAAAAH/v61o=") ->  | CN3: =AND(Setup!M11,"AAAAAH/v61s=") ->  | CO3: =AND(Setup!N11,"AAAAAH/v61w=") ->  | CP3: =AND(Setup!O11,"AAAAAH/v610=") ->  | CQ3: =AND(Setup!P11,"AAAAAH/v614=") ->  | CR3: =AND(Setup!Q11,"AAAAAH/v618=") ->  | CS3: =AND(Setup!R11,"AAAAAH/v62A=") ->  | CT3: =AND(Setup!S11,"AAAAAH/v62E=") ->  | CU3: =AND(Setup!T11,"AAAAAH/v62I=") ->  | CV3: =AND(Setup!U11,"AAAAAH/v62M=") ->  | CW3: =AND(Setup!V11,"AAAAAH/v62Q=") ->  | CX3: =AND(Setup!W11,"AAAAAH/v62U=") ->  | CY3: =AND(Setup!X11,"AAAAAH/v62Y=") ->  | CZ3: =AND(Setup!Y11,"AAAAAH/v62c=") ->  | DA3: =AND(Setup!Z11,"AAAAAH/v62g=") ->  | DB3: =AND(Setup!AA11,"AAAAAH/v62k=") ->  | DC3: =AND(Setup!AB11,"AAAAAH/v62o=") ->  | DD3: =AND(Setup!AC11,"AAAAAH/v62s=") ->  | DE3: =AND(Setup!AD11,"AAAAAH/v62w=") ->  | DF3: =AND(Setup!AE11,"AAAAAH/v620=") ->  | DG3: =AND(Setup!AF11,"AAAAAH/v624=") ->  | DH3: =AND(Setup!AG11,"AAAAAH/v628=") ->  | DI3: =AND(Setup!AH11,"AAAAAH/v63A=") ->  | DJ3: =AND(Setup!AI11,"AAAAAH/v63E=") ->  | DK3: =AND(Setup!AJ11,"AAAAAH/v63I=") ->  | DL3: =AND(Setup!AK11,"AAAAAH/v63M=") ->  | DM3: =AND(Setup!AL11,"AAAAAH/v63Q=") ->  | DN3: =AND(Setup!AM11,"AAAAAH/v63U=") ->  | DO3: =AND(Setup!AN11,"AAAAAH/v63Y=") ->  | DP3: =AND(Setup!AO11,"AAAAAH/v63c=") ->  | DQ3: =AND(Setup!AP11,"AAAAAH/v63g=") ->  | DR3: =AND(Setup!AQ11,"AAAAAH/v63k=") ->  | DS3: =AND(Setup!AR11,"AAAAAH/v63o=") ->  | DT3: =AND(Setup!AS11,"AAAAAH/v63s=") ->  | DU3: =AND(Setup!AT11,"AAAAAH/v63w=") ->  | DV3: =AND(Setup!AU11,"AAAAAH/v630=") ->  | DW3: =AND(Setup!AV11,"AAAAAH/v634=") ->  | DX3: =AND(Setup!AW11,"AAAAAH/v638=") ->  | DY3: =AND(Setup!AX11,"AAAAAH/v64A=") ->  | DZ3: =AND(Setup!AY11,"AAAAAH/v64E=") ->  | EA3: =AND(Setup!AZ11,"AAAAAH/v64I=") ->  | EB3: =AND(Setup!BA11,"AAAAAH/v64M=") ->  | EC3: =AND(Setup!BB11,"AAAAAH/v64Q=") ->  | ED3: =AND(Setup!BC11,"AAAAAH/v64U=") ->  | EE3: =AND(Setup!BD11,"AAAAAH/v64Y=") ->  | EF3: =AND(Setup!BE11,"AAAAAH/v64c=") ->  | EG3: =AND(Setup!BF11,"AAAAAH/v64g=") ->  | EH3: =IF(Setup!12:12,"AAAAAH/v64k=",0) -> 0 | EI3: =AND(Setup!A12,"AAAAAH/v64o=") ->  | EJ3: =AND(Setup!B12,"AAAAAH/v64s=") ->  | EK3: =AND(Setup!C12,"AAAAAH/v64w=") ->  | EL3: =AND(Setup!D12,"AAAAAH/v640=") ->  | EM3: =AND(Setup!E12,"AAAAAH/v644=") ->  | EN3: =AND(Setup!F12,"AAAAAH/v648=") ->  | EO3: =AND(Setup!G12,"AAAAAH/v65A=") ->  | EP3: =AND(Setup!H12,"AAAAAH/v65E=") ->  | EQ3: =AND(Setup!I12,"AAAAAH/v65I=") ->  | ER3: =AND(Setup!J12,"AAAAAH/v65M=") ->  | ES3: =AND(Setup!K12,"AAAAAH/v65Q=") ->  | ET3: =AND(Setup!L12,"AAAAAH/v65U=") ->  | EU3: =AND(Setup!M12,"AAAAAH/v65Y=") ->  | EV3: =AND(Setup!N12,"AAAAAH/v65c=") ->  | EW3: =AND(Setup!O12,"AAAAAH/v65g=") ->  | EX3: =AND(Setup!P12,"AAAAAH/v65k=") ->  | EY3: =AND(Setup!Q12,"AAAAAH/v65o=") ->  | EZ3: =AND(Setup!R12,"AAAAAH/v65s=") ->  | FA3: =AND(Setup!S12,"AAAAAH/v65w=") ->  | FB3: =AND(Setup!T12,"AAAAAH/v650=") ->  | FC3: =AND(Setup!U12,"AAAAAH/v654=") ->  | FD3: =AND(Setup!V12,"AAAAAH/v658=") ->  | FE3: =AND(Setup!W12,"AAAAAH/v66A=") ->  | FF3: =AND(Setup!X12,"AAAAAH/v66E=") ->  | FG3: =AND(Setup!Y12,"AAAAAH/v66I=") ->  | FH3: =AND(Setup!Z12,"AAAAAH/v66M=") ->  | FI3: =AND(Setup!AA12,"AAAAAH/v66Q=") ->  | FJ3: =AND(Setup!AB12,"AAAAAH/v66U=") ->  | FK3: =AND(Setup!AC12,"AAAAAH/v66Y=") ->  | FL3: =AND(Setup!AD12,"AAAAAH/v66c=") ->  | FM3: =AND(Setup!AE12,"AAAAAH/v66g=") ->  | FN3: =AND(Setup!AF12,"AAAAAH/v66k=") ->  | FO3: =AND(Setup!AG12,"AAAAAH/v66o=") ->  | FP3: =AND(Setup!AH12,"AAAAAH/v66s=") ->  | FQ3: =AND(Setup!AI12,"AAAAAH/v66w=") ->  | FR3: =AND(Setup!AJ12,"AAAAAH/v660=") ->  | FS3: =AND(Setup!AK12,"AAAAAH/v664=") ->  | FT3: =AND(Setup!AL12,"AAAAAH/v668=") ->  | FU3: =AND(Setup!AM12,"AAAAAH/v67A=") ->  | FV3: =AND(Setup!AN12,"AAAAAH/v67E=") ->  | FW3: =AND(Setup!AO12,"AAAAAH/v67I=") ->  | FX3: =AND(Setup!AP12,"AAAAAH/v67M=") ->  | FY3: =AND(Setup!AQ12,"AAAAAH/v67Q=") ->  | FZ3: =AND(Setup!AR12,"AAAAAH/v67U=") ->  | GA3: =AND(Setup!AS12,"AAAAAH/v67Y=") ->  | GB3: =AND(Setup!AT12,"AAAAAH/v67c=") ->  | GC3: =AND(Setup!AU12,"AAAAAH/v67g=") ->  | GD3: =AND(Setup!AV12,"AAAAAH/v67k=") ->  | GE3: =AND(Setup!AW12,"AAAAAH/v67o=") ->  | GF3: =AND(Setup!AX12,"AAAAAH/v67s=") ->  | GG3: =AND(Setup!AY12,"AAAAAH/v67w=") ->  | GH3: =AND(Setup!AZ12,"AAAAAH/v670=") ->  | GI3: =AND(Setup!BA12,"AAAAAH/v674=") ->  | GJ3: =AND(Setup!BB12,"AAAAAH/v678=") ->  | GK3: =AND(Setup!BC12,"AAAAAH/v68A=") ->  | GL3: =AND(Setup!BD12,"AAAAAH/v68E=") ->  | GM3: =AND(Setup!BE12,"AAAAAH/v68I=") ->  | GN3: =AND(Setup!BF12,"AAAAAH/v68M=") ->  | GO3: =IF(Setup!13:13,"AAAAAH/v68Q=",0) -> 0 | GP3: =AND(Setup!A13,"AAAAAH/v68U=") ->  | GQ3: =AND(Setup!B13,"AAAAAH/v68Y=") ->  | GR3: =AND(Setup!C13,"AAAAAH/v68c=") ->  | GS3: =AND(Setup!D13,"AAAAAH/v68g=") ->  | GT3: =AND(Setup!E13,"AAAAAH/v68k=") ->  | GU3: =AND(Setup!F13,"AAAAAH/v68o=") ->  | GV3: =AND(Setup!G13,"AAAAAH/v68s=") ->  | GW3: =AND(Setup!H13,"AAAAAH/v68w=") ->  | GX3: =AND(Setup!I13,"AAAAAH/v680=") ->  | GY3: =AND(Setup!J13,"AAAAAH/v684=") ->  | GZ3: =AND(Setup!K13,"AAAAAH/v688=") ->  | HA3: =AND(Setup!L13,"AAAAAH/v69A=") ->  | HB3: =AND(Setup!M13,"AAAAAH/v69E=") ->  | HC3: =AND(Setup!N13,"AAAAAH/v69I=") ->  | HD3: =AND(Setup!O13,"AAAAAH/v69M=") ->  | HE3: =AND(Setup!P13,"AAAAAH/v69Q=") ->  | HF3: =AND(Setup!Q13,"AAAAAH/v69U=") ->  | HG3: =AND(Setup!R13,"AAAAAH/v69Y=") ->  | HH3: =AND(Setup!S13,"AAAAAH/v69c=") ->  | HI3: =AND(Setup!T13,"AAAAAH/v69g=") ->  | HJ3: =AND(Setup!U13,"AAAAAH/v69k=") ->  | HK3: =AND(Setup!V13,"AAAAAH/v69o=") ->  | HL3: =AND(Setup!W13,"AAAAAH/v69s=") ->  | HM3: =AND(Setup!X13,"AAAAAH/v69w=") ->  | HN3: =AND(Setup!Y13,"AAAAAH/v690=") ->  | HO3: =AND(Setup!Z13,"AAAAAH/v694=") ->  | HP3: =AND(Setup!AA13,"AAAAAH/v698=") ->  | HQ3: =AND(Setup!AB13,"AAAAAH/v6+A=") ->  | HR3: =AND(Setup!AC13,"AAAAAH/v6+E=") ->  | HS3: =AND(Setup!AD13,"AAAAAH/v6+I=") ->  | HT3: =AND(Setup!AE13,"AAAAAH/v6+M=") ->  | HU3: =AND(Setup!AF13,"AAAAAH/v6+Q=") ->  | HV3: =AND(Setup!AG13,"AAAAAH/v6+U=") ->  | HW3: =AND(Setup!AH13,"AAAAAH/v6+Y=") ->  | HX3: =AND(Setup!AI13,"AAAAAH/v6+c=") ->  | HY3: =AND(Setup!AJ13,"AAAAAH/v6+g=") ->  | HZ3: =AND(Setup!AK13,"AAAAAH/v6+k=") ->  | IA3: =AND(Setup!AL13,"AAAAAH/v6+o=") ->  | IB3: =AND(Setup!AM13,"AAAAAH/v6+s=") ->  | IC3: =AND(Setup!AN13,"AAAAAH/v6+w=") ->  | ID3: =AND(Setup!AO13,"AAAAAH/v6+0=") ->  | IE3: =AND(Setup!AP13,"AAAAAH/v6+4=") ->  | IF3: =AND(Setup!AQ13,"AAAAAH/v6+8=") ->  | IG3: =AND(Setup!AR13,"AAAAAH/v6/A=") ->  | IH3: =AND(Setup!AS13,"AAAAAH/v6/E=") ->  | II3: =AND(Setup!AT13,"AAAAAH/v6/I=") ->  | IJ3: =AND(Setup!AU13,"AAAAAH/v6/M=") ->  | IK3: =AND(Setup!AV13,"AAAAAH/v6/Q=") ->  | IL3: =AND(Setup!AW13,"AAAAAH/v6/U=") ->  | IM3: =AND(Setup!AX13,"AAAAAH/v6/Y=") ->  | IN3: =AND(Setup!AY13,"AAAAAH/v6/c=") ->  | IO3: =AND(Setup!AZ13,"AAAAAH/v6/g=") ->  | IP3: =AND(Setup!BA13,"AAAAAH/v6/k=") ->  | IQ3: =AND(Setup!BB13,"AAAAAH/v6/o=") ->  | IR3: =AND(Setup!BC13,"AAAAAH/v6/s=") ->  | IS3: =AND(Setup!BD13,"AAAAAH/v6/w=") ->  | IT3: =AND(Setup!BE13,"AAAAAH/v6/0=") ->  | IU3: =AND(Setup!BF13,"AAAAAH/v6/4=") ->  | IV3: =IF(Setup!14:14,"AAAAAH/v6/8=",0) -> 0
A4: =AND(Setup!A14,"AAAAAH8M2wA=") ->  | B4: =AND(Setup!B14,"AAAAAH8M2wE=") ->  | C4: =AND(Setup!C14,"AAAAAH8M2wI=") ->  | D4: =AND(Setup!D14,"AAAAAH8M2wM=") ->  | E4: =AND(Setup!E14,"AAAAAH8M2wQ=") ->  | F4: =AND(Setup!F14,"AAAAAH8M2wU=") ->  | G4: =AND(Setup!G14,"AAAAAH8M2wY=") ->  | H4: =AND(Setup!H14,"AAAAAH8M2wc=") ->  | I4: =AND(Setup!I14,"AAAAAH8M2wg=") ->  | J4: =AND(Setup!J14,"AAAAAH8M2wk=") ->  | K4: =AND(Setup!K14,"AAAAAH8M2wo=") ->  | L4: =AND(Setup!L14,"AAAAAH8M2ws=") ->  | M4: =AND(Setup!M14,"AAAAAH8M2ww=") ->  | N4: =AND(Setup!N14,"AAAAAH8M2w0=") ->  | O4: =AND(Setup!O14,"AAAAAH8M2w4=") ->  | P4: =AND(Setup!P14,"AAAAAH8M2w8=") ->  | Q4: =AND(Setup!Q14,"AAAAAH8M2xA=") ->  | R4: =AND(Setup!R14,"AAAAAH8M2xE=") ->  | S4: =AND(Setup!S14,"AAAAAH8M2xI=") ->  | T4: =AND(Setup!T14,"AAAAAH8M2xM=") ->  | U4: =AND(Setup!U14,"AAAAAH8M2xQ=") ->  | V4: =AND(Setup!V14,"AAAAAH8M2xU=") ->  | W4: =AND(Setup!W14,"AAAAAH8M2xY=") ->  | X4: =AND(Setup!X14,"AAAAAH8M2xc=") ->  | Y4: =AND(Setup!Y14,"AAAAAH8M2xg=") ->  | Z4: =AND(Setup!Z14,"AAAAAH8M2xk=") ->  | AA4: =AND(Setup!AA14,"AAAAAH8M2xo=") ->  | AB4: =AND(Setup!AB14,"AAAAAH8M2xs=") ->  | AC4: =AND(Setup!AC14,"AAAAAH8M2xw=") ->  | AD4: =AND(Setup!AD14,"AAAAAH8M2x0=") ->  | AE4: =AND(Setup!AE14,"AAAAAH8M2x4=") ->  | AF4: =AND(Setup!AF14,"AAAAAH8M2x8=") ->  | AG4: =AND(Setup!AG14,"AAAAAH8M2yA=") ->  | AH4: =AND(Setup!AH14,"AAAAAH8M2yE=") ->  | AI4: =AND(Setup!AI14,"AAAAAH8M2yI=") ->  | AJ4: =AND(Setup!AJ14,"AAAAAH8M2yM=") ->  | AK4: =AND(Setup!AK14,"AAAAAH8M2yQ=") ->  | AL4: =AND(Setup!AL14,"AAAAAH8M2yU=") ->  | AM4: =AND(Setup!AM14,"AAAAAH8M2yY=") ->  | AN4: =AND(Setup!AN14,"AAAAAH8M2yc=") ->  | AO4: =AND(Setup!AO14,"AAAAAH8M2yg=") ->  | AP4: =AND(Setup!AP14,"AAAAAH8M2yk=") ->  | AQ4: =AND(Setup!AQ14,"AAAAAH8M2yo=") ->  | AR4: =AND(Setup!AR14,"AAAAAH8M2ys=") ->  | AS4: =AND(Setup!AS14,"AAAAAH8M2yw=") ->  | AT4: =AND(Setup!AT14,"AAAAAH8M2y0=") ->  | AU4: =AND(Setup!AU14,"AAAAAH8M2y4=") ->  | AV4: =AND(Setup!AV14,"AAAAAH8M2y8=") ->  | AW4: =AND(Setup!AW14,"AAAAAH8M2zA=") ->  | AX4: =AND(Setup!AX14,"AAAAAH8M2zE=") ->  | AY4: =AND(Setup!AY14,"AAAAAH8M2zI=") ->  | AZ4: =AND(Setup!AZ14,"AAAAAH8M2zM=") ->  | BA4: =AND(Setup!BA14,"AAAAAH8M2zQ=") ->  | BB4: =AND(Setup!BB14,"AAAAAH8M2zU=") ->  | BC4: =AND(Setup!BC14,"AAAAAH8M2zY=") ->  | BD4: =AND(Setup!BD14,"AAAAAH8M2zc=") ->  | BE4: =AND(Setup!BE14,"AAAAAH8M2zg=") ->  | BF4: =AND(Setup!BF14,"AAAAAH8M2zk=") ->  | BG4: =IF(Setup!15:15,"AAAAAH8M2zo=",0) -> 0 | BH4: =AND(Setup!A15,"AAAAAH8M2zs=") ->  | BI4: =AND(Setup!B15,"AAAAAH8M2zw=") ->  | BJ4: =AND(Setup!C15,"AAAAAH8M2z0=") ->  | BK4: =AND(Setup!D15,"AAAAAH8M2z4=") ->  | BL4: =AND(Setup!E15,"AAAAAH8M2z8=") ->  | BM4: =AND(Setup!F15,"AAAAAH8M20A=") ->  | BN4: =AND(Setup!G15,"AAAAAH8M20E=") ->  | BO4: =AND(Setup!H15,"AAAAAH8M20I=") ->  | BP4: =AND(Setup!I15,"AAAAAH8M20M=") ->  | BQ4: =AND(Setup!J15,"AAAAAH8M20Q=") ->  | BR4: =AND(Setup!K15,"AAAAAH8M20U=") ->  | BS4: =AND(Setup!L15,"AAAAAH8M20Y=") ->  | BT4: =AND(Setup!M15,"AAAAAH8M20c=") ->  | BU4: =AND(Setup!N15,"AAAAAH8M20g=") ->  | BV4: =AND(Setup!O15,"AAAAAH8M20k=") ->  | BW4: =AND(Setup!P15,"AAAAAH8M20o=") ->  | BX4: =AND(Setup!Q15,"AAAAAH8M20s=") ->  | BY4: =AND(Setup!R15,"AAAAAH8M20w=") ->  | BZ4: =AND(Setup!S15,"AAAAAH8M200=") ->  | CA4: =AND(Setup!T15,"AAAAAH8M204=") ->  | CB4: =AND(Setup!U15,"AAAAAH8M208=") ->  | CC4: =AND(Setup!V15,"AAAAAH8M21A=") ->  | CD4: =AND(Setup!W15,"AAAAAH8M21E=") ->  | CE4: =AND(Setup!X15,"AAAAAH8M21I=") ->  | CF4: =AND(Setup!Y15,"AAAAAH8M21M=") ->  | CG4: =AND(Setup!Z15,"AAAAAH8M21Q=") ->  | CH4: =AND(Setup!AA15,"AAAAAH8M21U=") ->  | CI4: =AND(Setup!AB15,"AAAAAH8M21Y=") ->  | CJ4: =AND(Setup!AC15,"AAAAAH8M21c=") ->  | CK4: =AND(Setup!AD15,"AAAAAH8M21g=") ->  | CL4: =AND(Setup!AE15,"AAAAAH8M21k=") ->  | CM4: =AND(Setup!AF15,"AAAAAH8M21o=") ->  | CN4: =AND(Setup!AG15,"AAAAAH8M21s=") ->  | CO4: =AND(Setup!AH15,"AAAAAH8M21w=") ->  | CP4: =AND(Setup!AI15,"AAAAAH8M210=") ->  | CQ4: =AND(Setup!AJ15,"AAAAAH8M214=") ->  | CR4: =AND(Setup!AK15,"AAAAAH8M218=") ->  | CS4: =AND(Setup!AL15,"AAAAAH8M22A=") ->  | CT4: =AND(Setup!AM15,"AAAAAH8M22E=") ->  | CU4: =AND(Setup!AN15,"AAAAAH8M22I=") ->  | CV4: =AND(Setup!AO15,"AAAAAH8M22M=") ->  | CW4: =AND(Setup!AP15,"AAAAAH8M22Q=") ->  | CX4: =AND(Setup!AQ15,"AAAAAH8M22U=") ->  | CY4: =AND(Setup!AR15,"AAAAAH8M22Y=") ->  | CZ4: =AND(Setup!AS15,"AAAAAH8M22c=") ->  | DA4: =AND(Setup!AT15,"AAAAAH8M22g=") ->  | DB4: =AND(Setup!AU15,"AAAAAH8M22k=") ->  | DC4: =AND(Setup!AV15,"AAAAAH8M22o=") ->  | DD4: =AND(Setup!AW15,"AAAAAH8M22s=") ->  | DE4: =AND(Setup!AX15,"AAAAAH8M22w=") ->  | DF4: =AND(Setup!AY15,"AAAAAH8M220=") ->  | DG4: =AND(Setup!AZ15,"AAAAAH8M224=") ->  | DH4: =AND(Setup!BA15,"AAAAAH8M228=") ->  | DI4: =AND(Setup!BB15,"AAAAAH8M23A=") ->  | DJ4: =AND(Setup!BC15,"AAAAAH8M23E=") ->  | DK4: =AND(Setup!BD15,"AAAAAH8M23I=") ->  | DL4: =AND(Setup!BE15,"AAAAAH8M23M=") ->  | DM4: =AND(Setup!BF15,"AAAAAH8M23Q=") ->  | DN4: =IF(Setup!16:16,"AAAAAH8M23U=",0) -> 0 | DO4: =AND(Setup!A16,"AAAAAH8M23Y=") ->  | DP4: =AND(Setup!B16,"AAAAAH8M23c=") ->  | DQ4: =AND(Setup!C16,"AAAAAH8M23g=") ->  | DR4: =AND(Setup!D16,"AAAAAH8M23k=") ->  | DS4: =AND(Setup!E16,"AAAAAH8M23o=") ->  | DT4: =AND(Setup!F16,"AAAAAH8M23s=") ->  | DU4: =AND(Setup!G16,"AAAAAH8M23w=") ->  | DV4: =AND(Setup!H16,"AAAAAH8M230=") ->  | DW4: =AND(Setup!I16,"AAAAAH8M234=") ->  | DX4: =AND(Setup!J16,"AAAAAH8M238=") ->  | DY4: =AND(Setup!K16,"AAAAAH8M24A=") ->  | DZ4: =AND(Setup!L16,"AAAAAH8M24E=") ->  | EA4: =AND(Setup!M16,"AAAAAH8M24I=") ->  | EB4: =AND(Setup!N16,"AAAAAH8M24M=") ->  | EC4: =AND(Setup!O16,"AAAAAH8M24Q=") ->  | ED4: =AND(Setup!P16,"AAAAAH8M24U=") ->  | EE4: =AND(Setup!Q16,"AAAAAH8M24Y=") ->  | EF4: =AND(Setup!R16,"AAAAAH8M24c=") ->  | EG4: =AND(Setup!S16,"AAAAAH8M24g=") ->  | EH4: =AND(Setup!T16,"AAAAAH8M24k=") ->  | EI4: =AND(Setup!U16,"AAAAAH8M24o=") ->  | EJ4: =AND(Setup!V16,"AAAAAH8M24s=") ->  | EK4: =AND(Setup!W16,"AAAAAH8M24w=") ->  | EL4: =AND(Setup!X16,"AAAAAH8M240=") ->  | EM4: =AND(Setup!Y16,"AAAAAH8M244=") ->  | EN4: =AND(Setup!Z16,"AAAAAH8M248=") ->  | EO4: =AND(Setup!AA16,"AAAAAH8M25A=") ->  | EP4: =AND(Setup!AB16,"AAAAAH8M25E=") ->  | EQ4: =AND(Setup!AC16,"AAAAAH8M25I=") ->  | ER4: =AND(Setup!AD16,"AAAAAH8M25M=") ->  | ES4: =AND(Setup!AE16,"AAAAAH8M25Q=") ->  | ET4: =AND(Setup!AF16,"AAAAAH8M25U=") ->  | EU4: =AND(Setup!AG16,"AAAAAH8M25Y=") ->  | EV4: =AND(Setup!AH16,"AAAAAH8M25c=") ->  | EW4: =AND(Setup!AI16,"AAAAAH8M25g=") ->  | EX4: =AND(Setup!AJ16,"AAAAAH8M25k=") ->  | EY4: =AND(Setup!AK16,"AAAAAH8M25o=") ->  | EZ4: =AND(Setup!AL16,"AAAAAH8M25s=") ->  | FA4: =AND(Setup!AM16,"AAAAAH8M25w=") ->  | FB4: =AND(Setup!AN16,"AAAAAH8M250=") ->  | FC4: =AND(Setup!AO16,"AAAAAH8M254=") ->  | FD4: =AND(Setup!AP16,"AAAAAH8M258=") ->  | FE4: =AND(Setup!AQ16,"AAAAAH8M26A=") ->  | FF4: =AND(Setup!AR16,"AAAAAH8M26E=") ->  | FG4: =AND(Setup!AS16,"AAAAAH8M26I=") ->  | FH4: =AND(Setup!AT16,"AAAAAH8M26M=") ->  | FI4: =AND(Setup!AU16,"AAAAAH8M26Q=") ->  | FJ4: =AND(Setup!AV16,"AAAAAH8M26U=") ->  | FK4: =AND(Setup!AW16,"AAAAAH8M26Y=") ->  | FL4: =AND(Setup!AX16,"AAAAAH8M26c=") ->  | FM4: =AND(Setup!AY16,"AAAAAH8M26g=") ->  | FN4: =AND(Setup!AZ16,"AAAAAH8M26k=") ->  | FO4: =AND(Setup!BA16,"AAAAAH8M26o=") ->  | FP4: =AND(Setup!BB16,"AAAAAH8M26s=") ->  | FQ4: =AND(Setup!BC16,"AAAAAH8M26w=") ->  | FR4: =AND(Setup!BD16,"AAAAAH8M260=") ->  | FS4: =AND(Setup!BE16,"AAAAAH8M264=") ->  | FT4: =AND(Setup!BF16,"AAAAAH8M268=") ->  | FU4: =IF(Setup!17:17,"AAAAAH8M27A=",0) -> 0 | FV4: =AND(Setup!A17,"AAAAAH8M27E=") ->  | FW4: =AND(Setup!B17,"AAAAAH8M27I=") ->  | FX4: =AND(Setup!C17,"AAAAAH8M27M=") ->  | FY4: =AND(Setup!D17,"AAAAAH8M27Q=") ->  | FZ4: =AND(Setup!E17,"AAAAAH8M27U=") ->  | GA4: =AND(Setup!F17,"AAAAAH8M27Y=") ->  | GB4: =AND(Setup!G17,"AAAAAH8M27c=") ->  | GC4: =AND(Setup!H17,"AAAAAH8M27g=") ->  | GD4: =AND(Setup!I17,"AAAAAH8M27k=") ->  | GE4: =AND(Setup!J17,"AAAAAH8M27o=") ->  | GF4: =AND(Setup!K17,"AAAAAH8M27s=") ->  | GG4: =AND(Setup!L17,"AAAAAH8M27w=") ->  | GH4: =AND(Setup!M17,"AAAAAH8M270=") ->  | GI4: =AND(Setup!N17,"AAAAAH8M274=") ->  | GJ4: =AND(Setup!O17,"AAAAAH8M278=") ->  | GK4: =AND(Setup!P17,"AAAAAH8M28A=") ->  | GL4: =AND(Setup!Q17,"AAAAAH8M28E=") ->  | GM4: =AND(Setup!R17,"AAAAAH8M28I=") ->  | GN4: =AND(Setup!S17,"AAAAAH8M28M=") ->  | GO4: =AND(Setup!T17,"AAAAAH8M28Q=") ->  | GP4: =AND(Setup!U17,"AAAAAH8M28U=") ->  | GQ4: =AND(Setup!V17,"AAAAAH8M28Y=") ->  | GR4: =AND(Setup!W17,"AAAAAH8M28c=") ->  | GS4: =AND(Setup!X17,"AAAAAH8M28g=") ->  | GT4: =AND(Setup!Y17,"AAAAAH8M28k=") ->  | GU4: =AND(Setup!Z17,"AAAAAH8M28o=") ->  | GV4: =AND(Setup!AA17,"AAAAAH8M28s=") ->  | GW4: =AND(Setup!AB17,"AAAAAH8M28w=") ->  | GX4: =AND(Setup!AC17,"AAAAAH8M280=") ->  | GY4: =AND(Setup!AD17,"AAAAAH8M284=") ->  | GZ4: =AND(Setup!AE17,"AAAAAH8M288=") ->  | HA4: =AND(Setup!AF17,"AAAAAH8M29A=") ->  | HB4: =AND(Setup!AG17,"AAAAAH8M29E=") ->  | HC4: =AND(Setup!AH17,"AAAAAH8M29I=") ->  | HD4: =AND(Setup!AI17,"AAAAAH8M29M=") ->  | HE4: =AND(Setup!AJ17,"AAAAAH8M29Q=") ->  | HF4: =AND(Setup!AK17,"AAAAAH8M29U=") ->  | HG4: =AND(Setup!AL17,"AAAAAH8M29Y=") ->  | HH4: =AND(Setup!AM17,"AAAAAH8M29c=") ->  | HI4: =AND(Setup!AN17,"AAAAAH8M29g=") ->  | HJ4: =AND(Setup!AO17,"AAAAAH8M29k=") ->  | HK4: =AND(Setup!AP17,"AAAAAH8M29o=") ->  | HL4: =AND(Setup!AQ17,"AAAAAH8M29s=") ->  | HM4: =AND(Setup!AR17,"AAAAAH8M29w=") ->  | HN4: =AND(Setup!AS17,"AAAAAH8M290=") ->  | HO4: =AND(Setup!AT17,"AAAAAH8M294=") ->  | HP4: =AND(Setup!AU17,"AAAAAH8M298=") ->  | HQ4: =AND(Setup!AV17,"AAAAAH8M2+A=") ->  | HR4: =AND(Setup!AW17,"AAAAAH8M2+E=") ->  | HS4: =AND(Setup!AX17,"AAAAAH8M2+I=") ->  | HT4: =AND(Setup!AY17,"AAAAAH8M2+M=") ->  | HU4: =AND(Setup!AZ17,"AAAAAH8M2+Q=") ->  | HV4: =AND(Setup!BA17,"AAAAAH8M2+U=") ->  | HW4: =AND(Setup!BB17,"AAAAAH8M2+Y=") ->  | HX4: =AND(Setup!BC17,"AAAAAH8M2+c=") ->  | HY4: =AND(Setup!BD17,"AAAAAH8M2+g=") ->  | HZ4: =AND(Setup!BE17,"AAAAAH8M2+k=") ->  | IA4: =AND(Setup!BF17,"AAAAAH8M2+o=") ->  | IB4: =IF(Setup!18:18,"AAAAAH8M2+s=",0) -> 0 | IC4: =AND(Setup!A18,"AAAAAH8M2+w=") ->  | ID4: =AND(Setup!B18,"AAAAAH8M2+0=") ->  | IE4: =AND(Setup!C18,"AAAAAH8M2+4=") ->  | IF4: =AND(Setup!D18,"AAAAAH8M2+8=") ->  | IG4: =AND(Setup!E18,"AAAAAH8M2/A=") ->  | IH4: =AND(Setup!F18,"AAAAAH8M2/E=") ->  | II4: =AND(Setup!G18,"AAAAAH8M2/I=") ->  | IJ4: =AND(Setup!H18,"AAAAAH8M2/M=") ->  | IK4: =AND(Setup!I18,"AAAAAH8M2/Q=") ->  | IL4: =AND(Setup!J18,"AAAAAH8M2/U=") ->  | IM4: =AND(Setup!K18,"AAAAAH8M2/Y=") ->  | IN4: =AND(Setup!L18,"AAAAAH8M2/c=") ->  | IO4: =AND(Setup!M18,"AAAAAH8M2/g=") ->  | IP4: =AND(Setup!N18,"AAAAAH8M2/k=") ->  | IQ4: =AND(Setup!O18,"AAAAAH8M2/o=") ->  | IR4: =AND(Setup!P18,"AAAAAH8M2/s=") ->  | IS4: =AND(Setup!Q18,"AAAAAH8M2/w=") ->  | IT4: =AND(Setup!R18,"AAAAAH8M2/0=") ->  | IU4: =AND(Setup!S18,"AAAAAH8M2/4=") ->  | IV4: =AND(Setup!T18,"AAAAAH8M2/8=") -> 
A5: =AND(Setup!U18,"AAAAAH9c3wA=") ->  | B5: =AND(Setup!V18,"AAAAAH9c3wE=") ->  | C5: =AND(Setup!W18,"AAAAAH9c3wI=") ->  | D5: =AND(Setup!X18,"AAAAAH9c3wM=") ->  | E5: =AND(Setup!Y18,"AAAAAH9c3wQ=") ->  | F5: =AND(Setup!Z18,"AAAAAH9c3wU=") ->  | G5: =AND(Setup!AA18,"AAAAAH9c3wY=") ->  | H5: =AND(Setup!AB18,"AAAAAH9c3wc=") ->  | I5: =AND(Setup!AC18,"AAAAAH9c3wg=") ->  | J5: =AND(Setup!AD18,"AAAAAH9c3wk=") ->  | K5: =AND(Setup!AE18,"AAAAAH9c3wo=") ->  | L5: =AND(Setup!AF18,"AAAAAH9c3ws=") ->  | M5: =AND(Setup!AG18,"AAAAAH9c3ww=") ->  | N5: =AND(Setup!AH18,"AAAAAH9c3w0=") ->  | O5: =AND(Setup!AI18,"AAAAAH9c3w4=") ->  | P5: =AND(Setup!AJ18,"AAAAAH9c3w8=") ->  | Q5: =AND(Setup!AK18,"AAAAAH9c3xA=") ->  | R5: =AND(Setup!AL18,"AAAAAH9c3xE=") ->  | S5: =AND(Setup!AM18,"AAAAAH9c3xI=") ->  | T5: =AND(Setup!AN18,"AAAAAH9c3xM=") ->  | U5: =AND(Setup!AO18,"AAAAAH9c3xQ=") ->  | V5: =AND(Setup!AP18,"AAAAAH9c3xU=") ->  | W5: =AND(Setup!AQ18,"AAAAAH9c3xY=") ->  | X5: =AND(Setup!AR18,"AAAAAH9c3xc=") ->  | Y5: =AND(Setup!AS18,"AAAAAH9c3xg=") ->  | Z5: =AND(Setup!AT18,"AAAAAH9c3xk=") ->  | AA5: =AND(Setup!AU18,"AAAAAH9c3xo=") ->  | AB5: =AND(Setup!AV18,"AAAAAH9c3xs=") ->  | AC5: =AND(Setup!AW18,"AAAAAH9c3xw=") ->  | AD5: =AND(Setup!AX18,"AAAAAH9c3x0=") ->  | AE5: =AND(Setup!AY18,"AAAAAH9c3x4=") ->  | AF5: =AND(Setup!AZ18,"AAAAAH9c3x8=") ->  | AG5: =AND(Setup!BA18,"AAAAAH9c3yA=") ->  | AH5: =AND(Setup!BB18,"AAAAAH9c3yE=") ->  | AI5: =AND(Setup!BC18,"AAAAAH9c3yI=") ->  | AJ5: =AND(Setup!BD18,"AAAAAH9c3yM=") ->  | AK5: =AND(Setup!BE18,"AAAAAH9c3yQ=") ->  | AL5: =AND(Setup!BF18,"AAAAAH9c3yU=") ->  | AM5: =IF(Setup!19:19,"AAAAAH9c3yY=",0) -> 0 | AN5: =AND(Setup!A19,"AAAAAH9c3yc=") ->  | AO5: =AND(Setup!B19,"AAAAAH9c3yg=") ->  | AP5: =AND(Setup!C19,"AAAAAH9c3yk=") ->  | AQ5: =AND(Setup!D19,"AAAAAH9c3yo=") ->  | AR5: =AND(Setup!E19,"AAAAAH9c3ys=") ->  | AS5: =AND(Setup!F19,"AAAAAH9c3yw=") ->  | AT5: =AND(Setup!G19,"AAAAAH9c3y0=") ->  | AU5: =AND(Setup!H19,"AAAAAH9c3y4=") ->  | AV5: =AND(Setup!I19,"AAAAAH9c3y8=") ->  | AW5: =AND(Setup!J19,"AAAAAH9c3zA=") ->  | AX5: =AND(Setup!K19,"AAAAAH9c3zE=") ->  | AY5: =AND(Setup!L19,"AAAAAH9c3zI=") ->  | AZ5: =AND(Setup!M19,"AAAAAH9c3zM=") ->  | BA5: =AND(Setup!N19,"AAAAAH9c3zQ=") ->  | BB5: =AND(Setup!O19,"AAAAAH9c3zU=") ->  | BC5: =AND(Setup!P19,"AAAAAH9c3zY=") ->  | BD5: =AND(Setup!Q19,"AAAAAH9c3zc=") ->  | BE5: =AND(Setup!R19,"AAAAAH9c3zg=") ->  | BF5: =AND(Setup!S19,"AAAAAH9c3zk=") ->  | BG5: =AND(Setup!T19,"AAAAAH9c3zo=") ->  | BH5: =AND(Setup!U19,"AAAAAH9c3zs=") ->  | BI5: =AND(Setup!V19,"AAAAAH9c3zw=") ->  | BJ5: =AND(Setup!W19,"AAAAAH9c3z0=") ->  | BK5: =AND(Setup!X19,"AAAAAH9c3z4=") ->  | BL5: =AND(Setup!Y19,"AAAAAH9c3z8=") ->  | BM5: =AND(Setup!Z19,"AAAAAH9c30A=") ->  | BN5: =AND(Setup!AA19,"AAAAAH9c30E=") ->  | BO5: =AND(Setup!AB19,"AAAAAH9c30I=") ->  | BP5: =AND(Setup!AC19,"AAAAAH9c30M=") ->  | BQ5: =AND(Setup!AD19,"AAAAAH9c30Q=") ->  | BR5: =AND(Setup!AE19,"AAAAAH9c30U=") ->  | BS5: =AND(Setup!AF19,"AAAAAH9c30Y=") ->  | BT5: =AND(Setup!AG19,"AAAAAH9c30c=") ->  | BU5: =AND(Setup!AH19,"AAAAAH9c30g=") ->  | BV5: =AND(Setup!AI19,"AAAAAH9c30k=") ->  | BW5: =AND(Setup!AJ19,"AAAAAH9c30o=") ->  | BX5: =AND(Setup!AK19,"AAAAAH9c30s=") ->  | BY5: =AND(Setup!AL19,"AAAAAH9c30w=") ->  | BZ5: =AND(Setup!AM19,"AAAAAH9c300=") ->  | CA5: =AND(Setup!AN19,"AAAAAH9c304=") ->  | CB5: =AND(Setup!AO19,"AAAAAH9c308=") ->  | CC5: =AND(Setup!AP19,"AAAAAH9c31A=") ->  | CD5: =AND(Setup!AQ19,"AAAAAH9c31E=") ->  | CE5: =AND(Setup!AR19,"AAAAAH9c31I=") ->  | CF5: =AND(Setup!AS19,"AAAAAH9c31M=") ->  | CG5: =AND(Setup!AT19,"AAAAAH9c31Q=") ->  | CH5: =AND(Setup!AU19,"AAAAAH9c31U=") ->  | CI5: =AND(Setup!AV19,"AAAAAH9c31Y=") ->  | CJ5: =AND(Setup!AW19,"AAAAAH9c31c=") ->  | CK5: =AND(Setup!AX19,"AAAAAH9c31g=") ->  | CL5: =AND(Setup!AY19,"AAAAAH9c31k=") ->  | CM5: =AND(Setup!AZ19,"AAAAAH9c31o=") ->  | CN5: =AND(Setup!BA19,"AAAAAH9c31s=") ->  | CO5: =AND(Setup!BB19,"AAAAAH9c31w=") ->  | CP5: =AND(Setup!BC19,"AAAAAH9c310=") ->  | CQ5: =AND(Setup!BD19,"AAAAAH9c314=") ->  | CR5: =AND(Setup!BE19,"AAAAAH9c318=") ->  | CS5: =AND(Setup!BF19,"AAAAAH9c32A=") ->  | CT5: =IF(Setup!20:20,"AAAAAH9c32E=",0) -> 0 | CU5: =AND(Setup!A20,"AAAAAH9c32I=") ->  | CV5: =AND(Setup!B20,"AAAAAH9c32M=") ->  | CW5: =AND(Setup!C20,"AAAAAH9c32Q=") ->  | CX5: =AND(Setup!D20,"AAAAAH9c32U=") ->  | CY5: =AND(Setup!E20,"AAAAAH9c32Y=") ->  | CZ5: =AND(Setup!F20,"AAAAAH9c32c=") ->  | DA5: =AND(Setup!G20,"AAAAAH9c32g=") ->  | DB5: =AND(Setup!H20,"AAAAAH9c32k=") ->  | DC5: =AND(Setup!I20,"AAAAAH9c32o=") ->  | DD5: =AND(Setup!J20,"AAAAAH9c32s=") ->  | DE5: =AND(Setup!K20,"AAAAAH9c32w=") ->  | DF5: =AND(Setup!L20,"AAAAAH9c320=") ->  | DG5: =AND(Setup!M20,"AAAAAH9c324=") ->  | DH5: =AND(Setup!N20,"AAAAAH9c328=") ->  | DI5: =AND(Setup!O20,"AAAAAH9c33A=") ->  | DJ5: =AND(Setup!P20,"AAAAAH9c33E=") ->  | DK5: =AND(Setup!Q20,"AAAAAH9c33I=") ->  | DL5: =AND(Setup!R20,"AAAAAH9c33M=") ->  | DM5: =AND(Setup!S20,"AAAAAH9c33Q=") ->  | DN5: =AND(Setup!T20,"AAAAAH9c33U=") ->  | DO5: =AND(Setup!U20,"AAAAAH9c33Y=") ->  | DP5: =AND(Setup!V20,"AAAAAH9c33c=") ->  | DQ5: =AND(Setup!W20,"AAAAAH9c33g=") ->  | DR5: =AND(Setup!X20,"AAAAAH9c33k=") ->  | DS5: =AND(Setup!Y20,"AAAAAH9c33o=") ->  | DT5: =AND(Setup!Z20,"AAAAAH9c33s=") ->  | DU5: =AND(Setup!AA20,"AAAAAH9c33w=") ->  | DV5: =AND(Setup!AB20,"AAAAAH9c330=") ->  | DW5: =AND(Setup!AC20,"AAAAAH9c334=") ->  | DX5: =AND(Setup!AD20,"AAAAAH9c338=") ->  | DY5: =AND(Setup!AE20,"AAAAAH9c34A=") ->  | DZ5: =AND(Setup!AF20,"AAAAAH9c34E=") ->  | EA5: =AND(Setup!AG20,"AAAAAH9c34I=") ->  | EB5: =AND(Setup!AH20,"AAAAAH9c34M=") ->  | EC5: =AND(Setup!AI20,"AAAAAH9c34Q=") ->  | ED5: =AND(Setup!AJ20,"AAAAAH9c34U=") ->  | EE5: =AND(Setup!AK20,"AAAAAH9c34Y=") ->  | EF5: =AND(Setup!AL20,"AAAAAH9c34c=") ->  | EG5: =AND(Setup!AM20,"AAAAAH9c34g=") ->  | EH5: =AND(Setup!AN20,"AAAAAH9c34k=") ->  | EI5: =AND(Setup!AO20,"AAAAAH9c34o=") ->  | EJ5: =AND(Setup!AP20,"AAAAAH9c34s=") ->  | EK5: =AND(Setup!AQ20,"AAAAAH9c34w=") ->  | EL5: =AND(Setup!AR20,"AAAAAH9c340=") ->  | EM5: =AND(Setup!AS20,"AAAAAH9c344=") ->  | EN5: =AND(Setup!AT20,"AAAAAH9c348=") ->  | EO5: =AND(Setup!AU20,"AAAAAH9c35A=") ->  | EP5: =AND(Setup!AV20,"AAAAAH9c35E=") ->  | EQ5: =AND(Setup!AW20,"AAAAAH9c35I=") ->  | ER5: =AND(Setup!AX20,"AAAAAH9c35M=") ->  | ES5: =AND(Setup!AY20,"AAAAAH9c35Q=") ->  | ET5: =AND(Setup!AZ20,"AAAAAH9c35U=") ->  | EU5: =AND(Setup!BA20,"AAAAAH9c35Y=") ->  | EV5: =AND(Setup!BB20,"AAAAAH9c35c=") ->  | EW5: =AND(Setup!BC20,"AAAAAH9c35g=") ->  | EX5: =AND(Setup!BD20,"AAAAAH9c35k=") ->  | EY5: =AND(Setup!BE20,"AAAAAH9c35o=") ->  | EZ5: =AND(Setup!BF20,"AAAAAH9c35s=") ->  | FA5: =IF(Setup!21:21,"AAAAAH9c35w=",0) -> 0 | FB5: =AND(Setup!A21,"AAAAAH9c350=") ->  | FC5: =AND(Setup!B21,"AAAAAH9c354=") ->  | FD5: =AND(Setup!C21,"AAAAAH9c358=") ->  | FE5: =AND(Setup!D21,"AAAAAH9c36A=") ->  | FF5: =AND(Setup!E21,"AAAAAH9c36E=") ->  | FG5: =AND(Setup!F21,"AAAAAH9c36I=") ->  | FH5: =AND(Setup!G21,"AAAAAH9c36M=") ->  | FI5: =AND(Setup!H21,"AAAAAH9c36Q=") ->  | FJ5: =AND(Setup!I21,"AAAAAH9c36U=") ->  | FK5: =AND(Setup!J21,"AAAAAH9c36Y=") ->  | FL5: =AND(Setup!K21,"AAAAAH9c36c=") ->  | FM5: =AND(Setup!L21,"AAAAAH9c36g=") ->  | FN5: =AND(Setup!M21,"AAAAAH9c36k=") ->  | FO5: =AND(Setup!N21,"AAAAAH9c36o=") ->  | FP5: =AND(Setup!O21,"AAAAAH9c36s=") ->  | FQ5: =AND(Setup!P21,"AAAAAH9c36w=") ->  | FR5: =AND(Setup!Q21,"AAAAAH9c360=") ->  | FS5: =AND(Setup!R21,"AAAAAH9c364=") ->  | FT5: =AND(Setup!S21,"AAAAAH9c368=") ->  | FU5: =AND(Setup!T21,"AAAAAH9c37A=") ->  | FV5: =AND(Setup!U21,"AAAAAH9c37E=") ->  | FW5: =AND(Setup!V21,"AAAAAH9c37I=") ->  | FX5: =AND(Setup!W21,"AAAAAH9c37M=") ->  | FY5: =AND(Setup!X21,"AAAAAH9c37Q=") ->  | FZ5: =AND(Setup!Y21,"AAAAAH9c37U=") ->  | GA5: =AND(Setup!Z21,"AAAAAH9c37Y=") ->  | GB5: =AND(Setup!AA21,"AAAAAH9c37c=") ->  | GC5: =AND(Setup!AB21,"AAAAAH9c37g=") ->  | GD5: =AND(Setup!AC21,"AAAAAH9c37k=") ->  | GE5: =AND(Setup!AD21,"AAAAAH9c37o=") ->  | GF5: =AND(Setup!AE21,"AAAAAH9c37s=") ->  | GG5: =AND(Setup!AF21,"AAAAAH9c37w=") ->  | GH5: =AND(Setup!AG21,"AAAAAH9c370=") ->  | GI5: =AND(Setup!AH21,"AAAAAH9c374=") ->  | GJ5: =AND(Setup!AI21,"AAAAAH9c378=") ->  | GK5: =AND(Setup!AJ21,"AAAAAH9c38A=") ->  | GL5: =AND(Setup!AK21,"AAAAAH9c38E=") ->  | GM5: =AND(Setup!AL21,"AAAAAH9c38I=") ->  | GN5: =AND(Setup!AM21,"AAAAAH9c38M=") ->  | GO5: =AND(Setup!AN21,"AAAAAH9c38Q=") ->  | GP5: =AND(Setup!AO21,"AAAAAH9c38U=") ->  | GQ5: =AND(Setup!AP21,"AAAAAH9c38Y=") ->  | GR5: =AND(Setup!AQ21,"AAAAAH9c38c=") ->  | GS5: =AND(Setup!AR21,"AAAAAH9c38g=") ->  | GT5: =AND(Setup!AS21,"AAAAAH9c38k=") ->  | GU5: =AND(Setup!AT21,"AAAAAH9c38o=") ->  | GV5: =AND(Setup!AU21,"AAAAAH9c38s=") ->  | GW5: =AND(Setup!AV21,"AAAAAH9c38w=") ->  | GX5: =AND(Setup!AW21,"AAAAAH9c380=") ->  | GY5: =AND(Setup!AX21,"AAAAAH9c384=") ->  | GZ5: =AND(Setup!AY21,"AAAAAH9c388=") ->  | HA5: =AND(Setup!AZ21,"AAAAAH9c39A=") ->  | HB5: =AND(Setup!BA21,"AAAAAH9c39E=") ->  | HC5: =AND(Setup!BB21,"AAAAAH9c39I=") ->  | HD5: =AND(Setup!BC21,"AAAAAH9c39M=") ->  | HE5: =AND(Setup!BD21,"AAAAAH9c39Q=") ->  | HF5: =AND(Setup!BE21,"AAAAAH9c39U=") ->  | HG5: =AND(Setup!BF21,"AAAAAH9c39Y=") ->  | HH5: =IF(Setup!22:22,"AAAAAH9c39c=",0) -> 0 | HI5: =AND(Setup!A22,"AAAAAH9c39g=") ->  | HJ5: =AND(Setup!B22,"AAAAAH9c39k=") ->  | HK5: =AND(Setup!C22,"AAAAAH9c39o=") ->  | HL5: =AND(Setup!D22,"AAAAAH9c39s=") ->  | HM5: =AND(Setup!E22,"AAAAAH9c39w=") ->  | HN5: =AND(Setup!F22,"AAAAAH9c390=") ->  | HO5: =AND(Setup!G22,"AAAAAH9c394=") ->  | HP5: =AND(Setup!H22,"AAAAAH9c398=") ->  | HQ5: =AND(Setup!I22,"AAAAAH9c3+A=") ->  | HR5: =AND(Setup!J22,"AAAAAH9c3+E=") ->  | HS5: =AND(Setup!K22,"AAAAAH9c3+I=") ->  | HT5: =AND(Setup!L22,"AAAAAH9c3+M=") ->  | HU5: =AND(Setup!M22,"AAAAAH9c3+Q=") ->  | HV5: =AND(Setup!N22,"AAAAAH9c3+U=") ->  | HW5: =AND(Setup!O22,"AAAAAH9c3+Y=") ->  | HX5: =AND(Setup!P22,"AAAAAH9c3+c=") ->  | HY5: =AND(Setup!Q22,"AAAAAH9c3+g=") ->  | HZ5: =AND(Setup!R22,"AAAAAH9c3+k=") ->  | IA5: =AND(Setup!S22,"AAAAAH9c3+o=") ->  | IB5: =AND(Setup!T22,"AAAAAH9c3+s=") ->  | IC5: =AND(Setup!U22,"AAAAAH9c3+w=") ->  | ID5: =AND(Setup!V22,"AAAAAH9c3+0=") ->  | IE5: =AND(Setup!W22,"AAAAAH9c3+4=") ->  | IF5: =AND(Setup!X22,"AAAAAH9c3+8=") ->  | IG5: =AND(Setup!Y22,"AAAAAH9c3/A=") ->  | IH5: =AND(Setup!Z22,"AAAAAH9c3/E=") ->  | II5: =AND(Setup!AA22,"AAAAAH9c3/I=") ->  | IJ5: =AND(Setup!AB22,"AAAAAH9c3/M=") ->  | IK5: =AND(Setup!AC22,"AAAAAH9c3/Q=") ->  | IL5: =AND(Setup!AD22,"AAAAAH9c3/U=") ->  | IM5: =AND(Setup!AE22,"AAAAAH9c3/Y=") ->  | IN5: =AND(Setup!AF22,"AAAAAH9c3/c=") ->  | IO5: =AND(Setup!AG22,"AAAAAH9c3/g=") ->  | IP5: =AND(Setup!AH22,"AAAAAH9c3/k=") ->  | IQ5: =AND(Setup!AI22,"AAAAAH9c3/o=") ->  | IR5: =AND(Setup!AJ22,"AAAAAH9c3/s=") ->  | IS5: =AND(Setup!AK22,"AAAAAH9c3/w=") ->  | IT5: =AND(Setup!AL22,"AAAAAH9c3/0=") ->  | IU5: =AND(Setup!AM22,"AAAAAH9c3/4=") ->  | IV5: =AND(Setup!AN22,"AAAAAH9c3/8=") -> 
A6: =AND(Setup!AO22,"AAAAAHqs9wA=") ->  | B6: =AND(Setup!AP22,"AAAAAHqs9wE=") ->  | C6: =AND(Setup!AQ22,"AAAAAHqs9wI=") ->  | D6: =AND(Setup!AR22,"AAAAAHqs9wM=") ->  | E6: =AND(Setup!AS22,"AAAAAHqs9wQ=") ->  | F6: =AND(Setup!AT22,"AAAAAHqs9wU=") ->  | G6: =AND(Setup!AU22,"AAAAAHqs9wY=") ->  | H6: =AND(Setup!AV22,"AAAAAHqs9wc=") ->  | I6: =AND(Setup!AW22,"AAAAAHqs9wg=") ->  | J6: =AND(Setup!AX22,"AAAAAHqs9wk=") ->  | K6: =AND(Setup!AY22,"AAAAAHqs9wo=") ->  | L6: =AND(Setup!AZ22,"AAAAAHqs9ws=") ->  | M6: =AND(Setup!BA22,"AAAAAHqs9ww=") ->  | N6: =AND(Setup!BB22,"AAAAAHqs9w0=") ->  | O6: =AND(Setup!BC22,"AAAAAHqs9w4=") ->  | P6: =AND(Setup!BD22,"AAAAAHqs9w8=") ->  | Q6: =AND(Setup!BE22,"AAAAAHqs9xA=") ->  | R6: =AND(Setup!BF22,"AAAAAHqs9xE=") ->  | S6: =IF(Setup!23:23,"AAAAAHqs9xI=",0) -> 0 | T6: =AND(Setup!A23,"AAAAAHqs9xM=") ->  | U6: =AND(Setup!B23,"AAAAAHqs9xQ=") ->  | V6: =AND(Setup!C23,"AAAAAHqs9xU=") ->  | W6: =AND(Setup!D23,"AAAAAHqs9xY=") ->  | X6: =AND(Setup!E23,"AAAAAHqs9xc=") ->  | Y6: =AND(Setup!F23,"AAAAAHqs9xg=") ->  | Z6: =AND(Setup!G23,"AAAAAHqs9xk=") ->  | AA6: =AND(Setup!H23,"AAAAAHqs9xo=") ->  | AB6: =AND(Setup!I23,"AAAAAHqs9xs=") ->  | AC6: =AND(Setup!J23,"AAAAAHqs9xw=") ->  | AD6: =AND(Setup!K23,"AAAAAHqs9x0=") ->  | AE6: =AND(Setup!L23,"AAAAAHqs9x4=") ->  | AF6: =AND(Setup!M23,"AAAAAHqs9x8=") ->  | AG6: =AND(Setup!N23,"AAAAAHqs9yA=") ->  | AH6: =AND(Setup!O23,"AAAAAHqs9yE=") ->  | AI6: =AND(Setup!P23,"AAAAAHqs9yI=") ->  | AJ6: =AND(Setup!Q23,"AAAAAHqs9yM=") ->  | AK6: =AND(Setup!R23,"AAAAAHqs9yQ=") ->  | AL6: =AND(Setup!S23,"AAAAAHqs9yU=") ->  | AM6: =AND(Setup!T23,"AAAAAHqs9yY=") ->  | AN6: =AND(Setup!U23,"AAAAAHqs9yc=") ->  | AO6: =AND(Setup!V23,"AAAAAHqs9yg=") ->  | AP6: =AND(Setup!W23,"AAAAAHqs9yk=") ->  | AQ6: =AND(Setup!X23,"AAAAAHqs9yo=") ->  | AR6: =AND(Setup!Y23,"AAAAAHqs9ys=") ->  | AS6: =AND(Setup!Z23,"AAAAAHqs9yw=") ->  | AT6: =AND(Setup!AA23,"AAAAAHqs9y0=") ->  | AU6: =AND(Setup!AB23,"AAAAAHqs9y4=") ->  | AV6: =AND(Setup!AC23,"AAAAAHqs9y8=") ->  | AW6: =AND(Setup!AD23,"AAAAAHqs9zA=") ->  | AX6: =AND(Setup!AE23,"AAAAAHqs9zE=") ->  | AY6: =AND(Setup!AF23,"AAAAAHqs9zI=") ->  | AZ6: =AND(Setup!AG23,"AAAAAHqs9zM=") ->  | BA6: =AND(Setup!AH23,"AAAAAHqs9zQ=") ->  | BB6: =AND(Setup!AI23,"AAAAAHqs9zU=") ->  | BC6: =AND(Setup!AJ23,"AAAAAHqs9zY=") ->  | BD6: =AND(Setup!AK23,"AAAAAHqs9zc=") ->  | BE6: =AND(Setup!AL23,"AAAAAHqs9zg=") ->  | BF6: =AND(Setup!AM23,"AAAAAHqs9zk=") ->  | BG6: =AND(Setup!AN23,"AAAAAHqs9zo=") ->  | BH6: =AND(Setup!AO23,"AAAAAHqs9zs=") ->  | BI6: =AND(Setup!AP23,"AAAAAHqs9zw=") ->  | BJ6: =AND(Setup!AQ23,"AAAAAHqs9z0=") ->  | BK6: =AND(Setup!AR23,"AAAAAHqs9z4=") ->  | BL6: =AND(Setup!AS23,"AAAAAHqs9z8=") ->  | BM6: =AND(Setup!AT23,"AAAAAHqs90A=") ->  | BN6: =AND(Setup!AU23,"AAAAAHqs90E=") ->  | BO6: =AND(Setup!AV23,"AAAAAHqs90I=") ->  | BP6: =AND(Setup!AW23,"AAAAAHqs90M=") ->  | BQ6: =AND(Setup!AX23,"AAAAAHqs90Q=") ->  | BR6: =AND(Setup!AY23,"AAAAAHqs90U=") ->  | BS6: =AND(Setup!AZ23,"AAAAAHqs90Y=") ->  | BT6: =AND(Setup!BA23,"AAAAAHqs90c=") ->  | BU6: =AND(Setup!BB23,"AAAAAHqs90g=") ->  | BV6: =AND(Setup!BC23,"AAAAAHqs90k=") ->  | BW6: =AND(Setup!BD23,"AAAAAHqs90o=") ->  | BX6: =AND(Setup!BE23,"AAAAAHqs90s=") ->  | BY6: =AND(Setup!BF23,"AAAAAHqs90w=") ->  | BZ6: =IF(Setup!24:24,"AAAAAHqs900=",0) -> 0 | CA6: =AND(Setup!A24,"AAAAAHqs904=") ->  | CB6: =AND(Setup!B24,"AAAAAHqs908=") ->  | CC6: =AND(Setup!C24,"AAAAAHqs91A=") ->  | CD6: =AND(Setup!D24,"AAAAAHqs91E=") ->  | CE6: =AND(Setup!E24,"AAAAAHqs91I=") ->  | CF6: =AND(Setup!F24,"AAAAAHqs91M=") ->  | CG6: =AND(Setup!G24,"AAAAAHqs91Q=") ->  | CH6: =AND(Setup!H24,"AAAAAHqs91U=") ->  | CI6: =AND(Setup!I24,"AAAAAHqs91Y=") ->  | CJ6: =AND(Setup!J24,"AAAAAHqs91c=") ->  | CK6: =AND(Setup!K24,"AAAAAHqs91g=") ->  | CL6: =AND(Setup!L24,"AAAAAHqs91k=") ->  | CM6: =AND(Setup!M24,"AAAAAHqs91o=") ->  | CN6: =AND(Setup!N24,"AAAAAHqs91s=") ->  | CO6: =AND(Setup!O24,"AAAAAHqs91w=") ->  | CP6: =AND(Setup!P24,"AAAAAHqs910=") ->  | CQ6: =AND(Setup!Q24,"AAAAAHqs914=") ->  | CR6: =AND(Setup!R24,"AAAAAHqs918=") ->  | CS6: =AND(Setup!S24,"AAAAAHqs92A=") ->  | CT6: =AND(Setup!T24,"AAAAAHqs92E=") ->  | CU6: =AND(Setup!U24,"AAAAAHqs92I=") ->  | CV6: =AND(Setup!V24,"AAAAAHqs92M=") ->  | CW6: =AND(Setup!W24,"AAAAAHqs92Q=") ->  | CX6: =AND(Setup!X24,"AAAAAHqs92U=") ->  | CY6: =AND(Setup!Y24,"AAAAAHqs92Y=") ->  | CZ6: =AND(Setup!Z24,"AAAAAHqs92c=") ->  | DA6: =AND(Setup!AA24,"AAAAAHqs92g=") ->  | DB6: =AND(Setup!AB24,"AAAAAHqs92k=") ->  | DC6: =AND(Setup!AC24,"AAAAAHqs92o=") ->  | DD6: =AND(Setup!AD24,"AAAAAHqs92s=") ->  | DE6: =AND(Setup!AE24,"AAAAAHqs92w=") ->  | DF6: =AND(Setup!AF24,"AAAAAHqs920=") ->  | DG6: =AND(Setup!AG24,"AAAAAHqs924=") ->  | DH6: =AND(Setup!AH24,"AAAAAHqs928=") ->  | DI6: =AND(Setup!AI24,"AAAAAHqs93A=") ->  | DJ6: =AND(Setup!AJ24,"AAAAAHqs93E=") ->  | DK6: =AND(Setup!AK24,"AAAAAHqs93I=") ->  | DL6: =AND(Setup!AL24,"AAAAAHqs93M=") ->  | DM6: =AND(Setup!AM24,"AAAAAHqs93Q=") ->  | DN6: =AND(Setup!AN24,"AAAAAHqs93U=") ->  | DO6: =AND(Setup!AO24,"AAAAAHqs93Y=") ->  | DP6: =AND(Setup!AP24,"AAAAAHqs93c=") ->  | DQ6: =AND(Setup!AQ24,"AAAAAHqs93g=") ->  | DR6: =AND(Setup!AR24,"AAAAAHqs93k=") ->  | DS6: =AND(Setup!AS24,"AAAAAHqs93o=") ->  | DT6: =AND(Setup!AT24,"AAAAAHqs93s=") ->  | DU6: =AND(Setup!AU24,"AAAAAHqs93w=") ->  | DV6: =AND(Setup!AV24,"AAAAAHqs930=") ->  | DW6: =AND(Setup!AW24,"AAAAAHqs934=") ->  | DX6: =AND(Setup!AX24,"AAAAAHqs938=") ->  | DY6: =AND(Setup!AY24,"AAAAAHqs94A=") ->  | DZ6: =AND(Setup!AZ24,"AAAAAHqs94E=") ->  | EA6: =AND(Setup!BA24,"AAAAAHqs94I=") ->  | EB6: =AND(Setup!BB24,"AAAAAHqs94M=") ->  | EC6: =AND(Setup!BC24,"AAAAAHqs94Q=") ->  | ED6: =AND(Setup!BD24,"AAAAAHqs94U=") ->  | EE6: =AND(Setup!BE24,"AAAAAHqs94Y=") ->  | EF6: =AND(Setup!BF24,"AAAAAHqs94c=") ->  | EG6: =IF(Setup!25:25,"AAAAAHqs94g=",0) -> 0 | EH6: =AND(Setup!A25,"AAAAAHqs94k=") ->  | EI6: =AND(Setup!B25,"AAAAAHqs94o=") ->  | EJ6: =AND(Setup!C25,"AAAAAHqs94s=") ->  | EK6: =AND(Setup!D26,"AAAAAHqs94w=") ->  | EL6: =AND(Setup!E26,"AAAAAHqs940=") ->  | EM6: =AND(Setup!F26,"AAAAAHqs944=") ->  | EN6: =AND(Setup!G26,"AAAAAHqs948=") ->  | EO6: =AND(Setup!H25,"AAAAAHqs95A=") ->  | EP6: =AND(Setup!I25,"AAAAAHqs95E=") ->  | EQ6: =AND(Setup!J25,"AAAAAHqs95I=") ->  | ER6: =AND(Setup!K25,"AAAAAHqs95M=") ->  | ES6: =AND(Setup!L25,"AAAAAHqs95Q=") ->  | ET6: =AND(Setup!M25,"AAAAAHqs95U=") ->  | EU6: =AND(Setup!N25,"AAAAAHqs95Y=") ->  | EV6: =AND(Setup!O25,"AAAAAHqs95c=") ->  | EW6: =AND(Setup!P25,"AAAAAHqs95g=") ->  | EX6: =AND(Setup!Q25,"AAAAAHqs95k=") ->  | EY6: =AND(Setup!R25,"AAAAAHqs95o=") ->  | EZ6: =AND(Setup!S25,"AAAAAHqs95s=") ->  | FA6: =AND(Setup!T25,"AAAAAHqs95w=") ->  | FB6: =AND(Setup!U25,"AAAAAHqs950=") ->  | FC6: =AND(Setup!V25,"AAAAAHqs954=") ->  | FD6: =AND(Setup!W25,"AAAAAHqs958=") ->  | FE6: =AND(Setup!X25,"AAAAAHqs96A=") ->  | FF6: =AND(Setup!Y25,"AAAAAHqs96E=") ->  | FG6: =AND(Setup!Z25,"AAAAAHqs96I=") ->  | FH6: =AND(Setup!AA25,"AAAAAHqs96M=") ->  | FI6: =AND(Setup!AB25,"AAAAAHqs96Q=") ->  | FJ6: =AND(Setup!AC25,"AAAAAHqs96U=") ->  | FK6: =AND(Setup!AD25,"AAAAAHqs96Y=") ->  | FL6: =AND(Setup!AE25,"AAAAAHqs96c=") ->  | FM6: =AND(Setup!AF25,"AAAAAHqs96g=") ->  | FN6: =AND(Setup!AG25,"AAAAAHqs96k=") ->  | FO6: =AND(Setup!AH25,"AAAAAHqs96o=") ->  | FP6: =AND(Setup!AI25,"AAAAAHqs96s=") ->  | FQ6: =AND(Setup!AJ25,"AAAAAHqs96w=") ->  | FR6: =AND(Setup!AK25,"AAAAAHqs960=") ->  | FS6: =AND(Setup!AL25,"AAAAAHqs964=") ->  | FT6: =AND(Setup!AM25,"AAAAAHqs968=") ->  | FU6: =AND(Setup!AN25,"AAAAAHqs97A=") ->  | FV6: =AND(Setup!AO25,"AAAAAHqs97E=") ->  | FW6: =AND(Setup!AP25,"AAAAAHqs97I=") ->  | FX6: =AND(Setup!AQ25,"AAAAAHqs97M=") ->  | FY6: =AND(Setup!AR25,"AAAAAHqs97Q=") ->  | FZ6: =AND(Setup!AS25,"AAAAAHqs97U=") ->  | GA6: =AND(Setup!AT25,"AAAAAHqs97Y=") ->  | GB6: =AND(Setup!AU25,"AAAAAHqs97c=") ->  | GC6: =AND(Setup!AV25,"AAAAAHqs97g=") ->  | GD6: =AND(Setup!AW25,"AAAAAHqs97k=") ->  | GE6: =AND(Setup!AX25,"AAAAAHqs97o=") ->  | GF6: =AND(Setup!AY25,"AAAAAHqs97s=") ->  | GG6: =AND(Setup!AZ25,"AAAAAHqs97w=") ->  | GH6: =AND(Setup!BA25,"AAAAAHqs970=") ->  | GI6: =AND(Setup!BB25,"AAAAAHqs974=") ->  | GJ6: =AND(Setup!BC25,"AAAAAHqs978=") ->  | GK6: =AND(Setup!BD25,"AAAAAHqs98A=") ->  | GL6: =AND(Setup!BE25,"AAAAAHqs98E=") ->  | GM6: =AND(Setup!BF25,"AAAAAHqs98I=") ->  | GN6: =IF(Setup!26:26,"AAAAAHqs98M=",0) -> 0 | GO6: =AND(Setup!A26,"AAAAAHqs98Q=") ->  | GP6: =AND(Setup!B26,"AAAAAHqs98U=") ->  | GQ6: =AND(Setup!C26,"AAAAAHqs98Y=") ->  | GR6: =AND(Setup!#REF!,"AAAAAHqs98c=") ->  | GS6: =AND(Setup!#REF!,"AAAAAHqs98g=") ->  | GT6: =AND(Setup!#REF!,"AAAAAHqs98k=") ->  | GU6: =AND(Setup!#REF!,"AAAAAHqs98o=") ->  | GV6: =AND(Setup!H26,"AAAAAHqs98s=") ->  | GW6: =AND(Setup!I26,"AAAAAHqs98w=") ->  | GX6: =AND(Setup!J26,"AAAAAHqs980=") ->  | GY6: =AND(Setup!K26,"AAAAAHqs984=") ->  | GZ6: =AND(Setup!L26,"AAAAAHqs988=") ->  | HA6: =AND(Setup!M26,"AAAAAHqs99A=") ->  | HB6: =AND(Setup!N26,"AAAAAHqs99E=") ->  | HC6: =AND(Setup!O26,"AAAAAHqs99I=") ->  | HD6: =AND(Setup!P26,"AAAAAHqs99M=") ->  | HE6: =AND(Setup!Q26,"AAAAAHqs99Q=") ->  | HF6: =AND(Setup!R26,"AAAAAHqs99U=") ->  | HG6: =AND(Setup!S26,"AAAAAHqs99Y=") ->  | HH6: =AND(Setup!T26,"AAAAAHqs99c=") ->  | HI6: =AND(Setup!U26,"AAAAAHqs99g=") ->  | HJ6: =AND(Setup!V26,"AAAAAHqs99k=") ->  | HK6: =AND(Setup!W26,"AAAAAHqs99o=") ->  | HL6: =AND(Setup!X26,"AAAAAHqs99s=") ->  | HM6: =AND(Setup!Y26,"AAAAAHqs99w=") ->  | HN6: =AND(Setup!Z26,"AAAAAHqs990=") ->  | HO6: =AND(Setup!AA26,"AAAAAHqs994=") ->  | HP6: =AND(Setup!AB26,"AAAAAHqs998=") ->  | HQ6: =AND(Setup!AC26,"AAAAAHqs9+A=") ->  | HR6: =AND(Setup!AD26,"AAAAAHqs9+E=") ->  | HS6: =AND(Setup!AE26,"AAAAAHqs9+I=") ->  | HT6: =AND(Setup!AF26,"AAAAAHqs9+M=") ->  | HU6: =AND(Setup!AG26,"AAAAAHqs9+Q=") ->  | HV6: =AND(Setup!AH26,"AAAAAHqs9+U=") ->  | HW6: =AND(Setup!AI26,"AAAAAHqs9+Y=") ->  | HX6: =AND(Setup!AJ26,"AAAAAHqs9+c=") ->  | HY6: =AND(Setup!AK26,"AAAAAHqs9+g=") ->  | HZ6: =AND(Setup!AL26,"AAAAAHqs9+k=") ->  | IA6: =AND(Setup!AM26,"AAAAAHqs9+o=") ->  | IB6: =AND(Setup!AN26,"AAAAAHqs9+s=") ->  | IC6: =AND(Setup!AO26,"AAAAAHqs9+w=") ->  | ID6: =AND(Setup!AP26,"AAAAAHqs9+0=") ->  | IE6: =AND(Setup!AQ26,"AAAAAHqs9+4=") ->  | IF6: =AND(Setup!AR26,"AAAAAHqs9+8=") ->  | IG6: =AND(Setup!AS26,"AAAAAHqs9/A=") ->  | IH6: =AND(Setup!AT26,"AAAAAHqs9/E=") ->  | II6: =AND(Setup!AU26,"AAAAAHqs9/I=") ->  | IJ6: =AND(Setup!AV26,"AAAAAHqs9/M=") ->  | IK6: =AND(Setup!AW26,"AAAAAHqs9/Q=") ->  | IL6: =AND(Setup!AX26,"AAAAAHqs9/U=") ->  | IM6: =AND(Setup!AY26,"AAAAAHqs9/Y=") ->  | IN6: =AND(Setup!AZ26,"AAAAAHqs9/c=") ->  | IO6: =AND(Setup!BA26,"AAAAAHqs9/g=") ->  | IP6: =AND(Setup!BB26,"AAAAAHqs9/k=") ->  | IQ6: =AND(Setup!BC26,"AAAAAHqs9/o=") ->  | IR6: =AND(Setup!BD26,"AAAAAHqs9/s=") ->  | IS6: =AND(Setup!BE26,"AAAAAHqs9/w=") ->  | IT6: =AND(Setup!BF26,"AAAAAHqs9/0=") ->  | IU6: =IF(Setup!27:27,"AAAAAHqs9/4=",0) -> 0 | IV6: =AND(Setup!A27,"AAAAAHqs9/8=") -> 
A7: =AND(Setup!B27,"AAAAAFr8PAA=") ->  | B7: =AND(Setup!C27,"AAAAAFr8PAE=") ->  | C7: =AND(Setup!D27,"AAAAAFr8PAI=") ->  | D7: =AND(Setup!E27,"AAAAAFr8PAM=") ->  | E7: =AND(Setup!F27,"AAAAAFr8PAQ=") ->  | F7: =AND(Setup!G27,"AAAAAFr8PAU=") ->  | G7: =AND(Setup!H27,"AAAAAFr8PAY=") ->  | H7: =AND(Setup!I27,"AAAAAFr8PAc=") ->  | I7: =AND(Setup!J27,"AAAAAFr8PAg=") ->  | J7: =AND(Setup!K27,"AAAAAFr8PAk=") ->  | K7: =AND(Setup!L27,"AAAAAFr8PAo=") ->  | L7: =AND(Setup!M27,"AAAAAFr8PAs=") ->  | M7: =AND(Setup!N27,"AAAAAFr8PAw=") ->  | N7: =AND(Setup!O27,"AAAAAFr8PA0=") ->  | O7: =AND(Setup!P27,"AAAAAFr8PA4=") ->  | P7: =AND(Setup!Q27,"AAAAAFr8PA8=") ->  | Q7: =AND(Setup!R27,"AAAAAFr8PBA=") ->  | R7: =AND(Setup!S27,"AAAAAFr8PBE=") ->  | S7: =AND(Setup!T27,"AAAAAFr8PBI=") ->  | T7: =AND(Setup!U27,"AAAAAFr8PBM=") ->  | U7: =AND(Setup!V27,"AAAAAFr8PBQ=") ->  | V7: =AND(Setup!W27,"AAAAAFr8PBU=") ->  | W7: =AND(Setup!X27,"AAAAAFr8PBY=") ->  | X7: =AND(Setup!Y27,"AAAAAFr8PBc=") ->  | Y7: =AND(Setup!Z27,"AAAAAFr8PBg=") ->  | Z7: =AND(Setup!AA27,"AAAAAFr8PBk=") ->  | AA7: =AND(Setup!AB27,"AAAAAFr8PBo=") ->  | AB7: =AND(Setup!AC27,"AAAAAFr8PBs=") ->  | AC7: =AND(Setup!AD27,"AAAAAFr8PBw=") ->  | AD7: =AND(Setup!AE27,"AAAAAFr8PB0=") ->  | AE7: =AND(Setup!AF27,"AAAAAFr8PB4=") ->  | AF7: =AND(Setup!AG27,"AAAAAFr8PB8=") ->  | AG7: =AND(Setup!AH27,"AAAAAFr8PCA=") ->  | AH7: =AND(Setup!AI27,"AAAAAFr8PCE=") ->  | AI7: =AND(Setup!AJ27,"AAAAAFr8PCI=") ->  | AJ7: =AND(Setup!AK27,"AAAAAFr8PCM=") ->  | AK7: =AND(Setup!AL27,"AAAAAFr8PCQ=") ->  | AL7: =AND(Setup!AM27,"AAAAAFr8PCU=") ->  | AM7: =AND(Setup!AN27,"AAAAAFr8PCY=") ->  | AN7: =AND(Setup!AO27,"AAAAAFr8PCc=") ->  | AO7: =AND(Setup!AP27,"AAAAAFr8PCg=") ->  | AP7: =AND(Setup!AQ27,"AAAAAFr8PCk=") ->  | AQ7: =AND(Setup!AR27,"AAAAAFr8PCo=") ->  | AR7: =AND(Setup!AS27,"AAAAAFr8PCs=") ->  | AS7: =AND(Setup!AT27,"AAAAAFr8PCw=") ->  | AT7: =AND(Setup!AU27,"AAAAAFr8PC0=") ->  | AU7: =AND(Setup!AV27,"AAAAAFr8PC4=") ->  | AV7: =AND(Setup!AW27,"AAAAAFr8PC8=") ->  | AW7: =AND(Setup!AX27,"AAAAAFr8PDA=") ->  | AX7: =AND(Setup!AY27,"AAAAAFr8PDE=") ->  | AY7: =AND(Setup!AZ27,"AAAAAFr8PDI=") ->  | AZ7: =AND(Setup!BA27,"AAAAAFr8PDM=") ->  | BA7: =AND(Setup!BB27,"AAAAAFr8PDQ=") ->  | BB7: =AND(Setup!BC27,"AAAAAFr8PDU=") ->  | BC7: =AND(Setup!BD27,"AAAAAFr8PDY=") ->  | BD7: =AND(Setup!BE27,"AAAAAFr8PDc=") ->  | BE7: =AND(Setup!BF27,"AAAAAFr8PDg=") ->  | BF7: =IF(Setup!28:28,"AAAAAFr8PDk=",0) -> 0 | BG7: =AND(Setup!A28,"AAAAAFr8PDo=") ->  | BH7: =AND(Setup!B28,"AAAAAFr8PDs=") ->  | BI7: =AND(Setup!C28,"AAAAAFr8PDw=") ->  | BJ7: =AND(Setup!D29,"AAAAAFr8PD0=") ->  | BK7: =AND(Setup!E28,"AAAAAFr8PD4=") ->  | BL7: =AND(Setup!F28,"AAAAAFr8PD8=") ->  | BM7: =AND(Setup!G28,"AAAAAFr8PEA=") ->  | BN7: =AND(Setup!H28,"AAAAAFr8PEE=") ->  | BO7: =AND(Setup!I28,"AAAAAFr8PEI=") ->  | BP7: =AND(Setup!J28,"AAAAAFr8PEM=") ->  | BQ7: =AND(Setup!K28,"AAAAAFr8PEQ=") ->  | BR7: =AND(Setup!L28,"AAAAAFr8PEU=") ->  | BS7: =AND(Setup!M28,"AAAAAFr8PEY=") ->  | BT7: =AND(Setup!N28,"AAAAAFr8PEc=") ->  | BU7: =AND(Setup!O28,"AAAAAFr8PEg=") ->  | BV7: =AND(Setup!P28,"AAAAAFr8PEk=") ->  | BW7: =AND(Setup!Q28,"AAAAAFr8PEo=") ->  | BX7: =AND(Setup!R28,"AAAAAFr8PEs=") ->  | BY7: =AND(Setup!S28,"AAAAAFr8PEw=") ->  | BZ7: =AND(Setup!T28,"AAAAAFr8PE0=") ->  | CA7: =AND(Setup!U28,"AAAAAFr8PE4=") ->  | CB7: =AND(Setup!V28,"AAAAAFr8PE8=") ->  | CC7: =AND(Setup!W28,"AAAAAFr8PFA=") ->  | CD7: =AND(Setup!X28,"AAAAAFr8PFE=") ->  | CE7: =AND(Setup!Y28,"AAAAAFr8PFI=") ->  | CF7: =AND(Setup!Z28,"AAAAAFr8PFM=") ->  | CG7: =AND(Setup!AA28,"AAAAAFr8PFQ=") ->  | CH7: =AND(Setup!AB28,"AAAAAFr8PFU=") ->  | CI7: =AND(Setup!AC28,"AAAAAFr8PFY=") ->  | CJ7: =AND(Setup!AD28,"AAAAAFr8PFc=") ->  | CK7: =AND(Setup!AE28,"AAAAAFr8PFg=") ->  | CL7: =AND(Setup!AF28,"AAAAAFr8PFk=") ->  | CM7: =AND(Setup!AG28,"AAAAAFr8PFo=") ->  | CN7: =AND(Setup!AH28,"AAAAAFr8PFs=") ->  | CO7: =AND(Setup!AI28,"AAAAAFr8PFw=") ->  | CP7: =AND(Setup!AJ28,"AAAAAFr8PF0=") ->  | CQ7: =AND(Setup!AK28,"AAAAAFr8PF4=") ->  | CR7: =AND(Setup!AL28,"AAAAAFr8PF8=") ->  | CS7: =AND(Setup!AM28,"AAAAAFr8PGA=") ->  | CT7: =AND(Setup!AN28,"AAAAAFr8PGE=") ->  | CU7: =AND(Setup!AO28,"AAAAAFr8PGI=") ->  | CV7: =AND(Setup!AP28,"AAAAAFr8PGM=") ->  | CW7: =AND(Setup!AQ28,"AAAAAFr8PGQ=") ->  | CX7: =AND(Setup!AR28,"AAAAAFr8PGU=") ->  | CY7: =AND(Setup!AS28,"AAAAAFr8PGY=") ->  | CZ7: =AND(Setup!AT28,"AAAAAFr8PGc=") ->  | DA7: =AND(Setup!AU28,"AAAAAFr8PGg=") ->  | DB7: =AND(Setup!AV28,"AAAAAFr8PGk=") ->  | DC7: =AND(Setup!AW28,"AAAAAFr8PGo=") ->  | DD7: =AND(Setup!AX28,"AAAAAFr8PGs=") ->  | DE7: =AND(Setup!AY28,"AAAAAFr8PGw=") ->  | DF7: =AND(Setup!AZ28,"AAAAAFr8PG0=") ->  | DG7: =AND(Setup!BA28,"AAAAAFr8PG4=") ->  | DH7: =AND(Setup!BB28,"AAAAAFr8PG8=") ->  | DI7: =AND(Setup!BC28,"AAAAAFr8PHA=") ->  | DJ7: =AND(Setup!BD28,"AAAAAFr8PHE=") ->  | DK7: =AND(Setup!BE28,"AAAAAFr8PHI=") ->  | DL7: =AND(Setup!BF28,"AAAAAFr8PHM=") ->  | DM7: =IF(Setup!29:29,"AAAAAFr8PHQ=",0) -> 0 | DN7: =AND(Setup!A29,"AAAAAFr8PHU=") ->  | DO7: =AND(Setup!B29,"AAAAAFr8PHY=") ->  | DP7: =AND(Setup!C29,"AAAAAFr8PHc=") ->  | DQ7: =AND(Setup!#REF!,"AAAAAFr8PHg=") ->  | DR7: =AND(Setup!E29,"AAAAAFr8PHk=") ->  | DS7: =AND(Setup!F29,"AAAAAFr8PHo=") ->  | DT7: =AND(Setup!G29,"AAAAAFr8PHs=") ->  | DU7: =AND(Setup!H29,"AAAAAFr8PHw=") ->  | DV7: =AND(Setup!I29,"AAAAAFr8PH0=") ->  | DW7: =AND(Setup!J29,"AAAAAFr8PH4=") ->  | DX7: =AND(Setup!K29,"AAAAAFr8PH8=") ->  | DY7: =AND(Setup!L29,"AAAAAFr8PIA=") ->  | DZ7: =AND(Setup!M29,"AAAAAFr8PIE=") ->  | EA7: =AND(Setup!N29,"AAAAAFr8PII=") ->  | EB7: =AND(Setup!O29,"AAAAAFr8PIM=") ->  | EC7: =AND(Setup!P29,"AAAAAFr8PIQ=") ->  | ED7: =AND(Setup!Q29,"AAAAAFr8PIU=") ->  | EE7: =AND(Setup!R29,"AAAAAFr8PIY=") ->  | EF7: =AND(Setup!S29,"AAAAAFr8PIc=") ->  | EG7: =AND(Setup!T29,"AAAAAFr8PIg=") ->  | EH7: =AND(Setup!U29,"AAAAAFr8PIk=") ->  | EI7: =AND(Setup!V29,"AAAAAFr8PIo=") ->  | EJ7: =AND(Setup!W29,"AAAAAFr8PIs=") ->  | EK7: =AND(Setup!X29,"AAAAAFr8PIw=") ->  | EL7: =AND(Setup!Y29,"AAAAAFr8PI0=") ->  | EM7: =AND(Setup!Z29,"AAAAAFr8PI4=") ->  | EN7: =AND(Setup!AA29,"AAAAAFr8PI8=") ->  | EO7: =AND(Setup!AB29,"AAAAAFr8PJA=") ->  | EP7: =AND(Setup!AC29,"AAAAAFr8PJE=") ->  | EQ7: =AND(Setup!AD29,"AAAAAFr8PJI=") ->  | ER7: =AND(Setup!AE29,"AAAAAFr8PJM=") ->  | ES7: =AND(Setup!AF29,"AAAAAFr8PJQ=") ->  | ET7: =AND(Setup!AG29,"AAAAAFr8PJU=") ->  | EU7: =AND(Setup!AH29,"AAAAAFr8PJY=") ->  | EV7: =AND(Setup!AI29,"AAAAAFr8PJc=") ->  | EW7: =AND(Setup!AJ29,"AAAAAFr8PJg=") ->  | EX7: =AND(Setup!AK29,"AAAAAFr8PJk=") ->  | EY7: =AND(Setup!AL29,"AAAAAFr8PJo=") ->  | EZ7: =AND(Setup!AM29,"AAAAAFr8PJs=") ->  | FA7: =AND(Setup!AN29,"AAAAAFr8PJw=") ->  | FB7: =AND(Setup!AO29,"AAAAAFr8PJ0=") ->  | FC7: =AND(Setup!AP29,"AAAAAFr8PJ4=") ->  | FD7: =AND(Setup!AQ29,"AAAAAFr8PJ8=") ->  | FE7: =AND(Setup!AR29,"AAAAAFr8PKA=") ->  | FF7: =AND(Setup!AS29,"AAAAAFr8PKE=") ->  | FG7: =AND(Setup!AT29,"AAAAAFr8PKI=") ->  | FH7: =AND(Setup!AU29,"AAAAAFr8PKM=") ->  | FI7: =AND(Setup!AV29,"AAAAAFr8PKQ=") ->  | FJ7: =AND(Setup!AW29,"AAAAAFr8PKU=") ->  | FK7: =AND(Setup!AX29,"AAAAAFr8PKY=") ->  | FL7: =AND(Setup!AY29,"AAAAAFr8PKc=") ->  | FM7: =AND(Setup!AZ29,"AAAAAFr8PKg=") ->  | FN7: =AND(Setup!BA29,"AAAAAFr8PKk=") ->  | FO7: =AND(Setup!BB29,"AAAAAFr8PKo=") ->  | FP7: =AND(Setup!BC29,"AAAAAFr8PKs=") ->  | FQ7: =AND(Setup!BD29,"AAAAAFr8PKw=") ->  | FR7: =AND(Setup!BE29,"AAAAAFr8PK0=") ->  | FS7: =AND(Setup!BF29,"AAAAAFr8PK4=") ->  | FT7: =IF(Setup!30:30,"AAAAAFr8PK8=",0) -> 0 | FU7: =AND(Setup!A30,"AAAAAFr8PLA=") ->  | FV7: =AND(Setup!B30,"AAAAAFr8PLE=") ->  | FW7: =AND(Setup!C30,"AAAAAFr8PLI=") ->  | FX7: =AND(Setup!D30,"AAAAAFr8PLM=") ->  | FY7: =AND(Setup!E30,"AAAAAFr8PLQ=") ->  | FZ7: =AND(Setup!F30,"AAAAAFr8PLU=") ->  | GA7: =AND(Setup!G30,"AAAAAFr8PLY=") ->  | GB7: =AND(Setup!H30,"AAAAAFr8PLc=") ->  | GC7: =AND(Setup!I30,"AAAAAFr8PLg=") ->  | GD7: =AND(Setup!J30,"AAAAAFr8PLk=") ->  | GE7: =AND(Setup!K30,"AAAAAFr8PLo=") ->  | GF7: =AND(Setup!L30,"AAAAAFr8PLs=") ->  | GG7: =AND(Setup!M30,"AAAAAFr8PLw=") ->  | GH7: =AND(Setup!N30,"AAAAAFr8PL0=") ->  | GI7: =AND(Setup!O30,"AAAAAFr8PL4=") ->  | GJ7: =AND(Setup!P30,"AAAAAFr8PL8=") ->  | GK7: =AND(Setup!Q30,"AAAAAFr8PMA=") ->  | GL7: =AND(Setup!R30,"AAAAAFr8PME=") ->  | GM7: =AND(Setup!S30,"AAAAAFr8PMI=") ->  | GN7: =AND(Setup!T30,"AAAAAFr8PMM=") ->  | GO7: =AND(Setup!U30,"AAAAAFr8PMQ=") ->  | GP7: =AND(Setup!V30,"AAAAAFr8PMU=") ->  | GQ7: =AND(Setup!W30,"AAAAAFr8PMY=") ->  | GR7: =AND(Setup!X30,"AAAAAFr8PMc=") ->  | GS7: =AND(Setup!Y30,"AAAAAFr8PMg=") ->  | GT7: =AND(Setup!Z30,"AAAAAFr8PMk=") ->  | GU7: =AND(Setup!AA30,"AAAAAFr8PMo=") ->  | GV7: =AND(Setup!AB30,"AAAAAFr8PMs=") ->  | GW7: =AND(Setup!AC30,"AAAAAFr8PMw=") ->  | GX7: =AND(Setup!AD30,"AAAAAFr8PM0=") ->  | GY7: =AND(Setup!AE30,"AAAAAFr8PM4=") ->  | GZ7: =AND(Setup!AF30,"AAAAAFr8PM8=") ->  | HA7: =AND(Setup!AG30,"AAAAAFr8PNA=") ->  | HB7: =AND(Setup!AH30,"AAAAAFr8PNE=") ->  | HC7: =AND(Setup!AI30,"AAAAAFr8PNI=") ->  | HD7: =AND(Setup!AJ30,"AAAAAFr8PNM=") ->  | HE7: =AND(Setup!AK30,"AAAAAFr8PNQ=") ->  | HF7: =AND(Setup!AL30,"AAAAAFr8PNU=") ->  | HG7: =AND(Setup!AM30,"AAAAAFr8PNY=") ->  | HH7: =AND(Setup!AN30,"AAAAAFr8PNc=") ->  | HI7: =AND(Setup!AO30,"AAAAAFr8PNg=") ->  | HJ7: =AND(Setup!AP30,"AAAAAFr8PNk=") ->  | HK7: =AND(Setup!AQ30,"AAAAAFr8PNo=") ->  | HL7: =AND(Setup!AR30,"AAAAAFr8PNs=") ->  | HM7: =AND(Setup!AS30,"AAAAAFr8PNw=") ->  | HN7: =AND(Setup!AT30,"AAAAAFr8PN0=") ->  | HO7: =AND(Setup!AU30,"AAAAAFr8PN4=") ->  | HP7: =AND(Setup!AV30,"AAAAAFr8PN8=") ->  | HQ7: =AND(Setup!AW30,"AAAAAFr8POA=") ->  | HR7: =AND(Setup!AX30,"AAAAAFr8POE=") ->  | HS7: =AND(Setup!AY30,"AAAAAFr8POI=") ->  | HT7: =AND(Setup!AZ30,"AAAAAFr8POM=") ->  | HU7: =AND(Setup!BA30,"AAAAAFr8POQ=") ->  | HV7: =AND(Setup!BB30,"AAAAAFr8POU=") ->  | HW7: =AND(Setup!BC30,"AAAAAFr8POY=") ->  | HX7: =AND(Setup!BD30,"AAAAAFr8POc=") ->  | HY7: =AND(Setup!BE30,"AAAAAFr8POg=") ->  | HZ7: =AND(Setup!BF30,"AAAAAFr8POk=") ->  | IA7: =IF(Setup!31:31,"AAAAAFr8POo=",0) -> 0 | IB7: =AND(Setup!A31,"AAAAAFr8POs=") ->  | IC7: =AND(Setup!B31,"AAAAAFr8POw=") ->  | ID7: =AND(Setup!C31,"AAAAAFr8PO0=") ->  | IE7: =AND(Setup!D31,"AAAAAFr8PO4=") ->  | IF7: =AND(Setup!E31,"AAAAAFr8PO8=") ->  | IG7: =AND(Setup!F31,"AAAAAFr8PPA=") ->  | IH7: =AND(Setup!G31,"AAAAAFr8PPE=") ->  | II7: =AND(Setup!H31,"AAAAAFr8PPI=") ->  | IJ7: =AND(Setup!I31,"AAAAAFr8PPM=") ->  | IK7: =AND(Setup!J31,"AAAAAFr8PPQ=") ->  | IL7: =AND(Setup!K31,"AAAAAFr8PPU=") ->  | IM7: =AND(Setup!L31,"AAAAAFr8PPY=") ->  | IN7: =AND(Setup!M31,"AAAAAFr8PPc=") ->  | IO7: =AND(Setup!N31,"AAAAAFr8PPg=") ->  | IP7: =AND(Setup!O31,"AAAAAFr8PPk=") ->  | IQ7: =AND(Setup!P31,"AAAAAFr8PPo=") ->  | IR7: =AND(Setup!Q31,"AAAAAFr8PPs=") ->  | IS7: =AND(Setup!R31,"AAAAAFr8PPw=") ->  | IT7: =AND(Setup!S31,"AAAAAFr8PP0=") ->  | IU7: =AND(Setup!T31,"AAAAAFr8PP4=") ->  | IV7: =AND(Setup!U31,"AAAAAFr8PP8=") -> 
A8: =AND(Setup!V31,"AAAAAHeLOwA=") ->  | B8: =AND(Setup!W31,"AAAAAHeLOwE=") ->  | C8: =AND(Setup!X31,"AAAAAHeLOwI=") ->  | D8: =AND(Setup!Y31,"AAAAAHeLOwM=") ->  | E8: =AND(Setup!Z31,"AAAAAHeLOwQ=") ->  | F8: =AND(Setup!AA31,"AAAAAHeLOwU=") ->  | G8: =AND(Setup!AB31,"AAAAAHeLOwY=") ->  | H8: =AND(Setup!AC31,"AAAAAHeLOwc=") ->  | I8: =AND(Setup!AD31,"AAAAAHeLOwg=") ->  | J8: =AND(Setup!AE31,"AAAAAHeLOwk=") ->  | K8: =AND(Setup!AF31,"AAAAAHeLOwo=") ->  | L8: =AND(Setup!AG31,"AAAAAHeLOws=") ->  | M8: =AND(Setup!AH31,"AAAAAHeLOww=") ->  | N8: =AND(Setup!AI31,"AAAAAHeLOw0=") ->  | O8: =AND(Setup!AJ31,"AAAAAHeLOw4=") ->  | P8: =AND(Setup!AK31,"AAAAAHeLOw8=") ->  | Q8: =AND(Setup!AL31,"AAAAAHeLOxA=") ->  | R8: =AND(Setup!AM31,"AAAAAHeLOxE=") ->  | S8: =AND(Setup!AN31,"AAAAAHeLOxI=") ->  | T8: =AND(Setup!AO31,"AAAAAHeLOxM=") ->  | U8: =AND(Setup!AP31,"AAAAAHeLOxQ=") ->  | V8: =AND(Setup!AQ31,"AAAAAHeLOxU=") ->  | W8: =AND(Setup!AR31,"AAAAAHeLOxY=") ->  | X8: =AND(Setup!AS31,"AAAAAHeLOxc=") ->  | Y8: =AND(Setup!AT31,"AAAAAHeLOxg=") ->  | Z8: =AND(Setup!AU31,"AAAAAHeLOxk=") ->  | AA8: =AND(Setup!AV31,"AAAAAHeLOxo=") ->  | AB8: =AND(Setup!AW31,"AAAAAHeLOxs=") ->  | AC8: =AND(Setup!AX31,"AAAAAHeLOxw=") ->  | AD8: =AND(Setup!AY31,"AAAAAHeLOx0=") ->  | AE8: =AND(Setup!AZ31,"AAAAAHeLOx4=") ->  | AF8: =AND(Setup!BA31,"AAAAAHeLOx8=") ->  | AG8: =AND(Setup!BB31,"AAAAAHeLOyA=") ->  | AH8: =AND(Setup!BC31,"AAAAAHeLOyE=") ->  | AI8: =AND(Setup!BD31,"AAAAAHeLOyI=") ->  | AJ8: =AND(Setup!BE31,"AAAAAHeLOyM=") ->  | AK8: =AND(Setup!BF31,"AAAAAHeLOyQ=") ->  | AL8: =IF(Setup!32:32,"AAAAAHeLOyU=",0) -> 0 | AM8: =AND(Setup!A32,"AAAAAHeLOyY=") ->  | AN8: =AND(Setup!B32,"AAAAAHeLOyc=") ->  | AO8: =AND(Setup!C32,"AAAAAHeLOyg=") ->  | AP8: =AND(Setup!D32,"AAAAAHeLOyk=") ->  | AQ8: =AND(Setup!E32,"AAAAAHeLOyo=") ->  | AR8: =AND(Setup!F32,"AAAAAHeLOys=") ->  | AS8: =AND(Setup!G32,"AAAAAHeLOyw=") ->  | AT8: =AND(Setup!H32,"AAAAAHeLOy0=") ->  | AU8: =AND(Setup!I32,"AAAAAHeLOy4=") ->  | AV8: =AND(Setup!J32,"AAAAAHeLOy8=") ->  | AW8: =AND(Setup!K32,"AAAAAHeLOzA=") ->  | AX8: =AND(Setup!L32,"AAAAAHeLOzE=") ->  | AY8: =AND(Setup!M32,"AAAAAHeLOzI=") ->  | AZ8: =AND(Setup!N32,"AAAAAHeLOzM=") ->  | BA8: =AND(Setup!O32,"AAAAAHeLOzQ=") ->  | BB8: =AND(Setup!P32,"AAAAAHeLOzU=") ->  | BC8: =AND(Setup!Q32,"AAAAAHeLOzY=") ->  | BD8: =AND(Setup!R32,"AAAAAHeLOzc=") ->  | BE8: =AND(Setup!S32,"AAAAAHeLOzg=") ->  | BF8: =AND(Setup!T32,"AAAAAHeLOzk=") ->  | BG8: =AND(Setup!U32,"AAAAAHeLOzo=") ->  | BH8: =AND(Setup!V32,"AAAAAHeLOzs=") ->  | BI8: =AND(Setup!W32,"AAAAAHeLOzw=") ->  | BJ8: =AND(Setup!X32,"AAAAAHeLOz0=") ->  | BK8: =AND(Setup!Y32,"AAAAAHeLOz4=") ->  | BL8: =AND(Setup!Z32,"AAAAAHeLOz8=") ->  | BM8: =AND(Setup!AA32,"AAAAAHeLO0A=") ->  | BN8: =AND(Setup!AB32,"AAAAAHeLO0E=") ->  | BO8: =AND(Setup!AC32,"AAAAAHeLO0I=") ->  | BP8: =AND(Setup!AD32,"AAAAAHeLO0M=") ->  | BQ8: =AND(Setup!AE32,"AAAAAHeLO0Q=") ->  | BR8: =AND(Setup!AF32,"AAAAAHeLO0U=") ->  | BS8: =AND(Setup!AG32,"AAAAAHeLO0Y=") ->  | BT8: =AND(Setup!AH32,"AAAAAHeLO0c=") ->  | BU8: =AND(Setup!AI32,"AAAAAHeLO0g=") ->  | BV8: =AND(Setup!AJ32,"AAAAAHeLO0k=") ->  | BW8: =AND(Setup!AK32,"AAAAAHeLO0o=") ->  | BX8: =AND(Setup!AL32,"AAAAAHeLO0s=") ->  | BY8: =AND(Setup!AM32,"AAAAAHeLO0w=") ->  | BZ8: =AND(Setup!AN32,"AAAAAHeLO00=") ->  | CA8: =AND(Setup!AO32,"AAAAAHeLO04=") ->  | CB8: =AND(Setup!AP32,"AAAAAHeLO08=") ->  | CC8: =AND(Setup!AQ32,"AAAAAHeLO1A=") ->  | CD8: =AND(Setup!AR32,"AAAAAHeLO1E=") ->  | CE8: =AND(Setup!AS32,"AAAAAHeLO1I=") ->  | CF8: =AND(Setup!AT32,"AAAAAHeLO1M=") ->  | CG8: =AND(Setup!AU32,"AAAAAHeLO1Q=") ->  | CH8: =AND(Setup!AV32,"AAAAAHeLO1U=") ->  | CI8: =AND(Setup!AW32,"AAAAAHeLO1Y=") ->  | CJ8: =AND(Setup!AX32,"AAAAAHeLO1c=") ->  | CK8: =AND(Setup!AY32,"AAAAAHeLO1g=") ->  | CL8: =AND(Setup!AZ32,"AAAAAHeLO1k=") ->  | CM8: =AND(Setup!BA32,"AAAAAHeLO1o=") ->  | CN8: =AND(Setup!BB32,"AAAAAHeLO1s=") ->  | CO8: =AND(Setup!BC32,"AAAAAHeLO1w=") ->  | CP8: =AND(Setup!BD32,"AAAAAHeLO10=") ->  | CQ8: =AND(Setup!BE32,"AAAAAHeLO14=") ->  | CR8: =AND(Setup!BF32,"AAAAAHeLO18=") ->  | CS8: =IF(Setup!33:33,"AAAAAHeLO2A=",0) -> 0 | CT8: =AND(Setup!A33,"AAAAAHeLO2E=") ->  | CU8: =AND(Setup!B33,"AAAAAHeLO2I=") ->  | CV8: =AND(Setup!C33,"AAAAAHeLO2M=") ->  | CW8: =AND(Setup!D33,"AAAAAHeLO2Q=") ->  | CX8: =AND(Setup!E33,"AAAAAHeLO2U=") ->  | CY8: =AND(Setup!F33,"AAAAAHeLO2Y=") ->  | CZ8: =AND(Setup!G33,"AAAAAHeLO2c=") ->  | DA8: =AND(Setup!H33,"AAAAAHeLO2g=") ->  | DB8: =AND(Setup!I33,"AAAAAHeLO2k=") ->  | DC8: =AND(Setup!J33,"AAAAAHeLO2o=") ->  | DD8: =AND(Setup!K33,"AAAAAHeLO2s=") ->  | DE8: =AND(Setup!L33,"AAAAAHeLO2w=") ->  | DF8: =AND(Setup!M33,"AAAAAHeLO20=") ->  | DG8: =AND(Setup!N33,"AAAAAHeLO24=") ->  | DH8: =AND(Setup!O33,"AAAAAHeLO28=") ->  | DI8: =AND(Setup!P33,"AAAAAHeLO3A=") ->  | DJ8: =AND(Setup!Q33,"AAAAAHeLO3E=") ->  | DK8: =AND(Setup!R33,"AAAAAHeLO3I=") ->  | DL8: =AND(Setup!S33,"AAAAAHeLO3M=") ->  | DM8: =AND(Setup!T33,"AAAAAHeLO3Q=") ->  | DN8: =AND(Setup!U33,"AAAAAHeLO3U=") ->  | DO8: =AND(Setup!V33,"AAAAAHeLO3Y=") ->  | DP8: =AND(Setup!W33,"AAAAAHeLO3c=") ->  | DQ8: =AND(Setup!X33,"AAAAAHeLO3g=") ->  | DR8: =AND(Setup!Y33,"AAAAAHeLO3k=") ->  | DS8: =AND(Setup!Z33,"AAAAAHeLO3o=") ->  | DT8: =AND(Setup!AA33,"AAAAAHeLO3s=") ->  | DU8: =AND(Setup!AB33,"AAAAAHeLO3w=") ->  | DV8: =AND(Setup!AC33,"AAAAAHeLO30=") ->  | DW8: =AND(Setup!AD33,"AAAAAHeLO34=") ->  | DX8: =AND(Setup!AE33,"AAAAAHeLO38=") ->  | DY8: =AND(Setup!AF33,"AAAAAHeLO4A=") ->  | DZ8: =AND(Setup!AG33,"AAAAAHeLO4E=") ->  | EA8: =AND(Setup!AH33,"AAAAAHeLO4I=") ->  | EB8: =AND(Setup!AI33,"AAAAAHeLO4M=") ->  | EC8: =AND(Setup!AJ33,"AAAAAHeLO4Q=") ->  | ED8: =AND(Setup!AK33,"AAAAAHeLO4U=") ->  | EE8: =AND(Setup!AL33,"AAAAAHeLO4Y=") ->  | EF8: =AND(Setup!AM33,"AAAAAHeLO4c=") ->  | EG8: =AND(Setup!AN33,"AAAAAHeLO4g=") ->  | EH8: =AND(Setup!AO33,"AAAAAHeLO4k=") ->  | EI8: =AND(Setup!AP33,"AAAAAHeLO4o=") ->  | EJ8: =AND(Setup!AQ33,"AAAAAHeLO4s=") ->  | EK8: =AND(Setup!AR33,"AAAAAHeLO4w=") ->  | EL8: =AND(Setup!AS33,"AAAAAHeLO40=") ->  | EM8: =AND(Setup!AT33,"AAAAAHeLO44=") ->  | EN8: =AND(Setup!AU33,"AAAAAHeLO48=") ->  | EO8: =AND(Setup!AV33,"AAAAAHeLO5A=") ->  | EP8: =AND(Setup!AW33,"AAAAAHeLO5E=") ->  | EQ8: =AND(Setup!AX33,"AAAAAHeLO5I=") ->  | ER8: =AND(Setup!AY33,"AAAAAHeLO5M=") ->  | ES8: =AND(Setup!AZ33,"AAAAAHeLO5Q=") ->  | ET8: =AND(Setup!BA33,"AAAAAHeLO5U=") ->  | EU8: =AND(Setup!BB33,"AAAAAHeLO5Y=") ->  | EV8: =AND(Setup!BC33,"AAAAAHeLO5c=") ->  | EW8: =AND(Setup!BD33,"AAAAAHeLO5g=") ->  | EX8: =AND(Setup!BE33,"AAAAAHeLO5k=") ->  | EY8: =AND(Setup!BF33,"AAAAAHeLO5o=") ->  | EZ8: =IF(Setup!34:34,"AAAAAHeLO5s=",0) -> 0 | FA8: =AND(Setup!A34,"AAAAAHeLO5w=") ->  | FB8: =AND(Setup!B34,"AAAAAHeLO50=") ->  | FC8: =AND(Setup!C34,"AAAAAHeLO54=") ->  | FD8: =AND(Setup!D34,"AAAAAHeLO58=") ->  | FE8: =AND(Setup!E34,"AAAAAHeLO6A=") ->  | FF8: =AND(Setup!F34,"AAAAAHeLO6E=") ->  | FG8: =AND(Setup!G34,"AAAAAHeLO6I=") ->  | FH8: =AND(Setup!H34,"AAAAAHeLO6M=") ->  | FI8: =AND(Setup!I34,"AAAAAHeLO6Q=") ->  | FJ8: =AND(Setup!J34,"AAAAAHeLO6U=") ->  | FK8: =AND(Setup!K34,"AAAAAHeLO6Y=") ->  | FL8: =AND(Setup!L34,"AAAAAHeLO6c=") ->  | FM8: =AND(Setup!M34,"AAAAAHeLO6g=") ->  | FN8: =AND(Setup!N34,"AAAAAHeLO6k=") ->  | FO8: =AND(Setup!O34,"AAAAAHeLO6o=") ->  | FP8: =AND(Setup!P34,"AAAAAHeLO6s=") ->  | FQ8: =AND(Setup!Q34,"AAAAAHeLO6w=") ->  | FR8: =AND(Setup!R34,"AAAAAHeLO60=") ->  | FS8: =AND(Setup!S34,"AAAAAHeLO64=") ->  | FT8: =AND(Setup!T34,"AAAAAHeLO68=") ->  | FU8: =AND(Setup!U34,"AAAAAHeLO7A=") ->  | FV8: =AND(Setup!V34,"AAAAAHeLO7E=") ->  | FW8: =AND(Setup!W34,"AAAAAHeLO7I=") ->  | FX8: =AND(Setup!X34,"AAAAAHeLO7M=") ->  | FY8: =AND(Setup!Y34,"AAAAAHeLO7Q=") ->  | FZ8: =AND(Setup!Z34,"AAAAAHeLO7U=") ->  | GA8: =AND(Setup!AA34,"AAAAAHeLO7Y=") ->  | GB8: =AND(Setup!AB34,"AAAAAHeLO7c=") ->  | GC8: =AND(Setup!AC34,"AAAAAHeLO7g=") ->  | GD8: =AND(Setup!AD34,"AAAAAHeLO7k=") ->  | GE8: =AND(Setup!AE34,"AAAAAHeLO7o=") ->  | GF8: =AND(Setup!AF34,"AAAAAHeLO7s=") ->  | GG8: =AND(Setup!AG34,"AAAAAHeLO7w=") ->  | GH8: =AND(Setup!AH34,"AAAAAHeLO70=") ->  | GI8: =AND(Setup!AI34,"AAAAAHeLO74=") ->  | GJ8: =AND(Setup!AJ34,"AAAAAHeLO78=") ->  | GK8: =AND(Setup!AK34,"AAAAAHeLO8A=") ->  | GL8: =AND(Setup!AL34,"AAAAAHeLO8E=") ->  | GM8: =AND(Setup!AM34,"AAAAAHeLO8I=") ->  | GN8: =AND(Setup!AN34,"AAAAAHeLO8M=") ->  | GO8: =AND(Setup!AO34,"AAAAAHeLO8Q=") ->  | GP8: =AND(Setup!AP34,"AAAAAHeLO8U=") ->  | GQ8: =AND(Setup!AQ34,"AAAAAHeLO8Y=") ->  | GR8: =AND(Setup!AR34,"AAAAAHeLO8c=") ->  | GS8: =AND(Setup!AS34,"AAAAAHeLO8g=") ->  | GT8: =AND(Setup!AT34,"AAAAAHeLO8k=") ->  | GU8: =AND(Setup!AU34,"AAAAAHeLO8o=") ->  | GV8: =AND(Setup!AV34,"AAAAAHeLO8s=") ->  | GW8: =AND(Setup!AW34,"AAAAAHeLO8w=") ->  | GX8: =AND(Setup!AX34,"AAAAAHeLO80=") ->  | GY8: =AND(Setup!AY34,"AAAAAHeLO84=") ->  | GZ8: =AND(Setup!AZ34,"AAAAAHeLO88=") ->  | HA8: =AND(Setup!BA34,"AAAAAHeLO9A=") ->  | HB8: =AND(Setup!BB34,"AAAAAHeLO9E=") ->  | HC8: =AND(Setup!BC34,"AAAAAHeLO9I=") ->  | HD8: =AND(Setup!BD34,"AAAAAHeLO9M=") ->  | HE8: =AND(Setup!BE34,"AAAAAHeLO9Q=") ->  | HF8: =AND(Setup!BF34,"AAAAAHeLO9U=") ->  | HG8: =IF(Setup!35:35,"AAAAAHeLO9Y=",0) -> 0 | HH8: =AND(Setup!A35,"AAAAAHeLO9c=") ->  | HI8: =AND(Setup!B35,"AAAAAHeLO9g=") ->  | HJ8: =AND(Setup!C35,"AAAAAHeLO9k=") ->  | HK8: =AND(Setup!D35,"AAAAAHeLO9o=") ->  | HL8: =AND(Setup!E35,"AAAAAHeLO9s=") ->  | HM8: =AND(Setup!F35,"AAAAAHeLO9w=") ->  | HN8: =AND(Setup!G35,"AAAAAHeLO90=") ->  | HO8: =AND(Setup!H35,"AAAAAHeLO94=") ->  | HP8: =AND(Setup!I35,"AAAAAHeLO98=") ->  | HQ8: =AND(Setup!J35,"AAAAAHeLO+A=") ->  | HR8: =AND(Setup!K35,"AAAAAHeLO+E=") ->  | HS8: =AND(Setup!L35,"AAAAAHeLO+I=") ->  | HT8: =AND(Setup!M35,"AAAAAHeLO+M=") ->  | HU8: =AND(Setup!N35,"AAAAAHeLO+Q=") ->  | HV8: =AND(Setup!O35,"AAAAAHeLO+U=") ->  | HW8: =AND(Setup!P35,"AAAAAHeLO+Y=") ->  | HX8: =AND(Setup!Q35,"AAAAAHeLO+c=") ->  | HY8: =AND(Setup!R35,"AAAAAHeLO+g=") ->  | HZ8: =AND(Setup!S35,"AAAAAHeLO+k=") ->  | IA8: =AND(Setup!T35,"AAAAAHeLO+o=") ->  | IB8: =AND(Setup!U35,"AAAAAHeLO+s=") ->  | IC8: =AND(Setup!V35,"AAAAAHeLO+w=") ->  | ID8: =AND(Setup!W35,"AAAAAHeLO+0=") ->  | IE8: =AND(Setup!X35,"AAAAAHeLO+4=") ->  | IF8: =AND(Setup!Y35,"AAAAAHeLO+8=") ->  | IG8: =AND(Setup!Z35,"AAAAAHeLO/A=") ->  | IH8: =AND(Setup!AA35,"AAAAAHeLO/E=") ->  | II8: =AND(Setup!AB35,"AAAAAHeLO/I=") ->  | IJ8: =AND(Setup!AC35,"AAAAAHeLO/M=") ->  | IK8: =AND(Setup!AD35,"AAAAAHeLO/Q=") ->  | IL8: =AND(Setup!AE35,"AAAAAHeLO/U=") ->  | IM8: =AND(Setup!AF35,"AAAAAHeLO/Y=") ->  | IN8: =AND(Setup!AG35,"AAAAAHeLO/c=") ->  | IO8: =AND(Setup!AH35,"AAAAAHeLO/g=") ->  | IP8: =AND(Setup!AI35,"AAAAAHeLO/k=") ->  | IQ8: =AND(Setup!AJ35,"AAAAAHeLO/o=") ->  | IR8: =AND(Setup!AK35,"AAAAAHeLO/s=") ->  | IS8: =AND(Setup!AL35,"AAAAAHeLO/w=") ->  | IT8: =AND(Setup!AM35,"AAAAAHeLO/0=") ->  | IU8: =AND(Setup!AN35,"AAAAAHeLO/4=") ->  | IV8: =AND(Setup!AO35,"AAAAAHeLO/8=") -> 
A9: =AND(Setup!AP35,"AAAAAE1j+QA=") ->  | B9: =AND(Setup!AQ35,"AAAAAE1j+QE=") ->  | C9: =AND(Setup!AR35,"AAAAAE1j+QI=") ->  | D9: =AND(Setup!AS35,"AAAAAE1j+QM=") ->  | E9: =AND(Setup!AT35,"AAAAAE1j+QQ=") ->  | F9: =AND(Setup!AU35,"AAAAAE1j+QU=") ->  | G9: =AND(Setup!AV35,"AAAAAE1j+QY=") ->  | H9: =AND(Setup!AW35,"AAAAAE1j+Qc=") ->  | I9: =AND(Setup!AX35,"AAAAAE1j+Qg=") ->  | J9: =AND(Setup!AY35,"AAAAAE1j+Qk=") ->  | K9: =AND(Setup!AZ35,"AAAAAE1j+Qo=") ->  | L9: =AND(Setup!BA35,"AAAAAE1j+Qs=") ->  | M9: =AND(Setup!BB35,"AAAAAE1j+Qw=") ->  | N9: =AND(Setup!BC35,"AAAAAE1j+Q0=") ->  | O9: =AND(Setup!BD35,"AAAAAE1j+Q4=") ->  | P9: =AND(Setup!BE35,"AAAAAE1j+Q8=") ->  | Q9: =AND(Setup!BF35,"AAAAAE1j+RA=") ->  | R9: =IF(Setup!36:36,"AAAAAE1j+RE=",0) -> 0 | S9: =AND(Setup!A36,"AAAAAE1j+RI=") ->  | T9: =AND(Setup!B36,"AAAAAE1j+RM=") ->  | U9: =AND(Setup!C36,"AAAAAE1j+RQ=") ->  | V9: =AND(Setup!D36,"AAAAAE1j+RU=") ->  | W9: =AND(Setup!E36,"AAAAAE1j+RY=") ->  | X9: =AND(Setup!F36,"AAAAAE1j+Rc=") ->  | Y9: =AND(Setup!G36,"AAAAAE1j+Rg=") ->  | Z9: =AND(Setup!H36,"AAAAAE1j+Rk=") ->  | AA9: =AND(Setup!I36,"AAAAAE1j+Ro=") ->  | AB9: =AND(Setup!J36,"AAAAAE1j+Rs=") ->  | AC9: =AND(Setup!K36,"AAAAAE1j+Rw=") ->  | AD9: =AND(Setup!L36,"AAAAAE1j+R0=") ->  | AE9: =AND(Setup!M36,"AAAAAE1j+R4=") ->  | AF9: =AND(Setup!N36,"AAAAAE1j+R8=") ->  | AG9: =AND(Setup!O36,"AAAAAE1j+SA=") ->  | AH9: =AND(Setup!P36,"AAAAAE1j+SE=") ->  | AI9: =AND(Setup!Q36,"AAAAAE1j+SI=") ->  | AJ9: =AND(Setup!R36,"AAAAAE1j+SM=") ->  | AK9: =AND(Setup!S36,"AAAAAE1j+SQ=") ->  | AL9: =AND(Setup!T36,"AAAAAE1j+SU=") ->  | AM9: =AND(Setup!U36,"AAAAAE1j+SY=") ->  | AN9: =AND(Setup!V36,"AAAAAE1j+Sc=") ->  | AO9: =AND(Setup!W36,"AAAAAE1j+Sg=") ->  | AP9: =AND(Setup!X36,"AAAAAE1j+Sk=") ->  | AQ9: =AND(Setup!Y36,"AAAAAE1j+So=") ->  | AR9: =AND(Setup!Z36,"AAAAAE1j+Ss=") ->  | AS9: =AND(Setup!AA36,"AAAAAE1j+Sw=") ->  | AT9: =AND(Setup!AB36,"AAAAAE1j+S0=") ->  | AU9: =AND(Setup!AC36,"AAAAAE1j+S4=") ->  | AV9: =AND(Setup!AD36,"AAAAAE1j+S8=") ->  | AW9: =AND(Setup!AE36,"AAAAAE1j+TA=") ->  | AX9: =AND(Setup!AF36,"AAAAAE1j+TE=") ->  | AY9: =AND(Setup!AG36,"AAAAAE1j+TI=") ->  | AZ9: =AND(Setup!AH36,"AAAAAE1j+TM=") ->  | BA9: =AND(Setup!AI36,"AAAAAE1j+TQ=") ->  | BB9: =AND(Setup!AJ36,"AAAAAE1j+TU=") ->  | BC9: =AND(Setup!AK36,"AAAAAE1j+TY=") ->  | BD9: =AND(Setup!AL36,"AAAAAE1j+Tc=") ->  | BE9: =AND(Setup!AM36,"AAAAAE1j+Tg=") ->  | BF9: =AND(Setup!AN36,"AAAAAE1j+Tk=") ->  | BG9: =AND(Setup!AO36,"AAAAAE1j+To=") ->  | BH9: =AND(Setup!AP36,"AAAAAE1j+Ts=") ->  | BI9: =AND(Setup!AQ36,"AAAAAE1j+Tw=") ->  | BJ9: =AND(Setup!AR36,"AAAAAE1j+T0=") ->  | BK9: =AND(Setup!AS36,"AAAAAE1j+T4=") ->  | BL9: =AND(Setup!AT36,"AAAAAE1j+T8=") ->  | BM9: =AND(Setup!AU36,"AAAAAE1j+UA=") ->  | BN9: =AND(Setup!AV36,"AAAAAE1j+UE=") ->  | BO9: =AND(Setup!AW36,"AAAAAE1j+UI=") ->  | BP9: =AND(Setup!AX36,"AAAAAE1j+UM=") ->  | BQ9: =AND(Setup!AY36,"AAAAAE1j+UQ=") ->  | BR9: =AND(Setup!AZ36,"AAAAAE1j+UU=") ->  | BS9: =AND(Setup!BA36,"AAAAAE1j+UY=") ->  | BT9: =AND(Setup!BB36,"AAAAAE1j+Uc=") ->  | BU9: =AND(Setup!BC36,"AAAAAE1j+Ug=") ->  | BV9: =AND(Setup!BD36,"AAAAAE1j+Uk=") ->  | BW9: =AND(Setup!BE36,"AAAAAE1j+Uo=") ->  | BX9: =AND(Setup!BF36,"AAAAAE1j+Us=") ->  | BY9: =IF(Setup!37:37,"AAAAAE1j+Uw=",0) -> 0 | BZ9: =AND(Setup!A37,"AAAAAE1j+U0=") ->  | CA9: =AND(Setup!B37,"AAAAAE1j+U4=") ->  | CB9: =AND(Setup!C37,"AAAAAE1j+U8=") ->  | CC9: =AND(Setup!D37,"AAAAAE1j+VA=") ->  | CD9: =AND(Setup!E37,"AAAAAE1j+VE=") ->  | CE9: =AND(Setup!F37,"AAAAAE1j+VI=") ->  | CF9: =AND(Setup!G37,"AAAAAE1j+VM=") ->  | CG9: =AND(Setup!H37,"AAAAAE1j+VQ=") ->  | CH9: =AND(Setup!I37,"AAAAAE1j+VU=") ->  | CI9: =AND(Setup!J37,"AAAAAE1j+VY=") ->  | CJ9: =AND(Setup!K37,"AAAAAE1j+Vc=") ->  | CK9: =AND(Setup!L37,"AAAAAE1j+Vg=") ->  | CL9: =AND(Setup!M37,"AAAAAE1j+Vk=") ->  | CM9: =AND(Setup!N37,"AAAAAE1j+Vo=") ->  | CN9: =AND(Setup!O37,"AAAAAE1j+Vs=") ->  | CO9: =AND(Setup!P37,"AAAAAE1j+Vw=") ->  | CP9: =AND(Setup!Q37,"AAAAAE1j+V0=") ->  | CQ9: =AND(Setup!R37,"AAAAAE1j+V4=") ->  | CR9: =AND(Setup!S37,"AAAAAE1j+V8=") ->  | CS9: =AND(Setup!T37,"AAAAAE1j+WA=") ->  | CT9: =AND(Setup!U37,"AAAAAE1j+WE=") ->  | CU9: =AND(Setup!V37,"AAAAAE1j+WI=") ->  | CV9: =AND(Setup!W37,"AAAAAE1j+WM=") ->  | CW9: =AND(Setup!X37,"AAAAAE1j+WQ=") ->  | CX9: =AND(Setup!Y37,"AAAAAE1j+WU=") ->  | CY9: =AND(Setup!Z37,"AAAAAE1j+WY=") ->  | CZ9: =AND(Setup!AA37,"AAAAAE1j+Wc=") ->  | DA9: =AND(Setup!AB37,"AAAAAE1j+Wg=") ->  | DB9: =AND(Setup!AC37,"AAAAAE1j+Wk=") ->  | DC9: =AND(Setup!AD37,"AAAAAE1j+Wo=") ->  | DD9: =AND(Setup!AE37,"AAAAAE1j+Ws=") ->  | DE9: =AND(Setup!AF37,"AAAAAE1j+Ww=") ->  | DF9: =AND(Setup!AG37,"AAAAAE1j+W0=") ->  | DG9: =AND(Setup!AH37,"AAAAAE1j+W4=") ->  | DH9: =AND(Setup!AI37,"AAAAAE1j+W8=") ->  | DI9: =AND(Setup!AJ37,"AAAAAE1j+XA=") ->  | DJ9: =AND(Setup!AK37,"AAAAAE1j+XE=") ->  | DK9: =AND(Setup!AL37,"AAAAAE1j+XI=") ->  | DL9: =AND(Setup!AM37,"AAAAAE1j+XM=") ->  | DM9: =AND(Setup!AN37,"AAAAAE1j+XQ=") ->  | DN9: =AND(Setup!AO37,"AAAAAE1j+XU=") ->  | DO9: =AND(Setup!AP37,"AAAAAE1j+XY=") ->  | DP9: =AND(Setup!AQ37,"AAAAAE1j+Xc=") ->  | DQ9: =AND(Setup!AR37,"AAAAAE1j+Xg=") ->  | DR9: =AND(Setup!AS37,"AAAAAE1j+Xk=") ->  | DS9: =AND(Setup!AT37,"AAAAAE1j+Xo=") ->  | DT9: =AND(Setup!AU37,"AAAAAE1j+Xs=") ->  | DU9: =AND(Setup!AV37,"AAAAAE1j+Xw=") ->  | DV9: =AND(Setup!AW37,"AAAAAE1j+X0=") ->  | DW9: =AND(Setup!AX37,"AAAAAE1j+X4=") ->  | DX9: =AND(Setup!AY37,"AAAAAE1j+X8=") ->  | DY9: =AND(Setup!AZ37,"AAAAAE1j+YA=") ->  | DZ9: =AND(Setup!BA37,"AAAAAE1j+YE=") ->  | EA9: =AND(Setup!BB37,"AAAAAE1j+YI=") ->  | EB9: =AND(Setup!BC37,"AAAAAE1j+YM=") ->  | EC9: =AND(Setup!BD37,"AAAAAE1j+YQ=") ->  | ED9: =AND(Setup!BE37,"AAAAAE1j+YU=") ->  | EE9: =AND(Setup!BF37,"AAAAAE1j+YY=") ->  | EF9: =IF(Setup!38:38,"AAAAAE1j+Yc=",0) -> 0 | EG9: =AND(Setup!A38,"AAAAAE1j+Yg=") ->  | EH9: =AND(Setup!B38,"AAAAAE1j+Yk=") ->  | EI9: =AND(Setup!C38,"AAAAAE1j+Yo=") ->  | EJ9: =AND(Setup!D38,"AAAAAE1j+Ys=") ->  | EK9: =AND(Setup!E38,"AAAAAE1j+Yw=") ->  | EL9: =AND(Setup!F38,"AAAAAE1j+Y0=") ->  | EM9: =AND(Setup!G38,"AAAAAE1j+Y4=") ->  | EN9: =AND(Setup!H38,"AAAAAE1j+Y8=") ->  | EO9: =AND(Setup!I38,"AAAAAE1j+ZA=") ->  | EP9: =AND(Setup!J38,"AAAAAE1j+ZE=") ->  | EQ9: =AND(Setup!K38,"AAAAAE1j+ZI=") ->  | ER9: =AND(Setup!L38,"AAAAAE1j+ZM=") ->  | ES9: =AND(Setup!M38,"AAAAAE1j+ZQ=") ->  | ET9: =AND(Setup!N38,"AAAAAE1j+ZU=") ->  | EU9: =AND(Setup!O38,"AAAAAE1j+ZY=") ->  | EV9: =AND(Setup!P38,"AAAAAE1j+Zc=") ->  | EW9: =AND(Setup!Q38,"AAAAAE1j+Zg=") ->  | EX9: =AND(Setup!R38,"AAAAAE1j+Zk=") ->  | EY9: =AND(Setup!S38,"AAAAAE1j+Zo=") ->  | EZ9: =AND(Setup!T38,"AAAAAE1j+Zs=") ->  | FA9: =AND(Setup!U38,"AAAAAE1j+Zw=") ->  | FB9: =AND(Setup!V38,"AAAAAE1j+Z0=") ->  | FC9: =AND(Setup!W38,"AAAAAE1j+Z4=") ->  | FD9: =AND(Setup!X38,"AAAAAE1j+Z8=") ->  | FE9: =AND(Setup!Y38,"AAAAAE1j+aA=") ->  | FF9: =AND(Setup!Z38,"AAAAAE1j+aE=") ->  | FG9: =AND(Setup!AA38,"AAAAAE1j+aI=") ->  | FH9: =AND(Setup!AB38,"AAAAAE1j+aM=") ->  | FI9: =AND(Setup!AC38,"AAAAAE1j+aQ=") ->  | FJ9: =AND(Setup!AD38,"AAAAAE1j+aU=") ->  | FK9: =AND(Setup!AE38,"AAAAAE1j+aY=") ->  | FL9: =AND(Setup!AF38,"AAAAAE1j+ac=") ->  | FM9: =AND(Setup!AG38,"AAAAAE1j+ag=") ->  | FN9: =AND(Setup!AH38,"AAAAAE1j+ak=") ->  | FO9: =AND(Setup!AI38,"AAAAAE1j+ao=") ->  | FP9: =AND(Setup!AJ38,"AAAAAE1j+as=") ->  | FQ9: =AND(Setup!AK38,"AAAAAE1j+aw=") ->  | FR9: =AND(Setup!AL38,"AAAAAE1j+a0=") ->  | FS9: =AND(Setup!AM38,"AAAAAE1j+a4=") ->  | FT9: =AND(Setup!AN38,"AAAAAE1j+a8=") ->  | FU9: =AND(Setup!AO38,"AAAAAE1j+bA=") ->  | FV9: =AND(Setup!AP38,"AAAAAE1j+bE=") ->  | FW9: =AND(Setup!AQ38,"AAAAAE1j+bI=") ->  | FX9: =AND(Setup!AR38,"AAAAAE1j+bM=") ->  | FY9: =AND(Setup!AS38,"AAAAAE1j+bQ=") ->  | FZ9: =AND(Setup!AT38,"AAAAAE1j+bU=") ->  | GA9: =AND(Setup!AU38,"AAAAAE1j+bY=") ->  | GB9: =AND(Setup!AV38,"AAAAAE1j+bc=") ->  | GC9: =AND(Setup!AW38,"AAAAAE1j+bg=") ->  | GD9: =AND(Setup!AX38,"AAAAAE1j+bk=") ->  | GE9: =AND(Setup!AY38,"AAAAAE1j+bo=") ->  | GF9: =AND(Setup!AZ38,"AAAAAE1j+bs=") ->  | GG9: =AND(Setup!BA38,"AAAAAE1j+bw=") ->  | GH9: =AND(Setup!BB38,"AAAAAE1j+b0=") ->  | GI9: =AND(Setup!BC38,"AAAAAE1j+b4=") ->  | GJ9: =AND(Setup!BD38,"AAAAAE1j+b8=") ->  | GK9: =AND(Setup!BE38,"AAAAAE1j+cA=") ->  | GL9: =AND(Setup!BF38,"AAAAAE1j+cE=") ->  | GM9: =IF(Setup!39:39,"AAAAAE1j+cI=",0) -> 0 | GN9: =AND(Setup!A39,"AAAAAE1j+cM=") ->  | GO9: =AND(Setup!B39,"AAAAAE1j+cQ=") ->  | GP9: =AND(Setup!C39,"AAAAAE1j+cU=") ->  | GQ9: =AND(Setup!D39,"AAAAAE1j+cY=") ->  | GR9: =AND(Setup!E39,"AAAAAE1j+cc=") ->  | GS9: =AND(Setup!F39,"AAAAAE1j+cg=") ->  | GT9: =AND(Setup!G39,"AAAAAE1j+ck=") ->  | GU9: =AND(Setup!H39,"AAAAAE1j+co=") ->  | GV9: =AND(Setup!I39,"AAAAAE1j+cs=") ->  | GW9: =AND(Setup!J39,"AAAAAE1j+cw=") ->  | GX9: =AND(Setup!K39,"AAAAAE1j+c0=") ->  | GY9: =AND(Setup!L39,"AAAAAE1j+c4=") ->  | GZ9: =AND(Setup!M39,"AAAAAE1j+c8=") ->  | HA9: =AND(Setup!N39,"AAAAAE1j+dA=") ->  | HB9: =AND(Setup!O39,"AAAAAE1j+dE=") ->  | HC9: =AND(Setup!P39,"AAAAAE1j+dI=") ->  | HD9: =AND(Setup!Q39,"AAAAAE1j+dM=") ->  | HE9: =AND(Setup!R39,"AAAAAE1j+dQ=") ->  | HF9: =AND(Setup!S39,"AAAAAE1j+dU=") ->  | HG9: =AND(Setup!T39,"AAAAAE1j+dY=") ->  | HH9: =AND(Setup!U39,"AAAAAE1j+dc=") ->  | HI9: =AND(Setup!V39,"AAAAAE1j+dg=") ->  | HJ9: =AND(Setup!W39,"AAAAAE1j+dk=") ->  | HK9: =AND(Setup!X39,"AAAAAE1j+do=") ->  | HL9: =AND(Setup!Y39,"AAAAAE1j+ds=") ->  | HM9: =AND(Setup!Z39,"AAAAAE1j+dw=") ->  | HN9: =AND(Setup!AA39,"AAAAAE1j+d0=") ->  | HO9: =AND(Setup!AB39,"AAAAAE1j+d4=") ->  | HP9: =AND(Setup!AC39,"AAAAAE1j+d8=") ->  | HQ9: =AND(Setup!AD39,"AAAAAE1j+eA=") ->  | HR9: =AND(Setup!AE39,"AAAAAE1j+eE=") ->  | HS9: =AND(Setup!AF39,"AAAAAE1j+eI=") ->  | HT9: =AND(Setup!AG39,"AAAAAE1j+eM=") ->  | HU9: =AND(Setup!AH39,"AAAAAE1j+eQ=") ->  | HV9: =AND(Setup!AI39,"AAAAAE1j+eU=") ->  | HW9: =AND(Setup!AJ39,"AAAAAE1j+eY=") ->  | HX9: =AND(Setup!AK39,"AAAAAE1j+ec=") ->  | HY9: =AND(Setup!AL39,"AAAAAE1j+eg=") ->  | HZ9: =AND(Setup!AM39,"AAAAAE1j+ek=") ->  | IA9: =AND(Setup!AN39,"AAAAAE1j+eo=") ->  | IB9: =AND(Setup!AO39,"AAAAAE1j+es=") ->  | IC9: =AND(Setup!AP39,"AAAAAE1j+ew=") ->  | ID9: =AND(Setup!AQ39,"AAAAAE1j+e0=") ->  | IE9: =AND(Setup!AR39,"AAAAAE1j+e4=") ->  | IF9: =AND(Setup!AS39,"AAAAAE1j+e8=") ->  | IG9: =AND(Setup!AT39,"AAAAAE1j+fA=") ->  | IH9: =AND(Setup!AU39,"AAAAAE1j+fE=") ->  | II9: =AND(Setup!AV39,"AAAAAE1j+fI=") ->  | IJ9: =AND(Setup!AW39,"AAAAAE1j+fM=") ->  | IK9: =AND(Setup!AX39,"AAAAAE1j+fQ=") ->  | IL9: =AND(Setup!AY39,"AAAAAE1j+fU=") ->  | IM9: =AND(Setup!AZ39,"AAAAAE1j+fY=") ->  | IN9: =AND(Setup!BA39,"AAAAAE1j+fc=") ->  | IO9: =AND(Setup!BB39,"AAAAAE1j+fg=") ->  | IP9: =AND(Setup!BC39,"AAAAAE1j+fk=") ->  | IQ9: =AND(Setup!BD39,"AAAAAE1j+fo=") ->  | IR9: =AND(Setup!BE39,"AAAAAE1j+fs=") ->  | IS9: =AND(Setup!BF39,"AAAAAE1j+fw=") ->  | IT9: =IF(Setup!40:40,"AAAAAE1j+f0=",0) -> 0 | IU9: =AND(Setup!A40,"AAAAAE1j+f4=") ->  | IV9: =AND(Setup!B40,"AAAAAE1j+f8=") -> 
A10: =AND(Setup!C40,"AAAAAH7V+wA=") ->  | B10: =AND(Setup!D40,"AAAAAH7V+wE=") ->  | C10: =AND(Setup!E40,"AAAAAH7V+wI=") ->  | D10: =AND(Setup!F40,"AAAAAH7V+wM=") ->  | E10: =AND(Setup!G40,"AAAAAH7V+wQ=") ->  | F10: =AND(Setup!H40,"AAAAAH7V+wU=") ->  | G10: =AND(Setup!I40,"AAAAAH7V+wY=") ->  | H10: =AND(Setup!J40,"AAAAAH7V+wc=") ->  | I10: =AND(Setup!K40,"AAAAAH7V+wg=") ->  | J10: =AND(Setup!L40,"AAAAAH7V+wk=") ->  | K10: =AND(Setup!M40,"AAAAAH7V+wo=") ->  | L10: =AND(Setup!N40,"AAAAAH7V+ws=") ->  | M10: =AND(Setup!O40,"AAAAAH7V+ww=") ->  | N10: =AND(Setup!P40,"AAAAAH7V+w0=") ->  | O10: =AND(Setup!Q40,"AAAAAH7V+w4=") ->  | P10: =AND(Setup!R40,"AAAAAH7V+w8=") ->  | Q10: =AND(Setup!S40,"AAAAAH7V+xA=") ->  | R10: =AND(Setup!T40,"AAAAAH7V+xE=") ->  | S10: =AND(Setup!U40,"AAAAAH7V+xI=") ->  | T10: =AND(Setup!V40,"AAAAAH7V+xM=") ->  | U10: =AND(Setup!W40,"AAAAAH7V+xQ=") ->  | V10: =AND(Setup!X40,"AAAAAH7V+xU=") ->  | W10: =AND(Setup!Y40,"AAAAAH7V+xY=") ->  | X10: =AND(Setup!Z40,"AAAAAH7V+xc=") ->  | Y10: =AND(Setup!AA40,"AAAAAH7V+xg=") ->  | Z10: =AND(Setup!AB40,"AAAAAH7V+xk=") ->  | AA10: =AND(Setup!AC40,"AAAAAH7V+xo=") ->  | AB10: =AND(Setup!AD40,"AAAAAH7V+xs=") ->  | AC10: =AND(Setup!AE40,"AAAAAH7V+xw=") ->  | AD10: =AND(Setup!AF40,"AAAAAH7V+x0=") ->  | AE10: =AND(Setup!AG40,"AAAAAH7V+x4=") ->  | AF10: =AND(Setup!AH40,"AAAAAH7V+x8=") ->  | AG10: =AND(Setup!AI40,"AAAAAH7V+yA=") ->  | AH10: =AND(Setup!AJ40,"AAAAAH7V+yE=") ->  | AI10: =AND(Setup!AK40,"AAAAAH7V+yI=") ->  | AJ10: =AND(Setup!AL40,"AAAAAH7V+yM=") ->  | AK10: =AND(Setup!AM40,"AAAAAH7V+yQ=") ->  | AL10: =AND(Setup!AN40,"AAAAAH7V+yU=") ->  | AM10: =AND(Setup!AO40,"AAAAAH7V+yY=") ->  | AN10: =AND(Setup!AP40,"AAAAAH7V+yc=") ->  | AO10: =AND(Setup!AQ40,"AAAAAH7V+yg=") ->  | AP10: =AND(Setup!AR40,"AAAAAH7V+yk=") ->  | AQ10: =AND(Setup!AS40,"AAAAAH7V+yo=") ->  | AR10: =AND(Setup!AT40,"AAAAAH7V+ys=") ->  | AS10: =AND(Setup!AU40,"AAAAAH7V+yw=") ->  | AT10: =AND(Setup!AV40,"AAAAAH7V+y0=") ->  | AU10: =AND(Setup!AW40,"AAAAAH7V+y4=") ->  | AV10: =AND(Setup!AX40,"AAAAAH7V+y8=") ->  | AW10: =AND(Setup!AY40,"AAAAAH7V+zA=") ->  | AX10: =AND(Setup!AZ40,"AAAAAH7V+zE=") ->  | AY10: =AND(Setup!BA40,"AAAAAH7V+zI=") ->  | AZ10: =AND(Setup!BB40,"AAAAAH7V+zM=") ->  | BA10: =AND(Setup!BC40,"AAAAAH7V+zQ=") ->  | BB10: =AND(Setup!BD40,"AAAAAH7V+zU=") ->  | BC10: =AND(Setup!BE40,"AAAAAH7V+zY=") ->  | BD10: =AND(Setup!BF40,"AAAAAH7V+zc=") ->  | BE10: =IF(Setup!41:41,"AAAAAH7V+zg=",0) -> 0 | BF10: =AND(Setup!A41,"AAAAAH7V+zk=") ->  | BG10: =AND(Setup!B41,"AAAAAH7V+zo=") ->  | BH10: =AND(Setup!C41,"AAAAAH7V+zs=") ->  | BI10: =AND(Setup!D41,"AAAAAH7V+zw=") ->  | BJ10: =AND(Setup!E41,"AAAAAH7V+z0=") ->  | BK10: =AND(Setup!F41,"AAAAAH7V+z4=") ->  | BL10: =AND(Setup!G41,"AAAAAH7V+z8=") ->  | BM10: =AND(Setup!H41,"AAAAAH7V+0A=") ->  | BN10: =AND(Setup!I41,"AAAAAH7V+0E=") ->  | BO10: =AND(Setup!J41,"AAAAAH7V+0I=") ->  | BP10: =AND(Setup!K41,"AAAAAH7V+0M=") ->  | BQ10: =AND(Setup!L41,"AAAAAH7V+0Q=") ->  | BR10: =AND(Setup!M41,"AAAAAH7V+0U=") ->  | BS10: =AND(Setup!N41,"AAAAAH7V+0Y=") ->  | BT10: =AND(Setup!O41,"AAAAAH7V+0c=") ->  | BU10: =AND(Setup!P41,"AAAAAH7V+0g=") ->  | BV10: =AND(Setup!Q41,"AAAAAH7V+0k=") ->  | BW10: =AND(Setup!R41,"AAAAAH7V+0o=") ->  | BX10: =AND(Setup!S41,"AAAAAH7V+0s=") ->  | BY10: =AND(Setup!T41,"AAAAAH7V+0w=") ->  | BZ10: =AND(Setup!U41,"AAAAAH7V+00=") ->  | CA10: =AND(Setup!V41,"AAAAAH7V+04=") ->  | CB10: =AND(Setup!W41,"AAAAAH7V+08=") ->  | CC10: =AND(Setup!X41,"AAAAAH7V+1A=") ->  | CD10: =AND(Setup!Y41,"AAAAAH7V+1E=") ->  | CE10: =AND(Setup!Z41,"AAAAAH7V+1I=") ->  | CF10: =AND(Setup!AA41,"AAAAAH7V+1M=") ->  | CG10: =AND(Setup!AB41,"AAAAAH7V+1Q=") ->  | CH10: =AND(Setup!AC41,"AAAAAH7V+1U=") ->  | CI10: =AND(Setup!AD41,"AAAAAH7V+1Y=") ->  | CJ10: =AND(Setup!AE41,"AAAAAH7V+1c=") ->  | CK10: =AND(Setup!AF41,"AAAAAH7V+1g=") ->  | CL10: =AND(Setup!AG41,"AAAAAH7V+1k=") ->  | CM10: =AND(Setup!AH41,"AAAAAH7V+1o=") ->  | CN10: =AND(Setup!AI41,"AAAAAH7V+1s=") ->  | CO10: =AND(Setup!AJ41,"AAAAAH7V+1w=") ->  | CP10: =AND(Setup!AK41,"AAAAAH7V+10=") ->  | CQ10: =AND(Setup!AL41,"AAAAAH7V+14=") ->  | CR10: =AND(Setup!AM41,"AAAAAH7V+18=") ->  | CS10: =AND(Setup!AN41,"AAAAAH7V+2A=") ->  | CT10: =AND(Setup!AO41,"AAAAAH7V+2E=") ->  | CU10: =AND(Setup!AP41,"AAAAAH7V+2I=") ->  | CV10: =AND(Setup!AQ41,"AAAAAH7V+2M=") ->  | CW10: =AND(Setup!AR41,"AAAAAH7V+2Q=") ->  | CX10: =AND(Setup!AS41,"AAAAAH7V+2U=") ->  | CY10: =AND(Setup!AT41,"AAAAAH7V+2Y=") ->  | CZ10: =AND(Setup!AU41,"AAAAAH7V+2c=") ->  | DA10: =AND(Setup!AV41,"AAAAAH7V+2g=") ->  | DB10: =AND(Setup!AW41,"AAAAAH7V+2k=") ->  | DC10: =AND(Setup!AX41,"AAAAAH7V+2o=") ->  | DD10: =AND(Setup!AY41,"AAAAAH7V+2s=") ->  | DE10: =AND(Setup!AZ41,"AAAAAH7V+2w=") ->  | DF10: =AND(Setup!BA41,"AAAAAH7V+20=") ->  | DG10: =AND(Setup!BB41,"AAAAAH7V+24=") ->  | DH10: =AND(Setup!BC41,"AAAAAH7V+28=") ->  | DI10: =AND(Setup!BD41,"AAAAAH7V+3A=") ->  | DJ10: =AND(Setup!BE41,"AAAAAH7V+3E=") ->  | DK10: =AND(Setup!BF41,"AAAAAH7V+3I=") ->  | DL10: =IF(Setup!42:42,"AAAAAH7V+3M=",0) -> 0 | DM10: =AND(Setup!A42,"AAAAAH7V+3Q=") ->  | DN10: =AND(Setup!B42,"AAAAAH7V+3U=") ->  | DO10: =AND(Setup!C42,"AAAAAH7V+3Y=") ->  | DP10: =AND(Setup!D42,"AAAAAH7V+3c=") ->  | DQ10: =AND(Setup!E42,"AAAAAH7V+3g=") ->  | DR10: =AND(Setup!F42,"AAAAAH7V+3k=") ->  | DS10: =AND(Setup!G42,"AAAAAH7V+3o=") ->  | DT10: =AND(Setup!H42,"AAAAAH7V+3s=") ->  | DU10: =AND(Setup!I42,"AAAAAH7V+3w=") ->  | DV10: =AND(Setup!J42,"AAAAAH7V+30=") ->  | DW10: =AND(Setup!K42,"AAAAAH7V+34=") ->  | DX10: =AND(Setup!L42,"AAAAAH7V+38=") ->  | DY10: =AND(Setup!M42,"AAAAAH7V+4A=") ->  | DZ10: =AND(Setup!N42,"AAAAAH7V+4E=") ->  | EA10: =AND(Setup!O42,"AAAAAH7V+4I=") ->  | EB10: =AND(Setup!P42,"AAAAAH7V+4M=") ->  | EC10: =AND(Setup!Q42,"AAAAAH7V+4Q=") ->  | ED10: =AND(Setup!R42,"AAAAAH7V+4U=") ->  | EE10: =AND(Setup!S42,"AAAAAH7V+4Y=") ->  | EF10: =AND(Setup!T42,"AAAAAH7V+4c=") ->  | EG10: =AND(Setup!U42,"AAAAAH7V+4g=") ->  | EH10: =AND(Setup!V42,"AAAAAH7V+4k=") ->  | EI10: =AND(Setup!W42,"AAAAAH7V+4o=") ->  | EJ10: =AND(Setup!X42,"AAAAAH7V+4s=") ->  | EK10: =AND(Setup!Y42,"AAAAAH7V+4w=") ->  | EL10: =AND(Setup!Z42,"AAAAAH7V+40=") ->  | EM10: =AND(Setup!AA42,"AAAAAH7V+44=") ->  | EN10: =AND(Setup!AB42,"AAAAAH7V+48=") ->  | EO10: =AND(Setup!AC42,"AAAAAH7V+5A=") ->  | EP10: =AND(Setup!AD42,"AAAAAH7V+5E=") ->  | EQ10: =AND(Setup!AE42,"AAAAAH7V+5I=") ->  | ER10: =AND(Setup!AF42,"AAAAAH7V+5M=") ->  | ES10: =AND(Setup!AG42,"AAAAAH7V+5Q=") ->  | ET10: =AND(Setup!AH42,"AAAAAH7V+5U=") ->  | EU10: =AND(Setup!AI42,"AAAAAH7V+5Y=") ->  | EV10: =AND(Setup!AJ42,"AAAAAH7V+5c=") ->  | EW10: =AND(Setup!AK42,"AAAAAH7V+5g=") ->  | EX10: =AND(Setup!AL42,"AAAAAH7V+5k=") ->  | EY10: =AND(Setup!AM42,"AAAAAH7V+5o=") ->  | EZ10: =AND(Setup!AN42,"AAAAAH7V+5s=") ->  | FA10: =AND(Setup!AO42,"AAAAAH7V+5w=") ->  | FB10: =AND(Setup!AP42,"AAAAAH7V+50=") ->  | FC10: =AND(Setup!AQ42,"AAAAAH7V+54=") ->  | FD10: =AND(Setup!AR42,"AAAAAH7V+58=") ->  | FE10: =AND(Setup!AS42,"AAAAAH7V+6A=") ->  | FF10: =AND(Setup!AT42,"AAAAAH7V+6E=") ->  | FG10: =AND(Setup!AU42,"AAAAAH7V+6I=") ->  | FH10: =AND(Setup!AV42,"AAAAAH7V+6M=") ->  | FI10: =AND(Setup!AW42,"AAAAAH7V+6Q=") ->  | FJ10: =AND(Setup!AX42,"AAAAAH7V+6U=") ->  | FK10: =AND(Setup!AY42,"AAAAAH7V+6Y=") ->  | FL10: =AND(Setup!AZ42,"AAAAAH7V+6c=") ->  | FM10: =AND(Setup!BA42,"AAAAAH7V+6g=") ->  | FN10: =AND(Setup!BB42,"AAAAAH7V+6k=") ->  | FO10: =AND(Setup!BC42,"AAAAAH7V+6o=") ->  | FP10: =AND(Setup!BD42,"AAAAAH7V+6s=") ->  | FQ10: =AND(Setup!BE42,"AAAAAH7V+6w=") ->  | FR10: =AND(Setup!BF42,"AAAAAH7V+60=") ->  | FS10: =IF(Setup!43:43,"AAAAAH7V+64=",0) -> 0 | FT10: =AND(Setup!A43,"AAAAAH7V+68=") ->  | FU10: =AND(Setup!B43,"AAAAAH7V+7A=") ->  | FV10: =AND(Setup!C43,"AAAAAH7V+7E=") ->  | FW10: =AND(Setup!D43,"AAAAAH7V+7I=") ->  | FX10: =AND(Setup!E43,"AAAAAH7V+7M=") ->  | FY10: =AND(Setup!F43,"AAAAAH7V+7Q=") ->  | FZ10: =AND(Setup!G43,"AAAAAH7V+7U=") ->  | GA10: =AND(Setup!H43,"AAAAAH7V+7Y=") ->  | GB10: =AND(Setup!I43,"AAAAAH7V+7c=") ->  | GC10: =AND(Setup!J43,"AAAAAH7V+7g=") ->  | GD10: =AND(Setup!K43,"AAAAAH7V+7k=") ->  | GE10: =AND(Setup!L43,"AAAAAH7V+7o=") ->  | GF10: =AND(Setup!M43,"AAAAAH7V+7s=") ->  | GG10: =AND(Setup!N43,"AAAAAH7V+7w=") ->  | GH10: =AND(Setup!O43,"AAAAAH7V+70=") ->  | GI10: =AND(Setup!P43,"AAAAAH7V+74=") ->  | GJ10: =AND(Setup!Q43,"AAAAAH7V+78=") ->  | GK10: =AND(Setup!R43,"AAAAAH7V+8A=") ->  | GL10: =AND(Setup!S43,"AAAAAH7V+8E=") ->  | GM10: =AND(Setup!T43,"AAAAAH7V+8I=") ->  | GN10: =AND(Setup!U43,"AAAAAH7V+8M=") ->  | GO10: =AND(Setup!V43,"AAAAAH7V+8Q=") ->  | GP10: =AND(Setup!W43,"AAAAAH7V+8U=") ->  | GQ10: =AND(Setup!X43,"AAAAAH7V+8Y=") ->  | GR10: =AND(Setup!Y43,"AAAAAH7V+8c=") ->  | GS10: =AND(Setup!Z43,"AAAAAH7V+8g=") ->  | GT10: =AND(Setup!AA43,"AAAAAH7V+8k=") ->  | GU10: =AND(Setup!AB43,"AAAAAH7V+8o=") ->  | GV10: =AND(Setup!AC43,"AAAAAH7V+8s=") ->  | GW10: =AND(Setup!AD43,"AAAAAH7V+8w=") ->  | GX10: =AND(Setup!AE43,"AAAAAH7V+80=") ->  | GY10: =AND(Setup!AF43,"AAAAAH7V+84=") ->  | GZ10: =AND(Setup!AG43,"AAAAAH7V+88=") ->  | HA10: =AND(Setup!AH43,"AAAAAH7V+9A=") ->  | HB10: =AND(Setup!AI43,"AAAAAH7V+9E=") ->  | HC10: =AND(Setup!AJ43,"AAAAAH7V+9I=") ->  | HD10: =AND(Setup!AK43,"AAAAAH7V+9M=") ->  | HE10: =AND(Setup!AL43,"AAAAAH7V+9Q=") ->  | HF10: =AND(Setup!AM43,"AAAAAH7V+9U=") ->  | HG10: =AND(Setup!AN43,"AAAAAH7V+9Y=") ->  | HH10: =AND(Setup!AO43,"AAAAAH7V+9c=") ->  | HI10: =AND(Setup!AP43,"AAAAAH7V+9g=") ->  | HJ10: =AND(Setup!AQ43,"AAAAAH7V+9k=") ->  | HK10: =AND(Setup!AR43,"AAAAAH7V+9o=") ->  | HL10: =AND(Setup!AS43,"AAAAAH7V+9s=") ->  | HM10: =AND(Setup!AT43,"AAAAAH7V+9w=") ->  | HN10: =AND(Setup!AU43,"AAAAAH7V+90=") ->  | HO10: =AND(Setup!AV43,"AAAAAH7V+94=") ->  | HP10: =AND(Setup!AW43,"AAAAAH7V+98=") ->  | HQ10: =AND(Setup!AX43,"AAAAAH7V++A=") ->  | HR10: =AND(Setup!AY43,"AAAAAH7V++E=") ->  | HS10: =AND(Setup!AZ43,"AAAAAH7V++I=") ->  | HT10: =AND(Setup!BA43,"AAAAAH7V++M=") ->  | HU10: =AND(Setup!BB43,"AAAAAH7V++Q=") ->  | HV10: =AND(Setup!BC43,"AAAAAH7V++U=") ->  | HW10: =AND(Setup!BD43,"AAAAAH7V++Y=") ->  | HX10: =AND(Setup!BE43,"AAAAAH7V++c=") ->  | HY10: =AND(Setup!BF43,"AAAAAH7V++g=") ->  | HZ10: =IF(Setup!44:44,"AAAAAH7V++k=",0) -> 0 | IA10: =AND(Setup!A44,"AAAAAH7V++o=") ->  | IB10: =AND(Setup!B44,"AAAAAH7V++s=") ->  | IC10: =AND(Setup!C44,"AAAAAH7V++w=") ->  | ID10: =AND(Setup!D44,"AAAAAH7V++0=") ->  | IE10: =AND(Setup!E44,"AAAAAH7V++4=") ->  | IF10: =AND(Setup!F44,"AAAAAH7V++8=") ->  | IG10: =AND(Setup!G44,"AAAAAH7V+/A=") ->  | IH10: =AND(Setup!H44,"AAAAAH7V+/E=") ->  | II10: =AND(Setup!I44,"AAAAAH7V+/I=") ->  | IJ10: =AND(Setup!J44,"AAAAAH7V+/M=") ->  | IK10: =AND(Setup!K44,"AAAAAH7V+/Q=") ->  | IL10: =AND(Setup!L44,"AAAAAH7V+/U=") ->  | IM10: =AND(Setup!M44,"AAAAAH7V+/Y=") ->  | IN10: =AND(Setup!N44,"AAAAAH7V+/c=") ->  | IO10: =AND(Setup!O44,"AAAAAH7V+/g=") ->  | IP10: =AND(Setup!P44,"AAAAAH7V+/k=") ->  | IQ10: =AND(Setup!Q44,"AAAAAH7V+/o=") ->  | IR10: =AND(Setup!R44,"AAAAAH7V+/s=") ->  | IS10: =AND(Setup!S44,"AAAAAH7V+/w=") ->  | IT10: =AND(Setup!T44,"AAAAAH7V+/0=") ->  | IU10: =AND(Setup!U44,"AAAAAH7V+/4=") ->  | IV10: =AND(Setup!V44,"AAAAAH7V+/8=") -> 
A11: =AND(Setup!W44,"AAAAAH/t7gA=") ->  | B11: =AND(Setup!X44,"AAAAAH/t7gE=") ->  | C11: =AND(Setup!Y44,"AAAAAH/t7gI=") ->  | D11: =AND(Setup!Z44,"AAAAAH/t7gM=") ->  | E11: =AND(Setup!AA44,"AAAAAH/t7gQ=") ->  | F11: =AND(Setup!AB44,"AAAAAH/t7gU=") ->  | G11: =AND(Setup!AC44,"AAAAAH/t7gY=") ->  | H11: =AND(Setup!AD44,"AAAAAH/t7gc=") ->  | I11: =AND(Setup!AE44,"AAAAAH/t7gg=") ->  | J11: =AND(Setup!AF44,"AAAAAH/t7gk=") ->  | K11: =AND(Setup!AG44,"AAAAAH/t7go=") ->  | L11: =AND(Setup!AH44,"AAAAAH/t7gs=") ->  | M11: =AND(Setup!AI44,"AAAAAH/t7gw=") ->  | N11: =AND(Setup!AJ44,"AAAAAH/t7g0=") ->  | O11: =AND(Setup!AK44,"AAAAAH/t7g4=") ->  | P11: =AND(Setup!AL44,"AAAAAH/t7g8=") ->  | Q11: =AND(Setup!AM44,"AAAAAH/t7hA=") ->  | R11: =AND(Setup!AN44,"AAAAAH/t7hE=") ->  | S11: =AND(Setup!AO44,"AAAAAH/t7hI=") ->  | T11: =AND(Setup!AP44,"AAAAAH/t7hM=") ->  | U11: =AND(Setup!AQ44,"AAAAAH/t7hQ=") ->  | V11: =AND(Setup!AR44,"AAAAAH/t7hU=") ->  | W11: =AND(Setup!AS44,"AAAAAH/t7hY=") ->  | X11: =AND(Setup!AT44,"AAAAAH/t7hc=") ->  | Y11: =AND(Setup!AU44,"AAAAAH/t7hg=") ->  | Z11: =AND(Setup!AV44,"AAAAAH/t7hk=") ->  | AA11: =AND(Setup!AW44,"AAAAAH/t7ho=") ->  | AB11: =AND(Setup!AX44,"AAAAAH/t7hs=") ->  | AC11: =AND(Setup!AY44,"AAAAAH/t7hw=") ->  | AD11: =AND(Setup!AZ44,"AAAAAH/t7h0=") ->  | AE11: =AND(Setup!BA44,"AAAAAH/t7h4=") ->  | AF11: =AND(Setup!BB44,"AAAAAH/t7h8=") ->  | AG11: =AND(Setup!BC44,"AAAAAH/t7iA=") ->  | AH11: =AND(Setup!BD44,"AAAAAH/t7iE=") ->  | AI11: =AND(Setup!BE44,"AAAAAH/t7iI=") ->  | AJ11: =AND(Setup!BF44,"AAAAAH/t7iM=") ->  | AK11: =IF(Setup!45:45,"AAAAAH/t7iQ=",0) -> 0 | AL11: =AND(Setup!A45,"AAAAAH/t7iU=") ->  | AM11: =AND(Setup!B45,"AAAAAH/t7iY=") ->  | AN11: =AND(Setup!C45,"AAAAAH/t7ic=") ->  | AO11: =AND(Setup!D45,"AAAAAH/t7ig=") ->  | AP11: =AND(Setup!E45,"AAAAAH/t7ik=") ->  | AQ11: =AND(Setup!F45,"AAAAAH/t7io=") ->  | AR11: =AND(Setup!G45,"AAAAAH/t7is=") ->  | AS11: =AND(Setup!H45,"AAAAAH/t7iw=") ->  | AT11: =AND(Setup!I45,"AAAAAH/t7i0=") ->  | AU11: =AND(Setup!J45,"AAAAAH/t7i4=") ->  | AV11: =AND(Setup!K45,"AAAAAH/t7i8=") ->  | AW11: =AND(Setup!L45,"AAAAAH/t7jA=") ->  | AX11: =AND(Setup!M45,"AAAAAH/t7jE=") ->  | AY11: =AND(Setup!N45,"AAAAAH/t7jI=") ->  | AZ11: =AND(Setup!O45,"AAAAAH/t7jM=") ->  | BA11: =AND(Setup!P45,"AAAAAH/t7jQ=") ->  | BB11: =AND(Setup!Q45,"AAAAAH/t7jU=") ->  | BC11: =AND(Setup!R45,"AAAAAH/t7jY=") ->  | BD11: =AND(Setup!S45,"AAAAAH/t7jc=") ->  | BE11: =AND(Setup!T45,"AAAAAH/t7jg=") ->  | BF11: =AND(Setup!U45,"AAAAAH/t7jk=") ->  | BG11: =AND(Setup!V45,"AAAAAH/t7jo=") ->  | BH11: =AND(Setup!W45,"AAAAAH/t7js=") ->  | BI11: =AND(Setup!X45,"AAAAAH/t7jw=") ->  | BJ11: =AND(Setup!Y45,"AAAAAH/t7j0=") ->  | BK11: =AND(Setup!Z45,"AAAAAH/t7j4=") ->  | BL11: =AND(Setup!AA45,"AAAAAH/t7j8=") ->  | BM11: =AND(Setup!AB45,"AAAAAH/t7kA=") ->  | BN11: =AND(Setup!AC45,"AAAAAH/t7kE=") ->  | BO11: =AND(Setup!AD45,"AAAAAH/t7kI=") ->  | BP11: =AND(Setup!AE45,"AAAAAH/t7kM=") ->  | BQ11: =AND(Setup!AF45,"AAAAAH/t7kQ=") ->  | BR11: =AND(Setup!AG45,"AAAAAH/t7kU=") ->  | BS11: =AND(Setup!AH45,"AAAAAH/t7kY=") ->  | BT11: =AND(Setup!AI45,"AAAAAH/t7kc=") ->  | BU11: =AND(Setup!AJ45,"AAAAAH/t7kg=") ->  | BV11: =AND(Setup!AK45,"AAAAAH/t7kk=") ->  | BW11: =AND(Setup!AL45,"AAAAAH/t7ko=") ->  | BX11: =AND(Setup!AM45,"AAAAAH/t7ks=") ->  | BY11: =AND(Setup!AN45,"AAAAAH/t7kw=") ->  | BZ11: =AND(Setup!AO45,"AAAAAH/t7k0=") ->  | CA11: =AND(Setup!AP45,"AAAAAH/t7k4=") ->  | CB11: =AND(Setup!AQ45,"AAAAAH/t7k8=") ->  | CC11: =AND(Setup!AR45,"AAAAAH/t7lA=") ->  | CD11: =AND(Setup!AS45,"AAAAAH/t7lE=") ->  | CE11: =AND(Setup!AT45,"AAAAAH/t7lI=") ->  | CF11: =AND(Setup!AU45,"AAAAAH/t7lM=") ->  | CG11: =AND(Setup!AV45,"AAAAAH/t7lQ=") ->  | CH11: =AND(Setup!AW45,"AAAAAH/t7lU=") ->  | CI11: =AND(Setup!AX45,"AAAAAH/t7lY=") ->  | CJ11: =AND(Setup!AY45,"AAAAAH/t7lc=") ->  | CK11: =AND(Setup!AZ45,"AAAAAH/t7lg=") ->  | CL11: =AND(Setup!BA45,"AAAAAH/t7lk=") ->  | CM11: =AND(Setup!BB45,"AAAAAH/t7lo=") ->  | CN11: =AND(Setup!BC45,"AAAAAH/t7ls=") ->  | CO11: =AND(Setup!BD45,"AAAAAH/t7lw=") ->  | CP11: =AND(Setup!BE45,"AAAAAH/t7l0=") ->  | CQ11: =AND(Setup!BF45,"AAAAAH/t7l4=") ->  | CR11: =IF(Setup!46:46,"AAAAAH/t7l8=",0) -> 0 | CS11: =AND(Setup!A46,"AAAAAH/t7mA=") ->  | CT11: =AND(Setup!B46,"AAAAAH/t7mE=") ->  | CU11: =AND(Setup!C46,"AAAAAH/t7mI=") ->  | CV11: =AND(Setup!D46,"AAAAAH/t7mM=") ->  | CW11: =AND(Setup!E46,"AAAAAH/t7mQ=") ->  | CX11: =AND(Setup!F46,"AAAAAH/t7mU=") ->  | CY11: =AND(Setup!G46,"AAAAAH/t7mY=") ->  | CZ11: =AND(Setup!H46,"AAAAAH/t7mc=") ->  | DA11: =AND(Setup!I46,"AAAAAH/t7mg=") ->  | DB11: =AND(Setup!J46,"AAAAAH/t7mk=") ->  | DC11: =AND(Setup!K46,"AAAAAH/t7mo=") ->  | DD11: =AND(Setup!L46,"AAAAAH/t7ms=") ->  | DE11: =AND(Setup!M46,"AAAAAH/t7mw=") ->  | DF11: =AND(Setup!N46,"AAAAAH/t7m0=") ->  | DG11: =AND(Setup!O46,"AAAAAH/t7m4=") ->  | DH11: =AND(Setup!P46,"AAAAAH/t7m8=") ->  | DI11: =AND(Setup!Q46,"AAAAAH/t7nA=") ->  | DJ11: =AND(Setup!R46,"AAAAAH/t7nE=") ->  | DK11: =AND(Setup!S46,"AAAAAH/t7nI=") ->  | DL11: =AND(Setup!T46,"AAAAAH/t7nM=") ->  | DM11: =AND(Setup!U46,"AAAAAH/t7nQ=") ->  | DN11: =AND(Setup!V46,"AAAAAH/t7nU=") ->  | DO11: =AND(Setup!W46,"AAAAAH/t7nY=") ->  | DP11: =AND(Setup!X46,"AAAAAH/t7nc=") ->  | DQ11: =AND(Setup!Y46,"AAAAAH/t7ng=") ->  | DR11: =AND(Setup!Z46,"AAAAAH/t7nk=") ->  | DS11: =AND(Setup!AA46,"AAAAAH/t7no=") ->  | DT11: =AND(Setup!AB46,"AAAAAH/t7ns=") ->  | DU11: =AND(Setup!AC46,"AAAAAH/t7nw=") ->  | DV11: =AND(Setup!AD46,"AAAAAH/t7n0=") ->  | DW11: =AND(Setup!AE46,"AAAAAH/t7n4=") ->  | DX11: =AND(Setup!AF46,"AAAAAH/t7n8=") ->  | DY11: =AND(Setup!AG46,"AAAAAH/t7oA=") ->  | DZ11: =AND(Setup!AH46,"AAAAAH/t7oE=") ->  | EA11: =AND(Setup!AI46,"AAAAAH/t7oI=") ->  | EB11: =AND(Setup!AJ46,"AAAAAH/t7oM=") ->  | EC11: =AND(Setup!AK46,"AAAAAH/t7oQ=") ->  | ED11: =AND(Setup!AL46,"AAAAAH/t7oU=") ->  | EE11: =AND(Setup!AM46,"AAAAAH/t7oY=") ->  | EF11: =AND(Setup!AN46,"AAAAAH/t7oc=") ->  | EG11: =AND(Setup!AO46,"AAAAAH/t7og=") ->  | EH11: =AND(Setup!AP46,"AAAAAH/t7ok=") ->  | EI11: =AND(Setup!AQ46,"AAAAAH/t7oo=") ->  | EJ11: =AND(Setup!AR46,"AAAAAH/t7os=") ->  | EK11: =AND(Setup!AS46,"AAAAAH/t7ow=") ->  | EL11: =AND(Setup!AT46,"AAAAAH/t7o0=") ->  | EM11: =AND(Setup!AU46,"AAAAAH/t7o4=") ->  | EN11: =AND(Setup!AV46,"AAAAAH/t7o8=") ->  | EO11: =AND(Setup!AW46,"AAAAAH/t7pA=") ->  | EP11: =AND(Setup!AX46,"AAAAAH/t7pE=") ->  | EQ11: =AND(Setup!AY46,"AAAAAH/t7pI=") ->  | ER11: =AND(Setup!AZ46,"AAAAAH/t7pM=") ->  | ES11: =AND(Setup!BA46,"AAAAAH/t7pQ=") ->  | ET11: =AND(Setup!BB46,"AAAAAH/t7pU=") ->  | EU11: =AND(Setup!BC46,"AAAAAH/t7pY=") ->  | EV11: =AND(Setup!BD46,"AAAAAH/t7pc=") ->  | EW11: =AND(Setup!BE46,"AAAAAH/t7pg=") ->  | EX11: =AND(Setup!BF46,"AAAAAH/t7pk=") ->  | EY11: =IF(Setup!47:47,"AAAAAH/t7po=",0) -> 0 | EZ11: =AND(Setup!A47,"AAAAAH/t7ps=") ->  | FA11: =AND(Setup!B47,"AAAAAH/t7pw=") ->  | FB11: =AND(Setup!C47,"AAAAAH/t7p0=") ->  | FC11: =AND(Setup!D47,"AAAAAH/t7p4=") ->  | FD11: =AND(Setup!E47,"AAAAAH/t7p8=") ->  | FE11: =AND(Setup!F47,"AAAAAH/t7qA=") ->  | FF11: =AND(Setup!G47,"AAAAAH/t7qE=") ->  | FG11: =AND(Setup!H47,"AAAAAH/t7qI=") ->  | FH11: =AND(Setup!I47,"AAAAAH/t7qM=") ->  | FI11: =AND(Setup!J47,"AAAAAH/t7qQ=") ->  | FJ11: =AND(Setup!K47,"AAAAAH/t7qU=") ->  | FK11: =AND(Setup!L47,"AAAAAH/t7qY=") ->  | FL11: =AND(Setup!M47,"AAAAAH/t7qc=") ->  | FM11: =AND(Setup!N47,"AAAAAH/t7qg=") ->  | FN11: =AND(Setup!O47,"AAAAAH/t7qk=") ->  | FO11: =AND(Setup!P47,"AAAAAH/t7qo=") ->  | FP11: =AND(Setup!Q47,"AAAAAH/t7qs=") ->  | FQ11: =AND(Setup!R47,"AAAAAH/t7qw=") ->  | FR11: =AND(Setup!S47,"AAAAAH/t7q0=") ->  | FS11: =AND(Setup!T47,"AAAAAH/t7q4=") ->  | FT11: =AND(Setup!U47,"AAAAAH/t7q8=") ->  | FU11: =AND(Setup!V47,"AAAAAH/t7rA=") ->  | FV11: =AND(Setup!W47,"AAAAAH/t7rE=") ->  | FW11: =AND(Setup!X47,"AAAAAH/t7rI=") ->  | FX11: =AND(Setup!Y47,"AAAAAH/t7rM=") ->  | FY11: =AND(Setup!Z47,"AAAAAH/t7rQ=") ->  | FZ11: =AND(Setup!AA47,"AAAAAH/t7rU=") ->  | GA11: =AND(Setup!AB47,"AAAAAH/t7rY=") ->  | GB11: =AND(Setup!AC47,"AAAAAH/t7rc=") ->  | GC11: =AND(Setup!AD47,"AAAAAH/t7rg=") ->  | GD11: =AND(Setup!AE47,"AAAAAH/t7rk=") ->  | GE11: =AND(Setup!AF47,"AAAAAH/t7ro=") ->  | GF11: =AND(Setup!AG47,"AAAAAH/t7rs=") ->  | GG11: =AND(Setup!AH47,"AAAAAH/t7rw=") ->  | GH11: =AND(Setup!AI47,"AAAAAH/t7r0=") ->  | GI11: =AND(Setup!AJ47,"AAAAAH/t7r4=") ->  | GJ11: =AND(Setup!AK47,"AAAAAH/t7r8=") ->  | GK11: =AND(Setup!AL47,"AAAAAH/t7sA=") ->  | GL11: =AND(Setup!AM47,"AAAAAH/t7sE=") ->  | GM11: =AND(Setup!AN47,"AAAAAH/t7sI=") ->  | GN11: =AND(Setup!AO47,"AAAAAH/t7sM=") ->  | GO11: =AND(Setup!AP47,"AAAAAH/t7sQ=") ->  | GP11: =AND(Setup!AQ47,"AAAAAH/t7sU=") ->  | GQ11: =AND(Setup!AR47,"AAAAAH/t7sY=") ->  | GR11: =AND(Setup!AS47,"AAAAAH/t7sc=") ->  | GS11: =AND(Setup!AT47,"AAAAAH/t7sg=") ->  | GT11: =AND(Setup!AU47,"AAAAAH/t7sk=") ->  | GU11: =AND(Setup!AV47,"AAAAAH/t7so=") ->  | GV11: =AND(Setup!AW47,"AAAAAH/t7ss=") ->  | GW11: =AND(Setup!AX47,"AAAAAH/t7sw=") ->  | GX11: =AND(Setup!AY47,"AAAAAH/t7s0=") ->  | GY11: =AND(Setup!AZ47,"AAAAAH/t7s4=") ->  | GZ11: =AND(Setup!BA47,"AAAAAH/t7s8=") ->  | HA11: =AND(Setup!BB47,"AAAAAH/t7tA=") ->  | HB11: =AND(Setup!BC47,"AAAAAH/t7tE=") ->  | HC11: =AND(Setup!BD47,"AAAAAH/t7tI=") ->  | HD11: =AND(Setup!BE47,"AAAAAH/t7tM=") ->  | HE11: =AND(Setup!BF47,"AAAAAH/t7tQ=") ->  | HF11: =IF(Setup!48:48,"AAAAAH/t7tU=",0) -> 0 | HG11: =AND(Setup!A48,"AAAAAH/t7tY=") ->  | HH11: =AND(Setup!B48,"AAAAAH/t7tc=") ->  | HI11: =AND(Setup!C48,"AAAAAH/t7tg=") ->  | HJ11: =AND(Setup!D48,"AAAAAH/t7tk=") ->  | HK11: =AND(Setup!E48,"AAAAAH/t7to=") ->  | HL11: =AND(Setup!F48,"AAAAAH/t7ts=") ->  | HM11: =AND(Setup!G48,"AAAAAH/t7tw=") ->  | HN11: =AND(Setup!H48,"AAAAAH/t7t0=") ->  | HO11: =AND(Setup!I48,"AAAAAH/t7t4=") ->  | HP11: =AND(Setup!J48,"AAAAAH/t7t8=") ->  | HQ11: =AND(Setup!K48,"AAAAAH/t7uA=") ->  | HR11: =AND(Setup!L48,"AAAAAH/t7uE=") ->  | HS11: =AND(Setup!M48,"AAAAAH/t7uI=") ->  | HT11: =AND(Setup!N48,"AAAAAH/t7uM=") ->  | HU11: =AND(Setup!O48,"AAAAAH/t7uQ=") ->  | HV11: =AND(Setup!P48,"AAAAAH/t7uU=") ->  | HW11: =AND(Setup!Q48,"AAAAAH/t7uY=") ->  | HX11: =AND(Setup!R48,"AAAAAH/t7uc=") ->  | HY11: =AND(Setup!S48,"AAAAAH/t7ug=") ->  | HZ11: =AND(Setup!T48,"AAAAAH/t7uk=") ->  | IA11: =AND(Setup!U48,"AAAAAH/t7uo=") ->  | IB11: =AND(Setup!V48,"AAAAAH/t7us=") ->  | IC11: =AND(Setup!W48,"AAAAAH/t7uw=") ->  | ID11: =AND(Setup!X48,"AAAAAH/t7u0=") ->  | IE11: =AND(Setup!Y48,"AAAAAH/t7u4=") ->  | IF11: =AND(Setup!Z48,"AAAAAH/t7u8=") ->  | IG11: =AND(Setup!AA48,"AAAAAH/t7vA=") ->  | IH11: =AND(Setup!AB48,"AAAAAH/t7vE=") ->  | II11: =AND(Setup!AC48,"AAAAAH/t7vI=") ->  | IJ11: =AND(Setup!AD48,"AAAAAH/t7vM=") ->  | IK11: =AND(Setup!AE48,"AAAAAH/t7vQ=") ->  | IL11: =AND(Setup!AF48,"AAAAAH/t7vU=") ->  | IM11: =AND(Setup!AG48,"AAAAAH/t7vY=") ->  | IN11: =AND(Setup!AH48,"AAAAAH/t7vc=") ->  | IO11: =AND(Setup!AI48,"AAAAAH/t7vg=") ->  | IP11: =AND(Setup!AJ48,"AAAAAH/t7vk=") ->  | IQ11: =AND(Setup!AK48,"AAAAAH/t7vo=") ->  | IR11: =AND(Setup!AL48,"AAAAAH/t7vs=") ->  | IS11: =AND(Setup!AM48,"AAAAAH/t7vw=") ->  | IT11: =AND(Setup!AN48,"AAAAAH/t7v0=") ->  | IU11: =AND(Setup!AO48,"AAAAAH/t7v4=") ->  | IV11: =AND(Setup!AP48,"AAAAAH/t7v8=") -> 
A12: =AND(Setup!AQ48,"AAAAAHa2twA=") ->  | B12: =AND(Setup!AR48,"AAAAAHa2twE=") ->  | C12: =AND(Setup!AS48,"AAAAAHa2twI=") ->  | D12: =AND(Setup!AT48,"AAAAAHa2twM=") ->  | E12: =AND(Setup!AU48,"AAAAAHa2twQ=") ->  | F12: =AND(Setup!AV48,"AAAAAHa2twU=") ->  | G12: =AND(Setup!AW48,"AAAAAHa2twY=") ->  | H12: =AND(Setup!AX48,"AAAAAHa2twc=") ->  | I12: =AND(Setup!AY48,"AAAAAHa2twg=") ->  | J12: =AND(Setup!AZ48,"AAAAAHa2twk=") ->  | K12: =AND(Setup!BA48,"AAAAAHa2two=") ->  | L12: =AND(Setup!BB48,"AAAAAHa2tws=") ->  | M12: =AND(Setup!BC48,"AAAAAHa2tww=") ->  | N12: =AND(Setup!BD48,"AAAAAHa2tw0=") ->  | O12: =AND(Setup!BE48,"AAAAAHa2tw4=") ->  | P12: =AND(Setup!BF48,"AAAAAHa2tw8=") ->  | Q12: =IF(Setup!49:49,"AAAAAHa2txA=",0) -> 0 | R12: =AND(Setup!A49,"AAAAAHa2txE=") ->  | S12: =AND(Setup!B49,"AAAAAHa2txI=") ->  | T12: =AND(Setup!C49,"AAAAAHa2txM=") ->  | U12: =AND(Setup!D49,"AAAAAHa2txQ=") ->  | V12: =AND(Setup!E49,"AAAAAHa2txU=") ->  | W12: =AND(Setup!F49,"AAAAAHa2txY=") ->  | X12: =AND(Setup!G49,"AAAAAHa2txc=") ->  | Y12: =AND(Setup!H49,"AAAAAHa2txg=") ->  | Z12: =AND(Setup!I49,"AAAAAHa2txk=") ->  | AA12: =AND(Setup!J49,"AAAAAHa2txo=") ->  | AB12: =AND(Setup!K49,"AAAAAHa2txs=") ->  | AC12: =AND(Setup!L49,"AAAAAHa2txw=") ->  | AD12: =AND(Setup!M49,"AAAAAHa2tx0=") ->  | AE12: =AND(Setup!N49,"AAAAAHa2tx4=") ->  | AF12: =AND(Setup!O49,"AAAAAHa2tx8=") ->  | AG12: =AND(Setup!P49,"AAAAAHa2tyA=") ->  | AH12: =AND(Setup!Q49,"AAAAAHa2tyE=") ->  | AI12: =AND(Setup!R49,"AAAAAHa2tyI=") ->  | AJ12: =AND(Setup!S49,"AAAAAHa2tyM=") ->  | AK12: =AND(Setup!T49,"AAAAAHa2tyQ=") ->  | AL12: =AND(Setup!U49,"AAAAAHa2tyU=") ->  | AM12: =AND(Setup!V49,"AAAAAHa2tyY=") ->  | AN12: =AND(Setup!W49,"AAAAAHa2tyc=") ->  | AO12: =AND(Setup!X49,"AAAAAHa2tyg=") ->  | AP12: =AND(Setup!Y49,"AAAAAHa2tyk=") ->  | AQ12: =AND(Setup!Z49,"AAAAAHa2tyo=") ->  | AR12: =AND(Setup!AA49,"AAAAAHa2tys=") ->  | AS12: =AND(Setup!AB49,"AAAAAHa2tyw=") ->  | AT12: =AND(Setup!AC49,"AAAAAHa2ty0=") ->  | AU12: =AND(Setup!AD49,"AAAAAHa2ty4=") ->  | AV12: =AND(Setup!AE49,"AAAAAHa2ty8=") ->  | AW12: =AND(Setup!AF49,"AAAAAHa2tzA=") ->  | AX12: =AND(Setup!AG49,"AAAAAHa2tzE=") ->  | AY12: =AND(Setup!AH49,"AAAAAHa2tzI=") ->  | AZ12: =AND(Setup!AI49,"AAAAAHa2tzM=") ->  | BA12: =AND(Setup!AJ49,"AAAAAHa2tzQ=") ->  | BB12: =AND(Setup!AK49,"AAAAAHa2tzU=") ->  | BC12: =AND(Setup!AL49,"AAAAAHa2tzY=") ->  | BD12: =AND(Setup!AM49,"AAAAAHa2tzc=") ->  | BE12: =AND(Setup!AN49,"AAAAAHa2tzg=") ->  | BF12: =AND(Setup!AO49,"AAAAAHa2tzk=") ->  | BG12: =AND(Setup!AP49,"AAAAAHa2tzo=") ->  | BH12: =AND(Setup!AQ49,"AAAAAHa2tzs=") ->  | BI12: =AND(Setup!AR49,"AAAAAHa2tzw=") ->  | BJ12: =AND(Setup!AS49,"AAAAAHa2tz0=") ->  | BK12: =AND(Setup!AT49,"AAAAAHa2tz4=") ->  | BL12: =AND(Setup!AU49,"AAAAAHa2tz8=") ->  | BM12: =AND(Setup!AV49,"AAAAAHa2t0A=") ->  | BN12: =AND(Setup!AW49,"AAAAAHa2t0E=") ->  | BO12: =AND(Setup!AX49,"AAAAAHa2t0I=") ->  | BP12: =AND(Setup!AY49,"AAAAAHa2t0M=") ->  | BQ12: =AND(Setup!AZ49,"AAAAAHa2t0Q=") ->  | BR12: =AND(Setup!BA49,"AAAAAHa2t0U=") ->  | BS12: =AND(Setup!BB49,"AAAAAHa2t0Y=") ->  | BT12: =AND(Setup!BC49,"AAAAAHa2t0c=") ->  | BU12: =AND(Setup!BD49,"AAAAAHa2t0g=") ->  | BV12: =AND(Setup!BE49,"AAAAAHa2t0k=") ->  | BW12: =AND(Setup!BF49,"AAAAAHa2t0o=") ->  | BX12: =IF(Setup!50:50,"AAAAAHa2t0s=",0) -> 0 | BY12: =AND(Setup!A50,"AAAAAHa2t0w=") ->  | BZ12: =AND(Setup!B50,"AAAAAHa2t00=") ->  | CA12: =AND(Setup!C50,"AAAAAHa2t04=") ->  | CB12: =AND(Setup!D50,"AAAAAHa2t08=") ->  | CC12: =AND(Setup!E50,"AAAAAHa2t1A=") ->  | CD12: =AND(Setup!F50,"AAAAAHa2t1E=") ->  | CE12: =AND(Setup!G50,"AAAAAHa2t1I=") ->  | CF12: =AND(Setup!H50,"AAAAAHa2t1M=") ->  | CG12: =AND(Setup!I50,"AAAAAHa2t1Q=") ->  | CH12: =AND(Setup!J50,"AAAAAHa2t1U=") ->  | CI12: =AND(Setup!K50,"AAAAAHa2t1Y=") ->  | CJ12: =AND(Setup!L50,"AAAAAHa2t1c=") ->  | CK12: =AND(Setup!M50,"AAAAAHa2t1g=") ->  | CL12: =AND(Setup!N50,"AAAAAHa2t1k=") ->  | CM12: =AND(Setup!O50,"AAAAAHa2t1o=") ->  | CN12: =AND(Setup!P50,"AAAAAHa2t1s=") ->  | CO12: =AND(Setup!Q50,"AAAAAHa2t1w=") ->  | CP12: =AND(Setup!R50,"AAAAAHa2t10=") ->  | CQ12: =AND(Setup!S50,"AAAAAHa2t14=") ->  | CR12: =AND(Setup!T50,"AAAAAHa2t18=") ->  | CS12: =AND(Setup!U50,"AAAAAHa2t2A=") ->  | CT12: =AND(Setup!V50,"AAAAAHa2t2E=") ->  | CU12: =AND(Setup!W50,"AAAAAHa2t2I=") ->  | CV12: =AND(Setup!X50,"AAAAAHa2t2M=") ->  | CW12: =AND(Setup!Y50,"AAAAAHa2t2Q=") ->  | CX12: =AND(Setup!Z50,"AAAAAHa2t2U=") ->  | CY12: =AND(Setup!AA50,"AAAAAHa2t2Y=") ->  | CZ12: =AND(Setup!AB50,"AAAAAHa2t2c=") ->  | DA12: =AND(Setup!AC50,"AAAAAHa2t2g=") ->  | DB12: =AND(Setup!AD50,"AAAAAHa2t2k=") ->  | DC12: =AND(Setup!AE50,"AAAAAHa2t2o=") ->  | DD12: =AND(Setup!AF50,"AAAAAHa2t2s=") ->  | DE12: =AND(Setup!AG50,"AAAAAHa2t2w=") ->  | DF12: =AND(Setup!AH50,"AAAAAHa2t20=") ->  | DG12: =AND(Setup!AI50,"AAAAAHa2t24=") ->  | DH12: =AND(Setup!AJ50,"AAAAAHa2t28=") ->  | DI12: =AND(Setup!AK50,"AAAAAHa2t3A=") ->  | DJ12: =AND(Setup!AL50,"AAAAAHa2t3E=") ->  | DK12: =AND(Setup!AM50,"AAAAAHa2t3I=") ->  | DL12: =AND(Setup!AN50,"AAAAAHa2t3M=") ->  | DM12: =AND(Setup!AO50,"AAAAAHa2t3Q=") ->  | DN12: =AND(Setup!AP50,"AAAAAHa2t3U=") ->  | DO12: =AND(Setup!AQ50,"AAAAAHa2t3Y=") ->  | DP12: =AND(Setup!AR50,"AAAAAHa2t3c=") ->  | DQ12: =AND(Setup!AS50,"AAAAAHa2t3g=") ->  | DR12: =AND(Setup!AT50,"AAAAAHa2t3k=") ->  | DS12: =AND(Setup!AU50,"AAAAAHa2t3o=") ->  | DT12: =AND(Setup!AV50,"AAAAAHa2t3s=") ->  | DU12: =AND(Setup!AW50,"AAAAAHa2t3w=") ->  | DV12: =AND(Setup!AX50,"AAAAAHa2t30=") ->  | DW12: =AND(Setup!AY50,"AAAAAHa2t34=") ->  | DX12: =AND(Setup!AZ50,"AAAAAHa2t38=") ->  | DY12: =AND(Setup!BA50,"AAAAAHa2t4A=") ->  | DZ12: =AND(Setup!BB50,"AAAAAHa2t4E=") ->  | EA12: =AND(Setup!BC50,"AAAAAHa2t4I=") ->  | EB12: =AND(Setup!BD50,"AAAAAHa2t4M=") ->  | EC12: =AND(Setup!BE50,"AAAAAHa2t4Q=") ->  | ED12: =AND(Setup!BF50,"AAAAAHa2t4U=") ->  | EE12: =IF(Setup!51:51,"AAAAAHa2t4Y=",0) -> 0 | EF12: =AND(Setup!A51,"AAAAAHa2t4c=") ->  | EG12: =AND(Setup!B51,"AAAAAHa2t4g=") ->  | EH12: =AND(Setup!C51,"AAAAAHa2t4k=") ->  | EI12: =AND(Setup!D51,"AAAAAHa2t4o=") ->  | EJ12: =AND(Setup!E51,"AAAAAHa2t4s=") ->  | EK12: =AND(Setup!F51,"AAAAAHa2t4w=") ->  | EL12: =AND(Setup!G51,"AAAAAHa2t40=") ->  | EM12: =AND(Setup!H51,"AAAAAHa2t44=") ->  | EN12: =AND(Setup!I51,"AAAAAHa2t48=") ->  | EO12: =AND(Setup!J51,"AAAAAHa2t5A=") ->  | EP12: =AND(Setup!K51,"AAAAAHa2t5E=") ->  | EQ12: =AND(Setup!L51,"AAAAAHa2t5I=") ->  | ER12: =AND(Setup!M51,"AAAAAHa2t5M=") ->  | ES12: =AND(Setup!N51,"AAAAAHa2t5Q=") ->  | ET12: =AND(Setup!O51,"AAAAAHa2t5U=") ->  | EU12: =AND(Setup!P51,"AAAAAHa2t5Y=") ->  | EV12: =AND(Setup!Q51,"AAAAAHa2t5c=") ->  | EW12: =AND(Setup!R51,"AAAAAHa2t5g=") ->  | EX12: =AND(Setup!S51,"AAAAAHa2t5k=") ->  | EY12: =AND(Setup!T51,"AAAAAHa2t5o=") ->  | EZ12: =AND(Setup!U51,"AAAAAHa2t5s=") ->  | FA12: =AND(Setup!V51,"AAAAAHa2t5w=") ->  | FB12: =AND(Setup!W51,"AAAAAHa2t50=") ->  | FC12: =AND(Setup!X51,"AAAAAHa2t54=") ->  | FD12: =AND(Setup!Y51,"AAAAAHa2t58=") ->  | FE12: =AND(Setup!Z51,"AAAAAHa2t6A=") ->  | FF12: =AND(Setup!AA51,"AAAAAHa2t6E=") ->  | FG12: =AND(Setup!AB51,"AAAAAHa2t6I=") ->  | FH12: =AND(Setup!AC51,"AAAAAHa2t6M=") ->  | FI12: =AND(Setup!AD51,"AAAAAHa2t6Q=") ->  | FJ12: =AND(Setup!AE51,"AAAAAHa2t6U=") ->  | FK12: =AND(Setup!AF51,"AAAAAHa2t6Y=") ->  | FL12: =AND(Setup!AG51,"AAAAAHa2t6c=") ->  | FM12: =AND(Setup!AH51,"AAAAAHa2t6g=") ->  | FN12: =AND(Setup!AI51,"AAAAAHa2t6k=") ->  | FO12: =AND(Setup!AJ51,"AAAAAHa2t6o=") ->  | FP12: =AND(Setup!AK51,"AAAAAHa2t6s=") ->  | FQ12: =AND(Setup!AL51,"AAAAAHa2t6w=") ->  | FR12: =AND(Setup!AM51,"AAAAAHa2t60=") ->  | FS12: =AND(Setup!AN51,"AAAAAHa2t64=") ->  | FT12: =AND(Setup!AO51,"AAAAAHa2t68=") ->  | FU12: =AND(Setup!AP51,"AAAAAHa2t7A=") ->  | FV12: =AND(Setup!AQ51,"AAAAAHa2t7E=") ->  | FW12: =AND(Setup!AR51,"AAAAAHa2t7I=") ->  | FX12: =AND(Setup!AS51,"AAAAAHa2t7M=") ->  | FY12: =AND(Setup!AT51,"AAAAAHa2t7Q=") ->  | FZ12: =AND(Setup!AU51,"AAAAAHa2t7U=") ->  | GA12: =AND(Setup!AV51,"AAAAAHa2t7Y=") ->  | GB12: =AND(Setup!AW51,"AAAAAHa2t7c=") ->  | GC12: =AND(Setup!AX51,"AAAAAHa2t7g=") ->  | GD12: =AND(Setup!AY51,"AAAAAHa2t7k=") ->  | GE12: =AND(Setup!AZ51,"AAAAAHa2t7o=") ->  | GF12: =AND(Setup!BA51,"AAAAAHa2t7s=") ->  | GG12: =AND(Setup!BB51,"AAAAAHa2t7w=") ->  | GH12: =AND(Setup!BC51,"AAAAAHa2t70=") ->  | GI12: =AND(Setup!BD51,"AAAAAHa2t74=") ->  | GJ12: =AND(Setup!BE51,"AAAAAHa2t78=") ->  | GK12: =AND(Setup!BF51,"AAAAAHa2t8A=") ->  | GL12: =IF(Setup!52:52,"AAAAAHa2t8E=",0) -> 0 | GM12: =AND(Setup!A52,"AAAAAHa2t8I=") ->  | GN12: =AND(Setup!B52,"AAAAAHa2t8M=") ->  | GO12: =AND(Setup!C52,"AAAAAHa2t8Q=") ->  | GP12: =AND(Setup!D52,"AAAAAHa2t8U=") ->  | GQ12: =AND(Setup!E52,"AAAAAHa2t8Y=") ->  | GR12: =AND(Setup!F52,"AAAAAHa2t8c=") ->  | GS12: =AND(Setup!G52,"AAAAAHa2t8g=") ->  | GT12: =AND(Setup!H52,"AAAAAHa2t8k=") ->  | GU12: =AND(Setup!I52,"AAAAAHa2t8o=") ->  | GV12: =AND(Setup!J52,"AAAAAHa2t8s=") ->  | GW12: =AND(Setup!K52,"AAAAAHa2t8w=") ->  | GX12: =AND(Setup!L52,"AAAAAHa2t80=") ->  | GY12: =AND(Setup!M52,"AAAAAHa2t84=") ->  | GZ12: =AND(Setup!N52,"AAAAAHa2t88=") ->  | HA12: =AND(Setup!O52,"AAAAAHa2t9A=") ->  | HB12: =AND(Setup!P52,"AAAAAHa2t9E=") ->  | HC12: =AND(Setup!Q52,"AAAAAHa2t9I=") ->  | HD12: =AND(Setup!R52,"AAAAAHa2t9M=") ->  | HE12: =AND(Setup!S52,"AAAAAHa2t9Q=") ->  | HF12: =AND(Setup!T52,"AAAAAHa2t9U=") ->  | HG12: =AND(Setup!U52,"AAAAAHa2t9Y=") ->  | HH12: =AND(Setup!V52,"AAAAAHa2t9c=") ->  | HI12: =AND(Setup!W52,"AAAAAHa2t9g=") ->  | HJ12: =AND(Setup!X52,"AAAAAHa2t9k=") ->  | HK12: =AND(Setup!Y52,"AAAAAHa2t9o=") ->  | HL12: =AND(Setup!Z52,"AAAAAHa2t9s=") ->  | HM12: =AND(Setup!AA52,"AAAAAHa2t9w=") ->  | HN12: =AND(Setup!AB52,"AAAAAHa2t90=") ->  | HO12: =AND(Setup!AC52,"AAAAAHa2t94=") ->  | HP12: =AND(Setup!AD52,"AAAAAHa2t98=") ->  | HQ12: =AND(Setup!AE52,"AAAAAHa2t+A=") ->  | HR12: =AND(Setup!AF52,"AAAAAHa2t+E=") ->  | HS12: =AND(Setup!AG52,"AAAAAHa2t+I=") ->  | HT12: =AND(Setup!AH52,"AAAAAHa2t+M=") ->  | HU12: =AND(Setup!AI52,"AAAAAHa2t+Q=") ->  | HV12: =AND(Setup!AJ52,"AAAAAHa2t+U=") ->  | HW12: =AND(Setup!AK52,"AAAAAHa2t+Y=") ->  | HX12: =AND(Setup!AL52,"AAAAAHa2t+c=") ->  | HY12: =AND(Setup!AM52,"AAAAAHa2t+g=") ->  | HZ12: =AND(Setup!AN52,"AAAAAHa2t+k=") ->  | IA12: =AND(Setup!AO52,"AAAAAHa2t+o=") ->  | IB12: =AND(Setup!AP52,"AAAAAHa2t+s=") ->  | IC12: =AND(Setup!AQ52,"AAAAAHa2t+w=") ->  | ID12: =AND(Setup!AR52,"AAAAAHa2t+0=") ->  | IE12: =AND(Setup!AS52,"AAAAAHa2t+4=") ->  | IF12: =AND(Setup!AT52,"AAAAAHa2t+8=") ->  | IG12: =AND(Setup!AU52,"AAAAAHa2t/A=") ->  | IH12: =AND(Setup!AV52,"AAAAAHa2t/E=") ->  | II12: =AND(Setup!AW52,"AAAAAHa2t/I=") ->  | IJ12: =AND(Setup!AX52,"AAAAAHa2t/M=") ->  | IK12: =AND(Setup!AY52,"AAAAAHa2t/Q=") ->  | IL12: =AND(Setup!AZ52,"AAAAAHa2t/U=") ->  | IM12: =AND(Setup!BA52,"AAAAAHa2t/Y=") ->  | IN12: =AND(Setup!BB52,"AAAAAHa2t/c=") ->  | IO12: =AND(Setup!BC52,"AAAAAHa2t/g=") ->  | IP12: =AND(Setup!BD52,"AAAAAHa2t/k=") ->  | IQ12: =AND(Setup!BE52,"AAAAAHa2t/o=") ->  | IR12: =AND(Setup!BF52,"AAAAAHa2t/s=") ->  | IS12: =IF(Setup!53:53,"AAAAAHa2t/w=",0) -> 0 | IT12: =AND(Setup!A53,"AAAAAHa2t/0=") ->  | IU12: =AND(Setup!B53,"AAAAAHa2t/4=") ->  | IV12: =AND(Setup!C53,"AAAAAHa2t/8=") -> 
A13: =AND(Setup!D53,"AAAAAH7fnAA=") ->  | B13: =AND(Setup!E53,"AAAAAH7fnAE=") ->  | C13: =AND(Setup!F53,"AAAAAH7fnAI=") ->  | D13: =AND(Setup!G53,"AAAAAH7fnAM=") ->  | E13: =AND(Setup!H53,"AAAAAH7fnAQ=") ->  | F13: =AND(Setup!I53,"AAAAAH7fnAU=") ->  | G13: =AND(Setup!J53,"AAAAAH7fnAY=") ->  | H13: =AND(Setup!K53,"AAAAAH7fnAc=") ->  | I13: =AND(Setup!L53,"AAAAAH7fnAg=") ->  | J13: =AND(Setup!M53,"AAAAAH7fnAk=") ->  | K13: =AND(Setup!N53,"AAAAAH7fnAo=") ->  | L13: =AND(Setup!O53,"AAAAAH7fnAs=") ->  | M13: =AND(Setup!P53,"AAAAAH7fnAw=") ->  | N13: =AND(Setup!Q53,"AAAAAH7fnA0=") ->  | O13: =AND(Setup!R53,"AAAAAH7fnA4=") ->  | P13: =AND(Setup!S53,"AAAAAH7fnA8=") ->  | Q13: =AND(Setup!T53,"AAAAAH7fnBA=") ->  | R13: =AND(Setup!U53,"AAAAAH7fnBE=") ->  | S13: =AND(Setup!V53,"AAAAAH7fnBI=") ->  | T13: =AND(Setup!W53,"AAAAAH7fnBM=") ->  | U13: =AND(Setup!X53,"AAAAAH7fnBQ=") ->  | V13: =AND(Setup!Y53,"AAAAAH7fnBU=") ->  | W13: =AND(Setup!Z53,"AAAAAH7fnBY=") ->  | X13: =AND(Setup!AA53,"AAAAAH7fnBc=") ->  | Y13: =AND(Setup!AB53,"AAAAAH7fnBg=") ->  | Z13: =AND(Setup!AC53,"AAAAAH7fnBk=") ->  | AA13: =AND(Setup!AD53,"AAAAAH7fnBo=") ->  | AB13: =AND(Setup!AE53,"AAAAAH7fnBs=") ->  | AC13: =AND(Setup!AF53,"AAAAAH7fnBw=") ->  | AD13: =AND(Setup!AG53,"AAAAAH7fnB0=") ->  | AE13: =AND(Setup!AH53,"AAAAAH7fnB4=") ->  | AF13: =AND(Setup!AI53,"AAAAAH7fnB8=") ->  | AG13: =AND(Setup!AJ53,"AAAAAH7fnCA=") ->  | AH13: =AND(Setup!AK53,"AAAAAH7fnCE=") ->  | AI13: =AND(Setup!AL53,"AAAAAH7fnCI=") ->  | AJ13: =AND(Setup!AM53,"AAAAAH7fnCM=") ->  | AK13: =AND(Setup!AN53,"AAAAAH7fnCQ=") ->  | AL13: =AND(Setup!AO53,"AAAAAH7fnCU=") ->  | AM13: =AND(Setup!AP53,"AAAAAH7fnCY=") ->  | AN13: =AND(Setup!AQ53,"AAAAAH7fnCc=") ->  | AO13: =AND(Setup!AR53,"AAAAAH7fnCg=") ->  | AP13: =AND(Setup!AS53,"AAAAAH7fnCk=") ->  | AQ13: =AND(Setup!AT53,"AAAAAH7fnCo=") ->  | AR13: =AND(Setup!AU53,"AAAAAH7fnCs=") ->  | AS13: =AND(Setup!AV53,"AAAAAH7fnCw=") ->  | AT13: =AND(Setup!AW53,"AAAAAH7fnC0=") ->  | AU13: =AND(Setup!AX53,"AAAAAH7fnC4=") ->  | AV13: =AND(Setup!AY53,"AAAAAH7fnC8=") ->  | AW13: =AND(Setup!AZ53,"AAAAAH7fnDA=") ->  | AX13: =AND(Setup!BA53,"AAAAAH7fnDE=") ->  | AY13: =AND(Setup!BB53,"AAAAAH7fnDI=") ->  | AZ13: =AND(Setup!BC53,"AAAAAH7fnDM=") ->  | BA13: =AND(Setup!BD53,"AAAAAH7fnDQ=") ->  | BB13: =AND(Setup!BE53,"AAAAAH7fnDU=") ->  | BC13: =AND(Setup!BF53,"AAAAAH7fnDY=") ->  | BD13: =IF(Setup!54:54,"AAAAAH7fnDc=",0) -> 0 | BE13: =AND(Setup!A54,"AAAAAH7fnDg=") ->  | BF13: =AND(Setup!B54,"AAAAAH7fnDk=") ->  | BG13: =AND(Setup!C54,"AAAAAH7fnDo=") ->  | BH13: =AND(Setup!D54,"AAAAAH7fnDs=") ->  | BI13: =AND(Setup!E54,"AAAAAH7fnDw=") ->  | BJ13: =AND(Setup!F54,"AAAAAH7fnD0=") ->  | BK13: =AND(Setup!G54,"AAAAAH7fnD4=") ->  | BL13: =AND(Setup!H54,"AAAAAH7fnD8=") ->  | BM13: =AND(Setup!I54,"AAAAAH7fnEA=") ->  | BN13: =AND(Setup!J54,"AAAAAH7fnEE=") ->  | BO13: =AND(Setup!K54,"AAAAAH7fnEI=") ->  | BP13: =AND(Setup!L54,"AAAAAH7fnEM=") ->  | BQ13: =AND(Setup!M54,"AAAAAH7fnEQ=") ->  | BR13: =AND(Setup!N54,"AAAAAH7fnEU=") ->  | BS13: =AND(Setup!O54,"AAAAAH7fnEY=") ->  | BT13: =AND(Setup!P54,"AAAAAH7fnEc=") ->  | BU13: =AND(Setup!Q54,"AAAAAH7fnEg=") ->  | BV13: =AND(Setup!R54,"AAAAAH7fnEk=") ->  | BW13: =AND(Setup!S54,"AAAAAH7fnEo=") ->  | BX13: =AND(Setup!T54,"AAAAAH7fnEs=") ->  | BY13: =AND(Setup!U54,"AAAAAH7fnEw=") ->  | BZ13: =AND(Setup!V54,"AAAAAH7fnE0=") ->  | CA13: =AND(Setup!W54,"AAAAAH7fnE4=") ->  | CB13: =AND(Setup!X54,"AAAAAH7fnE8=") ->  | CC13: =AND(Setup!Y54,"AAAAAH7fnFA=") ->  | CD13: =AND(Setup!Z54,"AAAAAH7fnFE=") ->  | CE13: =AND(Setup!AA54,"AAAAAH7fnFI=") ->  | CF13: =AND(Setup!AB54,"AAAAAH7fnFM=") ->  | CG13: =AND(Setup!AC54,"AAAAAH7fnFQ=") ->  | CH13: =AND(Setup!AD54,"AAAAAH7fnFU=") ->  | CI13: =AND(Setup!AE54,"AAAAAH7fnFY=") ->  | CJ13: =AND(Setup!AF54,"AAAAAH7fnFc=") ->  | CK13: =AND(Setup!AG54,"AAAAAH7fnFg=") ->  | CL13: =AND(Setup!AH54,"AAAAAH7fnFk=") ->  | CM13: =AND(Setup!AI54,"AAAAAH7fnFo=") ->  | CN13: =AND(Setup!AJ54,"AAAAAH7fnFs=") ->  | CO13: =AND(Setup!AK54,"AAAAAH7fnFw=") ->  | CP13: =AND(Setup!AL54,"AAAAAH7fnF0=") ->  | CQ13: =AND(Setup!AM54,"AAAAAH7fnF4=") ->  | CR13: =AND(Setup!AN54,"AAAAAH7fnF8=") ->  | CS13: =AND(Setup!AO54,"AAAAAH7fnGA=") ->  | CT13: =AND(Setup!AP54,"AAAAAH7fnGE=") ->  | CU13: =AND(Setup!AQ54,"AAAAAH7fnGI=") ->  | CV13: =AND(Setup!AR54,"AAAAAH7fnGM=") ->  | CW13: =AND(Setup!AS54,"AAAAAH7fnGQ=") ->  | CX13: =AND(Setup!AT54,"AAAAAH7fnGU=") ->  | CY13: =AND(Setup!AU54,"AAAAAH7fnGY=") ->  | CZ13: =AND(Setup!AV54,"AAAAAH7fnGc=") ->  | DA13: =AND(Setup!AW54,"AAAAAH7fnGg=") ->  | DB13: =AND(Setup!AX54,"AAAAAH7fnGk=") ->  | DC13: =AND(Setup!AY54,"AAAAAH7fnGo=") ->  | DD13: =AND(Setup!AZ54,"AAAAAH7fnGs=") ->  | DE13: =AND(Setup!BA54,"AAAAAH7fnGw=") ->  | DF13: =AND(Setup!BB54,"AAAAAH7fnG0=") ->  | DG13: =AND(Setup!BC54,"AAAAAH7fnG4=") ->  | DH13: =AND(Setup!BD54,"AAAAAH7fnG8=") ->  | DI13: =AND(Setup!BE54,"AAAAAH7fnHA=") ->  | DJ13: =AND(Setup!BF54,"AAAAAH7fnHE=") ->  | DK13: =IF(Setup!55:55,"AAAAAH7fnHI=",0) -> 0 | DL13: =AND(Setup!A55,"AAAAAH7fnHM=") ->  | DM13: =AND(Setup!B55,"AAAAAH7fnHQ=") ->  | DN13: =AND(Setup!C55,"AAAAAH7fnHU=") ->  | DO13: =AND(Setup!D55,"AAAAAH7fnHY=") ->  | DP13: =AND(Setup!E55,"AAAAAH7fnHc=") ->  | DQ13: =AND(Setup!F55,"AAAAAH7fnHg=") ->  | DR13: =AND(Setup!G55,"AAAAAH7fnHk=") ->  | DS13: =AND(Setup!H55,"AAAAAH7fnHo=") ->  | DT13: =AND(Setup!I55,"AAAAAH7fnHs=") ->  | DU13: =AND(Setup!J55,"AAAAAH7fnHw=") ->  | DV13: =AND(Setup!K55,"AAAAAH7fnH0=") ->  | DW13: =AND(Setup!L55,"AAAAAH7fnH4=") ->  | DX13: =AND(Setup!M55,"AAAAAH7fnH8=") ->  | DY13: =AND(Setup!N55,"AAAAAH7fnIA=") ->  | DZ13: =AND(Setup!O55,"AAAAAH7fnIE=") ->  | EA13: =AND(Setup!P55,"AAAAAH7fnII=") ->  | EB13: =AND(Setup!Q55,"AAAAAH7fnIM=") ->  | EC13: =AND(Setup!R55,"AAAAAH7fnIQ=") ->  | ED13: =AND(Setup!S55,"AAAAAH7fnIU=") ->  | EE13: =AND(Setup!T55,"AAAAAH7fnIY=") ->  | EF13: =AND(Setup!U55,"AAAAAH7fnIc=") ->  | EG13: =AND(Setup!V55,"AAAAAH7fnIg=") ->  | EH13: =AND(Setup!W55,"AAAAAH7fnIk=") ->  | EI13: =AND(Setup!X55,"AAAAAH7fnIo=") ->  | EJ13: =AND(Setup!Y55,"AAAAAH7fnIs=") ->  | EK13: =AND(Setup!Z55,"AAAAAH7fnIw=") ->  | EL13: =AND(Setup!AA55,"AAAAAH7fnI0=") ->  | EM13: =AND(Setup!AB55,"AAAAAH7fnI4=") ->  | EN13: =AND(Setup!AC55,"AAAAAH7fnI8=") ->  | EO13: =AND(Setup!AD55,"AAAAAH7fnJA=") ->  | EP13: =AND(Setup!AE55,"AAAAAH7fnJE=") ->  | EQ13: =AND(Setup!AF55,"AAAAAH7fnJI=") ->  | ER13: =AND(Setup!AG55,"AAAAAH7fnJM=") ->  | ES13: =AND(Setup!AH55,"AAAAAH7fnJQ=") ->  | ET13: =AND(Setup!AI55,"AAAAAH7fnJU=") ->  | EU13: =AND(Setup!AJ55,"AAAAAH7fnJY=") ->  | EV13: =AND(Setup!AK55,"AAAAAH7fnJc=") ->  | EW13: =AND(Setup!AL55,"AAAAAH7fnJg=") ->  | EX13: =AND(Setup!AM55,"AAAAAH7fnJk=") ->  | EY13: =AND(Setup!AN55,"AAAAAH7fnJo=") ->  | EZ13: =AND(Setup!AO55,"AAAAAH7fnJs=") ->  | FA13: =AND(Setup!AP55,"AAAAAH7fnJw=") ->  | FB13: =AND(Setup!AQ55,"AAAAAH7fnJ0=") ->  | FC13: =AND(Setup!AR55,"AAAAAH7fnJ4=") ->  | FD13: =AND(Setup!AS55,"AAAAAH7fnJ8=") ->  | FE13: =AND(Setup!AT55,"AAAAAH7fnKA=") ->  | FF13: =AND(Setup!AU55,"AAAAAH7fnKE=") ->  | FG13: =AND(Setup!AV55,"AAAAAH7fnKI=") ->  | FH13: =AND(Setup!AW55,"AAAAAH7fnKM=") ->  | FI13: =AND(Setup!AX55,"AAAAAH7fnKQ=") ->  | FJ13: =AND(Setup!AY55,"AAAAAH7fnKU=") ->  | FK13: =AND(Setup!AZ55,"AAAAAH7fnKY=") ->  | FL13: =AND(Setup!BA55,"AAAAAH7fnKc=") ->  | FM13: =AND(Setup!BB55,"AAAAAH7fnKg=") ->  | FN13: =AND(Setup!BC55,"AAAAAH7fnKk=") ->  | FO13: =AND(Setup!BD55,"AAAAAH7fnKo=") ->  | FP13: =AND(Setup!BE55,"AAAAAH7fnKs=") ->  | FQ13: =AND(Setup!BF55,"AAAAAH7fnKw=") ->  | FR13: =IF(Setup!A:A,"AAAAAH7fnK0=",0) -> 0 | FS13: =IF(Setup!B:B,"AAAAAH7fnK4=",0) -> 0 | FT13: =IF(Setup!C:C,"AAAAAH7fnK8=",0) -> AAAAAH7fnK8= | FU13: =IF(Setup!D:D,"AAAAAH7fnLA=",0) -> AAAAAH7fnLA= | FV13: =IF(Setup!E:E,"AAAAAH7fnLE=",0) -> 0 | FW13: =IF(Setup!F:F,"AAAAAH7fnLI=",0) -> AAAAAH7fnLI= | FX13: =IF(Setup!G:G,"AAAAAH7fnLM=",0) -> AAAAAH7fnLM= | FY13: =IF(Setup!H:H,"AAAAAH7fnLQ=",0) -> AAAAAH7fnLQ= | FZ13: =IF(Setup!I:I,"AAAAAH7fnLU=",0) -> 0 | GA13: =IF(Setup!J:J,"AAAAAH7fnLY=",0) -> AAAAAH7fnLY= | GB13: =IF(Setup!K:K,"AAAAAH7fnLc=",0) -> AAAAAH7fnLc= | GC13: =IF(Setup!L:L,"AAAAAH7fnLg=",0) -> AAAAAH7fnLg= | GD13: =IF(Setup!M:M,"AAAAAH7fnLk=",0) -> AAAAAH7fnLk= | GE13: =IF(Setup!N:N,"AAAAAH7fnLo=",0) -> 0 | GF13: =IF(Setup!O:O,"AAAAAH7fnLs=",0) ->  | GG13: =IF(Setup!P:P,"AAAAAH7fnLw=",0) ->  | GH13: =IF(Setup!Q:Q,"AAAAAH7fnL0=",0) -> AAAAAH7fnL0= | GI13: =IF(Setup!R:R,"AAAAAH7fnL4=",0) -> 0 | GJ13: =IF(Setup!S:S,"AAAAAH7fnL8=",0) -> 0 | GK13: =IF(Setup!T:T,"AAAAAH7fnMA=",0) -> 0 | GL13: =IF(Setup!U:U,"AAAAAH7fnME=",0) -> 0 | GM13: =IF(Setup!V:V,"AAAAAH7fnMI=",0) -> 0 | GN13: =IF(Setup!W:W,"AAAAAH7fnMM=",0) -> 0 | GO13: =IF(Setup!X:X,"AAAAAH7fnMQ=",0) -> 0 | GP13: =IF(Setup!Y:Y,"AAAAAH7fnMU=",0) -> 0 | GQ13: =IF(Setup!Z:Z,"AAAAAH7fnMY=",0) -> 0 | GR13: =IF(Setup!AA:AA,"AAAAAH7fnMc=",0) -> 0 | GS13: =IF(Setup!AB:AB,"AAAAAH7fnMg=",0) -> 0 | GT13: =IF(Setup!AC:AC,"AAAAAH7fnMk=",0) -> 0 | GU13: =IF(Setup!AD:AD,"AAAAAH7fnMo=",0) -> 0 | GV13: =IF(Setup!AE:AE,"AAAAAH7fnMs=",0) -> 0 | GW13: =IF(Setup!AF:AF,"AAAAAH7fnMw=",0) -> 0 | GX13: =IF(Setup!AG:AG,"AAAAAH7fnM0=",0) -> 0 | GY13: =IF(Setup!AH:AH,"AAAAAH7fnM4=",0) -> 0 | GZ13: =IF(Setup!AI:AI,"AAAAAH7fnM8=",0) -> 0 | HA13: =IF(Setup!AJ:AJ,"AAAAAH7fnNA=",0) -> 0 | HB13: =IF(Setup!AK:AK,"AAAAAH7fnNE=",0) -> 0 | HC13: =IF(Setup!AL:AL,"AAAAAH7fnNI=",0) -> 0 | HD13: =IF(Setup!AM:AM,"AAAAAH7fnNM=",0) -> 0 | HE13: =IF(Setup!AN:AN,"AAAAAH7fnNQ=",0) -> 0 | HF13: =IF(Setup!AO:AO,"AAAAAH7fnNU=",0) -> 0 | HG13: =IF(Setup!AP:AP,"AAAAAH7fnNY=",0) -> 0 | HH13: =IF(Setup!AQ:AQ,"AAAAAH7fnNc=",0) -> 0 | HI13: =IF(Setup!AR:AR,"AAAAAH7fnNg=",0) -> 0 | HJ13: =IF(Setup!AS:AS,"AAAAAH7fnNk=",0) -> 0 | HK13: =IF(Setup!AT:AT,"AAAAAH7fnNo=",0) -> 0 | HL13: =IF(Setup!AU:AU,"AAAAAH7fnNs=",0) -> 0 | HM13: =IF(Setup!AV:AV,"AAAAAH7fnNw=",0) -> 0 | HN13: =IF(Setup!AW:AW,"AAAAAH7fnN0=",0) -> 0 | HO13: =IF(Setup!AX:AX,"AAAAAH7fnN4=",0) -> 0 | HP13: =IF(Setup!AY:AY,"AAAAAH7fnN8=",0) -> 0 | HQ13: =IF(Setup!AZ:AZ,"AAAAAH7fnOA=",0) -> 0 | HR13: =IF(Setup!BA:BA,"AAAAAH7fnOE=",0) -> 0 | HS13: =IF(Setup!BB:BB,"AAAAAH7fnOI=",0) -> 0 | HT13: =IF(Setup!BC:BC,"AAAAAH7fnOM=",0) -> 0 | HU13: =IF(Setup!BD:BD,"AAAAAH7fnOQ=",0) -> 0 | HV13: =IF(Setup!BE:BE,"AAAAAH7fnOU=",0) -> 0 | HW13: =IF(Setup!BF:BF,"AAAAAH7fnOY=",0) -> 0 | HX13: =IF('Weigh-in'!1:1,"AAAAAH7fnOc=",0) -> 0 | HY13: =AND('Weigh-in'!A1,"AAAAAH7fnOg=") ->  | HZ13: =AND('Weigh-in'!B1,"AAAAAH7fnOk=") ->  | IA13: =AND('Weigh-in'!C1,"AAAAAH7fnOo=") ->  | IB13: =AND('Weigh-in'!D1,"AAAAAH7fnOs=") ->  | IC13: =AND('Weigh-in'!E1,"AAAAAH7fnOw=") ->  | ID13: =AND('Weigh-in'!F1,"AAAAAH7fnO0=") ->  | IE13: =AND('Weigh-in'!G1,"AAAAAH7fnO4=") ->  | IF13: =AND('Weigh-in'!H1,"AAAAAH7fnO8=") ->  | IG13: =AND('Weigh-in'!I1,"AAAAAH7fnPA=") ->  | IH13: =AND('Weigh-in'!J1,"AAAAAH7fnPE=") ->  | II13: =AND('Weigh-in'!K1,"AAAAAH7fnPI=") ->  | IJ13: =AND('Weigh-in'!L1,"AAAAAH7fnPM=") ->  | IK13: =AND('Weigh-in'!M1,"AAAAAH7fnPQ=") ->  | IL13: =AND('Weigh-in'!N1,"AAAAAH7fnPU=") ->  | IM13: =AND('Weigh-in'!O1,"AAAAAH7fnPY=") ->  | IN13: =AND('Weigh-in'!P1,"AAAAAH7fnPc=") ->  | IO13: =AND('Weigh-in'!Q1,"AAAAAH7fnPg=") ->  | IP13: =AND('Weigh-in'!R1,"AAAAAH7fnPk=") ->  | IQ13: =AND('Weigh-in'!S1,"AAAAAH7fnPo=") ->  | IR13: =AND('Weigh-in'!T1,"AAAAAH7fnPs=") ->  | IS13: =AND('Weigh-in'!U1,"AAAAAH7fnPw=") ->  | IT13: =AND('Weigh-in'!V1,"AAAAAH7fnP0=") ->  | IU13: =AND('Weigh-in'!W1,"AAAAAH7fnP4=") ->  | IV13: =AND('Weigh-in'!X1,"AAAAAH7fnP8=") -> 
A14: =AND('Weigh-in'!Y1,"AAAAAFn53QA=") ->  | B14: =AND('Weigh-in'!Z1,"AAAAAFn53QE=") ->  | C14: =AND('Weigh-in'!AA1,"AAAAAFn53QI=") ->  | D14: =AND('Weigh-in'!AB1,"AAAAAFn53QM=") ->  | E14: =AND('Weigh-in'!AC1,"AAAAAFn53QQ=") ->  | F14: =AND('Weigh-in'!AD1,"AAAAAFn53QU=") ->  | G14: =AND('Weigh-in'!AE1,"AAAAAFn53QY=") ->  | H14: =AND('Weigh-in'!AF1,"AAAAAFn53Qc=") ->  | I14: =AND('Weigh-in'!AG1,"AAAAAFn53Qg=") ->  | J14: =AND('Weigh-in'!AH1,"AAAAAFn53Qk=") ->  | K14: =AND('Weigh-in'!AI1,"AAAAAFn53Qo=") ->  | L14: =AND('Weigh-in'!AJ1,"AAAAAFn53Qs=") ->  | M14: =AND('Weigh-in'!AK1,"AAAAAFn53Qw=") ->  | N14: =AND('Weigh-in'!AL1,"AAAAAFn53Q0=") ->  | O14: =AND('Weigh-in'!AM1,"AAAAAFn53Q4=") ->  | P14: =AND('Weigh-in'!AN1,"AAAAAFn53Q8=") ->  | Q14: =AND('Weigh-in'!AO1,"AAAAAFn53RA=") ->  | R14: =AND('Weigh-in'!AP1,"AAAAAFn53RE=") ->  | S14: =AND('Weigh-in'!AQ1,"AAAAAFn53RI=") ->  | T14: =AND('Weigh-in'!AR1,"AAAAAFn53RM=") ->  | U14: =AND('Weigh-in'!AS1,"AAAAAFn53RQ=") ->  | V14: =AND('Weigh-in'!AT1,"AAAAAFn53RU=") ->  | W14: =AND('Weigh-in'!AU1,"AAAAAFn53RY=") ->  | X14: =AND('Weigh-in'!AV1,"AAAAAFn53Rc=") ->  | Y14: =AND('Weigh-in'!AW1,"AAAAAFn53Rg=") ->  | Z14: =AND('Weigh-in'!AX1,"AAAAAFn53Rk=") ->  | AA14: =AND('Weigh-in'!AY1,"AAAAAFn53Ro=") ->  | AB14: =AND('Weigh-in'!AZ1,"AAAAAFn53Rs=") ->  | AC14: =AND('Weigh-in'!BA1,"AAAAAFn53Rw=") ->  | AD14: =AND('Weigh-in'!BB1,"AAAAAFn53R0=") ->  | AE14: =AND('Weigh-in'!BC1,"AAAAAFn53R4=") ->  | AF14: =AND('Weigh-in'!BD1,"AAAAAFn53R8=") ->  | AG14: =AND('Weigh-in'!BE1,"AAAAAFn53SA=") ->  | AH14: =AND('Weigh-in'!BF1,"AAAAAFn53SE=") ->  | AI14: =AND('Weigh-in'!BG1,"AAAAAFn53SI=") ->  | AJ14: =AND('Weigh-in'!BH1,"AAAAAFn53SM=") ->  | AK14: =AND('Weigh-in'!BI1,"AAAAAFn53SQ=") ->  | AL14: =AND('Weigh-in'!BJ1,"AAAAAFn53SU=") ->  | AM14: =AND('Weigh-in'!BK1,"AAAAAFn53SY=") ->  | AN14: =AND('Weigh-in'!BL1,"AAAAAFn53Sc=") ->  | AO14: =AND('Weigh-in'!BM1,"AAAAAFn53Sg=") ->  | AP14: =AND('Weigh-in'!BN1,"AAAAAFn53Sk=") ->  | AQ14: =AND('Weigh-in'!BO1,"AAAAAFn53So=") ->  | AR14: =AND('Weigh-in'!BP1,"AAAAAFn53Ss=") ->  | AS14: =AND('Weigh-in'!BQ1,"AAAAAFn53Sw=") ->  | AT14: =AND('Weigh-in'!BR1,"AAAAAFn53S0=") ->  | AU14: =AND('Weigh-in'!BS1,"AAAAAFn53S4=") ->  | AV14: =AND('Weigh-in'!BT1,"AAAAAFn53S8=") ->  | AW14: =AND('Weigh-in'!BU1,"AAAAAFn53TA=") ->  | AX14: =AND('Weigh-in'!BV1,"AAAAAFn53TE=") ->  | AY14: =AND('Weigh-in'!BW1,"AAAAAFn53TI=") ->  | AZ14: =AND('Weigh-in'!BX1,"AAAAAFn53TM=") ->  | BA14: =AND('Weigh-in'!BY1,"AAAAAFn53TQ=") ->  | BB14: =AND('Weigh-in'!BZ1,"AAAAAFn53TU=") ->  | BC14: =AND('Weigh-in'!CA1,"AAAAAFn53TY=") ->  | BD14: =AND('Weigh-in'!CB1,"AAAAAFn53Tc=") ->  | BE14: =AND('Weigh-in'!CC1,"AAAAAFn53Tg=") ->  | BF14: =AND('Weigh-in'!CD1,"AAAAAFn53Tk=") ->  | BG14: =AND('Weigh-in'!CE1,"AAAAAFn53To=") ->  | BH14: =AND('Weigh-in'!CF1,"AAAAAFn53Ts=") ->  | BI14: =AND('Weigh-in'!CG1,"AAAAAFn53Tw=") ->  | BJ14: =AND('Weigh-in'!CH1,"AAAAAFn53T0=") ->  | BK14: =AND('Weigh-in'!CI1,"AAAAAFn53T4=") ->  | BL14: =AND('Weigh-in'!CJ1,"AAAAAFn53T8=") ->  | BM14: =AND('Weigh-in'!CK1,"AAAAAFn53UA=") ->  | BN14: =AND('Weigh-in'!CL1,"AAAAAFn53UE=") ->  | BO14: =AND('Weigh-in'!CM1,"AAAAAFn53UI=") ->  | BP14: =AND('Weigh-in'!CN1,"AAAAAFn53UM=") ->  | BQ14: =AND('Weigh-in'!CO1,"AAAAAFn53UQ=") ->  | BR14: =AND('Weigh-in'!CP1,"AAAAAFn53UU=") ->  | BS14: =AND('Weigh-in'!CQ1,"AAAAAFn53UY=") ->  | BT14: =AND('Weigh-in'!CR1,"AAAAAFn53Uc=") ->  | BU14: =AND('Weigh-in'!CS1,"AAAAAFn53Ug=") ->  | BV14: =AND('Weigh-in'!CT1,"AAAAAFn53Uk=") ->  | BW14: =AND('Weigh-in'!CU1,"AAAAAFn53Uo=") ->  | BX14: =AND('Weigh-in'!CV1,"AAAAAFn53Us=") ->  | BY14: =AND('Weigh-in'!CW1,"AAAAAFn53Uw=") ->  | BZ14: =AND('Weigh-in'!CX1,"AAAAAFn53U0=") ->  | CA14: =AND('Weigh-in'!CY1,"AAAAAFn53U4=") ->  | CB14: =IF('Weigh-in'!2:2,"AAAAAFn53U8=",0) -> 0 | CC14: =AND('Weigh-in'!A2,"AAAAAFn53VA=") ->  | CD14: =AND('Weigh-in'!B2,"AAAAAFn53VE=") ->  | CE14: =AND('Weigh-in'!C2,"AAAAAFn53VI=") ->  | CF14: =AND('Weigh-in'!D2,"AAAAAFn53VM=") ->  | CG14: =AND('Weigh-in'!E2,"AAAAAFn53VQ=") ->  | CH14: =AND('Weigh-in'!F2,"AAAAAFn53VU=") ->  | CI14: =AND('Weigh-in'!G2,"AAAAAFn53VY=") ->  | CJ14: =AND('Weigh-in'!H2,"AAAAAFn53Vc=") ->  | CK14: =AND('Weigh-in'!I2,"AAAAAFn53Vg=") ->  | CL14: =AND('Weigh-in'!J2,"AAAAAFn53Vk=") ->  | CM14: =AND('Weigh-in'!K2,"AAAAAFn53Vo=") ->  | CN14: =AND('Weigh-in'!L2,"AAAAAFn53Vs=") ->  | CO14: =AND('Weigh-in'!M2,"AAAAAFn53Vw=") ->  | CP14: =AND('Weigh-in'!N2,"AAAAAFn53V0=") ->  | CQ14: =AND('Weigh-in'!O2,"AAAAAFn53V4=") ->  | CR14: =AND('Weigh-in'!P2,"AAAAAFn53V8=") ->  | CS14: =AND('Weigh-in'!Q2,"AAAAAFn53WA=") ->  | CT14: =AND('Weigh-in'!R2,"AAAAAFn53WE=") ->  | CU14: =AND('Weigh-in'!S2,"AAAAAFn53WI=") ->  | CV14: =AND('Weigh-in'!T2,"AAAAAFn53WM=") ->  | CW14: =AND('Weigh-in'!U2,"AAAAAFn53WQ=") ->  | CX14: =AND('Weigh-in'!V2,"AAAAAFn53WU=") ->  | CY14: =AND('Weigh-in'!W2,"AAAAAFn53WY=") ->  | CZ14: =AND('Weigh-in'!X2,"AAAAAFn53Wc=") ->  | DA14: =AND('Weigh-in'!Y2,"AAAAAFn53Wg=") ->  | DB14: =AND('Weigh-in'!Z2,"AAAAAFn53Wk=") ->  | DC14: =AND('Weigh-in'!AA2,"AAAAAFn53Wo=") ->  | DD14: =AND('Weigh-in'!AB2,"AAAAAFn53Ws=") ->  | DE14: =AND('Weigh-in'!AC2,"AAAAAFn53Ww=") ->  | DF14: =AND('Weigh-in'!AD2,"AAAAAFn53W0=") ->  | DG14: =AND('Weigh-in'!AE2,"AAAAAFn53W4=") ->  | DH14: =AND('Weigh-in'!AF2,"AAAAAFn53W8=") ->  | DI14: =AND('Weigh-in'!AG2,"AAAAAFn53XA=") ->  | DJ14: =AND('Weigh-in'!AH2,"AAAAAFn53XE=") ->  | DK14: =AND('Weigh-in'!AI2,"AAAAAFn53XI=") ->  | DL14: =AND('Weigh-in'!AJ2,"AAAAAFn53XM=") ->  | DM14: =AND('Weigh-in'!AK2,"AAAAAFn53XQ=") ->  | DN14: =AND('Weigh-in'!AL2,"AAAAAFn53XU=") ->  | DO14: =AND('Weigh-in'!AM2,"AAAAAFn53XY=") ->  | DP14: =AND('Weigh-in'!AN2,"AAAAAFn53Xc=") ->  | DQ14: =AND('Weigh-in'!AO2,"AAAAAFn53Xg=") ->  | DR14: =AND('Weigh-in'!AP2,"AAAAAFn53Xk=") ->  | DS14: =AND('Weigh-in'!AQ2,"AAAAAFn53Xo=") ->  | DT14: =AND('Weigh-in'!AR2,"AAAAAFn53Xs=") ->  | DU14: =AND('Weigh-in'!AS2,"AAAAAFn53Xw=") ->  | DV14: =AND('Weigh-in'!AT2,"AAAAAFn53X0=") ->  | DW14: =AND('Weigh-in'!AU2,"AAAAAFn53X4=") ->  | DX14: =AND('Weigh-in'!AV2,"AAAAAFn53X8=") ->  | DY14: =AND('Weigh-in'!AW2,"AAAAAFn53YA=") ->  | DZ14: =AND('Weigh-in'!AX2,"AAAAAFn53YE=") ->  | EA14: =AND('Weigh-in'!AY2,"AAAAAFn53YI=") ->  | EB14: =AND('Weigh-in'!AZ2,"AAAAAFn53YM=") ->  | EC14: =AND('Weigh-in'!BA2,"AAAAAFn53YQ=") ->  | ED14: =AND('Weigh-in'!BB2,"AAAAAFn53YU=") ->  | EE14: =AND('Weigh-in'!BC2,"AAAAAFn53YY=") ->  | EF14: =AND('Weigh-in'!BD2,"AAAAAFn53Yc=") ->  | EG14: =AND('Weigh-in'!BE2,"AAAAAFn53Yg=") ->  | EH14: =AND('Weigh-in'!BF2,"AAAAAFn53Yk=") ->  | EI14: =AND('Weigh-in'!BG2,"AAAAAFn53Yo=") ->  | EJ14: =AND('Weigh-in'!BH2,"AAAAAFn53Ys=") ->  | EK14: =AND('Weigh-in'!BI2,"AAAAAFn53Yw=") ->  | EL14: =AND('Weigh-in'!BJ2,"AAAAAFn53Y0=") ->  | EM14: =AND('Weigh-in'!BK2,"AAAAAFn53Y4=") ->  | EN14: =AND('Weigh-in'!BL2,"AAAAAFn53Y8=") ->  | EO14: =AND('Weigh-in'!BM2,"AAAAAFn53ZA=") ->  | EP14: =AND('Weigh-in'!BN2,"AAAAAFn53ZE=") ->  | EQ14: =AND('Weigh-in'!BO2,"AAAAAFn53ZI=") ->  | ER14: =AND('Weigh-in'!BP2,"AAAAAFn53ZM=") ->  | ES14: =AND('Weigh-in'!BQ2,"AAAAAFn53ZQ=") ->  | ET14: =AND('Weigh-in'!BR2,"AAAAAFn53ZU=") ->  | EU14: =AND('Weigh-in'!BS2,"AAAAAFn53ZY=") ->  | EV14: =AND('Weigh-in'!BT2,"AAAAAFn53Zc=") ->  | EW14: =AND('Weigh-in'!BU2,"AAAAAFn53Zg=") ->  | EX14: =AND('Weigh-in'!BV2,"AAAAAFn53Zk=") ->  | EY14: =AND('Weigh-in'!BW2,"AAAAAFn53Zo=") ->  | EZ14: =AND('Weigh-in'!BX2,"AAAAAFn53Zs=") ->  | FA14: =AND('Weigh-in'!BY2,"AAAAAFn53Zw=") ->  | FB14: =AND('Weigh-in'!BZ2,"AAAAAFn53Z0=") ->  | FC14: =AND('Weigh-in'!CA2,"AAAAAFn53Z4=") ->  | FD14: =AND('Weigh-in'!CB2,"AAAAAFn53Z8=") ->  | FE14: =AND('Weigh-in'!CC2,"AAAAAFn53aA=") ->  | FF14: =AND('Weigh-in'!CD2,"AAAAAFn53aE=") ->  | FG14: =AND('Weigh-in'!CE2,"AAAAAFn53aI=") ->  | FH14: =AND('Weigh-in'!CF2,"AAAAAFn53aM=") ->  | FI14: =AND('Weigh-in'!CG2,"AAAAAFn53aQ=") ->  | FJ14: =AND('Weigh-in'!CH2,"AAAAAFn53aU=") ->  | FK14: =AND('Weigh-in'!CI2,"AAAAAFn53aY=") ->  | FL14: =AND('Weigh-in'!CJ2,"AAAAAFn53ac=") ->  | FM14: =AND('Weigh-in'!CK2,"AAAAAFn53ag=") ->  | FN14: =AND('Weigh-in'!CL2,"AAAAAFn53ak=") ->  | FO14: =AND('Weigh-in'!CM2,"AAAAAFn53ao=") ->  | FP14: =AND('Weigh-in'!CN2,"AAAAAFn53as=") ->  | FQ14: =AND('Weigh-in'!CO2,"AAAAAFn53aw=") ->  | FR14: =AND('Weigh-in'!CP2,"AAAAAFn53a0=") ->  | FS14: =AND('Weigh-in'!CQ2,"AAAAAFn53a4=") ->  | FT14: =AND('Weigh-in'!CR2,"AAAAAFn53a8=") ->  | FU14: =AND('Weigh-in'!CS2,"AAAAAFn53bA=") ->  | FV14: =AND('Weigh-in'!CT2,"AAAAAFn53bE=") ->  | FW14: =AND('Weigh-in'!CU2,"AAAAAFn53bI=") ->  | FX14: =AND('Weigh-in'!CV2,"AAAAAFn53bM=") ->  | FY14: =AND('Weigh-in'!CW2,"AAAAAFn53bQ=") ->  | FZ14: =AND('Weigh-in'!CX2,"AAAAAFn53bU=") ->  | GA14: =AND('Weigh-in'!CY2,"AAAAAFn53bY=") ->  | GB14: =IF('Weigh-in'!3:3,"AAAAAFn53bc=",0) -> 0 | GC14: =AND('Weigh-in'!A3,"AAAAAFn53bg=") ->  | GD14: =AND('Weigh-in'!B3,"AAAAAFn53bk=") ->  | GE14: =AND('Weigh-in'!C3,"AAAAAFn53bo=") ->  | GF14: =AND('Weigh-in'!D3,"AAAAAFn53bs=") ->  | GG14: =AND('Weigh-in'!E3,"AAAAAFn53bw=") ->  | GH14: =AND('Weigh-in'!F3,"AAAAAFn53b0=") ->  | GI14: =AND('Weigh-in'!G3,"AAAAAFn53b4=") ->  | GJ14: =AND('Weigh-in'!H3,"AAAAAFn53b8=") ->  | GK14: =AND('Weigh-in'!I3,"AAAAAFn53cA=") ->  | GL14: =AND('Weigh-in'!J3,"AAAAAFn53cE=") ->  | GM14: =AND('Weigh-in'!K3,"AAAAAFn53cI=") ->  | GN14: =AND('Weigh-in'!L3,"AAAAAFn53cM=") ->  | GO14: =AND('Weigh-in'!M3,"AAAAAFn53cQ=") ->  | GP14: =AND('Weigh-in'!N3,"AAAAAFn53cU=") ->  | GQ14: =AND('Weigh-in'!O3,"AAAAAFn53cY=") ->  | GR14: =AND('Weigh-in'!P3,"AAAAAFn53cc=") ->  | GS14: =AND('Weigh-in'!Q3,"AAAAAFn53cg=") ->  | GT14: =AND('Weigh-in'!R3,"AAAAAFn53ck=") ->  | GU14: =AND('Weigh-in'!S3,"AAAAAFn53co=") ->  | GV14: =AND('Weigh-in'!T3,"AAAAAFn53cs=") ->  | GW14: =AND('Weigh-in'!U3,"AAAAAFn53cw=") ->  | GX14: =AND('Weigh-in'!V3,"AAAAAFn53c0=") ->  | GY14: =AND('Weigh-in'!W3,"AAAAAFn53c4=") ->  | GZ14: =AND('Weigh-in'!X3,"AAAAAFn53c8=") ->  | HA14: =AND('Weigh-in'!Y3,"AAAAAFn53dA=") ->  | HB14: =AND('Weigh-in'!Z3,"AAAAAFn53dE=") ->  | HC14: =AND('Weigh-in'!AA3,"AAAAAFn53dI=") ->  | HD14: =AND('Weigh-in'!AB3,"AAAAAFn53dM=") ->  | HE14: =AND('Weigh-in'!AC3,"AAAAAFn53dQ=") ->  | HF14: =AND('Weigh-in'!AD3,"AAAAAFn53dU=") ->  | HG14: =AND('Weigh-in'!AE3,"AAAAAFn53dY=") ->  | HH14: =AND('Weigh-in'!AF3,"AAAAAFn53dc=") ->  | HI14: =AND('Weigh-in'!AG3,"AAAAAFn53dg=") ->  | HJ14: =AND('Weigh-in'!AH3,"AAAAAFn53dk=") ->  | HK14: =AND('Weigh-in'!AI3,"AAAAAFn53do=") ->  | HL14: =IF('Weigh-in'!4:4,"AAAAAFn53ds=",0) -> 0 | HM14: =AND('Weigh-in'!A4,"AAAAAFn53dw=") ->  | HN14: =AND('Weigh-in'!B4,"AAAAAFn53d0=") ->  | HO14: =AND('Weigh-in'!C4,"AAAAAFn53d4=") ->  | HP14: =AND('Weigh-in'!D4,"AAAAAFn53d8=") ->  | HQ14: =AND('Weigh-in'!E4,"AAAAAFn53eA=") ->  | HR14: =AND('Weigh-in'!F4,"AAAAAFn53eE=") ->  | HS14: =AND('Weigh-in'!G4,"AAAAAFn53eI=") ->  | HT14: =AND('Weigh-in'!H4,"AAAAAFn53eM=") ->  | HU14: =AND('Weigh-in'!I4,"AAAAAFn53eQ=") ->  | HV14: =AND('Weigh-in'!J4,"AAAAAFn53eU=") ->  | HW14: =AND('Weigh-in'!K4,"AAAAAFn53eY=") ->  | HX14: =AND('Weigh-in'!L4,"AAAAAFn53ec=") ->  | HY14: =AND('Weigh-in'!M4,"AAAAAFn53eg=") ->  | HZ14: =AND('Weigh-in'!N4,"AAAAAFn53ek=") ->  | IA14: =AND('Weigh-in'!O4,"AAAAAFn53eo=") ->  | IB14: =AND('Weigh-in'!P4,"AAAAAFn53es=") ->  | IC14: =AND('Weigh-in'!Q4,"AAAAAFn53ew=") ->  | ID14: =AND('Weigh-in'!R4,"AAAAAFn53e0=") ->  | IE14: =AND('Weigh-in'!S4,"AAAAAFn53e4=") ->  | IF14: =AND('Weigh-in'!T4,"AAAAAFn53e8=") ->  | IG14: =AND('Weigh-in'!U4,"AAAAAFn53fA=") ->  | IH14: =AND('Weigh-in'!V4,"AAAAAFn53fE=") ->  | II14: =AND('Weigh-in'!W4,"AAAAAFn53fI=") ->  | IJ14: =AND('Weigh-in'!X4,"AAAAAFn53fM=") ->  | IK14: =AND('Weigh-in'!Y4,"AAAAAFn53fQ=") ->  | IL14: =AND('Weigh-in'!Z4,"AAAAAFn53fU=") ->  | IM14: =AND('Weigh-in'!AA4,"AAAAAFn53fY=") ->  | IN14: =AND('Weigh-in'!AB4,"AAAAAFn53fc=") ->  | IO14: =AND('Weigh-in'!AC4,"AAAAAFn53fg=") ->  | IP14: =AND('Weigh-in'!AD4,"AAAAAFn53fk=") ->  | IQ14: =AND('Weigh-in'!AE4,"AAAAAFn53fo=") ->  | IR14: =AND('Weigh-in'!AF4,"AAAAAFn53fs=") ->  | IS14: =AND('Weigh-in'!AG4,"AAAAAFn53fw=") ->  | IT14: =AND('Weigh-in'!AH4,"AAAAAFn53f0=") ->  | IU14: =AND('Weigh-in'!AI4,"AAAAAFn53f4=") ->  | IV14: =IF('Weigh-in'!5:5,"AAAAAFn53f8=",0) -> 0
A15: =AND('Weigh-in'!A5,"AAAAAH/rcwA=") ->  | B15: =AND('Weigh-in'!B5,"AAAAAH/rcwE=") ->  | C15: =AND('Weigh-in'!C5,"AAAAAH/rcwI=") ->  | D15: =AND('Weigh-in'!D5,"AAAAAH/rcwM=") ->  | E15: =AND('Weigh-in'!E5,"AAAAAH/rcwQ=") ->  | F15: =AND('Weigh-in'!F5,"AAAAAH/rcwU=") ->  | G15: =AND('Weigh-in'!G5,"AAAAAH/rcwY=") ->  | H15: =AND('Weigh-in'!H5,"AAAAAH/rcwc=") ->  | I15: =AND('Weigh-in'!I5,"AAAAAH/rcwg=") ->  | J15: =AND('Weigh-in'!J5,"AAAAAH/rcwk=") ->  | K15: =AND('Weigh-in'!K5,"AAAAAH/rcwo=") ->  | L15: =AND('Weigh-in'!L5,"AAAAAH/rcws=") ->  | M15: =AND('Weigh-in'!M5,"AAAAAH/rcww=") ->  | N15: =AND('Weigh-in'!N5,"AAAAAH/rcw0=") ->  | O15: =AND('Weigh-in'!O5,"AAAAAH/rcw4=") ->  | P15: =AND('Weigh-in'!P5,"AAAAAH/rcw8=") ->  | Q15: =AND('Weigh-in'!Q5,"AAAAAH/rcxA=") ->  | R15: =AND('Weigh-in'!R5,"AAAAAH/rcxE=") ->  | S15: =AND('Weigh-in'!S5,"AAAAAH/rcxI=") ->  | T15: =AND('Weigh-in'!T5,"AAAAAH/rcxM=") ->  | U15: =AND('Weigh-in'!U5,"AAAAAH/rcxQ=") ->  | V15: =AND('Weigh-in'!V5,"AAAAAH/rcxU=") ->  | W15: =AND('Weigh-in'!W5,"AAAAAH/rcxY=") ->  | X15: =AND('Weigh-in'!X5,"AAAAAH/rcxc=") ->  | Y15: =AND('Weigh-in'!Y5,"AAAAAH/rcxg=") ->  | Z15: =AND('Weigh-in'!Z5,"AAAAAH/rcxk=") ->  | AA15: =AND('Weigh-in'!AA5,"AAAAAH/rcxo=") ->  | AB15: =AND('Weigh-in'!AB5,"AAAAAH/rcxs=") ->  | AC15: =AND('Weigh-in'!AC5,"AAAAAH/rcxw=") ->  | AD15: =AND('Weigh-in'!AD5,"AAAAAH/rcx0=") ->  | AE15: =AND('Weigh-in'!AE5,"AAAAAH/rcx4=") ->  | AF15: =AND('Weigh-in'!AF5,"AAAAAH/rcx8=") ->  | AG15: =AND('Weigh-in'!AG5,"AAAAAH/rcyA=") ->  | AH15: =AND('Weigh-in'!AH5,"AAAAAH/rcyE=") ->  | AI15: =AND('Weigh-in'!AI5,"AAAAAH/rcyI=") ->  | AJ15: =IF('Weigh-in'!6:6,"AAAAAH/rcyM=",0) -> 0 | AK15: =AND('Weigh-in'!A6,"AAAAAH/rcyQ=") ->  | AL15: =AND('Weigh-in'!B6,"AAAAAH/rcyU=") ->  | AM15: =AND('Weigh-in'!C6,"AAAAAH/rcyY=") ->  | AN15: =AND('Weigh-in'!D6,"AAAAAH/rcyc=") ->  | AO15: =AND('Weigh-in'!E6,"AAAAAH/rcyg=") ->  | AP15: =AND('Weigh-in'!F6,"AAAAAH/rcyk=") ->  | AQ15: =AND('Weigh-in'!G6,"AAAAAH/rcyo=") ->  | AR15: =AND('Weigh-in'!H6,"AAAAAH/rcys=") ->  | AS15: =AND('Weigh-in'!I6,"AAAAAH/rcyw=") ->  | AT15: =AND('Weigh-in'!J6,"AAAAAH/rcy0=") ->  | AU15: =AND('Weigh-in'!K6,"AAAAAH/rcy4=") ->  | AV15: =AND('Weigh-in'!L6,"AAAAAH/rcy8=") ->  | AW15: =AND('Weigh-in'!M6,"AAAAAH/rczA=") ->  | AX15: =AND('Weigh-in'!N6,"AAAAAH/rczE=") ->  | AY15: =AND('Weigh-in'!O6,"AAAAAH/rczI=") ->  | AZ15: =AND('Weigh-in'!P6,"AAAAAH/rczM=") ->  | BA15: =AND('Weigh-in'!Q6,"AAAAAH/rczQ=") ->  | BB15: =AND('Weigh-in'!R6,"AAAAAH/rczU=") ->  | BC15: =AND('Weigh-in'!S6,"AAAAAH/rczY=") ->  | BD15: =AND('Weigh-in'!T6,"AAAAAH/rczc=") ->  | BE15: =AND('Weigh-in'!U6,"AAAAAH/rczg=") ->  | BF15: =AND('Weigh-in'!V6,"AAAAAH/rczk=") ->  | BG15: =AND('Weigh-in'!W6,"AAAAAH/rczo=") ->  | BH15: =AND('Weigh-in'!X6,"AAAAAH/rczs=") ->  | BI15: =AND('Weigh-in'!Y6,"AAAAAH/rczw=") ->  | BJ15: =AND('Weigh-in'!Z6,"AAAAAH/rcz0=") ->  | BK15: =AND('Weigh-in'!AA6,"AAAAAH/rcz4=") ->  | BL15: =AND('Weigh-in'!AB6,"AAAAAH/rcz8=") ->  | BM15: =AND('Weigh-in'!AC6,"AAAAAH/rc0A=") ->  | BN15: =AND('Weigh-in'!AD6,"AAAAAH/rc0E=") ->  | BO15: =AND('Weigh-in'!AE6,"AAAAAH/rc0I=") ->  | BP15: =AND('Weigh-in'!AF6,"AAAAAH/rc0M=") ->  | BQ15: =AND('Weigh-in'!AG6,"AAAAAH/rc0Q=") ->  | BR15: =AND('Weigh-in'!AH6,"AAAAAH/rc0U=") ->  | BS15: =AND('Weigh-in'!AI6,"AAAAAH/rc0Y=") ->  | BT15: =IF('Weigh-in'!7:7,"AAAAAH/rc0c=",0) -> 0 | BU15: =AND('Weigh-in'!A7,"AAAAAH/rc0g=") ->  | BV15: =AND('Weigh-in'!B7,"AAAAAH/rc0k=") ->  | BW15: =AND('Weigh-in'!C7,"AAAAAH/rc0o=") ->  | BX15: =AND('Weigh-in'!D7,"AAAAAH/rc0s=") ->  | BY15: =AND('Weigh-in'!E7,"AAAAAH/rc0w=") ->  | BZ15: =AND('Weigh-in'!F7,"AAAAAH/rc00=") ->  | CA15: =AND('Weigh-in'!G7,"AAAAAH/rc04=") ->  | CB15: =AND('Weigh-in'!H7,"AAAAAH/rc08=") ->  | CC15: =AND('Weigh-in'!I7,"AAAAAH/rc1A=") ->  | CD15: =AND('Weigh-in'!J7,"AAAAAH/rc1E=") ->  | CE15: =AND('Weigh-in'!K7,"AAAAAH/rc1I=") ->  | CF15: =AND('Weigh-in'!L7,"AAAAAH/rc1M=") ->  | CG15: =AND('Weigh-in'!M7,"AAAAAH/rc1Q=") ->  | CH15: =AND('Weigh-in'!N7,"AAAAAH/rc1U=") ->  | CI15: =AND('Weigh-in'!O7,"AAAAAH/rc1Y=") ->  | CJ15: =AND('Weigh-in'!P7,"AAAAAH/rc1c=") ->  | CK15: =AND('Weigh-in'!Q7,"AAAAAH/rc1g=") ->  | CL15: =AND('Weigh-in'!R7,"AAAAAH/rc1k=") ->  | CM15: =AND('Weigh-in'!S7,"AAAAAH/rc1o=") ->  | CN15: =AND('Weigh-in'!T7,"AAAAAH/rc1s=") ->  | CO15: =AND('Weigh-in'!U7,"AAAAAH/rc1w=") ->  | CP15: =AND('Weigh-in'!V7,"AAAAAH/rc10=") ->  | CQ15: =AND('Weigh-in'!W7,"AAAAAH/rc14=") ->  | CR15: =AND('Weigh-in'!X7,"AAAAAH/rc18=") ->  | CS15: =AND('Weigh-in'!Y7,"AAAAAH/rc2A=") ->  | CT15: =AND('Weigh-in'!Z7,"AAAAAH/rc2E=") ->  | CU15: =AND('Weigh-in'!AA7,"AAAAAH/rc2I=") ->  | CV15: =AND('Weigh-in'!AB7,"AAAAAH/rc2M=") ->  | CW15: =AND('Weigh-in'!AC7,"AAAAAH/rc2Q=") ->  | CX15: =AND('Weigh-in'!AD7,"AAAAAH/rc2U=") ->  | CY15: =AND('Weigh-in'!AE7,"AAAAAH/rc2Y=") ->  | CZ15: =AND('Weigh-in'!AF7,"AAAAAH/rc2c=") ->  | DA15: =AND('Weigh-in'!AG7,"AAAAAH/rc2g=") ->  | DB15: =AND('Weigh-in'!AH7,"AAAAAH/rc2k=") ->  | DC15: =AND('Weigh-in'!AI7,"AAAAAH/rc2o=") ->  | DD15: =IF('Weigh-in'!8:8,"AAAAAH/rc2s=",0) -> 0 | DE15: =AND('Weigh-in'!A8,"AAAAAH/rc2w=") ->  | DF15: =AND('Weigh-in'!B8,"AAAAAH/rc20=") ->  | DG15: =AND('Weigh-in'!C8,"AAAAAH/rc24=") ->  | DH15: =AND('Weigh-in'!D8,"AAAAAH/rc28=") ->  | DI15: =AND('Weigh-in'!E8,"AAAAAH/rc3A=") ->  | DJ15: =AND('Weigh-in'!F8,"AAAAAH/rc3E=") ->  | DK15: =AND('Weigh-in'!G8,"AAAAAH/rc3I=") ->  | DL15: =AND('Weigh-in'!H8,"AAAAAH/rc3M=") ->  | DM15: =AND('Weigh-in'!I8,"AAAAAH/rc3Q=") ->  | DN15: =AND('Weigh-in'!J8,"AAAAAH/rc3U=") ->  | DO15: =AND('Weigh-in'!K8,"AAAAAH/rc3Y=") ->  | DP15: =AND('Weigh-in'!L8,"AAAAAH/rc3c=") ->  | DQ15: =AND('Weigh-in'!M8,"AAAAAH/rc3g=") ->  | DR15: =AND('Weigh-in'!N8,"AAAAAH/rc3k=") ->  | DS15: =AND('Weigh-in'!O8,"AAAAAH/rc3o=") ->  | DT15: =AND('Weigh-in'!P8,"AAAAAH/rc3s=") ->  | DU15: =AND('Weigh-in'!Q8,"AAAAAH/rc3w=") ->  | DV15: =AND('Weigh-in'!R8,"AAAAAH/rc30=") ->  | DW15: =AND('Weigh-in'!S8,"AAAAAH/rc34=") ->  | DX15: =AND('Weigh-in'!T8,"AAAAAH/rc38=") ->  | DY15: =AND('Weigh-in'!U8,"AAAAAH/rc4A=") ->  | DZ15: =AND('Weigh-in'!V8,"AAAAAH/rc4E=") ->  | EA15: =AND('Weigh-in'!W8,"AAAAAH/rc4I=") ->  | EB15: =AND('Weigh-in'!X8,"AAAAAH/rc4M=") ->  | EC15: =AND('Weigh-in'!Y8,"AAAAAH/rc4Q=") ->  | ED15: =AND('Weigh-in'!Z8,"AAAAAH/rc4U=") ->  | EE15: =AND('Weigh-in'!AA8,"AAAAAH/rc4Y=") ->  | EF15: =AND('Weigh-in'!AB8,"AAAAAH/rc4c=") ->  | EG15: =AND('Weigh-in'!AC8,"AAAAAH/rc4g=") ->  | EH15: =AND('Weigh-in'!AD8,"AAAAAH/rc4k=") ->  | EI15: =AND('Weigh-in'!AE8,"AAAAAH/rc4o=") ->  | EJ15: =AND('Weigh-in'!AF8,"AAAAAH/rc4s=") ->  | EK15: =AND('Weigh-in'!AG8,"AAAAAH/rc4w=") ->  | EL15: =AND('Weigh-in'!AH8,"AAAAAH/rc40=") ->  | EM15: =AND('Weigh-in'!AI8,"AAAAAH/rc44=") ->  | EN15: =IF('Weigh-in'!9:9,"AAAAAH/rc48=",0) -> 0 | EO15: =AND('Weigh-in'!A9,"AAAAAH/rc5A=") ->  | EP15: =AND('Weigh-in'!B9,"AAAAAH/rc5E=") ->  | EQ15: =AND('Weigh-in'!C9,"AAAAAH/rc5I=") ->  | ER15: =AND('Weigh-in'!D9,"AAAAAH/rc5M=") ->  | ES15: =AND('Weigh-in'!E9,"AAAAAH/rc5Q=") ->  | ET15: =AND('Weigh-in'!F9,"AAAAAH/rc5U=") ->  | EU15: =AND('Weigh-in'!G9,"AAAAAH/rc5Y=") ->  | EV15: =AND('Weigh-in'!H9,"AAAAAH/rc5c=") ->  | EW15: =AND('Weigh-in'!I9,"AAAAAH/rc5g=") ->  | EX15: =AND('Weigh-in'!J9,"AAAAAH/rc5k=") ->  | EY15: =AND('Weigh-in'!K9,"AAAAAH/rc5o=") ->  | EZ15: =AND('Weigh-in'!L9,"AAAAAH/rc5s=") ->  | FA15: =AND('Weigh-in'!M9,"AAAAAH/rc5w=") ->  | FB15: =AND('Weigh-in'!N9,"AAAAAH/rc50=") ->  | FC15: =AND('Weigh-in'!O9,"AAAAAH/rc54=") ->  | FD15: =AND('Weigh-in'!P9,"AAAAAH/rc58=") ->  | FE15: =AND('Weigh-in'!Q9,"AAAAAH/rc6A=") ->  | FF15: =AND('Weigh-in'!R9,"AAAAAH/rc6E=") ->  | FG15: =AND('Weigh-in'!S9,"AAAAAH/rc6I=") ->  | FH15: =AND('Weigh-in'!T9,"AAAAAH/rc6M=") ->  | FI15: =AND('Weigh-in'!U9,"AAAAAH/rc6Q=") ->  | FJ15: =AND('Weigh-in'!V9,"AAAAAH/rc6U=") ->  | FK15: =AND('Weigh-in'!W9,"AAAAAH/rc6Y=") ->  | FL15: =AND('Weigh-in'!X9,"AAAAAH/rc6c=") ->  | FM15: =AND('Weigh-in'!Y9,"AAAAAH/rc6g=") ->  | FN15: =AND('Weigh-in'!Z9,"AAAAAH/rc6k=") ->  | FO15: =AND('Weigh-in'!AA9,"AAAAAH/rc6o=") ->  | FP15: =AND('Weigh-in'!AB9,"AAAAAH/rc6s=") ->  | FQ15: =AND('Weigh-in'!AC9,"AAAAAH/rc6w=") ->  | FR15: =AND('Weigh-in'!AD9,"AAAAAH/rc60=") ->  | FS15: =AND('Weigh-in'!AE9,"AAAAAH/rc64=") ->  | FT15: =AND('Weigh-in'!AF9,"AAAAAH/rc68=") ->  | FU15: =AND('Weigh-in'!AG9,"AAAAAH/rc7A=") ->  | FV15: =AND('Weigh-in'!AH9,"AAAAAH/rc7E=") ->  | FW15: =AND('Weigh-in'!AI9,"AAAAAH/rc7I=") ->  | FX15: =IF('Weigh-in'!10:10,"AAAAAH/rc7M=",0) -> 0 | FY15: =AND('Weigh-in'!A10,"AAAAAH/rc7Q=") ->  | FZ15: =AND('Weigh-in'!B10,"AAAAAH/rc7U=") ->  | GA15: =AND('Weigh-in'!C10,"AAAAAH/rc7Y=") ->  | GB15: =AND('Weigh-in'!D10,"AAAAAH/rc7c=") ->  | GC15: =AND('Weigh-in'!E10,"AAAAAH/rc7g=") ->  | GD15: =AND('Weigh-in'!F10,"AAAAAH/rc7k=") ->  | GE15: =AND('Weigh-in'!G10,"AAAAAH/rc7o=") ->  | GF15: =AND('Weigh-in'!H10,"AAAAAH/rc7s=") ->  | GG15: =AND('Weigh-in'!I10,"AAAAAH/rc7w=") ->  | GH15: =AND('Weigh-in'!J10,"AAAAAH/rc70=") ->  | GI15: =AND('Weigh-in'!K10,"AAAAAH/rc74=") ->  | GJ15: =AND('Weigh-in'!L10,"AAAAAH/rc78=") ->  | GK15: =AND('Weigh-in'!M10,"AAAAAH/rc8A=") ->  | GL15: =AND('Weigh-in'!N10,"AAAAAH/rc8E=") ->  | GM15: =AND('Weigh-in'!O10,"AAAAAH/rc8I=") ->  | GN15: =AND('Weigh-in'!P10,"AAAAAH/rc8M=") ->  | GO15: =AND('Weigh-in'!Q10,"AAAAAH/rc8Q=") ->  | GP15: =AND('Weigh-in'!R10,"AAAAAH/rc8U=") ->  | GQ15: =AND('Weigh-in'!S10,"AAAAAH/rc8Y=") ->  | GR15: =AND('Weigh-in'!T10,"AAAAAH/rc8c=") ->  | GS15: =AND('Weigh-in'!U10,"AAAAAH/rc8g=") ->  | GT15: =AND('Weigh-in'!V10,"AAAAAH/rc8k=") ->  | GU15: =AND('Weigh-in'!W10,"AAAAAH/rc8o=") ->  | GV15: =AND('Weigh-in'!X10,"AAAAAH/rc8s=") ->  | GW15: =AND('Weigh-in'!Y10,"AAAAAH/rc8w=") ->  | GX15: =AND('Weigh-in'!Z10,"AAAAAH/rc80=") ->  | GY15: =AND('Weigh-in'!AA10,"AAAAAH/rc84=") ->  | GZ15: =AND('Weigh-in'!AB10,"AAAAAH/rc88=") ->  | HA15: =AND('Weigh-in'!AC10,"AAAAAH/rc9A=") ->  | HB15: =AND('Weigh-in'!AD10,"AAAAAH/rc9E=") ->  | HC15: =AND('Weigh-in'!AE10,"AAAAAH/rc9I=") ->  | HD15: =AND('Weigh-in'!AF10,"AAAAAH/rc9M=") ->  | HE15: =AND('Weigh-in'!AG10,"AAAAAH/rc9Q=") ->  | HF15: =AND('Weigh-in'!AH10,"AAAAAH/rc9U=") ->  | HG15: =AND('Weigh-in'!AI10,"AAAAAH/rc9Y=") ->  | HH15: =IF('Weigh-in'!11:11,"AAAAAH/rc9c=",0) -> 0 | HI15: =AND('Weigh-in'!A11,"AAAAAH/rc9g=") ->  | HJ15: =AND('Weigh-in'!B11,"AAAAAH/rc9k=") ->  | HK15: =AND('Weigh-in'!C11,"AAAAAH/rc9o=") ->  | HL15: =AND('Weigh-in'!D11,"AAAAAH/rc9s=") ->  | HM15: =AND('Weigh-in'!E11,"AAAAAH/rc9w=") ->  | HN15: =AND('Weigh-in'!F11,"AAAAAH/rc90=") ->  | HO15: =AND('Weigh-in'!G11,"AAAAAH/rc94=") ->  | HP15: =AND('Weigh-in'!H11,"AAAAAH/rc98=") ->  | HQ15: =AND('Weigh-in'!I11,"AAAAAH/rc+A=") ->  | HR15: =AND('Weigh-in'!J11,"AAAAAH/rc+E=") ->  | HS15: =AND('Weigh-in'!K11,"AAAAAH/rc+I=") ->  | HT15: =AND('Weigh-in'!L11,"AAAAAH/rc+M=") ->  | HU15: =AND('Weigh-in'!M11,"AAAAAH/rc+Q=") ->  | HV15: =AND('Weigh-in'!N11,"AAAAAH/rc+U=") ->  | HW15: =AND('Weigh-in'!O11,"AAAAAH/rc+Y=") ->  | HX15: =AND('Weigh-in'!P11,"AAAAAH/rc+c=") ->  | HY15: =AND('Weigh-in'!Q11,"AAAAAH/rc+g=") ->  | HZ15: =AND('Weigh-in'!R11,"AAAAAH/rc+k=") ->  | IA15: =AND('Weigh-in'!S11,"AAAAAH/rc+o=") ->  | IB15: =AND('Weigh-in'!T11,"AAAAAH/rc+s=") ->  | IC15: =AND('Weigh-in'!U11,"AAAAAH/rc+w=") ->  | ID15: =AND('Weigh-in'!V11,"AAAAAH/rc+0=") ->  | IE15: =AND('Weigh-in'!W11,"AAAAAH/rc+4=") ->  | IF15: =AND('Weigh-in'!X11,"AAAAAH/rc+8=") ->  | IG15: =AND('Weigh-in'!Y11,"AAAAAH/rc/A=") ->  | IH15: =AND('Weigh-in'!Z11,"AAAAAH/rc/E=") ->  | II15: =AND('Weigh-in'!AA11,"AAAAAH/rc/I=") ->  | IJ15: =AND('Weigh-in'!AB11,"AAAAAH/rc/M=") ->  | IK15: =AND('Weigh-in'!AC11,"AAAAAH/rc/Q=") ->  | IL15: =AND('Weigh-in'!AD11,"AAAAAH/rc/U=") ->  | IM15: =AND('Weigh-in'!AE11,"AAAAAH/rc/Y=") ->  | IN15: =AND('Weigh-in'!AF11,"AAAAAH/rc/c=") ->  | IO15: =AND('Weigh-in'!AG11,"AAAAAH/rc/g=") ->  | IP15: =AND('Weigh-in'!AH11,"AAAAAH/rc/k=") ->  | IQ15: =AND('Weigh-in'!AI11,"AAAAAH/rc/o=") ->  | IR15: =IF('Weigh-in'!12:12,"AAAAAH/rc/s=",0) -> 0 | IS15: =AND('Weigh-in'!A12,"AAAAAH/rc/w=") ->  | IT15: =AND('Weigh-in'!B12,"AAAAAH/rc/0=") ->  | IU15: =AND('Weigh-in'!C12,"AAAAAH/rc/4=") ->  | IV15: =AND('Weigh-in'!D12,"AAAAAH/rc/8=") -> 
